{"text_format":"1","workbook":"xlsx","n_sheets":9,"sheets":["Instructions","Inputs - Chemical Properties","Inputs - Environment","Emission Amounts","Results","Diagram","Charts","Chemical Database","Environment Database"],"not_rendered":{"charts":3,"images":11,"macros":1,"external_links":1,"defined_names":54,"comments":2,"pivot_tables":0},"unopened":[],"bounds":{"document_bytes":16777216,"sheet_cells":100000,"rows_first":2000,"rows_last":500,"rows_between":2000,"halvings":0,"cell_chars":16384,"cell_head_chars":4096},"cells_cut":0,"cells_raw":0,"read":"whole","date_system":"1900"}

{"sheet":"Instructions","index":0,"n_rows":25,"n_cols":3,"rows_kept":25,"cut":false,"hidden":false,"merged":[[0,1,1,23],[10,1,10,23],[8,1,8,23],[7,2,7,23]]}
[null,"The Level I model uses different input properties depending on whether they are Type 1, Type 2, or Type 3 chemicals (as defined in Mackay et al. 1996). In this version of the model, the chemical 'Type' is selected based on certain chemical properties, rather than by user selection. Selection rules are as follows:"]
[]
[null,"Type 1 chemicals: Substances partition into air, water and octanol. These chemicals have measurable vapour pressures and solubilities. If a vapour pressure value is entered the chemical will be treated as Type 1."]
[null,null," If the vapour pressure is not meaurable or negligible, enter a dash in vapour pressure cell, then continue to fill out the rest of the properties"]
[null,"Type 2 chemicals: The substance does not appreciably partition into air. If a dash is entered into vapour pressure then additional partition ratio inputs will appear for media/water systems"]
[null,"Type 3 chemicals: The substance does not appreciably partition into water. If a dash is entered in the vapour pressure input and the soil/water partition ratio value is 1000 or larger, then the required inputs will be media/air"]
[null,null,"If the inputted soil/water partition ratio > 1000, ALL partition ratio inputs will change to media/air from media/water. Some values may need to be re-inputted as media/air instead of media/water"]
[null,"Notes:","After the Inputs for your chemical is filled out in the Inputs sheet, it is recommended to add the chemical to the database by clicking the radial button 'Add to DB' to easily-re-enter the correct input data in the future\nThere are sample Type 1, 2, and 3 chemicals in the database"]
[null,"Continue filling out environment inputs and emission amounts. Results are located in the 'Results' sheet and summarized in the 'Diagram' and 'Chart' sheets"]
[]
[null,"Property estimation guidelines (all equations from Mackay & Parnis 2021):"]
[null,"- Henry's law constant (H) an be estimated as: Vapor Pressure * Molar Mass / Solubility"]
[null,"- Reaction half-life estimated values can be obtained from EAS-E Suite (www.eas-e-suite.com), or EPI Suite for water & air half-lives only (https://www.epa.gov/tsca-screening-tools/epi-suitetm-estimation-program-interface)"]
[null,"- Koc can be estimated as Kow * 0.35 (Seth method) or as Kow * 0.41 (Karickhoff method)"]
[null,"- Kaw can be calculated as H/RT, where R = Gas constant and T = temperature"]
[null,"- Partition ratios can be calculated as the ratio of Z-values, e.g., Kaw = Za/Zw"]
[null,null,"> Za = 1/RT = 4x10^-4"]
[null,null,"> Zw = Za/Kaw"]
[null,null,"> Zo = Zw*Kow"]
[null,null,"> Z_solid = Zo * OC fraction; where any solid phase can be represented including sediment, suspended sediment, soil, etc. OC fraction default values can be found in the Environment properties sheet"]
[null,null,"> Z_biota = Zo * Lipid content; where any biota can be represented, including fish. Default lipid content values can be found in the Environment properties sheet"]
[]
[]
[null,"References:","Mackay et al. 1996. Assessing the fate of new and existing chemicals: a five-stage process. Environ. Toxicol Chem. 15(9), 1618-1626"]
[null,null,"Mackay & Parnis, 2021. Multimedia Environmental Models: The Fugacity Approach. 3rd ed. CRC Press, Taylor & Francis Group. Boca Raton, FL."]

{"sheet":"Inputs - Chemical Properties","index":1,"n_rows":26,"n_cols":6,"rows_kept":26,"cut":false,"hidden":false,"merged":[[6,5,7,5]]}
[]
[]
[null,null,"CHEMICAL PROPERTIES","Please complete all required fields below or Select a chemical from the database:"]
[]
[]
[null,null,"* indicates required input"]
[null,null,"Note: insert dash (-) if property not inputted",null,null,"References and Notes"]
[]
[null,"*","Chemical Name","Benzo[a]pyrene"]
[null,null,"CAS"]
[]
[null,"*","Molar Mass (g/mol)",252.316]
[null,"*","Data Temperature (°C)",25]
[null,null,"Melting Point (°C)",175]
[null,null,"Vapor Pressure (Pa)",6.9999999999999997E-7]
[null,{"$f":"IF(Pressure=\"-\",\"\",\"*\")","v":"*"},"Henry's Law Constant (Pa·m³/mol)",4.6300000000000001E-2]
[]
[null,null,"Partition Ratios"]
[null,null,"logKOW",6.04]
[null,{"$f":"IF(Pressure=\"-\",\"\",\"*\")","v":"*"},"KOC",383767.36865011504,null,"Seth method"]
[null,{"$f":"IF(Pressure=\"-\",\"*\",\"\")","v":""},{"$f":"IF(AND(ISNUMBER(SEARCH(\"N/A\",Fugacity_Ratio)),KQW<1000),\"Air-Water\",IF(ISNUMBER(SEARCH(\"N/A\",Fugacity_Ratio)),\"Water-Air\",\"-\"))","v":"-"}]
[null,"",{"$f":"IF(AND(ISNUMBER(SEARCH(\"N/A\",Fugacity_Ratio)),KQW<1000),\"Aerosol-Water\",IF(ISNUMBER(SEARCH(\"N/A\",Fugacity_Ratio)),\"Aerosol-Air\",\"-\"))","v":"-"}]
[null,"",{"$f":"IF(AND(ISNUMBER(SEARCH(\"N/A\",Fugacity_Ratio)),KQW<1000),\"Soil-Water (L/kg)\",IF(ISNUMBER(SEARCH(\"N/A\",Fugacity_Ratio)),\"Soilr-Air\",\"-\"))","v":"-"}]
[null,"",{"$f":"IF(AND(ISNUMBER(SEARCH(\"N/A\",Fugacity_Ratio)),KQW<1000),\"Suspended Particles-Water (L/kg)\",IF(ISNUMBER(SEARCH(\"N/A\",Fugacity_Ratio)),\"Suspended Particles-Air\",\"-\"))","v":"-"}]
[null,"",{"$f":"IF(AND(ISNUMBER(SEARCH(\"N/A\",Fugacity_Ratio)),KQW<1000),\"Sediment-Water (L/kg)\",IF(ISNUMBER(SEARCH(\"N/A\",Fugacity_Ratio)),\"Sediment-Air\",\"-\"))","v":"-"}]
[null,"",{"$f":"IF(AND(ISNUMBER(SEARCH(\"N/A\",Fugacity_Ratio)),KQW<1000),\"Fish-Water (L/kg)\",IF(ISNUMBER(SEARCH(\"N/A\",Fugacity_Ratio)),\"Fish-Air\",\"-\"))","v":"-"}]

{"sheet":"Inputs - Environment","index":2,"n_rows":23,"n_cols":7,"rows_kept":23,"cut":false,"hidden":false,"merged":[[22,3,22,5],[23,2,28,6]]}
[]
[]
[null,null,"ENVIRONMENTAL PROPERTIES"]
[]
[null,null,"Please complete all fields or select an environment from the database:"]
[]
[null,null,"Environment Name","EQC-2012- Hughes et al."]
[]
[null,null,"Fractions",null,null,"Organic Carbon"]
[null,null,"Aerosols in Air",1.9999999999999999E-11,null,"Suspended Particles (g/g)",0.2]
[null,null,"Susp. Particles in Water",5.0000000000000004E-6,null,"Soil (g/g)",0.02]
[null,null,"Fish in Water",9.9999999999999995E-7,null,"Sediment (g/g)",0.04]
[]
[null,null,"Volume",null,null,"Density "]
[null,null,"Air (m³)",100000000000000,null,"Air (kg/m³)",1.185413]
[null,null,"Water (m³)",200000000000,null,"Aerosol (kg/m³)",2000]
[null,null,"Soil (m³)",18000000000,null,"Water (kg/m³)",1000]
[null,null,"Sediment (m³)",500000000,null,"Suspended Particles (kg/m³)",1500]
[null,null,null,null,null,"Fish (kg/m³)",1000]
[null,null,"Lipid Fraction",null,null,"Soil (kg/m³)",2400]
[null,null,"Fish (g/g)",0.05,null,"Sediment (kg/m³)",2400]
[]
[null,null,null,"Additional Comments"]

{"sheet":"Emission Amounts","index":3,"n_rows":6,"n_cols":5,"rows_kept":6,"cut":false,"hidden":false,"merged":[]}
[]
[]
[null,null,"CHEMICAL QUANTITY"]
[]
[null,null,null,"Kilograms","Mols"]
[null,null,"Amount of Chemical",100000,{"$f":"D6*1000/MolarMass","v":396328.4135766261}]

{"sheet":"Results","index":4,"n_rows":34,"n_cols":12,"rows_kept":34,"cut":false,"hidden":false,"merged":[[23,9,23,11],[23,6,23,8]]}
[]
[]
[null,null,"Level I RESULTS"]
[]
[null,null,"Chemical Name",{"$f":"ChemName","v":"Benzo[a]pyrene"}]
[null,null,"Environment Name",{"$f":"EnvName","v":"EQC-2012- Hughes et al."}]
[]
[]
[null,null,"Fugacity Ratio",{"$f":"IF(Pressure=\"-\",\"N/A\",IF(MeltPt>DataTemp,EXP(6.79*(1-(MeltPt+273.15)/(DataTemp+273.15))),1))","v":3.2841387705711961E-2}]
[]
[null,null,"Subcooled Liq. Vap. Press. (Pa)",{"$f":"IF(Pressure=\"-\",\"N/A\",Pressure/Fugacity_Ratio)","v":2.1314568259801397E-5}]
[]
[null,null,"Fugacity (Pa)",{"$f":"ChemAmtM/TotalVZ","v":5.2378555748239235E-11}]
[]
[null,null,"Partition Ratio","dimensionless"]
[null,null,"Air-Water",{"$f":"IF(AND(ISNUMBER(SEARCH(\"N/A\",Fugacity_Ratio)),KQW<1000),KAW,IF(ISNUMBER(SEARCH(\"N/A\",Fugacity_Ratio)),\"-\",Z_Air/Z_Water))","v":1.8677215917949177E-5}]
[null,null,"Soil-Water",{"$f":"IF(AND(ISNUMBER(SEARCH(\"N/A\",Fugacity_Ratio)),KQW<1000),KQW*Dens_Soil/1000,IF(ISNUMBER(SEARCH(\"N/A\",Fugacity_Ratio)),\"-\",Z_Soil/Z_Water))","v":18420.833695205525}]
[null,null,"Sediment-Water",{"$f":"IF(AND(ISNUMBER(SEARCH(\"N/A\",Fugacity_Ratio)),KQW<1000),KSed*Dens_Sed/1000,IF(ISNUMBER(SEARCH(\"N/A\",Fugacity_Ratio)),\"-\",Z_Sed/Z_Water))","v":36841.66739041105}]
[null,null,"Suspended Particles-Water",{"$f":"IF(AND(ISNUMBER(SEARCH(\"N/A\",Fugacity_Ratio)),KQW<1000),KSus*Dens_Susp_Part/1000,IF(ISNUMBER(SEARCH(\"N/A\",Fugacity_Ratio)),\"-\", Z_Susp_Part/Z_Water))","v":115130.2105950345}]
[null,null,"Fish-Water",{"$f":"IF(AND(ISNUMBER(SEARCH(\"N/A\",Fugacity_Ratio)),KQW<1000),KFish*Dens_Aersl/1000,IF(ISNUMBER(SEARCH(\"N/A\",Fugacity_Ratio)),\"-\", Z_Fish/Z_Water))","v":54823.909807159303}]
[null,null,"Aerosol-Water",{"$f":"IF(AND(ISNUMBER(SEARCH(\"N/A\",Fugacity_Ratio)),KQW<1000),Z_Water*KQA,IF(ISNUMBER(SEARCH(\"N/A\",Fugacity_Ratio)),\"-\",\"-\"))","v":"-"}]
[null,null,"Aerosol-Air",{"$f":"IF(AND(ISNUMBER(SEARCH(\"N/A\",Fugacity_Ratio)),KQW<1000),\"-\",IF(ISNUMBER(SEARCH(\"N/A\",Fugacity_Ratio)),\"-\", Z_Aerosol/Z_Air))","v":281497608906.10254}]
[]
[null,null,null,"Z Value","VZ","V","Concentration",null,null,"Quantity"]
[null,null,null,"mol/m³*Pa","mol/Pa",null,"mol/m³","g/m³","µg/kg","mol","kg","%"]
[null,null,"Air",{"$f":"IF(AND(ISNUMBER(SEARCH(\"N/A\",Fugacity_Ratio)),KQW<1000),Z_Water*KAW,IF(ISNUMBER(SEARCH(\"N/A\",Fugacity_Ratio)),(1/8.3144598/(DataTemp+273.15)),(1/8.3144598/(DataTemp+273.15))))","v":4.0339559218032785E-4},{"$f":"Z_Air*(1-Frac_Aersl)*Vol_Air","v":40339559217.22599},{"$f":"E26/Z_Air","v":99999999997999.984},{"$f":"Fugacity*Z_Air","v":2.1129278513611282E-14},{"$f":"G26*MolarMass","v":5.331255037440344E-12}," -",{"$f":"G26*(1-Frac_Aersl)*Vol_Air","v":2.1129278513188696},{"$f":"(MolarMass*J26)/1000","v":0.53312550373337197},{"$f":"(100*J26)/ChemAmtM","v":5.3312550373337193E-4}]
[null,null,"Aerosol",{"$f":"IF(AND(ISNUMBER(SEARCH(\"N/A\",Fugacity_Ratio)),KQW<1000),Z_Water*KQA,IF(ISNUMBER(SEARCH(\"N/A\",Fugacity_Ratio)),(IF(Z_Air=0, 0, Z_Air*KQA)),((Z_Air*6000000)/Liq_Pressure)))","v":113554894.64202356},{"$f":"Z_Aerosol*Frac_Aersl*Vol_Air","v":227109789284.04709},{"$f":"E27/Z_Aerosol","v":1999.9999999999998},{"$f":"Fugacity*Z_Aerosol","v":5.9478413794926644E-3},{"$f":"G27*MolarMass","v":1.5007355455080711},{"$f":"(H27*1000000)/Dens_Aersl","v":750.36777275403551},{"$f":"G27*Frac_Aersl*Vol_Air","v":11.895682758985329},3.0014710910161422,3.0014710910161425E-3]
[null,null,"Water",{"$f":"IF(AND(ISNUMBER(SEARCH(\"N/A\",Fugacity_Ratio)),KQW<1000),1,IF(ISNUMBER(SEARCH(\"N/A\",Fugacity_Ratio)),(Z_Air*KAW),(1/Henry_Const)))","v":21.598272138228943},{"$f":"Z_Water*(1-Frac_Susp_Part-Frac_Fish)*Vol_Water","v":4319628509719.2222},{"$f":"E28/Z_Water","v":199998799999.99997},{"$f":"Fugacity*Z_Water","v":1.1312863012578669E-9},2.8544163438817994E-7," -",{"$f":"G28*(1-Frac_Susp_Part-Frac_Fish)*Vol_Water","v":226.25590270801183},57.087984347674713,5.7087984347674717E-2]
[null,null,"Suspended Particles",{"$f":"IF(AND(ISNUMBER(SEARCH(\"N/A\",Fugacity_Ratio)),KQW<1000),Z_Water*(KSus*Dens_Susp_Part/1000),IF(ISNUMBER(SEARCH(\"N/A\",Fugacity_Ratio)),(Z_Air*KSus),Z_Water*Dens_Susp_Part*OrgC_Susp*KOC/1000))","v":2486613.6197631643},{"$f":"Z_Susp_Part*Frac_Susp_Part*Vol_Water","v":2486613619763.1646},{"$f":"E29/Z_Susp_Part","v":1000000.0000000001},{"$f":"Fugacity*Z_Susp_Part","v":1.3024523010709586E-4},3.2862955479702E-2,{"$f":"(H29*1000000)/Dens_Susp_Part","v":21.908636986468},{"$f":"G29*Frac_Susp_Part*Vol_Water","v":130.24523010709586},32.862955479702002,3.2862955479702007E-2]
[null,null,"Fish",{"$f":"IF(AND(ISNUMBER(SEARCH(\"N/A\",Fugacity_Ratio)),KQW<1000),Z_Water*(KFish*Dens_Aersl/1000),IF(ISNUMBER(SEARCH(\"N/A\",Fugacity_Ratio)),(Z_Air*KFish),((1/Henry_Const)*Lipid_Fish*POWER(10,logKow))))","v":1184101.7236967452},{"$f":"Z_Fish*Frac_Fish*Vol_Water","v":236820344739.34906},{"$f":"E30/Z_Fish","v":200000},{"$f":"Fugacity*Z_Fish","v":6.2021538146236145E-5},1.5649026418905719E-2,{"$f":"(H30*1000000)/Dens_Fish","v":15.64902641890572},{"$f":"G30*Frac_Fish*Vol_Water","v":12.404307629247228},3.1298052837811436,3.1298052837811438E-3]
[null,null,"Soil",{"$f":"IF(AND(ISNUMBER(SEARCH(\"N/A\",Fugacity_Ratio)),KQW<1000),Z_Water*(KQW*Dens_Soil/1000),IF(ISNUMBER(SEARCH(\"N/A\",Fugacity_Ratio)),(Z_Air*KQW),(Z_Water*Dens_Soil*OrgC_Soil*KOC/1000)))","v":397858.17916210636},{"$f":"Z_Soil*Vol_Soil","v":7161447224917914},{"$f":"E31/Z_Soil","v":18000000000},{"$f":"Fugacity*Z_Soil","v":2.0839236817135341E-5},5.2580728767523208E-3,{"$f":"(H31*1000000)/Dens_Soil","v":2.1908636986468002},{"$f":"G31*Vol_Soil","v":375106.26270843612},94645.311781541765,94.645311781541778]
[null,null,"Sediment",{"$f":"IF(AND(ISNUMBER(SEARCH(\"N/A\",Fugacity_Ratio)),KQW<1000),Z_Water*(KSed*Dens_Sed/1000),IF(ISNUMBER(SEARCH(\"N/A\",Fugacity_Ratio)),(Z_Air*KSed),(Z_Water*Dens_Sed*OrgC_Sed*KOC/1000)))","v":795716.35832421272},{"$f":"Z_Sed*Vol_Sed","v":397858179162106.38},{"$f":"E32/Z_Sed","v":500000000},{"$f":"Fugacity*Z_Sed","v":4.1678473634270682E-5},1.0516145753504642E-2,{"$f":"(H32*1000000)/Dens_Sed","v":4.3817273972936004},{"$f":"G32*Vol_Sed","v":20839.236817135341},5258.0728767523206,5.2580728767523208]
[]
[null,null,"Total",null,{"$f":"SUM(E26:E32)","v":7566615915902743},null,null,null,null,{"$f":"SUM(J26:J32)","v":396328.41357662616},{"$f":"SUM(K26:K32)","v":100000},{"$f":"SUM(L26:L32)","v":100.00000000000001}]

{"sheet":"Diagram","index":5,"n_rows":38,"n_cols":13,"rows_kept":38,"cut":false,"hidden":false,"merged":[]}
[]
[null,null,null,"Chemical Name:",null,{"$f":"Results!D5","v":"Benzo[a]pyrene"}]
[]
[null,null,null,"Environment:",null,{"$f":"Results!D6","v":"EQC-2012- Hughes et al."}]
[]
[]
[null,{"$f":"Results!D13","v":5.2378555748239235E-11},"Pa",null,null,"Air"]
[null,null,null,null,"Amount",{"$f":"Results!$K$26","v":0.53312550373337197},"kg"]
[null,null,null,null,"Concentration",{"$f":"Results!I26","v":" -"},"ng/L"]
[null,{"$f":"Results!K34","v":100000},"kg",null,"% of total chem.",{"$f":"Results!$L$26","v":5.3312550373337193E-4},"%"]
[]
[null,null,null,null,null,null,null,null,null,{"$f":"Results!$K$27","v":3.0014710910161422},"kg"]
[null,null,null,null,null,null,null,null,null,{"$f":"Results!I27","v":750.36777275403551},"ng/L"]
[null,null,null,null,null,null,null,null,null,{"$f":"Results!$L$27","v":3.0014710910161425E-3},"%"]
[]
[]
[]
[null,null,null,null,null,null,"Water"]
[]
[null,"Amount",{"$f":"Results!K31","v":94645.311781541765},"kg",null,"Amount",{"$f":"Results!K28","v":57.087984347674713},"kg"]
[null,"Concentration",{"$f":"Results!I31","v":2.1908636986468002},"ng/L",null,"Concentration",{"$f":"Results!I28","v":" -"},"ng/L"]
[null,"% of total chem.",{"$f":"Results!L31","v":94.645311781541778},"%",null,"% of total chem.",{"$f":"Results!L28","v":5.7087984347674717E-2},"%"]
[]
[null,null,null,null,null,null,null,null,null,null,null,{"$f":"Results!$K$29","v":32.862955479702002},"kg"]
[null,null,null,null,null,null,null,null,null,null,null,{"$f":"Results!$I$29","v":21.908636986468},"ng/L"]
[null,null,null,null,null,null,null,null,null,null,null,{"$f":"Results!$L$29","v":3.2862955479702007E-2},"%"]
[]
[]
[]
[]
[]
[]
[null,null,null,null,null,"Amount",{"$f":"Results!K32","v":5258.0728767523206},"kg"]
[null,"Equilibrium - ",null,null,null,"Concentration",{"$f":"Results!I32","v":4.3817273972936004},"ng/L"]
[null,null,null,null,null,"% of total chem.",{"$f":"Results!L32","v":5.2580728767523208},"%"]
[null,null,null,null,null,null,null,null,null,null,null,{"$f":"Results!$K$30","v":3.1298052837811436},"kg"]
[null,null,null,null,null,null,null,null,null,null,null,{"$f":"Results!$I$30","v":15.64902641890572},"ng/L"]
[null,null,null,null,null,null,null,null,null,null,null,{"$f":"Results!$L$30","v":3.1298052837811438E-3},"%"]

{"sheet":"Charts","index":6,"n_rows":0,"n_cols":0,"rows_kept":0,"cut":false,"hidden":false,"merged":[]}

{"sheet":"Chemical Database","index":7,"n_rows":65535,"n_cols":28,"rows_kept":4500,"cut":true,"hidden":false,"merged":[],"bounds":{"rows_first":2000,"rows_last":500,"rows_between":2000,"halvings":0}}
[]
[]
[]
[]
[]
[]
[null,null,null,null,null,null,null,null,null,null,null,null,"Partition Ratios"]
["CAS","Chemical Name","Molar Mass","Data Temp.","Melting Point",null,"Vapor pressure",null,"Solubility in Water",null,"Henry's Law Constant",null,"logKOW",null,"KOC",null,"Air-Water (KAW)/Water-Air",null,"Aerosol-Water/Aerosol-Air",null,"Soil-Water/Soil-Air",null,"Suspended Particles-Water/Suspended Particles-Air",null,"Sediment-Water/Sediment-Air",null,"Fish-Water/Fish-Air","NOTES"]
[null,null,"(g/mol)","°C","°C","Ref.","(Pa)","Ref.","(g/m³ or mg/L)","Ref.","(Pa·m³/mol)","Ref.",null,"Ref.","unitless","Ref.","unitless (m³/m³)","Ref.","unitless","Ref.","unitless","Ref.","unitless","Ref.","unitless","Ref.","unitless"]
[null,"Specimen Type 1",250,25,275,null,0.02,null,30,null,{"$f":"IF(OR(B10=\"\",G10=\"\",B10=\"-\",G10=\"-\"),\"\",G10*C10/I10)","v":0.16666666666666666},null,2.5,null,{"$f":"IF(OR(M10=\"\",M10=\"-\"),\"\",0.35*10^M10)","v":110.67971810589339},{"$f":"IF(O10=0.35*10^M10,\"Seth method\",\"\")","v":"Seth method"},null,null,null,null,null,null,null,null,null,null,null,"Example values for type 1 chemicals such as  benzene"]
[null,"Specimen Type 2",250,25,"-",null,"-",null,"-",null,"-",null,"-",null,{"$f":"IF(OR(M11=\"\",M11=\"-\"),\"\",0.35*10^M11)","v":""},null,6.7199999999999994E-5,null,57.9,null,2.59,null,5.19,null,5.19,null,15.2,"Example values for type 2 chemical such as alkylbenzene sulfonates"]
[null,"Specimen Type 3",131.4,25,"-",null,"-",null,"-",null,"-",null,"-",null,{"$f":"IF(OR(M12=\"\",M12=\"-\"),\"\",0.35*10^M12)","v":""},null,15000,null,1010000,null,58000,null,116000,null,116000,null,226000,"Example values for type 3 chemicals such as mineral oil"]
[null,"Benzene",78.11,25,5.53,null,12700,null,1780,null,{"$f":"IF(OR(B13=\"\",G13=\"\",B13=\"-\",G13=\"-\"),\"\",G13*C13/I13)","v":557.30168539325848},null,2.13,null,{"$f":"IF(OR(M13=\"\",M13=\"-\"),\"\",0.35*10^M13)","v":47.213700890707877},{"$f":"IF(O13=0.35*10^M13,\"Seth method\",\"\")","v":"Seth method"}]
[null,"Toluene",92.13,25,-95,null,3800,null,515,null,679.79417475728155,null,2.69,null,171.42258677895617,"Seth method"]
[null,"Chlorobenzene",112.6,25,-45.6,null,1580,null,484,null,367.57851239669424,null,2.8,null,220.83507056806761,"Seth method"]
[null,"1,4-Dichlorobenzene",147.01,25,53.1,null,130,null,83,null,230.25662650602408,null,3.4,null,879.1602510283534,"Seth method"]
[null,"Hexachlorobenzene ",284.8,25,230,null,2.3E-3,null,5.0000000000000001E-3,null,131.00800000000001,null,5.5,null,110679.71810589336,"Seth method"]
[null,"N-hexane",86.17,25,-95,null,20200,null,9.5,null,183224.63157894736,null,4.1100000000000003,null,4508.8734309259753,"Seth method"]
[null,"Tricholoroethylene",131.38999999999999,25,-73,null,9900,null,1100,null,1182.5099999999998,null,2.5299999999999998,null,118.59545464872086,"Seth method"]
[null,"1-Pentanol",88.149000000000001,25,-78.2,null,300,null,22000,null,1.2020318181818181,null,1.5,null,11.067971810589331,"Seth method"]
[null,"Aniline",93.12,25,-6.3,null,65.19,null,36070,null,0.16829755475464375,null,0.9,null,2.7801488215349859,"Seth method"]
[null,"Naphthalene",128.19,25,80.5,null,10.4,null,31,null,43.005677419354839,null,3.37,null,820.48008536197324,"Seth method"]
[null,"Phenanthrene",178.2,25,101,null,0.02,null,1.1000000000000001,null,3.2399999999999998,null,4.57,null,13003.733018401072,"Seth method"]
[null,"Pyrene",202.3,25,156,null,5.9999999999999995E-4,null,0.13200000000000001,null,0.91954545454545455,null,5.18,null,52974.643695267288,"Seth method"]
[null,"PCB-15",223.1,25,149,null,4.7999999999999996E-3,null,0.06,null,17.847999999999999,null,5.3,null,69834.181023910845,"Seth method"]
[null,"PCB-52",292,25,87,null,4.8999999999999998E-3,null,0.03,null,47.693333333333328,null,6.1,null,440623.89412795869,"Seth method"]
[null,"PCB-209",498.7,25,305.89999999999998,null,5.02E-8,null,1.0000000000000001E-5,null,2.5034739999999998,null,8.26,null,63689530.051349603,"Seth method"]
[null,"Dibenzo-p-dioxin",184,25,123,null,5.5E-2,null,0.86499999999999999,null,11.699421965317919,null,4.3,null,6983.4181023910769,"Seth method"]
[null,"4-chlorophenol",128.56,25,43,null,20,null,27000,null,9.5229629629629622E-2,null,2.4,null,87.91602510283532,"Seth method"]
[null,"Pentachlorophenol",266.33999999999997,25,190,null,4.15E-3,null,14,null,7.8950785714285709E-2,null,5.05,null,39270.645900568779,"Seth method"]
[null,"DEHP",390.54,25,-50,null,1.33E-5,null,0.28499999999999998,null,1.8225200000000004E-2,null,5.1100000000000003,null,45088.734309259809,"Seth method"]
[null,"p,p'-DDT",354.5,25,108.5,null,2.0000000000000002E-5,null,5.4999999999999997E-3,null,1.2890909090909093,null,6.19,null,542085.81661937013,"Seth method"]
[null,"Lindane",290.85000000000002,25,112,null,3.7399999999999998E-3,null,7.3,null,0.14901082191780823,null,3.7,null,1754.1553176954562,"Seth method"]
[null,"Atrazine",215.68,25,174,null,4.0000000000000003E-5,null,30,null,2.8757333333333338E-4,null,2.75,null,196.81946381662223,"Seth method"]
[null,"Hypothene",200,27.5,0,null,1,null,20,null,10,null,4,null,3500,"Seth method",null,null,null,null,null,null,null,null,null,null,null,"Hypothetical chemical"]
[null,"Benzo[a]pyrene",252.316,25,175,null,6.9999999999999997E-7,null,null,null,4.6300000000000001E-2,null,6.04,null,383767.36865011504,"Seth method"]
[null,null,null,null,null,null,null,null,null,null,"",null,null,null,"",""]
[null,null,null,null,null,null,null,null,null,null,"",null,null,null,"",""]
[null,null,null,null,null,null,null,null,null,null,"",null,null,null,"",""]
[null,null,null,null,null,null,null,null,null,null,"",null,null,null,"",""]
[null,null,null,null,null,null,null,null,null,null,"",null,null,null,"",""]
[null,null,null,null,null,null,null,null,null,null,"",null,null,null,"",""]
[null,null,null,null,null,null,null,null,null,null,"",null,null,null,"",""]
[null,null,null,null,null,null,null,null,null,null,"",null,null,null,"",""]
[null,null,null,null,null,null,null,null,null,null,"",null,null,null,"",""]
[null,null,null,null,null,null,null,null,null,null,"",null,null,null,"",""]
[null,null,null,null,null,null,null,null,null,null,"",null,null,null,"",""]
[null,null,null,null,null,null,null,null,null,null,"",null,null,null,"",""]
[null,null,null,null,null,null,null,null,null,null,"",null,null,null,"",""]
[null,null,null,null,null,null,null,null,null,null,"",null,null,null,"",""]
[null,null,null,null,null,null,null,null,null,null,"",null,null,null,"",""]
[null,null,null,null,null,null,null,null,null,null,"",null,null,null,"",""]
[null,null,null,null,null,null,null,null,null,null,"",null,null,null,"",""]
[null,null,null,null,null,null,null,null,null,null,"",null,null,null,"",""]
[null,null,null,null,null,null,null,null,null,null,"",null,null,null,"",""]
[null,null,null,null,null,null,null,null,null,null,"",null,null,null,"",""]
[null,null,null,null,null,null,null,null,null,null,"",null,null,null,"",""]
[null,null,null,null,null,null,null,null,null,null,"",null,null,null,"",""]
[null,null,null,null,null,null,null,null,null,null,"",null,null,null,"",""]
[null,null,null,null,null,null,null,null,null,null,"",null,null,null,"",""]
[null,null,null,null,null,null,null,null,null,null,"",null,null,null,"",""]
[null,null,null,null,null,null,null,null,null,null,"",null,null,null,"",""]
[null,null,null,null,null,null,null,null,null,null,"",null,null,null,"",""]
[null,null,null,null,null,null,null,null,null,null,"",null,null,null,"",""]
[null,null,null,null,null,null,null,null,null,null,"",null,null,null,"",""]
[null,null,null,null,null,null,null,null,null,null,"",null,null,null,"",""]
[null,null,null,null,null,null,null,null,null,null,"",null,null,null,"",""]
[null,null,null,null,null,null,null,null,null,null,"",null,null,null,"",""]
[null,null,null,null,null,null,null,null,null,null,"",null,null,null,"",""]
[null,null,null,null,null,null,null,null,null,null,{"$f":"IF(OR(B70=\"\",G70=\"\",B70=\"-\",G70=\"-\"),\"\",G70*C70/I70)","v":""},null,null,null,"",""]
[null,null,null,null,null,null,null,null,null,null,"",null,null,null,"",""]
[null,null,null,null,null,null,null,null,null,null,"",null,null,null,"",""]
[null,null,null,null,null,null,null,null,null,null,"",null,null,null,"",""]
[null,null,null,null,null,null,null,null,null,null,"",null,null,null,{"$f":"IF(OR(M74=\"\",M74=\"-\"),\"\",0.35*10^M74)","v":""},{"$f":"IF(O74=0.35*10^M74,\"Seth method\",\"\")","v":""}]
[null,null,null,null,null,null,null,null,null,null,"",null,null,null,"",""]
[null,null,null,null,null,null,null,null,null,null,"",null,null,null,"",""]
[null,null,null,null,null,null,null,null,null,null,"",null,null,null,"",""]
[null,null,null,null,null,null,null,null,null,null,"",null,null,null,"",""]
[null,null,null,null,null,null,null,null,null,null,"",null,null,null,"",""]
[null,null,null,null,null,null,null,null,null,null,"",null,null,null,"",""]
[null,null,null,null,null,null,null,null,null,null,"",null,null,null,"",""]
[null,null,null,null,null,null,null,null,null,null,"",null,null,null,"",""]
[null,null,null,null,null,null,null,null,null,null,"",null,null,null,"",""]
[null,null,null,null,null,null,null,null,null,null,"",null,null,null,"",""]
[null,null,null,null,null,null,null,null,null,null,"",null,null,null,"",""]
[null,null,null,null,null,null,null,null,null,null,"",null,null,null,"",""]
[null,null,null,null,null,null,null,null,null,null,"",null,null,null,"",""]
[null,null,null,null,null,null,null,null,null,null,"",null,null,null,"",""]
[null,null,null,null,null,null,null,null,null,null,"",null,null,null,"",""]
[null,null,null,null,null,null,null,null,null,null,"",null,null,null,"",""]
[null,null,null,null,null,null,null,null,null,null,"",null,null,null,"",""]
[null,null,null,null,null,null,null,null,null,null,"",null,null,null,"",""]
[null,null,null,null,null,null,null,null,null,null,"",null,null,null,"",""]
[null,null,null,null,null,null,null,null,null,null,"",null,null,null,"",""]
[null,null,null,null,null,null,null,null,null,null,"",null,null,null,"",""]
[null,null,null,null,null,null,null,null,null,null,"",null,null,null,"",""]
[null,null,null,null,null,null,null,null,null,null,"",null,null,null,"",""]
[null,null,null,null,null,null,null,null,null,null,"",null,null,null,"",""]
[null,null,null,null,null,null,null,null,null,null,"",null,null,null,"",""]
[null,null,null,null,null,null,null,null,null,null,"",null,null,null,"",""]
[null,null,null,null,null,null,null,null,null,null,"",null,null,null,"",""]
[null,null,null,null,null,null,null,null,null,null,"",null,null,null,"",""]
[null,null,null,null,null,null,null,null,null,null,"",null,null,null,"",""]
[null,null,null,null,null,null,null,null,null,null,"",null,null,null,"",""]
[null,null,null,null,null,null,null,null,null,null,"",null,null,null,"",""]
[null,null,null,null,null,null,null,null,null,null,"",null,null,null,"",""]
[null,null,null,null,null,null,null,null,null,null,"",null,null,null,"",""]
[null,null,null,null,null,null,null,null,null,null,"",null,null,null,"",""]
[null,null,null,null,null,null,null,null,null,null,"",null,null,null,"",""]
[null,null,null,null,null,null,null,null,null,null,"",null,null,null,"",""]
[null,null,null,null,null,null,null,null,null,null,"",null,null,null,"",""]
[null,null,null,null,null,null,null,null,null,null,"",null,null,null,"",""]
[null,null,null,null,null,null,null,null,null,null,"",null,null,null,"",""]
[null,null,null,null,null,null,null,null,null,null,"",null,null,null,"",""]
[null,null,null,null,null,null,null,null,null,null,"",null,null,null,"",""]
[null,null,null,null,null,null,null,null,null,null,"",null,null,null,"",""]
[null,null,null,null,null,null,null,null,null,null,"",null,null,null,"",""]
[null,null,null,null,null,null,null,null,null,null,"",null,null,null,"",""]
[null,null,null,null,null,null,null,null,null,null,"",null,null,null,"",""]
[null,null,null,null,null,null,null,null,null,null,"",null,null,null,"",""]
[null,null,null,null,null,null,null,null,null,null,"",null,null,null,"",""]
[null,null,null,null,null,null,null,null,null,null,"",null,null,null,"",""]
[null,null,null,null,null,null,null,null,null,null,"",null,null,null,"",""]
[null,null,null,null,null,null,null,null,null,null,"",null,null,null,"",""]
[null,null,null,null,null,null,null,null,null,null,"",null,null,null,"",""]
[null,null,null,null,null,null,null,null,null,null,"",null,null,null,"",""]
[null,null,null,null,null,null,null,null,null,null,"",null,null,null,"",""]
[null,null,null,null,null,null,null,null,null,null,"",null,null,null,"",""]
[null,null,null,null,null,null,null,null,null,null,"",null,null,null,"",""]
[null,null,null,null,null,null,null,null,null,null,"",null,null,null,"",""]
[null,null,null,null,null,null,null,null,null,null,"",null,null,null,"",""]
[null,null,null,null,null,null,null,null,null,null,"",null,null,null,"",""]
[null,null,null,null,null,null,null,null,null,null,"",null,null,null,"",""]
[null,null,null,null,null,null,null,null,null,null,{"$f":"IF(OR(B134=\"\",G134=\"\",B134=\"-\",G134=\"-\"),\"\",G134*C134/I134)","v":""},null,null,null,"",""]
[null,null,null,null,null,null,null,null,null,null,"",null,null,null,"",""]
[null,null,null,null,null,null,null,null,null,null,"",null,null,null,"",""]
[null,null,null,null,null,null,null,null,null,null,"",null,null,null,"",""]
[null,null,null,null,null,null,null,null,null,null,"",null,null,null,{"$f":"IF(OR(M138=\"\",M138=\"-\"),\"\",0.35*10^M138)","v":""},{"$f":"IF(O138=0.35*10^M138,\"Seth method\",\"\")","v":""}]
[null,null,null,null,null,null,null,null,null,null,"",null,null,null,"",""]
[null,null,null,null,null,null,null,null,null,null,"",null,null,null,"",""]
[null,null,null,null,null,null,null,null,null,null,"",null,null,null,"",""]
[null,null,null,null,null,null,null,null,null,null,"",null,null,null,"",""]
[null,null,null,null,null,null,null,null,null,null,"",null,null,null,"",""]
[null,null,null,null,null,null,null,null,null,null,"",null,null,null,"",""]
[null,null,null,null,null,null,null,null,null,null,"",null,null,null,"",""]
[null,null,null,null,null,null,null,null,null,null,"",null,null,null,"",""]
[null,null,null,null,null,null,null,null,null,null,"",null,null,null,"",""]
[null,null,null,null,null,null,null,null,null,null,"",null,null,null,"",""]
[null,null,null,null,null,null,null,null,null,null,"",null,null,null,"",""]
[null,null,null,null,null,null,null,null,null,null,"",null,null,null,"",""]
[null,null,null,null,null,null,null,null,null,null,"",null,null,null,"",""]
[null,null,null,null,null,null,null,null,null,null,"",null,null,null,"",""]
[null,null,null,null,null,null,null,null,null,null,"",null,null,null,"",""]
[null,null,null,null,null,null,null,null,null,null,"",null,null,null,"",""]
[null,null,null,null,null,null,null,null,null,null,"",null,null,null,"",""]
[null,null,null,null,null,null,null,null,null,null,"",null,null,null,"",""]
[null,null,null,null,null,null,null,null,null,null,"",null,null,null,"",""]
[null,null,null,null,null,null,null,null,null,null,"",null,null,null,"",""]
[null,null,null,null,null,null,null,null,null,null,"",null,null,null,"",""]
[null,null,null,null,null,null,null,null,null,null,"",null,null,null,"",""]
[null,null,null,null,null,null,null,null,null,null,"",null,null,null,"",""]
[null,null,null,null,null,null,null,null,null,null,"",null,null,null,"",""]
[null,null,null,null,null,null,null,null,null,null,"",null,null,null,"",""]
[null,null,null,null,null,null,null,null,null,null,"",null,null,null,"",""]
[null,null,null,null,null,null,null,null,null,null,"",null,null,null,"",""]
[null,null,null,null,null,null,null,null,null,null,"",null,null,null,"",""]
[null,null,null,null,null,null,null,null,null,null,"",null,null,null,"",""]
[null,null,null,null,null,null,null,null,null,null,"",null,null,null,"",""]
[null,null,null,null,null,null,null,null,null,null,"",null,null,null,"",""]
[null,null,null,null,null,null,null,null,null,null,"",null,null,null,"",""]
[null,null,null,null,null,null,null,null,null,null,"",null,null,null,"",""]
[null,null,null,null,null,null,null,null,null,null,"",null,null,null,"",""]
[null,null,null,null,null,null,null,null,null,null,"",null,null,null,"",""]
[null,null,null,null,null,null,null,null,null,null,"",null,null,null,"",""]
[null,null,null,null,null,null,null,null,null,null,"",null,null,null,"",""]
[null,null,null,null,null,null,null,null,null,null,"",null,null,null,"",""]
[null,null,null,null,null,null,null,null,null,null,"",null,null,null,"",""]
[null,null,null,null,null,null,null,null,null,null,"",null,null,null,"",""]
[null,null,null,null,null,null,null,null,null,null,"",null,null,null,"",""]
[null,null,null,null,null,null,null,null,null,null,"",null,null,null,"",""]
[null,null,null,null,null,null,null,null,null,null,"",null,null,null,"",""]
[null,null,null,null,null,null,null,null,null,null,"",null,null,null,"",""]
[null,null,null,null,null,null,null,null,null,null,"",null,null,null,"",""]
[null,null,null,null,null,null,null,null,null,null,"",null,null,null,"",""]
[null,null,null,null,null,null,null,null,null,null,"",null,null,null,"",""]
[null,null,null,null,null,null,null,null,null,null,"",null,null,null,"",""]
[null,null,null,null,null,null,null,null,null,null,"",null,null,null,"",""]
[null,null,null,null,null,null,null,null,null,null,"",null,null,null,"",""]
[null,null,null,null,null,null,null,null,null,null,"",null,null,null,"",""]
[null,null,null,null,null,null,null,null,null,null,"",null,null,null,"",""]
[null,null,null,null,null,null,null,null,null,null,"",null,null,null,"",""]
[null,null,null,null,null,null,null,null,null,null,"",null,null,null,"",""]
[null,null,null,null,null,null,null,null,null,null,"",null,null,null,"",""]
[null,null,null,null,null,null,null,null,null,null,"",null,null,null,"",""]
[null,null,null,null,null,null,null,null,null,null,"",null,null,null,"",""]
[null,null,null,null,null,null,null,null,null,null,"",null,null,null,"",""]
[null,null,null,null,null,null,null,null,null,null,"",null,null,null,"",""]
[null,null,null,null,null,null,null,null,null,null,{"$f":"IF(OR(B198=\"\",G198=\"\",B198=\"-\",G198=\"-\"),\"\",G198*C198/I198)","v":""},null,null,null,"",""]
[null,null,null,null,null,null,null,null,null,null,"",null,null,null,"",""]
[null,null,null,null,null,null,null,null,null,null,"",null,null,null,"",""]
[null,null,null,null,null,null,null,null,null,null,"",null,null,null,"",""]
[null,null,null,null,null,null,null,null,null,null,"",null,null,null,{"$f":"IF(OR(M202=\"\",M202=\"-\"),\"\",0.35*10^M202)","v":""},{"$f":"IF(O202=0.35*10^M202,\"Seth method\",\"\")","v":""}]
[null,null,null,null,null,null,null,null,null,null,"",null,null,null,"",""]
[null,null,null,null,null,null,null,null,null,null,"",null,null,null,"",""]
[null,null,null,null,null,null,null,null,null,null,"",null,null,null,"",""]
[null,null,null,null,null,null,null,null,null,null,"",null,null,null,"",""]
[null,null,null,null,null,null,null,null,null,null,"",null,null,null,"",""]
[null,null,null,null,null,null,null,null,null,null,"",null,null,null,"",""]
[null,null,null,null,null,null,null,null,null,null,"",null,null,null,"",""]
[null,null,null,null,null,null,null,null,null,null,"",null,null,null,"",""]
[null,null,null,null,null,null,null,null,null,null,"",null,null,null,"",""]
[null,null,null,null,null,null,null,null,null,null,"",null,null,null,"",""]
[null,null,null,null,null,null,null,null,null,null,"",null,null,null,"",""]
[null,null,null,null,null,null,null,null,null,null,"",null,null,null,"",""]
[null,null,null,null,null,null,null,null,null,null,"",null,null,null,"",""]
[null,null,null,null,null,null,null,null,null,null,"",null,null,null,"",""]
[null,null,null,null,null,null,null,null,null,null,"",null,null,null,"",""]
[null,null,null,null,null,null,null,null,null,null,"",null,null,null,"",""]
[null,null,null,null,null,null,null,null,null,null,"",null,null,null,"",""]
[null,null,null,null,null,null,null,null,null,null,"",null,null,null,"",""]
[null,null,null,null,null,null,null,null,null,null,"",null,null,null,"",""]
[null,null,null,null,null,null,null,null,null,null,"",null,null,null,"",""]
[null,null,null,null,null,null,null,null,null,null,"",null,null,null,"",""]
[null,null,null,null,null,null,null,null,null,null,"",null,null,null,"",""]
[null,null,null,null,null,null,null,null,null,null,"",null,null,null,"",""]
[null,null,null,null,null,null,null,null,null,null,"",null,null,null,"",""]
[null,null,null,null,null,null,null,null,null,null,"",null,null,null,"",""]
[null,null,null,null,null,null,null,null,null,null,"",null,null,null,"",""]
[null,null,null,null,null,null,null,null,null,null,"",null,null,null,"",""]
[null,null,null,null,null,null,null,null,null,null,"",null,null,null,"",""]
[null,null,null,null,null,null,null,null,null,null,"",null,null,null,"",""]
[null,null,null,null,null,null,null,null,null,null,"",null,null,null,"",""]
[null,null,null,null,null,null,null,null,null,null,"",null,null,null,"",""]
[null,null,null,null,null,null,null,null,null,null,"",null,null,null,"",""]
[null,null,null,null,null,null,null,null,null,null,"",null,null,null,"",""]
[null,null,null,null,null,null,null,null,null,null,"",null,null,null,"",""]
[null,null,null,null,null,null,null,null,null,null,"",null,null,null,"",""]
[null,null,null,null,null,null,null,null,null,null,"",null,null,null,"",""]
[null,null,null,null,null,null,null,null,null,null,"",null,null,null,"",""]
[null,null,null,null,null,null,null,null,null,null,"",null,null,null,"",""]
[null,null,null,null,null,null,null,null,null,null,"",null,null,null,"",""]
[null,null,null,null,null,null,null,null,null,null,"",null,null,null,"",""]
[null,null,null,null,null,null,null,null,null,null,"",null,null,null,"",""]
[null,null,null,null,null,null,null,null,null,null,"",null,null,null,"",""]
[null,null,null,null,null,null,null,null,null,null,"",null,null,null,"",""]
[null,null,null,null,null,null,null,null,null,null,"",null,null,null,"",""]
[null,null,null,null,null,null,null,null,null,null,"",null,null,null,"",""]
[null,null,null,null,null,null,null,null,null,null,"",null,null,null,"",""]
[null,null,null,null,null,null,null,null,null,null,"",null,null,null,"",""]
[null,null,null,null,null,null,null,null,null,null,"",null,null,null,"",""]
[null,null,null,null,null,null,null,null,null,null,"",null,null,null,"",""]
[null,null,null,null,null,null,null,null,null,null,"",null,null,null,"",""]
[null,null,null,null,null,null,null,null,null,null,"",null,null,null,"",""]
[null,null,null,null,null,null,null,null,null,null,"",null,null,null,"",""]
[null,null,null,null,null,null,null,null,null,null,"",null,null,null,"",""]
[null,null,null,null,null,null,null,null,null,null,"",null,null,null,"",""]
[null,null,null,null,null,null,null,null,null,null,"",null,null,null,"",""]
[null,null,null,null,null,null,null,null,null,null,"",null,null,null,"",""]
[null,null,null,null,null,null,null,null,null,null,"",null,null,null,"",""]
[null,null,null,null,null,null,null,null,null,null,"",null,null,null,"",""]
[null,null,null,null,null,null,null,null,null,null,"",null,null,null,"",""]
[null,null,null,null,null,null,null,null,null,null,{"$f":"IF(OR(B262=\"\",G262=\"\",B262=\"-\",G262=\"-\"),\"\",G262*C262/I262)","v":""},null,null,null,"",""]
[null,null,null,null,null,null,null,null,null,null,"",null,null,null,"",""]
[null,null,null,null,null,null,null,null,null,null,"",null,null,null,"",""]
[null,null,null,null,null,null,null,null,null,null,"",null,null,null,"",""]
[null,null,null,null,null,null,null,null,null,null,"",null,null,null,{"$f":"IF(OR(M266=\"\",M266=\"-\"),\"\",0.35*10^M266)","v":""},{"$f":"IF(O266=0.35*10^M266,\"Seth method\",\"\")","v":""}]
[null,null,null,null,null,null,null,null,null,null,"",null,null,null,"",""]
[null,null,null,null,null,null,null,null,null,null,"",null,null,null,"",""]
[null,null,null,null,null,null,null,null,null,null,"",null,null,null,"",""]
[null,null,null,null,null,null,null,null,null,null,"",null,null,null,"",""]
[null,null,null,null,null,null,null,null,null,null,"",null,null,null,"",""]
[null,null,null,null,null,null,null,null,null,null,"",null,null,null,"",""]
[null,null,null,null,null,null,null,null,null,null,"",null,null,null,"",""]
[null,null,null,null,null,null,null,null,null,null,"",null,null,null,"",""]
[null,null,null,null,null,null,null,null,null,null,"",null,null,null,"",""]
[null,null,null,null,null,null,null,null,null,null,"",null,null,null,"",""]
[null,null,null,null,null,null,null,null,null,null,"",null,null,null,"",""]
[null,null,null,null,null,null,null,null,null,null,"",null,null,null,"",""]
[null,null,null,null,null,null,null,null,null,null,"",null,null,null,"",""]
[null,null,null,null,null,null,null,null,null,null,"",null,null,null,"",""]
[null,null,null,null,null,null,null,null,null,null,"",null,null,null,"",""]
[null,null,null,null,null,null,null,null,null,null,"",null,null,null,"",""]
[null,null,null,null,null,null,null,null,null,null,"",null,null,null,"",""]
[null,null,null,null,null,null,null,null,null,null,"",null,null,null,"",""]
[null,null,null,null,null,null,null,null,null,null,"",null,null,null,"",""]
[null,null,null,null,null,null,null,null,null,null,"",null,null,null,"",""]
[null,null,null,null,null,null,null,null,null,null,"",null,null,null,"",""]
[null,null,null,null,null,null,null,null,null,null,"",null,null,null,"",""]
[null,null,null,null,null,null,null,null,null,null,"",null,null,null,"",""]
[null,null,null,null,null,null,null,null,null,null,"",null,null,null,"",""]
[null,null,null,null,null,null,null,null,null,null,"",null,null,null,"",""]
[null,null,null,null,null,null,null,null,null,null,"",null,null,null,"",""]
[null,null,null,null,null,null,null,null,null,null,"",null,null,null,"",""]
[null,null,null,null,null,null,null,null,null,null,"",null,null,null,"",""]
[null,null,null,null,null,null,null,null,null,null,"",null,null,null,"",""]
[null,null,null,null,null,null,null,null,null,null,"",null,null,null,"",""]
[null,null,null,null,null,null,null,null,null,null,"",null,null,null,"",""]
[null,null,null,null,null,null,null,null,null,null,"",null,null,null,"",""]
[null,null,null,null,null,null,null,null,null,null,"",null,null,null,"",""]
[null,null,null,null,null,null,null,null,null,null,"",null,null,null,"",""]
[null,null,null,null,null,null,null,null,null,null,"",null,null,null,"",""]
[null,null,null,null,null,null,null,null,null,null,"",null,null,null,"",""]
[null,null,null,null,null,null,null,null,null,null,"",null,null,null,"",""]
[null,null,null,null,null,null,null,null,null,null,"",null,null,null,"",""]
[null,null,null,null,null,null,null,null,null,null,"",null,null,null,"",""]
[null,null,null,null,null,null,null,null,null,null,"",null,null,null,"",""]
[null,null,null,null,null,null,null,null,null,null,"",null,null,null,"",""]
[null,null,null,null,null,null,null,null,null,null,"",null,null,null,"",""]
[null,null,null,null,null,null,null,null,null,null,"",null,null,null,"",""]
[null,null,null,null,null,null,null,null,null,null,"",null,null,null,"",""]
[null,null,null,null,null,null,null,null,null,null,"",null,null,null,"",""]
[null,null,null,null,null,null,null,null,null,null,"",null,null,null,"",""]
[null,null,null,null,null,null,null,null,null,null,"",null,null,null,"",""]
[null,null,null,null,null,null,null,null,null,null,"",null,null,null,"",""]
[null,null,null,null,null,null,null,null,null,null,"",null,null,null,"",""]
[null,null,null,null,null,null,null,null,null,null,"",null,null,null,"",""]
[null,null,null,null,null,null,null,null,null,null,"",null,null,null,"",""]
[null,null,null,null,null,null,null,null,null,null,"",null,null,null,"",""]
[null,null,null,null,null,null,null,null,null,null,"",null,null,null,"",""]
[null,null,null,null,null,null,null,null,null,null,"",null,null,null,"",""]
[null,null,null,null,null,null,null,null,null,null,"",null,null,null,"",""]
[null,null,null,null,null,null,null,null,null,null,"",null,null,null,"",""]
[null,null,null,null,null,null,null,null,null,null,"",null,null,null,"",""]
[null,null,null,null,null,null,null,null,null,null,"",null,null,null,"",""]
[null,null,null,null,null,null,null,null,null,null,"",null,null,null,"",""]
[null,null,null,null,null,null,null,null,null,null,{"$f":"IF(OR(B326=\"\",G326=\"\",B326=\"-\",G326=\"-\"),\"\",G326*C326/I326)","v":""},null,null,null,"",""]
[null,null,null,null,null,null,null,null,null,null,"",null,null,null,"",""]
[null,null,null,null,null,null,null,null,null,null,"",null,null,null,"",""]
[null,null,null,null,null,null,null,null,null,null,"",null,null,null,"",""]
[null,null,null,null,null,null,null,null,null,null,"",null,null,null,{"$f":"IF(OR(M330=\"\",M330=\"-\"),\"\",0.35*10^M330)","v":""},{"$f":"IF(O330=0.35*10^M330,\"Seth method\",\"\")","v":""}]
[null,null,null,null,null,null,null,null,null,null,"",null,null,null,"",""]
[null,null,null,null,null,null,null,null,null,null,"",null,null,null,"",""]
[null,null,null,null,null,null,null,null,null,null,"",null,null,null,"",""]
[null,null,null,null,null,null,null,null,null,null,"",null,null,null,"",""]
[null,null,null,null,null,null,null,null,null,null,"",null,null,null,"",""]
[null,null,null,null,null,null,null,null,null,null,"",null,null,null,"",""]
[null,null,null,null,null,null,null,null,null,null,"",null,null,null,"",""]
[null,null,null,null,null,null,null,null,null,null,"",null,null,null,"",""]
[null,null,null,null,null,null,null,null,null,null,"",null,null,null,"",""]
[null,null,null,null,null,null,null,null,null,null,"",null,null,null,"",""]
[null,null,null,null,null,null,null,null,null,null,"",null,null,null,"",""]
[null,null,null,null,null,null,null,null,null,null,"",null,null,null,"",""]
[null,null,null,null,null,null,null,null,null,null,"",null,null,null,"",""]
[null,null,null,null,null,null,null,null,null,null,"",null,null,null,"",""]
[null,null,null,null,null,null,null,null,null,null,"",null,null,null,"",""]
[null,null,null,null,null,null,null,null,null,null,"",null,null,null,"",""]
[null,null,null,null,null,null,null,null,null,null,"",null,null,null,"",""]
[null,null,null,null,null,null,null,null,null,null,"",null,null,null,"",""]
[null,null,null,null,null,null,null,null,null,null,"",null,null,null,"",""]
[null,null,null,null,null,null,null,null,null,null,"",null,null,null,"",""]
[null,null,null,null,null,null,null,null,null,null,"",null,null,null,"",""]
[null,null,null,null,null,null,null,null,null,null,"",null,null,null,"",""]
[null,null,null,null,null,null,null,null,null,null,"",null,null,null,"",""]
[null,null,null,null,null,null,null,null,null,null,"",null,null,null,"",""]
[null,null,null,null,null,null,null,null,null,null,"",null,null,null,"",""]
[null,null,null,null,null,null,null,null,null,null,"",null,null,null,"",""]
[null,null,null,null,null,null,null,null,null,null,"",null,null,null,"",""]
[null,null,null,null,null,null,null,null,null,null,"",null,null,null,"",""]
[null,null,null,null,null,null,null,null,null,null,"",null,null,null,"",""]
[null,null,null,null,null,null,null,null,null,null,"",null,null,null,"",""]
[null,null,null,null,null,null,null,null,null,null,"",null,null,null,"",""]
[null,null,null,null,null,null,null,null,null,null,"",null,null,null,"",""]
[null,null,null,null,null,null,null,null,null,null,"",null,null,null,"",""]
[null,null,null,null,null,null,null,null,null,null,"",null,null,null,"",""]
[null,null,null,null,null,null,null,null,null,null,"",null,null,null,"",""]
[null,null,null,null,null,null,null,null,null,null,"",null,null,null,"",""]
[null,null,null,null,null,null,null,null,null,null,"",null,null,null,"",""]
[null,null,null,null,null,null,null,null,null,null,"",null,null,null,"",""]
[null,null,null,null,null,null,null,null,null,null,"",null,null,null,"",""]
[null,null,null,null,null,null,null,null,null,null,"",null,null,null,"",""]
[null,null,null,null,null,null,null,null,null,null,"",null,null,null,"",""]
[null,null,null,null,null,null,null,null,null,null,"",null,null,null,"",""]
[null,null,null,null,null,null,null,null,null,null,"",null,null,null,"",""]
[null,null,null,null,null,null,null,null,null,null,"",null,null,null,"",""]
[null,null,null,null,null,null,null,null,null,null,"",null,null,null,"",""]
[null,null,null,null,null,null,null,null,null,null,"",null,null,null,"",""]
[null,null,null,null,null,null,null,null,null,null,"",null,null,null,"",""]
[null,null,null,null,null,null,null,null,null,null,"",null,null,null,"",""]
[null,null,null,null,null,null,null,null,null,null,"",null,null,null,"",""]
[null,null,null,null,null,null,null,null,null,null,"",null,null,null,"",""]
[null,null,null,null,null,null,null,null,null,null,"",null,null,null,"",""]
[null,null,null,null,null,null,null,null,null,null,"",null,null,null,"",""]
[null,null,null,null,null,null,null,null,null,null,"",null,null,null,"",""]
[null,null,null,null,null,null,null,null,null,null,"",null,null,null,"",""]
[null,null,null,null,null,null,null,null,null,null,"",null,null,null,"",""]
[null,null,null,null,null,null,null,null,null,null,"",null,null,null,"",""]
[null,null,null,null,null,null,null,null,null,null,"",null,null,null,"",""]
[null,null,null,null,null,null,null,null,null,null,"",null,null,null,"",""]
[null,null,null,null,null,null,null,null,null,null,"",null,null,null,"",""]
[null,null,null,null,null,null,null,null,null,null,{"$f":"IF(OR(B390=\"\",G390=\"\",B390=\"-\",G390=\"-\"),\"\",G390*C390/I390)","v":""},null,null,null,"",""]
[null,null,null,null,null,null,null,null,null,null,"",null,null,null,"",""]
[null,null,null,null,null,null,null,null,null,null,"",null,null,null,"",""]
[null,null,null,null,null,null,null,null,null,null,"",null,null,null,"",""]
[null,null,null,null,null,null,null,null,null,null,"",null,null,null,{"$f":"IF(OR(M394=\"\",M394=\"-\"),\"\",0.35*10^M394)","v":""},{"$f":"IF(O394=0.35*10^M394,\"Seth method\",\"\")","v":""}]
[null,null,null,null,null,null,null,null,null,null,"",null,null,null,"",""]
[null,null,null,null,null,null,null,null,null,null,"",null,null,null,"",""]
[null,null,null,null,null,null,null,null,null,null,"",null,null,null,"",""]
[null,null,null,null,null,null,null,null,null,null,"",null,null,null,"",""]
[null,null,null,null,null,null,null,null,null,null,"",null,null,null,"",""]
[null,null,null,null,null,null,null,null,null,null,"",null,null,null,"",""]
[null,null,null,null,null,null,null,null,null,null,"",null,null,null,"",""]
[null,null,null,null,null,null,null,null,null,null,"",null,null,null,"",""]
[null,null,null,null,null,null,null,null,null,null,"",null,null,null,"",""]
[null,null,null,null,null,null,null,null,null,null,"",null,null,null,"",""]
[null,null,null,null,null,null,null,null,null,null,"",null,null,null,"",""]
[null,null,null,null,null,null,null,null,null,null,"",null,null,null,"",""]
[null,null,null,null,null,null,null,null,null,null,"",null,null,null,"",""]
[null,null,null,null,null,null,null,null,null,null,"",null,null,null,"",""]
[null,null,null,null,null,null,null,null,null,null,"",null,null,null,"",""]
[null,null,null,null,null,null,null,null,null,null,"",null,null,null,"",""]
[null,null,null,null,null,null,null,null,null,null,"",null,null,null,"",""]
[null,null,null,null,null,null,null,null,null,null,"",null,null,null,"",""]
[null,null,null,null,null,null,null,null,null,null,"",null,null,null,"",""]
[null,null,null,null,null,null,null,null,null,null,"",null,null,null,"",""]
[null,null,null,null,null,null,null,null,null,null,"",null,null,null,"",""]
[null,null,null,null,null,null,null,null,null,null,"",null,null,null,"",""]
[null,null,null,null,null,null,null,null,null,null,"",null,null,null,"",""]
[null,null,null,null,null,null,null,null,null,null,"",null,null,null,"",""]
[null,null,null,null,null,null,null,null,null,null,"",null,null,null,"",""]
[null,null,null,null,null,null,null,null,null,null,"",null,null,null,"",""]
[null,null,null,null,null,null,null,null,null,null,"",null,null,null,"",""]
[null,null,null,null,null,null,null,null,null,null,"",null,null,null,"",""]
[null,null,null,null,null,null,null,null,null,null,"",null,null,null,"",""]
[null,null,null,null,null,null,null,null,null,null,"",null,null,null,"",""]
[null,null,null,null,null,null,null,null,null,null,"",null,null,null,"",""]
[null,null,null,null,null,null,null,null,null,null,"",null,null,null,"",""]
[null,null,null,null,null,null,null,null,null,null,"",null,null,null,"",""]
[null,null,null,null,null,null,null,null,null,null,"",null,null,null,"",""]
[null,null,null,null,null,null,null,null,null,null,"",null,null,null,"",""]
[null,null,null,null,null,null,null,null,null,null,"",null,null,null,"",""]
[null,null,null,null,null,null,null,null,null,null,"",null,null,null,"",""]
[null,null,null,null,null,null,null,null,null,null,"",null,null,null,"",""]
[null,null,null,null,null,null,null,null,null,null,"",null,null,null,"",""]
[null,null,null,null,null,null,null,null,null,null,"",null,null,null,"",""]
[null,null,null,null,null,null,null,null,null,null,"",null,null,null,"",""]
[null,null,null,null,null,null,null,null,null,null,"",null,null,null,"",""]
[null,null,null,null,null,null,null,null,null,null,"",null,null,null,"",""]
[null,null,null,null,null,null,null,null,null,null,"",null,null,null,"",""]
[null,null,null,null,null,null,null,null,null,null,"",null,null,null,"",""]
[null,null,null,null,null,null,null,null,null,null,"",null,null,null,"",""]
[null,null,null,null,null,null,null,null,null,null,"",null,null,null,"",""]
[null,null,null,null,null,null,null,null,null,null,"",null,null,null,"",""]
[null,null,null,null,null,null,null,null,null,null,"",null,null,null,"",""]
[null,null,null,null,null,null,null,null,null,null,"",null,null,null,"",""]
[null,null,null,null,null,null,null,null,null,null,"",null,null,null,"",""]
[null,null,null,null,null,null,null,null,null,null,"",null,null,null,"",""]
[null,null,null,null,null,null,null,null,null,null,"",null,null,null,"",""]
[null,null,null,null,null,null,null,null,null,null,"",null,null,null,"",""]
[null,null,null,null,null,null,null,null,null,null,"",null,null,null,"",""]
[null,null,null,null,null,null,null,null,null,null,"",null,null,null,"",""]
[null,null,null,null,null,null,null,null,null,null,"",null,null,null,"",""]
[null,null,null,null,null,null,null,null,null,null,"",null,null,null,"",""]
[null,null,null,null,null,null,null,null,null,null,"",null,null,null,"",""]
[null,null,null,null,null,null,null,null,null,null,{"$f":"IF(OR(B454=\"\",G454=\"\",B454=\"-\",G454=\"-\"),\"\",G454*C454/I454)","v":""},null,null,null,"",""]
[null,null,null,null,null,null,null,null,null,null,"",null,null,null,"",""]
[null,null,null,null,null,null,null,null,null,null,"",null,null,null,"",""]
[null,null,null,null,null,null,null,null,null,null,"",null,null,null,"",""]
[null,null,null,null,null,null,null,null,null,null,"",null,null,null,{"$f":"IF(OR(M458=\"\",M458=\"-\"),\"\",0.35*10^M458)","v":""},{"$f":"IF(O458=0.35*10^M458,\"Seth method\",\"\")","v":""}]
[null,null,null,null,null,null,null,null,null,null,"",null,null,null,"",""]
[null,null,null,null,null,null,null,null,null,null,"",null,null,null,"",""]
[null,null,null,null,null,null,null,null,null,null,"",null,null,null,"",""]
[null,null,null,null,null,null,null,null,null,null,"",null,null,null,"",""]
[null,null,null,null,null,null,null,null,null,null,"",null,null,null,"",""]
[null,null,null,null,null,null,null,null,null,null,"",null,null,null,"",""]
[null,null,null,null,null,null,null,null,null,null,"",null,null,null,"",""]
[null,null,null,null,null,null,null,null,null,null,"",null,null,null,"",""]
[null,null,null,null,null,null,null,null,null,null,"",null,null,null,"",""]
[null,null,null,null,null,null,null,null,null,null,"",null,null,null,"",""]
[null,null,null,null,null,null,null,null,null,null,"",null,null,null,"",""]
[null,null,null,null,null,null,null,null,null,null,"",null,null,null,"",""]
[null,null,null,null,null,null,null,null,null,null,"",null,null,null,"",""]
[null,null,null,null,null,null,null,null,null,null,"",null,null,null,"",""]
[null,null,null,null,null,null,null,null,null,null,"",null,null,null,"",""]
[null,null,null,null,null,null,null,null,null,null,"",null,null,null,"",""]
[null,null,null,null,null,null,null,null,null,null,"",null,null,null,"",""]
[null,null,null,null,null,null,null,null,null,null,"",null,null,null,"",""]
[null,null,null,null,null,null,null,null,null,null,"",null,null,null,"",""]
[null,null,null,null,null,null,null,null,null,null,"",null,null,null,"",""]
[null,null,null,null,null,null,null,null,null,null,"",null,null,null,"",""]
[null,null,null,null,null,null,null,null,null,null,"",null,null,null,"",""]
[null,null,null,null,null,null,null,null,null,null,"",null,null,null,"",""]
[null,null,null,null,null,null,null,null,null,null,"",null,null,null,"",""]
[null,null,null,null,null,null,null,null,null,null,"",null,null,null,"",""]
[null,null,null,null,null,null,null,null,null,null,"",null,null,null,"",""]
[null,null,null,null,null,null,null,null,null,null,"",null,null,null,"",""]
[null,null,null,null,null,null,null,null,null,null,"",null,null,null,"",""]
[null,null,null,null,null,null,null,null,null,null,"",null,null,null,"",""]
[null,null,null,null,null,null,null,null,null,null,"",null,null,null,"",""]
[null,null,null,null,null,null,null,null,null,null,"",null,null,null,"",""]
[null,null,null,null,null,null,null,null,null,null,"",null,null,null,"",""]
[null,null,null,null,null,null,null,null,null,null,"",null,null,null,"",""]
[null,null,null,null,null,null,null,null,null,null,"",null,null,null,"",""]
[null,null,null,null,null,null,null,null,null,null,"",null,null,null,"",""]
[null,null,null,null,null,null,null,null,null,null,"",null,null,null,"",""]
[null,null,null,null,null,null,null,null,null,null,"",null,null,null,"",""]
[null,null,null,null,null,null,null,null,null,null,"",null,null,null,"",""]
[null,null,null,null,null,null,null,null,null,null,"",null,null,null,"",""]
[null,null,null,null,null,null,null,null,null,null,"",null,null,null,"",""]
[null,null,null,null,null,null,null,null,null,null,"",null,null,null,"",""]
[null,null,null,null,null,null,null,null,null,null,"",null,null,null,"",""]
[null,null,null,null,null,null,null,null,null,null,"",null,null,null,"",""]
[null,null,null,null,null,null,null,null,null,null,"",null,null,null,"",""]
[null,null,null,null,null,null,null,null,null,null,"",null,null,null,"",""]
[null,null,null,null,null,null,null,null,null,null,"",null,null,null,"",""]
[null,null,null,null,null,null,null,null,null,null,"",null,null,null,"",""]
[null,null,null,null,null,null,null,null,null,null,"",null,null,null,"",""]
[null,null,null,null,null,null,null,null,null,null,"",null,null,null,"",""]
[null,null,null,null,null,null,null,null,null,null,"",null,null,null,"",""]
[null,null,null,null,null,null,null,null,null,null,"",null,null,null,"",""]
[null,null,null,null,null,null,null,null,null,null,"",null,null,null,"",""]
[null,null,null,null,null,null,null,null,null,null,"",null,null,null,"",""]
[null,null,null,null,null,null,null,null,null,null,"",null,null,null,"",""]
[null,null,null,null,null,null,null,null,null,null,"",null,null,null,"",""]
[null,null,null,null,null,null,null,null,null,null,"",null,null,null,"",""]
[null,null,null,null,null,null,null,null,null,null,"",null,null,null,"",""]
[null,null,null,null,null,null,null,null,null,null,"",null,null,null,"",""]
[null,null,null,null,null,null,null,null,null,null,"",null,null,null,"",""]
[null,null,null,null,null,null,null,null,null,null,{"$f":"IF(OR(B518=\"\",G518=\"\",B518=\"-\",G518=\"-\"),\"\",G518*C518/I518)","v":""},null,null,null,"",""]
[null,null,null,null,null,null,null,null,null,null,"",null,null,null,"",""]
[null,null,null,null,null,null,null,null,null,null,"",null,null,null,"",""]
[null,null,null,null,null,null,null,null,null,null,"",null,null,null,"",""]
[null,null,null,null,null,null,null,null,null,null,"",null,null,null,{"$f":"IF(OR(M522=\"\",M522=\"-\"),\"\",0.35*10^M522)","v":""},{"$f":"IF(O522=0.35*10^M522,\"Seth method\",\"\")","v":""}]
[null,null,null,null,null,null,null,null,null,null,"",null,null,null,"",""]
[null,null,null,null,null,null,null,null,null,null,"",null,null,null,"",""]
[null,null,null,null,null,null,null,null,null,null,"",null,null,null,"",""]
[null,null,null,null,null,null,null,null,null,null,"",null,null,null,"",""]
[null,null,null,null,null,null,null,null,null,null,"",null,null,null,"",""]
[null,null,null,null,null,null,null,null,null,null,"",null,null,null,"",""]
[null,null,null,null,null,null,null,null,null,null,"",null,null,null,"",""]
[null,null,null,null,null,null,null,null,null,null,"",null,null,null,"",""]
[null,null,null,null,null,null,null,null,null,null,"",null,null,null,"",""]
[null,null,null,null,null,null,null,null,null,null,"",null,null,null,"",""]
[null,null,null,null,null,null,null,null,null,null,"",null,null,null,"",""]
[null,null,null,null,null,null,null,null,null,null,"",null,null,null,"",""]
[null,null,null,null,null,null,null,null,null,null,"",null,null,null,"",""]
[null,null,null,null,null,null,null,null,null,null,"",null,null,null,"",""]
[null,null,null,null,null,null,null,null,null,null,"",null,null,null,"",""]
[null,null,null,null,null,null,null,null,null,null,"",null,null,null,"",""]
[null,null,null,null,null,null,null,null,null,null,"",null,null,null,"",""]
[null,null,null,null,null,null,null,null,null,null,"",null,null,null,"",""]
[null,null,null,null,null,null,null,null,null,null,"",null,null,null,"",""]
[null,null,null,null,null,null,null,null,null,null,"",null,null,null,"",""]
[null,null,null,null,null,null,null,null,null,null,"",null,null,null,"",""]
[null,null,null,null,null,null,null,null,null,null,"",null,null,null,"",""]
[null,null,null,null,null,null,null,null,null,null,"",null,null,null,"",""]
[null,null,null,null,null,null,null,null,null,null,"",null,null,null,"",""]
[null,null,null,null,null,null,null,null,null,null,"",null,null,null,"",""]
[null,null,null,null,null,null,null,null,null,null,"",null,null,null,"",""]
[null,null,null,null,null,null,null,null,null,null,"",null,null,null,"",""]
[null,null,null,null,null,null,null,null,null,null,"",null,null,null,"",""]
[null,null,null,null,null,null,null,null,null,null,"",null,null,null,"",""]
[null,null,null,null,null,null,null,null,null,null,"",null,null,null,"",""]
[null,null,null,null,null,null,null,null,null,null,"",null,null,null,"",""]
[null,null,null,null,null,null,null,null,null,null,"",null,null,null,"",""]
[null,null,null,null,null,null,null,null,null,null,"",null,null,null,"",""]
[null,null,null,null,null,null,null,null,null,null,"",null,null,null,"",""]
[null,null,null,null,null,null,null,null,null,null,"",null,null,null,"",""]
[null,null,null,null,null,null,null,null,null,null,"",null,null,null,"",""]
[null,null,null,null,null,null,null,null,null,null,"",null,null,null,"",""]
[null,null,null,null,null,null,null,null,null,null,"",null,null,null,"",""]
[null,null,null,null,null,null,null,null,null,null,"",null,null,null,"",""]
[null,null,null,null,null,null,null,null,null,null,"",null,null,null,"",""]
[null,null,null,null,null,null,null,null,null,null,"",null,null,null,"",""]
[null,null,null,null,null,null,null,null,null,null,"",null,null,null,"",""]
[null,null,null,null,null,null,null,null,null,null,"",null,null,null,"",""]
[null,null,null,null,null,null,null,null,null,null,"",null,null,null,"",""]
[null,null,null,null,null,null,null,null,null,null,"",null,null,null,"",""]
[null,null,null,null,null,null,null,null,null,null,"",null,null,null,"",""]
[null,null,null,null,null,null,null,null,null,null,"",null,null,null,"",""]
[null,null,null,null,null,null,null,null,null,null,"",null,null,null,"",""]
[null,null,null,null,null,null,null,null,null,null,"",null,null,null,"",""]
[null,null,null,null,null,null,null,null,null,null,"",null,null,null,"",""]
[null,null,null,null,null,null,null,null,null,null,"",null,null,null,"",""]
[null,null,null,null,null,null,null,null,null,null,"",null,null,null,"",""]
[null,null,null,null,null,null,null,null,null,null,"",null,null,null,"",""]
[null,null,null,null,null,null,null,null,null,null,"",null,null,null,"",""]
[null,null,null,null,null,null,null,null,null,null,"",null,null,null,"",""]
[null,null,null,null,null,null,null,null,null,null,"",null,null,null,"",""]
[null,null,null,null,null,null,null,null,null,null,"",null,null,null,"",""]
[null,null,null,null,null,null,null,null,null,null,"",null,null,null,"",""]
[null,null,null,null,null,null,null,null,null,null,"",null,null,null,"",""]
[null,null,null,null,null,null,null,null,null,null,{"$f":"IF(OR(B582=\"\",G582=\"\",B582=\"-\",G582=\"-\"),\"\",G582*C582/I582)","v":""},null,null,null,"",""]
[null,null,null,null,null,null,null,null,null,null,"",null,null,null,"",""]
[null,null,null,null,null,null,null,null,null,null,"",null,null,null,"",""]
[null,null,null,null,null,null,null,null,null,null,"",null,null,null,"",""]
[null,null,null,null,null,null,null,null,null,null,"",null,null,null,{"$f":"IF(OR(M586=\"\",M586=\"-\"),\"\",0.35*10^M586)","v":""},{"$f":"IF(O586=0.35*10^M586,\"Seth method\",\"\")","v":""}]
[null,null,null,null,null,null,null,null,null,null,"",null,null,null,"",""]
[null,null,null,null,null,null,null,null,null,null,"",null,null,null,"",""]
[null,null,null,null,null,null,null,null,null,null,"",null,null,null,"",""]
[null,null,null,null,null,null,null,null,null,null,"",null,null,null,"",""]
[null,null,null,null,null,null,null,null,null,null,"",null,null,null,"",""]
[null,null,null,null,null,null,null,null,null,null,"",null,null,null,"",""]
[null,null,null,null,null,null,null,null,null,null,"",null,null,null,"",""]
[null,null,null,null,null,null,null,null,null,null,"",null,null,null,"",""]
[null,null,null,null,null,null,null,null,null,null,"",null,null,null,"",""]
[null,null,null,null,null,null,null,null,null,null,"",null,null,null,"",""]
[null,null,null,null,null,null,null,null,null,null,"",null,null,null,"",""]
[null,null,null,null,null,null,null,null,null,null,"",null,null,null,"",""]
[null,null,null,null,null,null,null,null,null,null,"",null,null,null,"",""]
[null,null,null,null,null,null,null,null,null,null,"",null,null,null,"",""]
[null,null,null,null,null,null,null,null,null,null,"",null,null,null,"",""]
[null,null,null,null,null,null,null,null,null,null,"",null,null,null,"",""]
[null,null,null,null,null,null,null,null,null,null,"",null,null,null,"",""]
[null,null,null,null,null,null,null,null,null,null,"",null,null,null,"",""]
[null,null,null,null,null,null,null,null,null,null,"",null,null,null,"",""]
[null,null,null,null,null,null,null,null,null,null,"",null,null,null,"",""]
[null,null,null,null,null,null,null,null,null,null,"",null,null,null,"",""]
[null,null,null,null,null,null,null,null,null,null,"",null,null,null,"",""]
[null,null,null,null,null,null,null,null,null,null,"",null,null,null,"",""]
[null,null,null,null,null,null,null,null,null,null,"",null,null,null,"",""]
[null,null,null,null,null,null,null,null,null,null,"",null,null,null,"",""]
[null,null,null,null,null,null,null,null,null,null,"",null,null,null,"",""]
[null,null,null,null,null,null,null,null,null,null,"",null,null,null,"",""]
[null,null,null,null,null,null,null,null,null,null,"",null,null,null,"",""]
[null,null,null,null,null,null,null,null,null,null,"",null,null,null,"",""]
[null,null,null,null,null,null,null,null,null,null,"",null,null,null,"",""]
[null,null,null,null,null,null,null,null,null,null,"",null,null,null,"",""]
[null,null,null,null,null,null,null,null,null,null,"",null,null,null,"",""]
[null,null,null,null,null,null,null,null,null,null,"",null,null,null,"",""]
[null,null,null,null,null,null,null,null,null,null,"",null,null,null,"",""]
[null,null,null,null,null,null,null,null,null,null,"",null,null,null,"",""]
[null,null,null,null,null,null,null,null,null,null,"",null,null,null,"",""]
[null,null,null,null,null,null,null,null,null,null,"",null,null,null,"",""]
[null,null,null,null,null,null,null,null,null,null,"",null,null,null,"",""]
[null,null,null,null,null,null,null,null,null,null,"",null,null,null,"",""]
[null,null,null,null,null,null,null,null,null,null,"",null,null,null,"",""]
[null,null,null,null,null,null,null,null,null,null,"",null,null,null,"",""]
[null,null,null,null,null,null,null,null,null,null,"",null,null,null,"",""]
[null,null,null,null,null,null,null,null,null,null,"",null,null,null,"",""]
[null,null,null,null,null,null,null,null,null,null,"",null,null,null,"",""]
[null,null,null,null,null,null,null,null,null,null,"",null,null,null,"",""]
[null,null,null,null,null,null,null,null,null,null,"",null,null,null,"",""]
[null,null,null,null,null,null,null,null,null,null,"",null,null,null,"",""]
[null,null,null,null,null,null,null,null,null,null,"",null,null,null,"",""]
[null,null,null,null,null,null,null,null,null,null,"",null,null,null,"",""]
[null,null,null,null,null,null,null,null,null,null,"",null,null,null,"",""]
[null,null,null,null,null,null,null,null,null,null,"",null,null,null,"",""]
[null,null,null,null,null,null,null,null,null,null,"",null,null,null,"",""]
[null,null,null,null,null,null,null,null,null,null,"",null,null,null,"",""]
[null,null,null,null,null,null,null,null,null,null,"",null,null,null,"",""]
[null,null,null,null,null,null,null,null,null,null,"",null,null,null,"",""]
[null,null,null,null,null,null,null,null,null,null,"",null,null,null,"",""]
[null,null,null,null,null,null,null,null,null,null,"",null,null,null,"",""]
[null,null,null,null,null,null,null,null,null,null,"",null,null,null,"",""]
[null,null,null,null,null,null,null,null,null,null,"",null,null,null,"",""]
[null,null,null,null,null,null,null,null,null,null,{"$f":"IF(OR(B646=\"\",G646=\"\",B646=\"-\",G646=\"-\"),\"\",G646*C646/I646)","v":""},null,null,null,"",""]
[null,null,null,null,null,null,null,null,null,null,"",null,null,null,"",""]
[null,null,null,null,null,null,null,null,null,null,"",null,null,null,"",""]
[null,null,null,null,null,null,null,null,null,null,"",null,null,null,"",""]
[null,null,null,null,null,null,null,null,null,null,"",null,null,null,{"$f":"IF(OR(M650=\"\",M650=\"-\"),\"\",0.35*10^M650)","v":""},{"$f":"IF(O650=0.35*10^M650,\"Seth method\",\"\")","v":""}]
[null,null,null,null,null,null,null,null,null,null,"",null,null,null,"",""]
[null,null,null,null,null,null,null,null,null,null,"",null,null,null,"",""]
[null,null,null,null,null,null,null,null,null,null,"",null,null,null,"",""]
[null,null,null,null,null,null,null,null,null,null,"",null,null,null,"",""]
[null,null,null,null,null,null,null,null,null,null,"",null,null,null,"",""]
[null,null,null,null,null,null,null,null,null,null,"",null,null,null,"",""]
[null,null,null,null,null,null,null,null,null,null,"",null,null,null,"",""]
[null,null,null,null,null,null,null,null,null,null,"",null,null,null,"",""]
[null,null,null,null,null,null,null,null,null,null,"",null,null,null,"",""]
[null,null,null,null,null,null,null,null,null,null,"",null,null,null,"",""]
[null,null,null,null,null,null,null,null,null,null,"",null,null,null,"",""]
[null,null,null,null,null,null,null,null,null,null,"",null,null,null,"",""]
[null,null,null,null,null,null,null,null,null,null,"",null,null,null,"",""]
[null,null,null,null,null,null,null,null,null,null,"",null,null,null,"",""]
[null,null,null,null,null,null,null,null,null,null,"",null,null,null,"",""]
[null,null,null,null,null,null,null,null,null,null,"",null,null,null,"",""]
[null,null,null,null,null,null,null,null,null,null,"",null,null,null,"",""]
[null,null,null,null,null,null,null,null,null,null,"",null,null,null,"",""]
[null,null,null,null,null,null,null,null,null,null,"",null,null,null,"",""]
[null,null,null,null,null,null,null,null,null,null,"",null,null,null,"",""]
[null,null,null,null,null,null,null,null,null,null,"",null,null,null,"",""]
[null,null,null,null,null,null,null,null,null,null,"",null,null,null,"",""]
[null,null,null,null,null,null,null,null,null,null,"",null,null,null,"",""]
[null,null,null,null,null,null,null,null,null,null,"",null,null,null,"",""]
[null,null,null,null,null,null,null,null,null,null,"",null,null,null,"",""]
[null,null,null,null,null,null,null,null,null,null,"",null,null,null,"",""]
[null,null,null,null,null,null,null,null,null,null,"",null,null,null,"",""]
[null,null,null,null,null,null,null,null,null,null,"",null,null,null,"",""]
[null,null,null,null,null,null,null,null,null,null,"",null,null,null,"",""]
[null,null,null,null,null,null,null,null,null,null,"",null,null,null,"",""]
[null,null,null,null,null,null,null,null,null,null,"",null,null,null,"",""]
[null,null,null,null,null,null,null,null,null,null,"",null,null,null,"",""]
[null,null,null,null,null,null,null,null,null,null,"",null,null,null,"",""]
[null,null,null,null,null,null,null,null,null,null,"",null,null,null,"",""]
[null,null,null,null,null,null,null,null,null,null,"",null,null,null,"",""]
[null,null,null,null,null,null,null,null,null,null,"",null,null,null,"",""]
[null,null,null,null,null,null,null,null,null,null,"",null,null,null,"",""]
[null,null,null,null,null,null,null,null,null,null,"",null,null,null,"",""]
[null,null,null,null,null,null,null,null,null,null,"",null,null,null,"",""]
[null,null,null,null,null,null,null,null,null,null,"",null,null,null,"",""]
[null,null,null,null,null,null,null,null,null,null,"",null,null,null,"",""]
[null,null,null,null,null,null,null,null,null,null,"",null,null,null,"",""]
[null,null,null,null,null,null,null,null,null,null,"",null,null,null,"",""]
[null,null,null,null,null,null,null,null,null,null,"",null,null,null,"",""]
[null,null,null,null,null,null,null,null,null,null,"",null,null,null,"",""]
[null,null,null,null,null,null,null,null,null,null,"",null,null,null,"",""]
[null,null,null,null,null,null,null,null,null,null,"",null,null,null,"",""]
[null,null,null,null,null,null,null,null,null,null,"",null,null,null,"",""]
[null,null,null,null,null,null,null,null,null,null,"",null,null,null,"",""]
[null,null,null,null,null,null,null,null,null,null,"",null,null,null,"",""]
[null,null,null,null,null,null,null,null,null,null,"",null,null,null,"",""]
[null,null,null,null,null,null,null,null,null,null,"",null,null,null,"",""]
[null,null,null,null,null,null,null,null,null,null,"",null,null,null,"",""]
[null,null,null,null,null,null,null,null,null,null,"",null,null,null,"",""]
[null,null,null,null,null,null,null,null,null,null,"",null,null,null,"",""]
[null,null,null,null,null,null,null,null,null,null,"",null,null,null,"",""]
[null,null,null,null,null,null,null,null,null,null,"",null,null,null,"",""]
[null,null,null,null,null,null,null,null,null,null,"",null,null,null,"",""]
[null,null,null,null,null,null,null,null,null,null,"",null,null,null,"",""]
[null,null,null,null,null,null,null,null,null,null,{"$f":"IF(OR(B710=\"\",G710=\"\",B710=\"-\",G710=\"-\"),\"\",G710*C710/I710)","v":""},null,null,null,"",""]
[null,null,null,null,null,null,null,null,null,null,"",null,null,null,"",""]
[null,null,null,null,null,null,null,null,null,null,"",null,null,null,"",""]
[null,null,null,null,null,null,null,null,null,null,"",null,null,null,"",""]
[null,null,null,null,null,null,null,null,null,null,"",null,null,null,{"$f":"IF(OR(M714=\"\",M714=\"-\"),\"\",0.35*10^M714)","v":""},{"$f":"IF(O714=0.35*10^M714,\"Seth method\",\"\")","v":""}]
[null,null,null,null,null,null,null,null,null,null,"",null,null,null,"",""]
[null,null,null,null,null,null,null,null,null,null,"",null,null,null,"",""]
[null,null,null,null,null,null,null,null,null,null,"",null,null,null,"",""]
[null,null,null,null,null,null,null,null,null,null,"",null,null,null,"",""]
[null,null,null,null,null,null,null,null,null,null,"",null,null,null,"",""]
[null,null,null,null,null,null,null,null,null,null,"",null,null,null,"",""]
[null,null,null,null,null,null,null,null,null,null,"",null,null,null,"",""]
[null,null,null,null,null,null,null,null,null,null,"",null,null,null,"",""]
[null,null,null,null,null,null,null,null,null,null,"",null,null,null,"",""]
[null,null,null,null,null,null,null,null,null,null,"",null,null,null,"",""]
[null,null,null,null,null,null,null,null,null,null,"",null,null,null,"",""]
[null,null,null,null,null,null,null,null,null,null,"",null,null,null,"",""]
[null,null,null,null,null,null,null,null,null,null,"",null,null,null,"",""]
[null,null,null,null,null,null,null,null,null,null,"",null,null,null,"",""]
[null,null,null,null,null,null,null,null,null,null,"",null,null,null,"",""]
[null,null,null,null,null,null,null,null,null,null,"",null,null,null,"",""]
[null,null,null,null,null,null,null,null,null,null,"",null,null,null,"",""]
[null,null,null,null,null,null,null,null,null,null,"",null,null,null,"",""]
[null,null,null,null,null,null,null,null,null,null,"",null,null,null,"",""]
[null,null,null,null,null,null,null,null,null,null,"",null,null,null,"",""]
[null,null,null,null,null,null,null,null,null,null,"",null,null,null,"",""]
[null,null,null,null,null,null,null,null,null,null,"",null,null,null,"",""]
[null,null,null,null,null,null,null,null,null,null,"",null,null,null,"",""]
[null,null,null,null,null,null,null,null,null,null,"",null,null,null,"",""]
[null,null,null,null,null,null,null,null,null,null,"",null,null,null,"",""]
[null,null,null,null,null,null,null,null,null,null,"",null,null,null,"",""]
[null,null,null,null,null,null,null,null,null,null,"",null,null,null,"",""]
[null,null,null,null,null,null,null,null,null,null,"",null,null,null,"",""]
[null,null,null,null,null,null,null,null,null,null,"",null,null,null,"",""]
[null,null,null,null,null,null,null,null,null,null,"",null,null,null,"",""]
[null,null,null,null,null,null,null,null,null,null,"",null,null,null,"",""]
[null,null,null,null,null,null,null,null,null,null,"",null,null,null,"",""]
[null,null,null,null,null,null,null,null,null,null,"",null,null,null,"",""]
[null,null,null,null,null,null,null,null,null,null,"",null,null,null,"",""]
[null,null,null,null,null,null,null,null,null,null,"",null,null,null,"",""]
[null,null,null,null,null,null,null,null,null,null,"",null,null,null,"",""]
[null,null,null,null,null,null,null,null,null,null,"",null,null,null,"",""]
[null,null,null,null,null,null,null,null,null,null,"",null,null,null,"",""]
[null,null,null,null,null,null,null,null,null,null,"",null,null,null,"",""]
[null,null,null,null,null,null,null,null,null,null,"",null,null,null,"",""]
[null,null,null,null,null,null,null,null,null,null,"",null,null,null,"",""]
[null,null,null,null,null,null,null,null,null,null,"",null,null,null,"",""]
[null,null,null,null,null,null,null,null,null,null,"",null,null,null,"",""]
[null,null,null,null,null,null,null,null,null,null,"",null,null,null,"",""]
[null,null,null,null,null,null,null,null,null,null,"",null,null,null,"",""]
[null,null,null,null,null,null,null,null,null,null,"",null,null,null,"",""]
[null,null,null,null,null,null,null,null,null,null,"",null,null,null,"",""]
[null,null,null,null,null,null,null,null,null,null,"",null,null,null,"",""]
[null,null,null,null,null,null,null,null,null,null,"",null,null,null,"",""]
[null,null,null,null,null,null,null,null,null,null,"",null,null,null,"",""]
[null,null,null,null,null,null,null,null,null,null,"",null,null,null,"",""]
[null,null,null,null,null,null,null,null,null,null,"",null,null,null,"",""]
[null,null,null,null,null,null,null,null,null,null,"",null,null,null,"",""]
[null,null,null,null,null,null,null,null,null,null,"",null,null,null,"",""]
[null,null,null,null,null,null,null,null,null,null,"",null,null,null,"",""]
[null,null,null,null,null,null,null,null,null,null,"",null,null,null,"",""]
[null,null,null,null,null,null,null,null,null,null,"",null,null,null,"",""]
[null,null,null,null,null,null,null,null,null,null,"",null,null,null,"",""]
[null,null,null,null,null,null,null,null,null,null,"",null,null,null,"",""]
[null,null,null,null,null,null,null,null,null,null,{"$f":"IF(OR(B774=\"\",G774=\"\",B774=\"-\",G774=\"-\"),\"\",G774*C774/I774)","v":""},null,null,null,"",""]
[null,null,null,null,null,null,null,null,null,null,"",null,null,null,"",""]
[null,null,null,null,null,null,null,null,null,null,"",null,null,null,"",""]
[null,null,null,null,null,null,null,null,null,null,"",null,null,null,"",""]
[null,null,null,null,null,null,null,null,null,null,"",null,null,null,{"$f":"IF(OR(M778=\"\",M778=\"-\"),\"\",0.35*10^M778)","v":""},{"$f":"IF(O778=0.35*10^M778,\"Seth method\",\"\")","v":""}]
[null,null,null,null,null,null,null,null,null,null,"",null,null,null,"",""]
[null,null,null,null,null,null,null,null,null,null,"",null,null,null,"",""]
[null,null,null,null,null,null,null,null,null,null,"",null,null,null,"",""]
[null,null,null,null,null,null,null,null,null,null,"",null,null,null,"",""]
[null,null,null,null,null,null,null,null,null,null,"",null,null,null,"",""]
[null,null,null,null,null,null,null,null,null,null,"",null,null,null,"",""]
[null,null,null,null,null,null,null,null,null,null,"",null,null,null,"",""]
[null,null,null,null,null,null,null,null,null,null,"",null,null,null,"",""]
[null,null,null,null,null,null,null,null,null,null,"",null,null,null,"",""]
[null,null,null,null,null,null,null,null,null,null,"",null,null,null,"",""]
[null,null,null,null,null,null,null,null,null,null,"",null,null,null,"",""]
[null,null,null,null,null,null,null,null,null,null,"",null,null,null,"",""]
[null,null,null,null,null,null,null,null,null,null,"",null,null,null,"",""]
[null,null,null,null,null,null,null,null,null,null,"",null,null,null,"",""]
[null,null,null,null,null,null,null,null,null,null,"",null,null,null,"",""]
[null,null,null,null,null,null,null,null,null,null,"",null,null,null,"",""]
[null,null,null,null,null,null,null,null,null,null,"",null,null,null,"",""]
[null,null,null,null,null,null,null,null,null,null,"",null,null,null,"",""]
[null,null,null,null,null,null,null,null,null,null,"",null,null,null,"",""]
[null,null,null,null,null,null,null,null,null,null,"",null,null,null,"",""]
[null,null,null,null,null,null,null,null,null,null,"",null,null,null,"",""]
[null,null,null,null,null,null,null,null,null,null,"",null,null,null,"",""]
[null,null,null,null,null,null,null,null,null,null,"",null,null,null,"",""]
[null,null,null,null,null,null,null,null,null,null,"",null,null,null,"",""]
[null,null,null,null,null,null,null,null,null,null,"",null,null,null,"",""]
[null,null,null,null,null,null,null,null,null,null,"",null,null,null,"",""]
[null,null,null,null,null,null,null,null,null,null,"",null,null,null,"",""]
[null,null,null,null,null,null,null,null,null,null,"",null,null,null,"",""]
[null,null,null,null,null,null,null,null,null,null,"",null,null,null,"",""]
[null,null,null,null,null,null,null,null,null,null,"",null,null,null,"",""]
[null,null,null,null,null,null,null,null,null,null,"",null,null,null,"",""]
[null,null,null,null,null,null,null,null,null,null,"",null,null,null,"",""]
[null,null,null,null,null,null,null,null,null,null,"",null,null,null,"",""]
[null,null,null,null,null,null,null,null,null,null,"",null,null,null,"",""]
[null,null,null,null,null,null,null,null,null,null,"",null,null,null,"",""]
[null,null,null,null,null,null,null,null,null,null,"",null,null,null,"",""]
[null,null,null,null,null,null,null,null,null,null,"",null,null,null,"",""]
[null,null,null,null,null,null,null,null,null,null,"",null,null,null,"",""]
[null,null,null,null,null,null,null,null,null,null,"",null,null,null,"",""]
[null,null,null,null,null,null,null,null,null,null,"",null,null,null,"",""]
[null,null,null,null,null,null,null,null,null,null,"",null,null,null,"",""]
[null,null,null,null,null,null,null,null,null,null,"",null,null,null,"",""]
[null,null,null,null,null,null,null,null,null,null,"",null,null,null,"",""]
[null,null,null,null,null,null,null,null,null,null,"",null,null,null,"",""]
[null,null,null,null,null,null,null,null,null,null,"",null,null,null,"",""]
[null,null,null,null,null,null,null,null,null,null,"",null,null,null,"",""]
[null,null,null,null,null,null,null,null,null,null,"",null,null,null,"",""]
[null,null,null,null,null,null,null,null,null,null,"",null,null,null,"",""]
[null,null,null,null,null,null,null,null,null,null,"",null,null,null,"",""]
[null,null,null,null,null,null,null,null,null,null,"",null,null,null,"",""]
[null,null,null,null,null,null,null,null,null,null,"",null,null,null,"",""]
[null,null,null,null,null,null,null,null,null,null,"",null,null,null,"",""]
[null,null,null,null,null,null,null,null,null,null,"",null,null,null,"",""]
[null,null,null,null,null,null,null,null,null,null,"",null,null,null,"",""]
[null,null,null,null,null,null,null,null,null,null,"",null,null,null,"",""]
[null,null,null,null,null,null,null,null,null,null,"",null,null,null,"",""]
[null,null,null,null,null,null,null,null,null,null,"",null,null,null,"",""]
[null,null,null,null,null,null,null,null,null,null,"",null,null,null,"",""]
[null,null,null,null,null,null,null,null,null,null,"",null,null,null,"",""]
[null,null,null,null,null,null,null,null,null,null,{"$f":"IF(OR(B838=\"\",G838=\"\",B838=\"-\",G838=\"-\"),\"\",G838*C838/I838)","v":""},null,null,null,"",""]
[null,null,null,null,null,null,null,null,null,null,"",null,null,null,"",""]
[null,null,null,null,null,null,null,null,null,null,"",null,null,null,"",""]
[null,null,null,null,null,null,null,null,null,null,"",null,null,null,"",""]
[null,null,null,null,null,null,null,null,null,null,"",null,null,null,{"$f":"IF(OR(M842=\"\",M842=\"-\"),\"\",0.35*10^M842)","v":""},{"$f":"IF(O842=0.35*10^M842,\"Seth method\",\"\")","v":""}]
[null,null,null,null,null,null,null,null,null,null,"",null,null,null,"",""]
[null,null,null,null,null,null,null,null,null,null,"",null,null,null,"",""]
[null,null,null,null,null,null,null,null,null,null,"",null,null,null,"",""]
[null,null,null,null,null,null,null,null,null,null,"",null,null,null,"",""]
[null,null,null,null,null,null,null,null,null,null,"",null,null,null,"",""]
[null,null,null,null,null,null,null,null,null,null,"",null,null,null,"",""]
[null,null,null,null,null,null,null,null,null,null,"",null,null,null,"",""]
[null,null,null,null,null,null,null,null,null,null,"",null,null,null,"",""]
[null,null,null,null,null,null,null,null,null,null,"",null,null,null,"",""]
[null,null,null,null,null,null,null,null,null,null,"",null,null,null,"",""]
[null,null,null,null,null,null,null,null,null,null,"",null,null,null,"",""]
[null,null,null,null,null,null,null,null,null,null,"",null,null,null,"",""]
[null,null,null,null,null,null,null,null,null,null,"",null,null,null,"",""]
[null,null,null,null,null,null,null,null,null,null,"",null,null,null,"",""]
[null,null,null,null,null,null,null,null,null,null,"",null,null,null,"",""]
[null,null,null,null,null,null,null,null,null,null,"",null,null,null,"",""]
[null,null,null,null,null,null,null,null,null,null,"",null,null,null,"",""]
[null,null,null,null,null,null,null,null,null,null,"",null,null,null,"",""]
[null,null,null,null,null,null,null,null,null,null,"",null,null,null,"",""]
[null,null,null,null,null,null,null,null,null,null,"",null,null,null,"",""]
[null,null,null,null,null,null,null,null,null,null,"",null,null,null,"",""]
[null,null,null,null,null,null,null,null,null,null,"",null,null,null,"",""]
[null,null,null,null,null,null,null,null,null,null,"",null,null,null,"",""]
[null,null,null,null,null,null,null,null,null,null,"",null,null,null,"",""]
[null,null,null,null,null,null,null,null,null,null,"",null,null,null,"",""]
[null,null,null,null,null,null,null,null,null,null,"",null,null,null,"",""]
[null,null,null,null,null,null,null,null,null,null,"",null,null,null,"",""]
[null,null,null,null,null,null,null,null,null,null,"",null,null,null,"",""]
[null,null,null,null,null,null,null,null,null,null,"",null,null,null,"",""]
[null,null,null,null,null,null,null,null,null,null,"",null,null,null,"",""]
[null,null,null,null,null,null,null,null,null,null,"",null,null,null,"",""]
[null,null,null,null,null,null,null,null,null,null,"",null,null,null,"",""]
[null,null,null,null,null,null,null,null,null,null,"",null,null,null,"",""]
[null,null,null,null,null,null,null,null,null,null,"",null,null,null,"",""]
[null,null,null,null,null,null,null,null,null,null,"",null,null,null,"",""]
[null,null,null,null,null,null,null,null,null,null,"",null,null,null,"",""]
[null,null,null,null,null,null,null,null,null,null,"",null,null,null,"",""]
[null,null,null,null,null,null,null,null,null,null,"",null,null,null,"",""]
[null,null,null,null,null,null,null,null,null,null,"",null,null,null,"",""]
[null,null,null,null,null,null,null,null,null,null,"",null,null,null,"",""]
[null,null,null,null,null,null,null,null,null,null,"",null,null,null,"",""]
[null,null,null,null,null,null,null,null,null,null,"",null,null,null,"",""]
[null,null,null,null,null,null,null,null,null,null,"",null,null,null,"",""]
[null,null,null,null,null,null,null,null,null,null,"",null,null,null,"",""]
[null,null,null,null,null,null,null,null,null,null,"",null,null,null,"",""]
[null,null,null,null,null,null,null,null,null,null,"",null,null,null,"",""]
[null,null,null,null,null,null,null,null,null,null,"",null,null,null,"",""]
[null,null,null,null,null,null,null,null,null,null,"",null,null,null,"",""]
[null,null,null,null,null,null,null,null,null,null,"",null,null,null,"",""]
[null,null,null,null,null,null,null,null,null,null,"",null,null,null,"",""]
[null,null,null,null,null,null,null,null,null,null,"",null,null,null,"",""]
[null,null,null,null,null,null,null,null,null,null,"",null,null,null,"",""]
[null,null,null,null,null,null,null,null,null,null,"",null,null,null,"",""]
[null,null,null,null,null,null,null,null,null,null,"",null,null,null,"",""]
[null,null,null,null,null,null,null,null,null,null,"",null,null,null,"",""]
[null,null,null,null,null,null,null,null,null,null,"",null,null,null,"",""]
[null,null,null,null,null,null,null,null,null,null,"",null,null,null,"",""]
[null,null,null,null,null,null,null,null,null,null,"",null,null,null,"",""]
[null,null,null,null,null,null,null,null,null,null,"",null,null,null,"",""]
[null,null,null,null,null,null,null,null,null,null,{"$f":"IF(OR(B902=\"\",G902=\"\",B902=\"-\",G902=\"-\"),\"\",G902*C902/I902)","v":""},null,null,null,"",""]
[null,null,null,null,null,null,null,null,null,null,"",null,null,null,"",""]
[null,null,null,null,null,null,null,null,null,null,"",null,null,null,"",""]
[null,null,null,null,null,null,null,null,null,null,"",null,null,null,"",""]
[null,null,null,null,null,null,null,null,null,null,"",null,null,null,{"$f":"IF(OR(M906=\"\",M906=\"-\"),\"\",0.35*10^M906)","v":""},{"$f":"IF(O906=0.35*10^M906,\"Seth method\",\"\")","v":""}]
[null,null,null,null,null,null,null,null,null,null,"",null,null,null,"",""]
[null,null,null,null,null,null,null,null,null,null,"",null,null,null,"",""]
[null,null,null,null,null,null,null,null,null,null,"",null,null,null,"",""]
[null,null,null,null,null,null,null,null,null,null,"",null,null,null,"",""]
[null,null,null,null,null,null,null,null,null,null,"",null,null,null,"",""]
[null,null,null,null,null,null,null,null,null,null,"",null,null,null,"",""]
[null,null,null,null,null,null,null,null,null,null,"",null,null,null,"",""]
[null,null,null,null,null,null,null,null,null,null,"",null,null,null,"",""]
[null,null,null,null,null,null,null,null,null,null,"",null,null,null,"",""]
[null,null,null,null,null,null,null,null,null,null,"",null,null,null,"",""]
[null,null,null,null,null,null,null,null,null,null,"",null,null,null,"",""]
[null,null,null,null,null,null,null,null,null,null,"",null,null,null,"",""]
[null,null,null,null,null,null,null,null,null,null,"",null,null,null,"",""]
[null,null,null,null,null,null,null,null,null,null,"",null,null,null,"",""]
[null,null,null,null,null,null,null,null,null,null,"",null,null,null,"",""]
[null,null,null,null,null,null,null,null,null,null,"",null,null,null,"",""]
[null,null,null,null,null,null,null,null,null,null,"",null,null,null,"",""]
[null,null,null,null,null,null,null,null,null,null,"",null,null,null,"",""]
[null,null,null,null,null,null,null,null,null,null,"",null,null,null,"",""]
[null,null,null,null,null,null,null,null,null,null,"",null,null,null,"",""]
[null,null,null,null,null,null,null,null,null,null,"",null,null,null,"",""]
[null,null,null,null,null,null,null,null,null,null,"",null,null,null,"",""]
[null,null,null,null,null,null,null,null,null,null,"",null,null,null,"",""]
[null,null,null,null,null,null,null,null,null,null,"",null,null,null,"",""]
[null,null,null,null,null,null,null,null,null,null,"",null,null,null,"",""]
[null,null,null,null,null,null,null,null,null,null,"",null,null,null,"",""]
[null,null,null,null,null,null,null,null,null,null,"",null,null,null,"",""]
[null,null,null,null,null,null,null,null,null,null,"",null,null,null,"",""]
[null,null,null,null,null,null,null,null,null,null,"",null,null,null,"",""]
[null,null,null,null,null,null,null,null,null,null,"",null,null,null,"",""]
[null,null,null,null,null,null,null,null,null,null,"",null,null,null,"",""]
[null,null,null,null,null,null,null,null,null,null,"",null,null,null,"",""]
[null,null,null,null,null,null,null,null,null,null,"",null,null,null,"",""]
[null,null,null,null,null,null,null,null,null,null,"",null,null,null,"",""]
[null,null,null,null,null,null,null,null,null,null,"",null,null,null,"",""]
[null,null,null,null,null,null,null,null,null,null,"",null,null,null,"",""]
[null,null,null,null,null,null,null,null,null,null,"",null,null,null,"",""]
[null,null,null,null,null,null,null,null,null,null,"",null,null,null,"",""]
[null,null,null,null,null,null,null,null,null,null,"",null,null,null,"",""]
[null,null,null,null,null,null,null,null,null,null,"",null,null,null,"",""]
[null,null,null,null,null,null,null,null,null,null,"",null,null,null,"",""]
[null,null,null,null,null,null,null,null,null,null,"",null,null,null,"",""]
[null,null,null,null,null,null,null,null,null,null,"",null,null,null,"",""]
[null,null,null,null,null,null,null,null,null,null,"",null,null,null,"",""]
[null,null,null,null,null,null,null,null,null,null,"",null,null,null,"",""]
[null,null,null,null,null,null,null,null,null,null,"",null,null,null,"",""]
[null,null,null,null,null,null,null,null,null,null,"",null,null,null,"",""]
[null,null,null,null,null,null,null,null,null,null,"",null,null,null,"",""]
[null,null,null,null,null,null,null,null,null,null,"",null,null,null,"",""]
[null,null,null,null,null,null,null,null,null,null,"",null,null,null,"",""]
[null,null,null,null,null,null,null,null,null,null,"",null,null,null,"",""]
[null,null,null,null,null,null,null,null,null,null,"",null,null,null,"",""]
[null,null,null,null,null,null,null,null,null,null,"",null,null,null,"",""]
[null,null,null,null,null,null,null,null,null,null,"",null,null,null,"",""]
[null,null,null,null,null,null,null,null,null,null,"",null,null,null,"",""]
[null,null,null,null,null,null,null,null,null,null,"",null,null,null,"",""]
[null,null,null,null,null,null,null,null,null,null,"",null,null,null,"",""]
[null,null,null,null,null,null,null,null,null,null,"",null,null,null,"",""]
[null,null,null,null,null,null,null,null,null,null,"",null,null,null,"",""]
[null,null,null,null,null,null,null,null,null,null,{"$f":"IF(OR(B966=\"\",G966=\"\",B966=\"-\",G966=\"-\"),\"\",G966*C966/I966)","v":""},null,null,null,"",""]
[null,null,null,null,null,null,null,null,null,null,"",null,null,null,"",""]
[null,null,null,null,null,null,null,null,null,null,"",null,null,null,"",""]
[null,null,null,null,null,null,null,null,null,null,"",null,null,null,"",""]
[null,null,null,null,null,null,null,null,null,null,"",null,null,null,{"$f":"IF(OR(M970=\"\",M970=\"-\"),\"\",0.35*10^M970)","v":""},{"$f":"IF(O970=0.35*10^M970,\"Seth method\",\"\")","v":""}]
[null,null,null,null,null,null,null,null,null,null,"",null,null,null,"",""]
[null,null,null,null,null,null,null,null,null,null,"",null,null,null,"",""]
[null,null,null,null,null,null,null,null,null,null,"",null,null,null,"",""]
[null,null,null,null,null,null,null,null,null,null,"",null,null,null,"",""]
[null,null,null,null,null,null,null,null,null,null,"",null,null,null,"",""]
[null,null,null,null,null,null,null,null,null,null,"",null,null,null,"",""]
[null,null,null,null,null,null,null,null,null,null,"",null,null,null,"",""]
[null,null,null,null,null,null,null,null,null,null,"",null,null,null,"",""]
[null,null,null,null,null,null,null,null,null,null,"",null,null,null,"",""]
[null,null,null,null,null,null,null,null,null,null,"",null,null,null,"",""]
[null,null,null,null,null,null,null,null,null,null,"",null,null,null,"",""]
[null,null,null,null,null,null,null,null,null,null,"",null,null,null,"",""]
[null,null,null,null,null,null,null,null,null,null,"",null,null,null,"",""]
[null,null,null,null,null,null,null,null,null,null,"",null,null,null,"",""]
[null,null,null,null,null,null,null,null,null,null,"",null,null,null,"",""]
[null,null,null,null,null,null,null,null,null,null,"",null,null,null,"",""]
[null,null,null,null,null,null,null,null,null,null,"",null,null,null,"",""]
[null,null,null,null,null,null,null,null,null,null,"",null,null,null,"",""]
[null,null,null,null,null,null,null,null,null,null,"",null,null,null,"",""]
[null,null,null,null,null,null,null,null,null,null,"",null,null,null,"",""]
[null,null,null,null,null,null,null,null,null,null,"",null,null,null,"",""]
[null,null,null,null,null,null,null,null,null,null,"",null,null,null,"",""]
[null,null,null,null,null,null,null,null,null,null,"",null,null,null,"",""]
[null,null,null,null,null,null,null,null,null,null,"",null,null,null,"",""]
[null,null,null,null,null,null,null,null,null,null,"",null,null,null,"",""]
[null,null,null,null,null,null,null,null,null,null,"",null,null,null,"",""]
[null,null,null,null,null,null,null,null,null,null,"",null,null,null,"",""]
[null,null,null,null,null,null,null,null,null,null,"",null,null,null,"",""]
[null,null,null,null,null,null,null,null,null,null,"",null,null,null,"",""]
[null,null,null,null,null,null,null,null,null,null,"",null,null,null,"",""]
[null,null,null,null,null,null,null,null,null,null,"",null,null,null,"",""]
[null,null,null,null,null,null,null,null,null,null,"",null,null,null,"",""]
[null,null,null,null,null,null,null,null,null,null,"",null,null,null,"",""]
[null,null,null,null,null,null,null,null,null,null,"",null,null,null,"",""]
[null,null,null,null,null,null,null,null,null,null,"",null,null,null,"",""]
[null,null,null,null,null,null,null,null,null,null,"",null,null,null,"",""]
[null,null,null,null,null,null,null,null,null,null,"",null,null,null,"",""]
[null,null,null,null,null,null,null,null,null,null,"",null,null,null,"",""]
[null,null,null,null,null,null,null,null,null,null,"",null,null,null,"",""]
[null,null,null,null,null,null,null,null,null,null,"",null,null,null,"",""]
[null,null,null,null,null,null,null,null,null,null,"",null,null,null,"",""]
[null,null,null,null,null,null,null,null,null,null,"",null,null,null,"",""]
[null,null,null,null,null,null,null,null,null,null,"",null,null,null,"",""]
[null,null,null,null,null,null,null,null,null,null,"",null,null,null,"",""]
[null,null,null,null,null,null,null,null,null,null,"",null,null,null,"",""]
[null,null,null,null,null,null,null,null,null,null,"",null,null,null,"",""]
[null,null,null,null,null,null,null,null,null,null,"",null,null,null,"",""]
[null,null,null,null,null,null,null,null,null,null,"",null,null,null,"",""]
[null,null,null,null,null,null,null,null,null,null,"",null,null,null,"",""]
[null,null,null,null,null,null,null,null,null,null,"",null,null,null,"",""]
[null,null,null,null,null,null,null,null,null,null,"",null,null,null,"",""]
[null,null,null,null,null,null,null,null,null,null,"",null,null,null,"",""]
[null,null,null,null,null,null,null,null,null,null,"",null,null,null,"",""]
[null,null,null,null,null,null,null,null,null,null,"",null,null,null,"",""]
[null,null,null,null,null,null,null,null,null,null,"",null,null,null,"",""]
[null,null,null,null,null,null,null,null,null,null,"",null,null,null,"",""]
[null,null,null,null,null,null,null,null,null,null,"",null,null,null,"",""]
[null,null,null,null,null,null,null,null,null,null,"",null,null,null,"",""]
[null,null,null,null,null,null,null,null,null,null,"",null,null,null,"",""]
[null,null,null,null,null,null,null,null,null,null,{"$f":"IF(OR(B1030=\"\",G1030=\"\",B1030=\"-\",G1030=\"-\"),\"\",G1030*C1030/I1030)","v":""},null,null,null,"",""]
[null,null,null,null,null,null,null,null,null,null,"",null,null,null,"",""]
[null,null,null,null,null,null,null,null,null,null,"",null,null,null,"",""]
[null,null,null,null,null,null,null,null,null,null,"",null,null,null,"",""]
[null,null,null,null,null,null,null,null,null,null,"",null,null,null,{"$f":"IF(OR(M1034=\"\",M1034=\"-\"),\"\",0.35*10^M1034)","v":""},{"$f":"IF(O1034=0.35*10^M1034,\"Seth method\",\"\")","v":""}]
[null,null,null,null,null,null,null,null,null,null,"",null,null,null,"",""]
[null,null,null,null,null,null,null,null,null,null,"",null,null,null,"",""]
[null,null,null,null,null,null,null,null,null,null,"",null,null,null,"",""]
[null,null,null,null,null,null,null,null,null,null,"",null,null,null,"",""]
[null,null,null,null,null,null,null,null,null,null,"",null,null,null,"",""]
[null,null,null,null,null,null,null,null,null,null,"",null,null,null,"",""]
[null,null,null,null,null,null,null,null,null,null,"",null,null,null,"",""]
[null,null,null,null,null,null,null,null,null,null,"",null,null,null,"",""]
[null,null,null,null,null,null,null,null,null,null,"",null,null,null,"",""]
[null,null,null,null,null,null,null,null,null,null,"",null,null,null,"",""]
[null,null,null,null,null,null,null,null,null,null,"",null,null,null,"",""]
[null,null,null,null,null,null,null,null,null,null,"",null,null,null,"",""]
[null,null,null,null,null,null,null,null,null,null,"",null,null,null,"",""]
[null,null,null,null,null,null,null,null,null,null,"",null,null,null,"",""]
[null,null,null,null,null,null,null,null,null,null,"",null,null,null,"",""]
[null,null,null,null,null,null,null,null,null,null,"",null,null,null,"",""]
[null,null,null,null,null,null,null,null,null,null,"",null,null,null,"",""]
[null,null,null,null,null,null,null,null,null,null,"",null,null,null,"",""]
[null,null,null,null,null,null,null,null,null,null,"",null,null,null,"",""]
[null,null,null,null,null,null,null,null,null,null,"",null,null,null,"",""]
[null,null,null,null,null,null,null,null,null,null,"",null,null,null,"",""]
[null,null,null,null,null,null,null,null,null,null,"",null,null,null,"",""]
[null,null,null,null,null,null,null,null,null,null,"",null,null,null,"",""]
[null,null,null,null,null,null,null,null,null,null,"",null,null,null,"",""]
[null,null,null,null,null,null,null,null,null,null,"",null,null,null,"",""]
[null,null,null,null,null,null,null,null,null,null,"",null,null,null,"",""]
[null,null,null,null,null,null,null,null,null,null,"",null,null,null,"",""]
[null,null,null,null,null,null,null,null,null,null,"",null,null,null,"",""]
[null,null,null,null,null,null,null,null,null,null,"",null,null,null,"",""]
[null,null,null,null,null,null,null,null,null,null,"",null,null,null,"",""]
[null,null,null,null,null,null,null,null,null,null,"",null,null,null,"",""]
[null,null,null,null,null,null,null,null,null,null,"",null,null,null,"",""]
[null,null,null,null,null,null,null,null,null,null,"",null,null,null,"",""]
[null,null,null,null,null,null,null,null,null,null,"",null,null,null,"",""]
[null,null,null,null,null,null,null,null,null,null,"",null,null,null,"",""]
[null,null,null,null,null,null,null,null,null,null,"",null,null,null,"",""]
[null,null,null,null,null,null,null,null,null,null,"",null,null,null,"",""]
[null,null,null,null,null,null,null,null,null,null,"",null,null,null,"",""]
[null,null,null,null,null,null,null,null,null,null,"",null,null,null,"",""]
[null,null,null,null,null,null,null,null,null,null,"",null,null,null,"",""]
[null,null,null,null,null,null,null,null,null,null,"",null,null,null,"",""]
[null,null,null,null,null,null,null,null,null,null,"",null,null,null,"",""]
[null,null,null,null,null,null,null,null,null,null,"",null,null,null,"",""]
[null,null,null,null,null,null,null,null,null,null,"",null,null,null,"",""]
[null,null,null,null,null,null,null,null,null,null,"",null,null,null,"",""]
[null,null,null,null,null,null,null,null,null,null,"",null,null,null,"",""]
[null,null,null,null,null,null,null,null,null,null,"",null,null,null,"",""]
[null,null,null,null,null,null,null,null,null,null,"",null,null,null,"",""]
[null,null,null,null,null,null,null,null,null,null,"",null,null,null,"",""]
[null,null,null,null,null,null,null,null,null,null,"",null,null,null,"",""]
[null,null,null,null,null,null,null,null,null,null,"",null,null,null,"",""]
[null,null,null,null,null,null,null,null,null,null,"",null,null,null,"",""]
[null,null,null,null,null,null,null,null,null,null,"",null,null,null,"",""]
[null,null,null,null,null,null,null,null,null,null,"",null,null,null,"",""]
[null,null,null,null,null,null,null,null,null,null,"",null,null,null,"",""]
[null,null,null,null,null,null,null,null,null,null,"",null,null,null,"",""]
[null,null,null,null,null,null,null,null,null,null,"",null,null,null,"",""]
[null,null,null,null,null,null,null,null,null,null,"",null,null,null,"",""]
[null,null,null,null,null,null,null,null,null,null,"",null,null,null,"",""]
[null,null,null,null,null,null,null,null,null,null,{"$f":"IF(OR(B1094=\"\",G1094=\"\",B1094=\"-\",G1094=\"-\"),\"\",G1094*C1094/I1094)","v":""},null,null,null,"",""]
[null,null,null,null,null,null,null,null,null,null,"",null,null,null,"",""]
[null,null,null,null,null,null,null,null,null,null,"",null,null,null,"",""]
[null,null,null,null,null,null,null,null,null,null,"",null,null,null,"",""]
[null,null,null,null,null,null,null,null,null,null,"",null,null,null,{"$f":"IF(OR(M1098=\"\",M1098=\"-\"),\"\",0.35*10^M1098)","v":""},{"$f":"IF(O1098=0.35*10^M1098,\"Seth method\",\"\")","v":""}]
[null,null,null,null,null,null,null,null,null,null,"",null,null,null,"",""]
[null,null,null,null,null,null,null,null,null,null,"",null,null,null,"",""]
[null,null,null,null,null,null,null,null,null,null,"",null,null,null,"",""]
[null,null,null,null,null,null,null,null,null,null,"",null,null,null,"",""]
[null,null,null,null,null,null,null,null,null,null,"",null,null,null,"",""]
[null,null,null,null,null,null,null,null,null,null,"",null,null,null,"",""]
[null,null,null,null,null,null,null,null,null,null,"",null,null,null,"",""]
[null,null,null,null,null,null,null,null,null,null,"",null,null,null,"",""]
[null,null,null,null,null,null,null,null,null,null,"",null,null,null,"",""]
[null,null,null,null,null,null,null,null,null,null,"",null,null,null,"",""]
[null,null,null,null,null,null,null,null,null,null,"",null,null,null,"",""]
[null,null,null,null,null,null,null,null,null,null,"",null,null,null,"",""]
[null,null,null,null,null,null,null,null,null,null,"",null,null,null,"",""]
[null,null,null,null,null,null,null,null,null,null,"",null,null,null,"",""]
[null,null,null,null,null,null,null,null,null,null,"",null,null,null,"",""]
[null,null,null,null,null,null,null,null,null,null,"",null,null,null,"",""]
[null,null,null,null,null,null,null,null,null,null,"",null,null,null,"",""]
[null,null,null,null,null,null,null,null,null,null,"",null,null,null,"",""]
[null,null,null,null,null,null,null,null,null,null,"",null,null,null,"",""]
[null,null,null,null,null,null,null,null,null,null,"",null,null,null,"",""]
[null,null,null,null,null,null,null,null,null,null,"",null,null,null,"",""]
[null,null,null,null,null,null,null,null,null,null,"",null,null,null,"",""]
[null,null,null,null,null,null,null,null,null,null,"",null,null,null,"",""]
[null,null,null,null,null,null,null,null,null,null,"",null,null,null,"",""]
[null,null,null,null,null,null,null,null,null,null,"",null,null,null,"",""]
[null,null,null,null,null,null,null,null,null,null,"",null,null,null,"",""]
[null,null,null,null,null,null,null,null,null,null,"",null,null,null,"",""]
[null,null,null,null,null,null,null,null,null,null,"",null,null,null,"",""]
[null,null,null,null,null,null,null,null,null,null,"",null,null,null,"",""]
[null,null,null,null,null,null,null,null,null,null,"",null,null,null,"",""]
[null,null,null,null,null,null,null,null,null,null,"",null,null,null,"",""]
[null,null,null,null,null,null,null,null,null,null,"",null,null,null,"",""]
[null,null,null,null,null,null,null,null,null,null,"",null,null,null,"",""]
[null,null,null,null,null,null,null,null,null,null,"",null,null,null,"",""]
[null,null,null,null,null,null,null,null,null,null,"",null,null,null,"",""]
[null,null,null,null,null,null,null,null,null,null,"",null,null,null,"",""]
[null,null,null,null,null,null,null,null,null,null,"",null,null,null,"",""]
[null,null,null,null,null,null,null,null,null,null,"",null,null,null,"",""]
[null,null,null,null,null,null,null,null,null,null,"",null,null,null,"",""]
[null,null,null,null,null,null,null,null,null,null,"",null,null,null,"",""]
[null,null,null,null,null,null,null,null,null,null,"",null,null,null,"",""]
[null,null,null,null,null,null,null,null,null,null,"",null,null,null,"",""]
[null,null,null,null,null,null,null,null,null,null,"",null,null,null,"",""]
[null,null,null,null,null,null,null,null,null,null,"",null,null,null,"",""]
[null,null,null,null,null,null,null,null,null,null,"",null,null,null,"",""]
[null,null,null,null,null,null,null,null,null,null,"",null,null,null,"",""]
[null,null,null,null,null,null,null,null,null,null,"",null,null,null,"",""]
[null,null,null,null,null,null,null,null,null,null,"",null,null,null,"",""]
[null,null,null,null,null,null,null,null,null,null,"",null,null,null,"",""]
[null,null,null,null,null,null,null,null,null,null,"",null,null,null,"",""]
[null,null,null,null,null,null,null,null,null,null,"",null,null,null,"",""]
[null,null,null,null,null,null,null,null,null,null,"",null,null,null,"",""]
[null,null,null,null,null,null,null,null,null,null,"",null,null,null,"",""]
[null,null,null,null,null,null,null,null,null,null,"",null,null,null,"",""]
[null,null,null,null,null,null,null,null,null,null,"",null,null,null,"",""]
[null,null,null,null,null,null,null,null,null,null,"",null,null,null,"",""]
[null,null,null,null,null,null,null,null,null,null,"",null,null,null,"",""]
[null,null,null,null,null,null,null,null,null,null,"",null,null,null,"",""]
[null,null,null,null,null,null,null,null,null,null,"",null,null,null,"",""]
[null,null,null,null,null,null,null,null,null,null,{"$f":"IF(OR(B1158=\"\",G1158=\"\",B1158=\"-\",G1158=\"-\"),\"\",G1158*C1158/I1158)","v":""},null,null,null,"",""]
[null,null,null,null,null,null,null,null,null,null,"",null,null,null,"",""]
[null,null,null,null,null,null,null,null,null,null,"",null,null,null,"",""]
[null,null,null,null,null,null,null,null,null,null,"",null,null,null,"",""]
[null,null,null,null,null,null,null,null,null,null,"",null,null,null,{"$f":"IF(OR(M1162=\"\",M1162=\"-\"),\"\",0.35*10^M1162)","v":""},{"$f":"IF(O1162=0.35*10^M1162,\"Seth method\",\"\")","v":""}]
[null,null,null,null,null,null,null,null,null,null,"",null,null,null,"",""]
[null,null,null,null,null,null,null,null,null,null,"",null,null,null,"",""]
[null,null,null,null,null,null,null,null,null,null,"",null,null,null,"",""]
[null,null,null,null,null,null,null,null,null,null,"",null,null,null,"",""]
[null,null,null,null,null,null,null,null,null,null,"",null,null,null,"",""]
[null,null,null,null,null,null,null,null,null,null,"",null,null,null,"",""]
[null,null,null,null,null,null,null,null,null,null,"",null,null,null,"",""]
[null,null,null,null,null,null,null,null,null,null,"",null,null,null,"",""]
[null,null,null,null,null,null,null,null,null,null,"",null,null,null,"",""]
[null,null,null,null,null,null,null,null,null,null,"",null,null,null,"",""]
[null,null,null,null,null,null,null,null,null,null,"",null,null,null,"",""]
[null,null,null,null,null,null,null,null,null,null,"",null,null,null,"",""]
[null,null,null,null,null,null,null,null,null,null,"",null,null,null,"",""]
[null,null,null,null,null,null,null,null,null,null,"",null,null,null,"",""]
[null,null,null,null,null,null,null,null,null,null,"",null,null,null,"",""]
[null,null,null,null,null,null,null,null,null,null,"",null,null,null,"",""]
[null,null,null,null,null,null,null,null,null,null,"",null,null,null,"",""]
[null,null,null,null,null,null,null,null,null,null,"",null,null,null,"",""]
[null,null,null,null,null,null,null,null,null,null,"",null,null,null,"",""]
[null,null,null,null,null,null,null,null,null,null,"",null,null,null,"",""]
[null,null,null,null,null,null,null,null,null,null,"",null,null,null,"",""]
[null,null,null,null,null,null,null,null,null,null,"",null,null,null,"",""]
[null,null,null,null,null,null,null,null,null,null,"",null,null,null,"",""]
[null,null,null,null,null,null,null,null,null,null,"",null,null,null,"",""]
[null,null,null,null,null,null,null,null,null,null,"",null,null,null,"",""]
[null,null,null,null,null,null,null,null,null,null,"",null,null,null,"",""]
[null,null,null,null,null,null,null,null,null,null,"",null,null,null,"",""]
[null,null,null,null,null,null,null,null,null,null,"",null,null,null,"",""]
[null,null,null,null,null,null,null,null,null,null,"",null,null,null,"",""]
[null,null,null,null,null,null,null,null,null,null,"",null,null,null,"",""]
[null,null,null,null,null,null,null,null,null,null,"",null,null,null,"",""]
[null,null,null,null,null,null,null,null,null,null,"",null,null,null,"",""]
[null,null,null,null,null,null,null,null,null,null,"",null,null,null,"",""]
[null,null,null,null,null,null,null,null,null,null,"",null,null,null,"",""]
[null,null,null,null,null,null,null,null,null,null,"",null,null,null,"",""]
[null,null,null,null,null,null,null,null,null,null,"",null,null,null,"",""]
[null,null,null,null,null,null,null,null,null,null,"",null,null,null,"",""]
[null,null,null,null,null,null,null,null,null,null,"",null,null,null,"",""]
[null,null,null,null,null,null,null,null,null,null,"",null,null,null,"",""]
[null,null,null,null,null,null,null,null,null,null,"",null,null,null,"",""]
[null,null,null,null,null,null,null,null,null,null,"",null,null,null,"",""]
[null,null,null,null,null,null,null,null,null,null,"",null,null,null,"",""]
[null,null,null,null,null,null,null,null,null,null,"",null,null,null,"",""]
[null,null,null,null,null,null,null,null,null,null,"",null,null,null,"",""]
[null,null,null,null,null,null,null,null,null,null,"",null,null,null,"",""]
[null,null,null,null,null,null,null,null,null,null,"",null,null,null,"",""]
[null,null,null,null,null,null,null,null,null,null,"",null,null,null,"",""]
[null,null,null,null,null,null,null,null,null,null,"",null,null,null,"",""]
[null,null,null,null,null,null,null,null,null,null,"",null,null,null,"",""]
[null,null,null,null,null,null,null,null,null,null,"",null,null,null,"",""]
[null,null,null,null,null,null,null,null,null,null,"",null,null,null,"",""]
[null,null,null,null,null,null,null,null,null,null,"",null,null,null,"",""]
[null,null,null,null,null,null,null,null,null,null,"",null,null,null,"",""]
[null,null,null,null,null,null,null,null,null,null,"",null,null,null,"",""]
[null,null,null,null,null,null,null,null,null,null,"",null,null,null,"",""]
[null,null,null,null,null,null,null,null,null,null,"",null,null,null,"",""]
[null,null,null,null,null,null,null,null,null,null,"",null,null,null,"",""]
[null,null,null,null,null,null,null,null,null,null,"",null,null,null,"",""]
[null,null,null,null,null,null,null,null,null,null,"",null,null,null,"",""]
[null,null,null,null,null,null,null,null,null,null,{"$f":"IF(OR(B1222=\"\",G1222=\"\",B1222=\"-\",G1222=\"-\"),\"\",G1222*C1222/I1222)","v":""},null,null,null,"",""]
[null,null,null,null,null,null,null,null,null,null,"",null,null,null,"",""]
[null,null,null,null,null,null,null,null,null,null,"",null,null,null,"",""]
[null,null,null,null,null,null,null,null,null,null,"",null,null,null,"",""]
[null,null,null,null,null,null,null,null,null,null,"",null,null,null,{"$f":"IF(OR(M1226=\"\",M1226=\"-\"),\"\",0.35*10^M1226)","v":""},{"$f":"IF(O1226=0.35*10^M1226,\"Seth method\",\"\")","v":""}]
[null,null,null,null,null,null,null,null,null,null,"",null,null,null,"",""]
[null,null,null,null,null,null,null,null,null,null,"",null,null,null,"",""]
[null,null,null,null,null,null,null,null,null,null,"",null,null,null,"",""]
[null,null,null,null,null,null,null,null,null,null,"",null,null,null,"",""]
[null,null,null,null,null,null,null,null,null,null,"",null,null,null,"",""]
[null,null,null,null,null,null,null,null,null,null,"",null,null,null,"",""]
[null,null,null,null,null,null,null,null,null,null,"",null,null,null,"",""]
[null,null,null,null,null,null,null,null,null,null,"",null,null,null,"",""]
[null,null,null,null,null,null,null,null,null,null,"",null,null,null,"",""]
[null,null,null,null,null,null,null,null,null,null,"",null,null,null,"",""]
[null,null,null,null,null,null,null,null,null,null,"",null,null,null,"",""]
[null,null,null,null,null,null,null,null,null,null,"",null,null,null,"",""]
[null,null,null,null,null,null,null,null,null,null,"",null,null,null,"",""]
[null,null,null,null,null,null,null,null,null,null,"",null,null,null,"",""]
[null,null,null,null,null,null,null,null,null,null,"",null,null,null,"",""]
[null,null,null,null,null,null,null,null,null,null,"",null,null,null,"",""]
[null,null,null,null,null,null,null,null,null,null,"",null,null,null,"",""]
[null,null,null,null,null,null,null,null,null,null,"",null,null,null,"",""]
[null,null,null,null,null,null,null,null,null,null,"",null,null,null,"",""]
[null,null,null,null,null,null,null,null,null,null,"",null,null,null,"",""]
[null,null,null,null,null,null,null,null,null,null,"",null,null,null,"",""]
[null,null,null,null,null,null,null,null,null,null,"",null,null,null,"",""]
[null,null,null,null,null,null,null,null,null,null,"",null,null,null,"",""]
[null,null,null,null,null,null,null,null,null,null,"",null,null,null,"",""]
[null,null,null,null,null,null,null,null,null,null,"",null,null,null,"",""]
[null,null,null,null,null,null,null,null,null,null,"",null,null,null,"",""]
[null,null,null,null,null,null,null,null,null,null,"",null,null,null,"",""]
[null,null,null,null,null,null,null,null,null,null,"",null,null,null,"",""]
[null,null,null,null,null,null,null,null,null,null,"",null,null,null,"",""]
[null,null,null,null,null,null,null,null,null,null,"",null,null,null,"",""]
[null,null,null,null,null,null,null,null,null,null,"",null,null,null,"",""]
[null,null,null,null,null,null,null,null,null,null,"",null,null,null,"",""]
[null,null,null,null,null,null,null,null,null,null,"",null,null,null,"",""]
[null,null,null,null,null,null,null,null,null,null,"",null,null,null,"",""]
[null,null,null,null,null,null,null,null,null,null,"",null,null,null,"",""]
[null,null,null,null,null,null,null,null,null,null,"",null,null,null,"",""]
[null,null,null,null,null,null,null,null,null,null,"",null,null,null,"",""]
[null,null,null,null,null,null,null,null,null,null,"",null,null,null,"",""]
[null,null,null,null,null,null,null,null,null,null,"",null,null,null,"",""]
[null,null,null,null,null,null,null,null,null,null,"",null,null,null,"",""]
[null,null,null,null,null,null,null,null,null,null,"",null,null,null,"",""]
[null,null,null,null,null,null,null,null,null,null,"",null,null,null,"",""]
[null,null,null,null,null,null,null,null,null,null,"",null,null,null,"",""]
[null,null,null,null,null,null,null,null,null,null,"",null,null,null,"",""]
[null,null,null,null,null,null,null,null,null,null,"",null,null,null,"",""]
[null,null,null,null,null,null,null,null,null,null,"",null,null,null,"",""]
[null,null,null,null,null,null,null,null,null,null,"",null,null,null,"",""]
[null,null,null,null,null,null,null,null,null,null,"",null,null,null,"",""]
[null,null,null,null,null,null,null,null,null,null,"",null,null,null,"",""]
[null,null,null,null,null,null,null,null,null,null,"",null,null,null,"",""]
[null,null,null,null,null,null,null,null,null,null,"",null,null,null,"",""]
[null,null,null,null,null,null,null,null,null,null,"",null,null,null,"",""]
[null,null,null,null,null,null,null,null,null,null,"",null,null,null,"",""]
[null,null,null,null,null,null,null,null,null,null,"",null,null,null,"",""]
[null,null,null,null,null,null,null,null,null,null,"",null,null,null,"",""]
[null,null,null,null,null,null,null,null,null,null,"",null,null,null,"",""]
[null,null,null,null,null,null,null,null,null,null,"",null,null,null,"",""]
[null,null,null,null,null,null,null,null,null,null,"",null,null,null,"",""]
[null,null,null,null,null,null,null,null,null,null,"",null,null,null,"",""]
[null,null,null,null,null,null,null,null,null,null,{"$f":"IF(OR(B1286=\"\",G1286=\"\",B1286=\"-\",G1286=\"-\"),\"\",G1286*C1286/I1286)","v":""},null,null,null,"",""]
[null,null,null,null,null,null,null,null,null,null,"",null,null,null,"",""]
[null,null,null,null,null,null,null,null,null,null,"",null,null,null,"",""]
[null,null,null,null,null,null,null,null,null,null,"",null,null,null,"",""]
[null,null,null,null,null,null,null,null,null,null,"",null,null,null,{"$f":"IF(OR(M1290=\"\",M1290=\"-\"),\"\",0.35*10^M1290)","v":""},{"$f":"IF(O1290=0.35*10^M1290,\"Seth method\",\"\")","v":""}]
[null,null,null,null,null,null,null,null,null,null,"",null,null,null,"",""]
[null,null,null,null,null,null,null,null,null,null,"",null,null,null,"",""]
[null,null,null,null,null,null,null,null,null,null,"",null,null,null,"",""]
[null,null,null,null,null,null,null,null,null,null,"",null,null,null,"",""]
[null,null,null,null,null,null,null,null,null,null,"",null,null,null,"",""]
[null,null,null,null,null,null,null,null,null,null,"",null,null,null,"",""]
[null,null,null,null,null,null,null,null,null,null,"",null,null,null,"",""]
[null,null,null,null,null,null,null,null,null,null,"",null,null,null,"",""]
[null,null,null,null,null,null,null,null,null,null,"",null,null,null,"",""]
[null,null,null,null,null,null,null,null,null,null,"",null,null,null,"",""]
[null,null,null,null,null,null,null,null,null,null,"",null,null,null,"",""]
[null,null,null,null,null,null,null,null,null,null,"",null,null,null,"",""]
[null,null,null,null,null,null,null,null,null,null,"",null,null,null,"",""]
[null,null,null,null,null,null,null,null,null,null,"",null,null,null,"",""]
[null,null,null,null,null,null,null,null,null,null,"",null,null,null,"",""]
[null,null,null,null,null,null,null,null,null,null,"",null,null,null,"",""]
[null,null,null,null,null,null,null,null,null,null,"",null,null,null,"",""]
[null,null,null,null,null,null,null,null,null,null,"",null,null,null,"",""]
[null,null,null,null,null,null,null,null,null,null,"",null,null,null,"",""]
[null,null,null,null,null,null,null,null,null,null,"",null,null,null,"",""]
[null,null,null,null,null,null,null,null,null,null,"",null,null,null,"",""]
[null,null,null,null,null,null,null,null,null,null,"",null,null,null,"",""]
[null,null,null,null,null,null,null,null,null,null,"",null,null,null,"",""]
[null,null,null,null,null,null,null,null,null,null,"",null,null,null,"",""]
[null,null,null,null,null,null,null,null,null,null,"",null,null,null,"",""]
[null,null,null,null,null,null,null,null,null,null,"",null,null,null,"",""]
[null,null,null,null,null,null,null,null,null,null,"",null,null,null,"",""]
[null,null,null,null,null,null,null,null,null,null,"",null,null,null,"",""]
[null,null,null,null,null,null,null,null,null,null,"",null,null,null,"",""]
[null,null,null,null,null,null,null,null,null,null,"",null,null,null,"",""]
[null,null,null,null,null,null,null,null,null,null,"",null,null,null,"",""]
[null,null,null,null,null,null,null,null,null,null,"",null,null,null,"",""]
[null,null,null,null,null,null,null,null,null,null,"",null,null,null,"",""]
[null,null,null,null,null,null,null,null,null,null,"",null,null,null,"",""]
[null,null,null,null,null,null,null,null,null,null,"",null,null,null,"",""]
[null,null,null,null,null,null,null,null,null,null,"",null,null,null,"",""]
[null,null,null,null,null,null,null,null,null,null,"",null,null,null,"",""]
[null,null,null,null,null,null,null,null,null,null,"",null,null,null,"",""]
[null,null,null,null,null,null,null,null,null,null,"",null,null,null,"",""]
[null,null,null,null,null,null,null,null,null,null,"",null,null,null,"",""]
[null,null,null,null,null,null,null,null,null,null,"",null,null,null,"",""]
[null,null,null,null,null,null,null,null,null,null,"",null,null,null,"",""]
[null,null,null,null,null,null,null,null,null,null,"",null,null,null,"",""]
[null,null,null,null,null,null,null,null,null,null,"",null,null,null,"",""]
[null,null,null,null,null,null,null,null,null,null,"",null,null,null,"",""]
[null,null,null,null,null,null,null,null,null,null,"",null,null,null,"",""]
[null,null,null,null,null,null,null,null,null,null,"",null,null,null,"",""]
[null,null,null,null,null,null,null,null,null,null,"",null,null,null,"",""]
[null,null,null,null,null,null,null,null,null,null,"",null,null,null,"",""]
[null,null,null,null,null,null,null,null,null,null,"",null,null,null,"",""]
[null,null,null,null,null,null,null,null,null,null,"",null,null,null,"",""]
[null,null,null,null,null,null,null,null,null,null,"",null,null,null,"",""]
[null,null,null,null,null,null,null,null,null,null,"",null,null,null,"",""]
[null,null,null,null,null,null,null,null,null,null,"",null,null,null,"",""]
[null,null,null,null,null,null,null,null,null,null,"",null,null,null,"",""]
[null,null,null,null,null,null,null,null,null,null,"",null,null,null,"",""]
[null,null,null,null,null,null,null,null,null,null,"",null,null,null,"",""]
[null,null,null,null,null,null,null,null,null,null,"",null,null,null,"",""]
[null,null,null,null,null,null,null,null,null,null,"",null,null,null,"",""]
[null,null,null,null,null,null,null,null,null,null,{"$f":"IF(OR(B1350=\"\",G1350=\"\",B1350=\"-\",G1350=\"-\"),\"\",G1350*C1350/I1350)","v":""},null,null,null,"",""]
[null,null,null,null,null,null,null,null,null,null,"",null,null,null,"",""]
[null,null,null,null,null,null,null,null,null,null,"",null,null,null,"",""]
[null,null,null,null,null,null,null,null,null,null,"",null,null,null,"",""]
[null,null,null,null,null,null,null,null,null,null,"",null,null,null,{"$f":"IF(OR(M1354=\"\",M1354=\"-\"),\"\",0.35*10^M1354)","v":""},{"$f":"IF(O1354=0.35*10^M1354,\"Seth method\",\"\")","v":""}]
[null,null,null,null,null,null,null,null,null,null,"",null,null,null,"",""]
[null,null,null,null,null,null,null,null,null,null,"",null,null,null,"",""]
[null,null,null,null,null,null,null,null,null,null,"",null,null,null,"",""]
[null,null,null,null,null,null,null,null,null,null,"",null,null,null,"",""]
[null,null,null,null,null,null,null,null,null,null,"",null,null,null,"",""]
[null,null,null,null,null,null,null,null,null,null,"",null,null,null,"",""]
[null,null,null,null,null,null,null,null,null,null,"",null,null,null,"",""]
[null,null,null,null,null,null,null,null,null,null,"",null,null,null,"",""]
[null,null,null,null,null,null,null,null,null,null,"",null,null,null,"",""]
[null,null,null,null,null,null,null,null,null,null,"",null,null,null,"",""]
[null,null,null,null,null,null,null,null,null,null,"",null,null,null,"",""]
[null,null,null,null,null,null,null,null,null,null,"",null,null,null,"",""]
[null,null,null,null,null,null,null,null,null,null,"",null,null,null,"",""]
[null,null,null,null,null,null,null,null,null,null,"",null,null,null,"",""]
[null,null,null,null,null,null,null,null,null,null,"",null,null,null,"",""]
[null,null,null,null,null,null,null,null,null,null,"",null,null,null,"",""]
[null,null,null,null,null,null,null,null,null,null,"",null,null,null,"",""]
[null,null,null,null,null,null,null,null,null,null,"",null,null,null,"",""]
[null,null,null,null,null,null,null,null,null,null,"",null,null,null,"",""]
[null,null,null,null,null,null,null,null,null,null,"",null,null,null,"",""]
[null,null,null,null,null,null,null,null,null,null,"",null,null,null,"",""]
[null,null,null,null,null,null,null,null,null,null,"",null,null,null,"",""]
[null,null,null,null,null,null,null,null,null,null,"",null,null,null,"",""]
[null,null,null,null,null,null,null,null,null,null,"",null,null,null,"",""]
[null,null,null,null,null,null,null,null,null,null,"",null,null,null,"",""]
[null,null,null,null,null,null,null,null,null,null,"",null,null,null,"",""]
[null,null,null,null,null,null,null,null,null,null,"",null,null,null,"",""]
[null,null,null,null,null,null,null,null,null,null,"",null,null,null,"",""]
[null,null,null,null,null,null,null,null,null,null,"",null,null,null,"",""]
[null,null,null,null,null,null,null,null,null,null,"",null,null,null,"",""]
[null,null,null,null,null,null,null,null,null,null,"",null,null,null,"",""]
[null,null,null,null,null,null,null,null,null,null,"",null,null,null,"",""]
[null,null,null,null,null,null,null,null,null,null,"",null,null,null,"",""]
[null,null,null,null,null,null,null,null,null,null,"",null,null,null,"",""]
[null,null,null,null,null,null,null,null,null,null,"",null,null,null,"",""]
[null,null,null,null,null,null,null,null,null,null,"",null,null,null,"",""]
[null,null,null,null,null,null,null,null,null,null,"",null,null,null,"",""]
[null,null,null,null,null,null,null,null,null,null,"",null,null,null,"",""]
[null,null,null,null,null,null,null,null,null,null,"",null,null,null,"",""]
[null,null,null,null,null,null,null,null,null,null,"",null,null,null,"",""]
[null,null,null,null,null,null,null,null,null,null,"",null,null,null,"",""]
[null,null,null,null,null,null,null,null,null,null,"",null,null,null,"",""]
[null,null,null,null,null,null,null,null,null,null,"",null,null,null,"",""]
[null,null,null,null,null,null,null,null,null,null,"",null,null,null,"",""]
[null,null,null,null,null,null,null,null,null,null,"",null,null,null,"",""]
[null,null,null,null,null,null,null,null,null,null,"",null,null,null,"",""]
[null,null,null,null,null,null,null,null,null,null,"",null,null,null,"",""]
[null,null,null,null,null,null,null,null,null,null,"",null,null,null,"",""]
[null,null,null,null,null,null,null,null,null,null,"",null,null,null,"",""]
[null,null,null,null,null,null,null,null,null,null,"",null,null,null,"",""]
[null,null,null,null,null,null,null,null,null,null,"",null,null,null,"",""]
[null,null,null,null,null,null,null,null,null,null,"",null,null,null,"",""]
[null,null,null,null,null,null,null,null,null,null,"",null,null,null,"",""]
[null,null,null,null,null,null,null,null,null,null,"",null,null,null,"",""]
[null,null,null,null,null,null,null,null,null,null,"",null,null,null,"",""]
[null,null,null,null,null,null,null,null,null,null,"",null,null,null,"",""]
[null,null,null,null,null,null,null,null,null,null,"",null,null,null,"",""]
[null,null,null,null,null,null,null,null,null,null,"",null,null,null,"",""]
[null,null,null,null,null,null,null,null,null,null,"",null,null,null,"",""]
[null,null,null,null,null,null,null,null,null,null,{"$f":"IF(OR(B1414=\"\",G1414=\"\",B1414=\"-\",G1414=\"-\"),\"\",G1414*C1414/I1414)","v":""},null,null,null,"",""]
[null,null,null,null,null,null,null,null,null,null,"",null,null,null,"",""]
[null,null,null,null,null,null,null,null,null,null,"",null,null,null,"",""]
[null,null,null,null,null,null,null,null,null,null,"",null,null,null,"",""]
[null,null,null,null,null,null,null,null,null,null,"",null,null,null,{"$f":"IF(OR(M1418=\"\",M1418=\"-\"),\"\",0.35*10^M1418)","v":""},{"$f":"IF(O1418=0.35*10^M1418,\"Seth method\",\"\")","v":""}]
[null,null,null,null,null,null,null,null,null,null,"",null,null,null,"",""]
[null,null,null,null,null,null,null,null,null,null,"",null,null,null,"",""]
[null,null,null,null,null,null,null,null,null,null,"",null,null,null,"",""]
[null,null,null,null,null,null,null,null,null,null,"",null,null,null,"",""]
[null,null,null,null,null,null,null,null,null,null,"",null,null,null,"",""]
[null,null,null,null,null,null,null,null,null,null,"",null,null,null,"",""]
[null,null,null,null,null,null,null,null,null,null,"",null,null,null,"",""]
[null,null,null,null,null,null,null,null,null,null,"",null,null,null,"",""]
[null,null,null,null,null,null,null,null,null,null,"",null,null,null,"",""]
[null,null,null,null,null,null,null,null,null,null,"",null,null,null,"",""]
[null,null,null,null,null,null,null,null,null,null,"",null,null,null,"",""]
[null,null,null,null,null,null,null,null,null,null,"",null,null,null,"",""]
[null,null,null,null,null,null,null,null,null,null,"",null,null,null,"",""]
[null,null,null,null,null,null,null,null,null,null,"",null,null,null,"",""]
[null,null,null,null,null,null,null,null,null,null,"",null,null,null,"",""]
[null,null,null,null,null,null,null,null,null,null,"",null,null,null,"",""]
[null,null,null,null,null,null,null,null,null,null,"",null,null,null,"",""]
[null,null,null,null,null,null,null,null,null,null,"",null,null,null,"",""]
[null,null,null,null,null,null,null,null,null,null,"",null,null,null,"",""]
[null,null,null,null,null,null,null,null,null,null,"",null,null,null,"",""]
[null,null,null,null,null,null,null,null,null,null,"",null,null,null,"",""]
[null,null,null,null,null,null,null,null,null,null,"",null,null,null,"",""]
[null,null,null,null,null,null,null,null,null,null,"",null,null,null,"",""]
[null,null,null,null,null,null,null,null,null,null,"",null,null,null,"",""]
[null,null,null,null,null,null,null,null,null,null,"",null,null,null,"",""]
[null,null,null,null,null,null,null,null,null,null,"",null,null,null,"",""]
[null,null,null,null,null,null,null,null,null,null,"",null,null,null,"",""]
[null,null,null,null,null,null,null,null,null,null,"",null,null,null,"",""]
[null,null,null,null,null,null,null,null,null,null,"",null,null,null,"",""]
[null,null,null,null,null,null,null,null,null,null,"",null,null,null,"",""]
[null,null,null,null,null,null,null,null,null,null,"",null,null,null,"",""]
[null,null,null,null,null,null,null,null,null,null,"",null,null,null,"",""]
[null,null,null,null,null,null,null,null,null,null,"",null,null,null,"",""]
[null,null,null,null,null,null,null,null,null,null,"",null,null,null,"",""]
[null,null,null,null,null,null,null,null,null,null,"",null,null,null,"",""]
[null,null,null,null,null,null,null,null,null,null,"",null,null,null,"",""]
[null,null,null,null,null,null,null,null,null,null,"",null,null,null,"",""]
[null,null,null,null,null,null,null,null,null,null,"",null,null,null,"",""]
[null,null,null,null,null,null,null,null,null,null,"",null,null,null,"",""]
[null,null,null,null,null,null,null,null,null,null,"",null,null,null,"",""]
[null,null,null,null,null,null,null,null,null,null,"",null,null,null,"",""]
[null,null,null,null,null,null,null,null,null,null,"",null,null,null,"",""]
[null,null,null,null,null,null,null,null,null,null,"",null,null,null,"",""]
[null,null,null,null,null,null,null,null,null,null,"",null,null,null,"",""]
[null,null,null,null,null,null,null,null,null,null,"",null,null,null,"",""]
[null,null,null,null,null,null,null,null,null,null,"",null,null,null,"",""]
[null,null,null,null,null,null,null,null,null,null,"",null,null,null,"",""]
[null,null,null,null,null,null,null,null,null,null,"",null,null,null,"",""]
[null,null,null,null,null,null,null,null,null,null,"",null,null,null,"",""]
[null,null,null,null,null,null,null,null,null,null,"",null,null,null,"",""]
[null,null,null,null,null,null,null,null,null,null,"",null,null,null,"",""]
[null,null,null,null,null,null,null,null,null,null,"",null,null,null,"",""]
[null,null,null,null,null,null,null,null,null,null,"",null,null,null,"",""]
[null,null,null,null,null,null,null,null,null,null,"",null,null,null,"",""]
[null,null,null,null,null,null,null,null,null,null,"",null,null,null,"",""]
[null,null,null,null,null,null,null,null,null,null,"",null,null,null,"",""]
[null,null,null,null,null,null,null,null,null,null,"",null,null,null,"",""]
[null,null,null,null,null,null,null,null,null,null,"",null,null,null,"",""]
[null,null,null,null,null,null,null,null,null,null,"",null,null,null,"",""]
[null,null,null,null,null,null,null,null,null,null,{"$f":"IF(OR(B1478=\"\",G1478=\"\",B1478=\"-\",G1478=\"-\"),\"\",G1478*C1478/I1478)","v":""},null,null,null,"",""]
[null,null,null,null,null,null,null,null,null,null,"",null,null,null,"",""]
[null,null,null,null,null,null,null,null,null,null,"",null,null,null,"",""]
[null,null,null,null,null,null,null,null,null,null,"",null,null,null,"",""]
[null,null,null,null,null,null,null,null,null,null,"",null,null,null,{"$f":"IF(OR(M1482=\"\",M1482=\"-\"),\"\",0.35*10^M1482)","v":""},{"$f":"IF(O1482=0.35*10^M1482,\"Seth method\",\"\")","v":""}]
[null,null,null,null,null,null,null,null,null,null,"",null,null,null,"",""]
[null,null,null,null,null,null,null,null,null,null,"",null,null,null,"",""]
[null,null,null,null,null,null,null,null,null,null,"",null,null,null,"",""]
[null,null,null,null,null,null,null,null,null,null,"",null,null,null,"",""]
[null,null,null,null,null,null,null,null,null,null,"",null,null,null,"",""]
[null,null,null,null,null,null,null,null,null,null,"",null,null,null,"",""]
[null,null,null,null,null,null,null,null,null,null,"",null,null,null,"",""]
[null,null,null,null,null,null,null,null,null,null,"",null,null,null,"",""]
[null,null,null,null,null,null,null,null,null,null,"",null,null,null,"",""]
[null,null,null,null,null,null,null,null,null,null,"",null,null,null,"",""]
[null,null,null,null,null,null,null,null,null,null,"",null,null,null,"",""]
[null,null,null,null,null,null,null,null,null,null,"",null,null,null,"",""]
[null,null,null,null,null,null,null,null,null,null,"",null,null,null,"",""]
[null,null,null,null,null,null,null,null,null,null,"",null,null,null,"",""]
[null,null,null,null,null,null,null,null,null,null,"",null,null,null,"",""]
[null,null,null,null,null,null,null,null,null,null,"",null,null,null,"",""]
[null,null,null,null,null,null,null,null,null,null,"",null,null,null,"",""]
[null,null,null,null,null,null,null,null,null,null,"",null,null,null,"",""]
[null,null,null,null,null,null,null,null,null,null,"",null,null,null,"",""]
[null,null,null,null,null,null,null,null,null,null,"",null,null,null,"",""]
[null,null,null,null,null,null,null,null,null,null,"",null,null,null,"",""]
[null,null,null,null,null,null,null,null,null,null,"",null,null,null,"",""]
[null,null,null,null,null,null,null,null,null,null,"",null,null,null,"",""]
[null,null,null,null,null,null,null,null,null,null,"",null,null,null,"",""]
[null,null,null,null,null,null,null,null,null,null,"",null,null,null,"",""]
[null,null,null,null,null,null,null,null,null,null,"",null,null,null,"",""]
[null,null,null,null,null,null,null,null,null,null,"",null,null,null,"",""]
[null,null,null,null,null,null,null,null,null,null,"",null,null,null,"",""]
[null,null,null,null,null,null,null,null,null,null,"",null,null,null,"",""]
[null,null,null,null,null,null,null,null,null,null,"",null,null,null,"",""]
[null,null,null,null,null,null,null,null,null,null,"",null,null,null,"",""]
[null,null,null,null,null,null,null,null,null,null,"",null,null,null,"",""]
[null,null,null,null,null,null,null,null,null,null,"",null,null,null,"",""]
[null,null,null,null,null,null,null,null,null,null,"",null,null,null,"",""]
[null,null,null,null,null,null,null,null,null,null,"",null,null,null,"",""]
[null,null,null,null,null,null,null,null,null,null,"",null,null,null,"",""]
[null,null,null,null,null,null,null,null,null,null,"",null,null,null,"",""]
[null,null,null,null,null,null,null,null,null,null,"",null,null,null,"",""]
[null,null,null,null,null,null,null,null,null,null,"",null,null,null,"",""]
[null,null,null,null,null,null,null,null,null,null,"",null,null,null,"",""]
[null,null,null,null,null,null,null,null,null,null,"",null,null,null,"",""]
[null,null,null,null,null,null,null,null,null,null,"",null,null,null,"",""]
[null,null,null,null,null,null,null,null,null,null,"",null,null,null,"",""]
[null,null,null,null,null,null,null,null,null,null,"",null,null,null,"",""]
[null,null,null,null,null,null,null,null,null,null,"",null,null,null,"",""]
[null,null,null,null,null,null,null,null,null,null,"",null,null,null,"",""]
[null,null,null,null,null,null,null,null,null,null,"",null,null,null,"",""]
[null,null,null,null,null,null,null,null,null,null,"",null,null,null,"",""]
[null,null,null,null,null,null,null,null,null,null,"",null,null,null,"",""]
[null,null,null,null,null,null,null,null,null,null,"",null,null,null,"",""]
[null,null,null,null,null,null,null,null,null,null,"",null,null,null,"",""]
[null,null,null,null,null,null,null,null,null,null,"",null,null,null,"",""]
[null,null,null,null,null,null,null,null,null,null,"",null,null,null,"",""]
[null,null,null,null,null,null,null,null,null,null,"",null,null,null,"",""]
[null,null,null,null,null,null,null,null,null,null,"",null,null,null,"",""]
[null,null,null,null,null,null,null,null,null,null,"",null,null,null,"",""]
[null,null,null,null,null,null,null,null,null,null,"",null,null,null,"",""]
[null,null,null,null,null,null,null,null,null,null,"",null,null,null,"",""]
[null,null,null,null,null,null,null,null,null,null,"",null,null,null,"",""]
[null,null,null,null,null,null,null,null,null,null,{"$f":"IF(OR(B1542=\"\",G1542=\"\",B1542=\"-\",G1542=\"-\"),\"\",G1542*C1542/I1542)","v":""},null,null,null,"",""]
[null,null,null,null,null,null,null,null,null,null,"",null,null,null,"",""]
[null,null,null,null,null,null,null,null,null,null,"",null,null,null,"",""]
[null,null,null,null,null,null,null,null,null,null,"",null,null,null,"",""]
[null,null,null,null,null,null,null,null,null,null,"",null,null,null,{"$f":"IF(OR(M1546=\"\",M1546=\"-\"),\"\",0.35*10^M1546)","v":""},{"$f":"IF(O1546=0.35*10^M1546,\"Seth method\",\"\")","v":""}]
[null,null,null,null,null,null,null,null,null,null,"",null,null,null,"",""]
[null,null,null,null,null,null,null,null,null,null,"",null,null,null,"",""]
[null,null,null,null,null,null,null,null,null,null,"",null,null,null,"",""]
[null,null,null,null,null,null,null,null,null,null,"",null,null,null,"",""]
[null,null,null,null,null,null,null,null,null,null,"",null,null,null,"",""]
[null,null,null,null,null,null,null,null,null,null,"",null,null,null,"",""]
[null,null,null,null,null,null,null,null,null,null,"",null,null,null,"",""]
[null,null,null,null,null,null,null,null,null,null,"",null,null,null,"",""]
[null,null,null,null,null,null,null,null,null,null,"",null,null,null,"",""]
[null,null,null,null,null,null,null,null,null,null,"",null,null,null,"",""]
[null,null,null,null,null,null,null,null,null,null,"",null,null,null,"",""]
[null,null,null,null,null,null,null,null,null,null,"",null,null,null,"",""]
[null,null,null,null,null,null,null,null,null,null,"",null,null,null,"",""]
[null,null,null,null,null,null,null,null,null,null,"",null,null,null,"",""]
[null,null,null,null,null,null,null,null,null,null,"",null,null,null,"",""]
[null,null,null,null,null,null,null,null,null,null,"",null,null,null,"",""]
[null,null,null,null,null,null,null,null,null,null,"",null,null,null,"",""]
[null,null,null,null,null,null,null,null,null,null,"",null,null,null,"",""]
[null,null,null,null,null,null,null,null,null,null,"",null,null,null,"",""]
[null,null,null,null,null,null,null,null,null,null,"",null,null,null,"",""]
[null,null,null,null,null,null,null,null,null,null,"",null,null,null,"",""]
[null,null,null,null,null,null,null,null,null,null,"",null,null,null,"",""]
[null,null,null,null,null,null,null,null,null,null,"",null,null,null,"",""]
[null,null,null,null,null,null,null,null,null,null,"",null,null,null,"",""]
[null,null,null,null,null,null,null,null,null,null,"",null,null,null,"",""]
[null,null,null,null,null,null,null,null,null,null,"",null,null,null,"",""]
[null,null,null,null,null,null,null,null,null,null,"",null,null,null,"",""]
[null,null,null,null,null,null,null,null,null,null,"",null,null,null,"",""]
[null,null,null,null,null,null,null,null,null,null,"",null,null,null,"",""]
[null,null,null,null,null,null,null,null,null,null,"",null,null,null,"",""]
[null,null,null,null,null,null,null,null,null,null,"",null,null,null,"",""]
[null,null,null,null,null,null,null,null,null,null,"",null,null,null,"",""]
[null,null,null,null,null,null,null,null,null,null,"",null,null,null,"",""]
[null,null,null,null,null,null,null,null,null,null,"",null,null,null,"",""]
[null,null,null,null,null,null,null,null,null,null,"",null,null,null,"",""]
[null,null,null,null,null,null,null,null,null,null,"",null,null,null,"",""]
[null,null,null,null,null,null,null,null,null,null,"",null,null,null,"",""]
[null,null,null,null,null,null,null,null,null,null,"",null,null,null,"",""]
[null,null,null,null,null,null,null,null,null,null,"",null,null,null,"",""]
[null,null,null,null,null,null,null,null,null,null,"",null,null,null,"",""]
[null,null,null,null,null,null,null,null,null,null,"",null,null,null,"",""]
[null,null,null,null,null,null,null,null,null,null,"",null,null,null,"",""]
[null,null,null,null,null,null,null,null,null,null,"",null,null,null,"",""]
[null,null,null,null,null,null,null,null,null,null,"",null,null,null,"",""]
[null,null,null,null,null,null,null,null,null,null,"",null,null,null,"",""]
[null,null,null,null,null,null,null,null,null,null,"",null,null,null,"",""]
[null,null,null,null,null,null,null,null,null,null,"",null,null,null,"",""]
[null,null,null,null,null,null,null,null,null,null,"",null,null,null,"",""]
[null,null,null,null,null,null,null,null,null,null,"",null,null,null,"",""]
[null,null,null,null,null,null,null,null,null,null,"",null,null,null,"",""]
[null,null,null,null,null,null,null,null,null,null,"",null,null,null,"",""]
[null,null,null,null,null,null,null,null,null,null,"",null,null,null,"",""]
[null,null,null,null,null,null,null,null,null,null,"",null,null,null,"",""]
[null,null,null,null,null,null,null,null,null,null,"",null,null,null,"",""]
[null,null,null,null,null,null,null,null,null,null,"",null,null,null,"",""]
[null,null,null,null,null,null,null,null,null,null,"",null,null,null,"",""]
[null,null,null,null,null,null,null,null,null,null,"",null,null,null,"",""]
[null,null,null,null,null,null,null,null,null,null,"",null,null,null,"",""]
[null,null,null,null,null,null,null,null,null,null,"",null,null,null,"",""]
[null,null,null,null,null,null,null,null,null,null,{"$f":"IF(OR(B1606=\"\",G1606=\"\",B1606=\"-\",G1606=\"-\"),\"\",G1606*C1606/I1606)","v":""},null,null,null,"",""]
[null,null,null,null,null,null,null,null,null,null,"",null,null,null,"",""]
[null,null,null,null,null,null,null,null,null,null,"",null,null,null,"",""]
[null,null,null,null,null,null,null,null,null,null,"",null,null,null,"",""]
[null,null,null,null,null,null,null,null,null,null,"",null,null,null,{"$f":"IF(OR(M1610=\"\",M1610=\"-\"),\"\",0.35*10^M1610)","v":""},{"$f":"IF(O1610=0.35*10^M1610,\"Seth method\",\"\")","v":""}]
[null,null,null,null,null,null,null,null,null,null,"",null,null,null,"",""]
[null,null,null,null,null,null,null,null,null,null,"",null,null,null,"",""]
[null,null,null,null,null,null,null,null,null,null,"",null,null,null,"",""]
[null,null,null,null,null,null,null,null,null,null,"",null,null,null,"",""]
[null,null,null,null,null,null,null,null,null,null,"",null,null,null,"",""]
[null,null,null,null,null,null,null,null,null,null,"",null,null,null,"",""]
[null,null,null,null,null,null,null,null,null,null,"",null,null,null,"",""]
[null,null,null,null,null,null,null,null,null,null,"",null,null,null,"",""]
[null,null,null,null,null,null,null,null,null,null,"",null,null,null,"",""]
[null,null,null,null,null,null,null,null,null,null,"",null,null,null,"",""]
[null,null,null,null,null,null,null,null,null,null,"",null,null,null,"",""]
[null,null,null,null,null,null,null,null,null,null,"",null,null,null,"",""]
[null,null,null,null,null,null,null,null,null,null,"",null,null,null,"",""]
[null,null,null,null,null,null,null,null,null,null,"",null,null,null,"",""]
[null,null,null,null,null,null,null,null,null,null,"",null,null,null,"",""]
[null,null,null,null,null,null,null,null,null,null,"",null,null,null,"",""]
[null,null,null,null,null,null,null,null,null,null,"",null,null,null,"",""]
[null,null,null,null,null,null,null,null,null,null,"",null,null,null,"",""]
[null,null,null,null,null,null,null,null,null,null,"",null,null,null,"",""]
[null,null,null,null,null,null,null,null,null,null,"",null,null,null,"",""]
[null,null,null,null,null,null,null,null,null,null,"",null,null,null,"",""]
[null,null,null,null,null,null,null,null,null,null,"",null,null,null,"",""]
[null,null,null,null,null,null,null,null,null,null,"",null,null,null,"",""]
[null,null,null,null,null,null,null,null,null,null,"",null,null,null,"",""]
[null,null,null,null,null,null,null,null,null,null,"",null,null,null,"",""]
[null,null,null,null,null,null,null,null,null,null,"",null,null,null,"",""]
[null,null,null,null,null,null,null,null,null,null,"",null,null,null,"",""]
[null,null,null,null,null,null,null,null,null,null,"",null,null,null,"",""]
[null,null,null,null,null,null,null,null,null,null,"",null,null,null,"",""]
[null,null,null,null,null,null,null,null,null,null,"",null,null,null,"",""]
[null,null,null,null,null,null,null,null,null,null,"",null,null,null,"",""]
[null,null,null,null,null,null,null,null,null,null,"",null,null,null,"",""]
[null,null,null,null,null,null,null,null,null,null,"",null,null,null,"",""]
[null,null,null,null,null,null,null,null,null,null,"",null,null,null,"",""]
[null,null,null,null,null,null,null,null,null,null,"",null,null,null,"",""]
[null,null,null,null,null,null,null,null,null,null,"",null,null,null,"",""]
[null,null,null,null,null,null,null,null,null,null,"",null,null,null,"",""]
[null,null,null,null,null,null,null,null,null,null,"",null,null,null,"",""]
[null,null,null,null,null,null,null,null,null,null,"",null,null,null,"",""]
[null,null,null,null,null,null,null,null,null,null,"",null,null,null,"",""]
[null,null,null,null,null,null,null,null,null,null,"",null,null,null,"",""]
[null,null,null,null,null,null,null,null,null,null,"",null,null,null,"",""]
[null,null,null,null,null,null,null,null,null,null,"",null,null,null,"",""]
[null,null,null,null,null,null,null,null,null,null,"",null,null,null,"",""]
[null,null,null,null,null,null,null,null,null,null,"",null,null,null,"",""]
[null,null,null,null,null,null,null,null,null,null,"",null,null,null,"",""]
[null,null,null,null,null,null,null,null,null,null,"",null,null,null,"",""]
[null,null,null,null,null,null,null,null,null,null,"",null,null,null,"",""]
[null,null,null,null,null,null,null,null,null,null,"",null,null,null,"",""]
[null,null,null,null,null,null,null,null,null,null,"",null,null,null,"",""]
[null,null,null,null,null,null,null,null,null,null,"",null,null,null,"",""]
[null,null,null,null,null,null,null,null,null,null,"",null,null,null,"",""]
[null,null,null,null,null,null,null,null,null,null,"",null,null,null,"",""]
[null,null,null,null,null,null,null,null,null,null,"",null,null,null,"",""]
[null,null,null,null,null,null,null,null,null,null,"",null,null,null,"",""]
[null,null,null,null,null,null,null,null,null,null,"",null,null,null,"",""]
[null,null,null,null,null,null,null,null,null,null,"",null,null,null,"",""]
[null,null,null,null,null,null,null,null,null,null,"",null,null,null,"",""]
[null,null,null,null,null,null,null,null,null,null,"",null,null,null,"",""]
[null,null,null,null,null,null,null,null,null,null,{"$f":"IF(OR(B1670=\"\",G1670=\"\",B1670=\"-\",G1670=\"-\"),\"\",G1670*C1670/I1670)","v":""},null,null,null,"",""]
[null,null,null,null,null,null,null,null,null,null,"",null,null,null,"",""]
[null,null,null,null,null,null,null,null,null,null,"",null,null,null,"",""]
[null,null,null,null,null,null,null,null,null,null,"",null,null,null,"",""]
[null,null,null,null,null,null,null,null,null,null,"",null,null,null,{"$f":"IF(OR(M1674=\"\",M1674=\"-\"),\"\",0.35*10^M1674)","v":""},{"$f":"IF(O1674=0.35*10^M1674,\"Seth method\",\"\")","v":""}]
[null,null,null,null,null,null,null,null,null,null,"",null,null,null,"",""]
[null,null,null,null,null,null,null,null,null,null,"",null,null,null,"",""]
[null,null,null,null,null,null,null,null,null,null,"",null,null,null,"",""]
[null,null,null,null,null,null,null,null,null,null,"",null,null,null,"",""]
[null,null,null,null,null,null,null,null,null,null,"",null,null,null,"",""]
[null,null,null,null,null,null,null,null,null,null,"",null,null,null,"",""]
[null,null,null,null,null,null,null,null,null,null,"",null,null,null,"",""]
[null,null,null,null,null,null,null,null,null,null,"",null,null,null,"",""]
[null,null,null,null,null,null,null,null,null,null,"",null,null,null,"",""]
[null,null,null,null,null,null,null,null,null,null,"",null,null,null,"",""]
[null,null,null,null,null,null,null,null,null,null,"",null,null,null,"",""]
[null,null,null,null,null,null,null,null,null,null,"",null,null,null,"",""]
[null,null,null,null,null,null,null,null,null,null,"",null,null,null,"",""]
[null,null,null,null,null,null,null,null,null,null,"",null,null,null,"",""]
[null,null,null,null,null,null,null,null,null,null,"",null,null,null,"",""]
[null,null,null,null,null,null,null,null,null,null,"",null,null,null,"",""]
[null,null,null,null,null,null,null,null,null,null,"",null,null,null,"",""]
[null,null,null,null,null,null,null,null,null,null,"",null,null,null,"",""]
[null,null,null,null,null,null,null,null,null,null,"",null,null,null,"",""]
[null,null,null,null,null,null,null,null,null,null,"",null,null,null,"",""]
[null,null,null,null,null,null,null,null,null,null,"",null,null,null,"",""]
[null,null,null,null,null,null,null,null,null,null,"",null,null,null,"",""]
[null,null,null,null,null,null,null,null,null,null,"",null,null,null,"",""]
[null,null,null,null,null,null,null,null,null,null,"",null,null,null,"",""]
[null,null,null,null,null,null,null,null,null,null,"",null,null,null,"",""]
[null,null,null,null,null,null,null,null,null,null,"",null,null,null,"",""]
[null,null,null,null,null,null,null,null,null,null,"",null,null,null,"",""]
[null,null,null,null,null,null,null,null,null,null,"",null,null,null,"",""]
[null,null,null,null,null,null,null,null,null,null,"",null,null,null,"",""]
[null,null,null,null,null,null,null,null,null,null,"",null,null,null,"",""]
[null,null,null,null,null,null,null,null,null,null,"",null,null,null,"",""]
[null,null,null,null,null,null,null,null,null,null,"",null,null,null,"",""]
[null,null,null,null,null,null,null,null,null,null,"",null,null,null,"",""]
[null,null,null,null,null,null,null,null,null,null,"",null,null,null,"",""]
[null,null,null,null,null,null,null,null,null,null,"",null,null,null,"",""]
[null,null,null,null,null,null,null,null,null,null,"",null,null,null,"",""]
[null,null,null,null,null,null,null,null,null,null,"",null,null,null,"",""]
[null,null,null,null,null,null,null,null,null,null,"",null,null,null,"",""]
[null,null,null,null,null,null,null,null,null,null,"",null,null,null,"",""]
[null,null,null,null,null,null,null,null,null,null,"",null,null,null,"",""]
[null,null,null,null,null,null,null,null,null,null,"",null,null,null,"",""]
[null,null,null,null,null,null,null,null,null,null,"",null,null,null,"",""]
[null,null,null,null,null,null,null,null,null,null,"",null,null,null,"",""]
[null,null,null,null,null,null,null,null,null,null,"",null,null,null,"",""]
[null,null,null,null,null,null,null,null,null,null,"",null,null,null,"",""]
[null,null,null,null,null,null,null,null,null,null,"",null,null,null,"",""]
[null,null,null,null,null,null,null,null,null,null,"",null,null,null,"",""]
[null,null,null,null,null,null,null,null,null,null,"",null,null,null,"",""]
[null,null,null,null,null,null,null,null,null,null,"",null,null,null,"",""]
[null,null,null,null,null,null,null,null,null,null,"",null,null,null,"",""]
[null,null,null,null,null,null,null,null,null,null,"",null,null,null,"",""]
[null,null,null,null,null,null,null,null,null,null,"",null,null,null,"",""]
[null,null,null,null,null,null,null,null,null,null,"",null,null,null,"",""]
[null,null,null,null,null,null,null,null,null,null,"",null,null,null,"",""]
[null,null,null,null,null,null,null,null,null,null,"",null,null,null,"",""]
[null,null,null,null,null,null,null,null,null,null,"",null,null,null,"",""]
[null,null,null,null,null,null,null,null,null,null,"",null,null,null,"",""]
[null,null,null,null,null,null,null,null,null,null,"",null,null,null,"",""]
[null,null,null,null,null,null,null,null,null,null,"",null,null,null,"",""]
[null,null,null,null,null,null,null,null,null,null,{"$f":"IF(OR(B1734=\"\",G1734=\"\",B1734=\"-\",G1734=\"-\"),\"\",G1734*C1734/I1734)","v":""},null,null,null,"",""]
[null,null,null,null,null,null,null,null,null,null,"",null,null,null,"",""]
[null,null,null,null,null,null,null,null,null,null,"",null,null,null,"",""]
[null,null,null,null,null,null,null,null,null,null,"",null,null,null,"",""]
[null,null,null,null,null,null,null,null,null,null,"",null,null,null,{"$f":"IF(OR(M1738=\"\",M1738=\"-\"),\"\",0.35*10^M1738)","v":""},{"$f":"IF(O1738=0.35*10^M1738,\"Seth method\",\"\")","v":""}]
[null,null,null,null,null,null,null,null,null,null,"",null,null,null,"",""]
[null,null,null,null,null,null,null,null,null,null,"",null,null,null,"",""]
[null,null,null,null,null,null,null,null,null,null,"",null,null,null,"",""]
[null,null,null,null,null,null,null,null,null,null,"",null,null,null,"",""]
[null,null,null,null,null,null,null,null,null,null,"",null,null,null,"",""]
[null,null,null,null,null,null,null,null,null,null,"",null,null,null,"",""]
[null,null,null,null,null,null,null,null,null,null,"",null,null,null,"",""]
[null,null,null,null,null,null,null,null,null,null,"",null,null,null,"",""]
[null,null,null,null,null,null,null,null,null,null,"",null,null,null,"",""]
[null,null,null,null,null,null,null,null,null,null,"",null,null,null,"",""]
[null,null,null,null,null,null,null,null,null,null,"",null,null,null,"",""]
[null,null,null,null,null,null,null,null,null,null,"",null,null,null,"",""]
[null,null,null,null,null,null,null,null,null,null,"",null,null,null,"",""]
[null,null,null,null,null,null,null,null,null,null,"",null,null,null,"",""]
[null,null,null,null,null,null,null,null,null,null,"",null,null,null,"",""]
[null,null,null,null,null,null,null,null,null,null,"",null,null,null,"",""]
[null,null,null,null,null,null,null,null,null,null,"",null,null,null,"",""]
[null,null,null,null,null,null,null,null,null,null,"",null,null,null,"",""]
[null,null,null,null,null,null,null,null,null,null,"",null,null,null,"",""]
[null,null,null,null,null,null,null,null,null,null,"",null,null,null,"",""]
[null,null,null,null,null,null,null,null,null,null,"",null,null,null,"",""]
[null,null,null,null,null,null,null,null,null,null,"",null,null,null,"",""]
[null,null,null,null,null,null,null,null,null,null,"",null,null,null,"",""]
[null,null,null,null,null,null,null,null,null,null,"",null,null,null,"",""]
[null,null,null,null,null,null,null,null,null,null,"",null,null,null,"",""]
[null,null,null,null,null,null,null,null,null,null,"",null,null,null,"",""]
[null,null,null,null,null,null,null,null,null,null,"",null,null,null,"",""]
[null,null,null,null,null,null,null,null,null,null,"",null,null,null,"",""]
[null,null,null,null,null,null,null,null,null,null,"",null,null,null,"",""]
[null,null,null,null,null,null,null,null,null,null,"",null,null,null,"",""]
[null,null,null,null,null,null,null,null,null,null,"",null,null,null,"",""]
[null,null,null,null,null,null,null,null,null,null,"",null,null,null,"",""]
[null,null,null,null,null,null,null,null,null,null,"",null,null,null,"",""]
[null,null,null,null,null,null,null,null,null,null,"",null,null,null,"",""]
[null,null,null,null,null,null,null,null,null,null,"",null,null,null,"",""]
[null,null,null,null,null,null,null,null,null,null,"",null,null,null,"",""]
[null,null,null,null,null,null,null,null,null,null,"",null,null,null,"",""]
[null,null,null,null,null,null,null,null,null,null,"",null,null,null,"",""]
[null,null,null,null,null,null,null,null,null,null,"",null,null,null,"",""]
[null,null,null,null,null,null,null,null,null,null,"",null,null,null,"",""]
[null,null,null,null,null,null,null,null,null,null,"",null,null,null,"",""]
[null,null,null,null,null,null,null,null,null,null,"",null,null,null,"",""]
[null,null,null,null,null,null,null,null,null,null,"",null,null,null,"",""]
[null,null,null,null,null,null,null,null,null,null,"",null,null,null,"",""]
[null,null,null,null,null,null,null,null,null,null,"",null,null,null,"",""]
[null,null,null,null,null,null,null,null,null,null,"",null,null,null,"",""]
[null,null,null,null,null,null,null,null,null,null,"",null,null,null,"",""]
[null,null,null,null,null,null,null,null,null,null,"",null,null,null,"",""]
[null,null,null,null,null,null,null,null,null,null,"",null,null,null,"",""]
[null,null,null,null,null,null,null,null,null,null,"",null,null,null,"",""]
[null,null,null,null,null,null,null,null,null,null,"",null,null,null,"",""]
[null,null,null,null,null,null,null,null,null,null,"",null,null,null,"",""]
[null,null,null,null,null,null,null,null,null,null,"",null,null,null,"",""]
[null,null,null,null,null,null,null,null,null,null,"",null,null,null,"",""]
[null,null,null,null,null,null,null,null,null,null,"",null,null,null,"",""]
[null,null,null,null,null,null,null,null,null,null,"",null,null,null,"",""]
[null,null,null,null,null,null,null,null,null,null,"",null,null,null,"",""]
[null,null,null,null,null,null,null,null,null,null,"",null,null,null,"",""]
[null,null,null,null,null,null,null,null,null,null,"",null,null,null,"",""]
[null,null,null,null,null,null,null,null,null,null,{"$f":"IF(OR(B1798=\"\",G1798=\"\",B1798=\"-\",G1798=\"-\"),\"\",G1798*C1798/I1798)","v":""},null,null,null,"",""]
[null,null,null,null,null,null,null,null,null,null,"",null,null,null,"",""]
[null,null,null,null,null,null,null,null,null,null,"",null,null,null,"",""]
[null,null,null,null,null,null,null,null,null,null,"",null,null,null,"",""]
[null,null,null,null,null,null,null,null,null,null,"",null,null,null,{"$f":"IF(OR(M1802=\"\",M1802=\"-\"),\"\",0.35*10^M1802)","v":""},{"$f":"IF(O1802=0.35*10^M1802,\"Seth method\",\"\")","v":""}]
[null,null,null,null,null,null,null,null,null,null,"",null,null,null,"",""]
[null,null,null,null,null,null,null,null,null,null,"",null,null,null,"",""]
[null,null,null,null,null,null,null,null,null,null,"",null,null,null,"",""]
[null,null,null,null,null,null,null,null,null,null,"",null,null,null,"",""]
[null,null,null,null,null,null,null,null,null,null,"",null,null,null,"",""]
[null,null,null,null,null,null,null,null,null,null,"",null,null,null,"",""]
[null,null,null,null,null,null,null,null,null,null,"",null,null,null,"",""]
[null,null,null,null,null,null,null,null,null,null,"",null,null,null,"",""]
[null,null,null,null,null,null,null,null,null,null,"",null,null,null,"",""]
[null,null,null,null,null,null,null,null,null,null,"",null,null,null,"",""]
[null,null,null,null,null,null,null,null,null,null,"",null,null,null,"",""]
[null,null,null,null,null,null,null,null,null,null,"",null,null,null,"",""]
[null,null,null,null,null,null,null,null,null,null,"",null,null,null,"",""]
[null,null,null,null,null,null,null,null,null,null,"",null,null,null,"",""]
[null,null,null,null,null,null,null,null,null,null,"",null,null,null,"",""]
[null,null,null,null,null,null,null,null,null,null,"",null,null,null,"",""]
[null,null,null,null,null,null,null,null,null,null,"",null,null,null,"",""]
[null,null,null,null,null,null,null,null,null,null,"",null,null,null,"",""]
[null,null,null,null,null,null,null,null,null,null,"",null,null,null,"",""]
[null,null,null,null,null,null,null,null,null,null,"",null,null,null,"",""]
[null,null,null,null,null,null,null,null,null,null,"",null,null,null,"",""]
[null,null,null,null,null,null,null,null,null,null,"",null,null,null,"",""]
[null,null,null,null,null,null,null,null,null,null,"",null,null,null,"",""]
[null,null,null,null,null,null,null,null,null,null,"",null,null,null,"",""]
[null,null,null,null,null,null,null,null,null,null,"",null,null,null,"",""]
[null,null,null,null,null,null,null,null,null,null,"",null,null,null,"",""]
[null,null,null,null,null,null,null,null,null,null,"",null,null,null,"",""]
[null,null,null,null,null,null,null,null,null,null,"",null,null,null,"",""]
[null,null,null,null,null,null,null,null,null,null,"",null,null,null,"",""]
[null,null,null,null,null,null,null,null,null,null,"",null,null,null,"",""]
[null,null,null,null,null,null,null,null,null,null,"",null,null,null,"",""]
[null,null,null,null,null,null,null,null,null,null,"",null,null,null,"",""]
[null,null,null,null,null,null,null,null,null,null,"",null,null,null,"",""]
[null,null,null,null,null,null,null,null,null,null,"",null,null,null,"",""]
[null,null,null,null,null,null,null,null,null,null,"",null,null,null,"",""]
[null,null,null,null,null,null,null,null,null,null,"",null,null,null,"",""]
[null,null,null,null,null,null,null,null,null,null,"",null,null,null,"",""]
[null,null,null,null,null,null,null,null,null,null,"",null,null,null,"",""]
[null,null,null,null,null,null,null,null,null,null,"",null,null,null,"",""]
[null,null,null,null,null,null,null,null,null,null,"",null,null,null,"",""]
[null,null,null,null,null,null,null,null,null,null,"",null,null,null,"",""]
[null,null,null,null,null,null,null,null,null,null,"",null,null,null,"",""]
[null,null,null,null,null,null,null,null,null,null,"",null,null,null,"",""]
[null,null,null,null,null,null,null,null,null,null,"",null,null,null,"",""]
[null,null,null,null,null,null,null,null,null,null,"",null,null,null,"",""]
[null,null,null,null,null,null,null,null,null,null,"",null,null,null,"",""]
[null,null,null,null,null,null,null,null,null,null,"",null,null,null,"",""]
[null,null,null,null,null,null,null,null,null,null,"",null,null,null,"",""]
[null,null,null,null,null,null,null,null,null,null,"",null,null,null,"",""]
[null,null,null,null,null,null,null,null,null,null,"",null,null,null,"",""]
[null,null,null,null,null,null,null,null,null,null,"",null,null,null,"",""]
[null,null,null,null,null,null,null,null,null,null,"",null,null,null,"",""]
[null,null,null,null,null,null,null,null,null,null,"",null,null,null,"",""]
[null,null,null,null,null,null,null,null,null,null,"",null,null,null,"",""]
[null,null,null,null,null,null,null,null,null,null,"",null,null,null,"",""]
[null,null,null,null,null,null,null,null,null,null,"",null,null,null,"",""]
[null,null,null,null,null,null,null,null,null,null,"",null,null,null,"",""]
[null,null,null,null,null,null,null,null,null,null,"",null,null,null,"",""]
[null,null,null,null,null,null,null,null,null,null,"",null,null,null,"",""]
[null,null,null,null,null,null,null,null,null,null,{"$f":"IF(OR(B1862=\"\",G1862=\"\",B1862=\"-\",G1862=\"-\"),\"\",G1862*C1862/I1862)","v":""},null,null,null,"",""]
[null,null,null,null,null,null,null,null,null,null,"",null,null,null,"",""]
[null,null,null,null,null,null,null,null,null,null,"",null,null,null,"",""]
[null,null,null,null,null,null,null,null,null,null,"",null,null,null,"",""]
[null,null,null,null,null,null,null,null,null,null,"",null,null,null,{"$f":"IF(OR(M1866=\"\",M1866=\"-\"),\"\",0.35*10^M1866)","v":""},{"$f":"IF(O1866=0.35*10^M1866,\"Seth method\",\"\")","v":""}]
[null,null,null,null,null,null,null,null,null,null,"",null,null,null,"",""]
[null,null,null,null,null,null,null,null,null,null,"",null,null,null,"",""]
[null,null,null,null,null,null,null,null,null,null,"",null,null,null,"",""]
[null,null,null,null,null,null,null,null,null,null,"",null,null,null,"",""]
[null,null,null,null,null,null,null,null,null,null,"",null,null,null,"",""]
[null,null,null,null,null,null,null,null,null,null,"",null,null,null,"",""]
[null,null,null,null,null,null,null,null,null,null,"",null,null,null,"",""]
[null,null,null,null,null,null,null,null,null,null,"",null,null,null,"",""]
[null,null,null,null,null,null,null,null,null,null,"",null,null,null,"",""]
[null,null,null,null,null,null,null,null,null,null,"",null,null,null,"",""]
[null,null,null,null,null,null,null,null,null,null,"",null,null,null,"",""]
[null,null,null,null,null,null,null,null,null,null,"",null,null,null,"",""]
[null,null,null,null,null,null,null,null,null,null,"",null,null,null,"",""]
[null,null,null,null,null,null,null,null,null,null,"",null,null,null,"",""]
[null,null,null,null,null,null,null,null,null,null,"",null,null,null,"",""]
[null,null,null,null,null,null,null,null,null,null,"",null,null,null,"",""]
[null,null,null,null,null,null,null,null,null,null,"",null,null,null,"",""]
[null,null,null,null,null,null,null,null,null,null,"",null,null,null,"",""]
[null,null,null,null,null,null,null,null,null,null,"",null,null,null,"",""]
[null,null,null,null,null,null,null,null,null,null,"",null,null,null,"",""]
[null,null,null,null,null,null,null,null,null,null,"",null,null,null,"",""]
[null,null,null,null,null,null,null,null,null,null,"",null,null,null,"",""]
[null,null,null,null,null,null,null,null,null,null,"",null,null,null,"",""]
[null,null,null,null,null,null,null,null,null,null,"",null,null,null,"",""]
[null,null,null,null,null,null,null,null,null,null,"",null,null,null,"",""]
[null,null,null,null,null,null,null,null,null,null,"",null,null,null,"",""]
[null,null,null,null,null,null,null,null,null,null,"",null,null,null,"",""]
[null,null,null,null,null,null,null,null,null,null,"",null,null,null,"",""]
[null,null,null,null,null,null,null,null,null,null,"",null,null,null,"",""]
[null,null,null,null,null,null,null,null,null,null,"",null,null,null,"",""]
[null,null,null,null,null,null,null,null,null,null,"",null,null,null,"",""]
[null,null,null,null,null,null,null,null,null,null,"",null,null,null,"",""]
[null,null,null,null,null,null,null,null,null,null,"",null,null,null,"",""]
[null,null,null,null,null,null,null,null,null,null,"",null,null,null,"",""]
[null,null,null,null,null,null,null,null,null,null,"",null,null,null,"",""]
[null,null,null,null,null,null,null,null,null,null,"",null,null,null,"",""]
[null,null,null,null,null,null,null,null,null,null,"",null,null,null,"",""]
[null,null,null,null,null,null,null,null,null,null,"",null,null,null,"",""]
[null,null,null,null,null,null,null,null,null,null,"",null,null,null,"",""]
[null,null,null,null,null,null,null,null,null,null,"",null,null,null,"",""]
[null,null,null,null,null,null,null,null,null,null,"",null,null,null,"",""]
[null,null,null,null,null,null,null,null,null,null,"",null,null,null,"",""]
[null,null,null,null,null,null,null,null,null,null,"",null,null,null,"",""]
[null,null,null,null,null,null,null,null,null,null,"",null,null,null,"",""]
[null,null,null,null,null,null,null,null,null,null,"",null,null,null,"",""]
[null,null,null,null,null,null,null,null,null,null,"",null,null,null,"",""]
[null,null,null,null,null,null,null,null,null,null,"",null,null,null,"",""]
[null,null,null,null,null,null,null,null,null,null,"",null,null,null,"",""]
[null,null,null,null,null,null,null,null,null,null,"",null,null,null,"",""]
[null,null,null,null,null,null,null,null,null,null,"",null,null,null,"",""]
[null,null,null,null,null,null,null,null,null,null,"",null,null,null,"",""]
[null,null,null,null,null,null,null,null,null,null,"",null,null,null,"",""]
[null,null,null,null,null,null,null,null,null,null,"",null,null,null,"",""]
[null,null,null,null,null,null,null,null,null,null,"",null,null,null,"",""]
[null,null,null,null,null,null,null,null,null,null,"",null,null,null,"",""]
[null,null,null,null,null,null,null,null,null,null,"",null,null,null,"",""]
[null,null,null,null,null,null,null,null,null,null,"",null,null,null,"",""]
[null,null,null,null,null,null,null,null,null,null,"",null,null,null,"",""]
[null,null,null,null,null,null,null,null,null,null,"",null,null,null,"",""]
[null,null,null,null,null,null,null,null,null,null,{"$f":"IF(OR(B1926=\"\",G1926=\"\",B1926=\"-\",G1926=\"-\"),\"\",G1926*C1926/I1926)","v":""},null,null,null,"",""]
[null,null,null,null,null,null,null,null,null,null,"",null,null,null,"",""]
[null,null,null,null,null,null,null,null,null,null,"",null,null,null,"",""]
[null,null,null,null,null,null,null,null,null,null,"",null,null,null,"",""]
[null,null,null,null,null,null,null,null,null,null,"",null,null,null,{"$f":"IF(OR(M1930=\"\",M1930=\"-\"),\"\",0.35*10^M1930)","v":""},{"$f":"IF(O1930=0.35*10^M1930,\"Seth method\",\"\")","v":""}]
[null,null,null,null,null,null,null,null,null,null,"",null,null,null,"",""]
[null,null,null,null,null,null,null,null,null,null,"",null,null,null,"",""]
[null,null,null,null,null,null,null,null,null,null,"",null,null,null,"",""]
[null,null,null,null,null,null,null,null,null,null,"",null,null,null,"",""]
[null,null,null,null,null,null,null,null,null,null,"",null,null,null,"",""]
[null,null,null,null,null,null,null,null,null,null,"",null,null,null,"",""]
[null,null,null,null,null,null,null,null,null,null,"",null,null,null,"",""]
[null,null,null,null,null,null,null,null,null,null,"",null,null,null,"",""]
[null,null,null,null,null,null,null,null,null,null,"",null,null,null,"",""]
[null,null,null,null,null,null,null,null,null,null,"",null,null,null,"",""]
[null,null,null,null,null,null,null,null,null,null,"",null,null,null,"",""]
[null,null,null,null,null,null,null,null,null,null,"",null,null,null,"",""]
[null,null,null,null,null,null,null,null,null,null,"",null,null,null,"",""]
[null,null,null,null,null,null,null,null,null,null,"",null,null,null,"",""]
[null,null,null,null,null,null,null,null,null,null,"",null,null,null,"",""]
[null,null,null,null,null,null,null,null,null,null,"",null,null,null,"",""]
[null,null,null,null,null,null,null,null,null,null,"",null,null,null,"",""]
[null,null,null,null,null,null,null,null,null,null,"",null,null,null,"",""]
[null,null,null,null,null,null,null,null,null,null,"",null,null,null,"",""]
[null,null,null,null,null,null,null,null,null,null,"",null,null,null,"",""]
[null,null,null,null,null,null,null,null,null,null,"",null,null,null,"",""]
[null,null,null,null,null,null,null,null,null,null,"",null,null,null,"",""]
[null,null,null,null,null,null,null,null,null,null,"",null,null,null,"",""]
[null,null,null,null,null,null,null,null,null,null,"",null,null,null,"",""]
[null,null,null,null,null,null,null,null,null,null,"",null,null,null,"",""]
[null,null,null,null,null,null,null,null,null,null,"",null,null,null,"",""]
[null,null,null,null,null,null,null,null,null,null,"",null,null,null,"",""]
[null,null,null,null,null,null,null,null,null,null,"",null,null,null,"",""]
[null,null,null,null,null,null,null,null,null,null,"",null,null,null,"",""]
[null,null,null,null,null,null,null,null,null,null,"",null,null,null,"",""]
[null,null,null,null,null,null,null,null,null,null,"",null,null,null,"",""]
[null,null,null,null,null,null,null,null,null,null,"",null,null,null,"",""]
[null,null,null,null,null,null,null,null,null,null,"",null,null,null,"",""]
[null,null,null,null,null,null,null,null,null,null,"",null,null,null,"",""]
[null,null,null,null,null,null,null,null,null,null,"",null,null,null,"",""]
[null,null,null,null,null,null,null,null,null,null,"",null,null,null,"",""]
[null,null,null,null,null,null,null,null,null,null,"",null,null,null,"",""]
[null,null,null,null,null,null,null,null,null,null,"",null,null,null,"",""]
[null,null,null,null,null,null,null,null,null,null,"",null,null,null,"",""]
[null,null,null,null,null,null,null,null,null,null,"",null,null,null,"",""]
[null,null,null,null,null,null,null,null,null,null,"",null,null,null,"",""]
[null,null,null,null,null,null,null,null,null,null,"",null,null,null,"",""]
[null,null,null,null,null,null,null,null,null,null,"",null,null,null,"",""]
[null,null,null,null,null,null,null,null,null,null,"",null,null,null,"",""]
[null,null,null,null,null,null,null,null,null,null,"",null,null,null,"",""]
[null,null,null,null,null,null,null,null,null,null,"",null,null,null,"",""]
[null,null,null,null,null,null,null,null,null,null,"",null,null,null,"",""]
[null,null,null,null,null,null,null,null,null,null,"",null,null,null,"",""]
[null,null,null,null,null,null,null,null,null,null,"",null,null,null,"",""]
[null,null,null,null,null,null,null,null,null,null,"",null,null,null,"",""]
[null,null,null,null,null,null,null,null,null,null,"",null,null,null,"",""]
[null,null,null,null,null,null,null,null,null,null,"",null,null,null,"",""]
[null,null,null,null,null,null,null,null,null,null,"",null,null,null,"",""]
[null,null,null,null,null,null,null,null,null,null,"",null,null,null,"",""]
[null,null,null,null,null,null,null,null,null,null,"",null,null,null,"",""]
[null,null,null,null,null,null,null,null,null,null,"",null,null,null,"",""]
[null,null,null,null,null,null,null,null,null,null,"",null,null,null,"",""]
[null,null,null,null,null,null,null,null,null,null,"",null,null,null,"",""]
[null,null,null,null,null,null,null,null,null,null,"",null,null,null,"",""]
[null,null,null,null,null,null,null,null,null,null,{"$f":"IF(OR(B1990=\"\",G1990=\"\",B1990=\"-\",G1990=\"-\"),\"\",G1990*C1990/I1990)","v":""},null,null,null,"",""]
[null,null,null,null,null,null,null,null,null,null,"",null,null,null,"",""]
[null,null,null,null,null,null,null,null,null,null,"",null,null,null,"",""]
[null,null,null,null,null,null,null,null,null,null,"",null,null,null,"",""]
[null,null,null,null,null,null,null,null,null,null,"",null,null,null,{"$f":"IF(OR(M1994=\"\",M1994=\"-\"),\"\",0.35*10^M1994)","v":""},{"$f":"IF(O1994=0.35*10^M1994,\"Seth method\",\"\")","v":""}]
[null,null,null,null,null,null,null,null,null,null,"",null,null,null,"",""]
[null,null,null,null,null,null,null,null,null,null,"",null,null,null,"",""]
[null,null,null,null,null,null,null,null,null,null,"",null,null,null,"",""]
[null,null,null,null,null,null,null,null,null,null,"",null,null,null,"",""]
[null,null,null,null,null,null,null,null,null,null,"",null,null,null,"",""]
[null,null,null,null,null,null,null,null,null,null,"",null,null,null,"",""]
[null,null,null,null,null,null,null,null,null,null,"",null,null,null,"",""]
[null,null,null,null,null,null,null,null,null,null,"",null,null,null,"",""]
[null,null,null,null,null,null,null,null,null,null,"",null,null,null,"",""]
[null,null,null,null,null,null,null,null,null,null,"",null,null,null,"",""]
[null,null,null,null,null,null,null,null,null,null,"",null,null,null,"",""]
[null,null,null,null,null,null,null,null,null,null,"",null,null,null,"",""]
[null,null,null,null,null,null,null,null,null,null,"",null,null,null,"",""]
[null,null,null,null,null,null,null,null,null,null,"",null,null,null,"",""]
[null,null,null,null,null,null,null,null,null,null,"",null,null,null,"",""]
[null,null,null,null,null,null,null,null,null,null,"",null,null,null,"",""]
[null,null,null,null,null,null,null,null,null,null,"",null,null,null,"",""]
[null,null,null,null,null,null,null,null,null,null,"",null,null,null,"",""]
[null,null,null,null,null,null,null,null,null,null,"",null,null,null,"",""]
[null,null,null,null,null,null,null,null,null,null,"",null,null,null,"",""]
[null,null,null,null,null,null,null,null,null,null,"",null,null,null,"",""]
[null,null,null,null,null,null,null,null,null,null,"",null,null,null,"",""]
[null,null,null,null,null,null,null,null,null,null,"",null,null,null,"",""]
[null,null,null,null,null,null,null,null,null,null,"",null,null,null,"",""]
[null,null,null,null,null,null,null,null,null,null,"",null,null,null,"",""]
[null,null,null,null,null,null,null,null,null,null,"",null,null,null,"",""]
[null,null,null,null,null,null,null,null,null,null,"",null,null,null,"",""]
[null,null,null,null,null,null,null,null,null,null,"",null,null,null,"",""]
[null,null,null,null,null,null,null,null,null,null,"",null,null,null,"",""]
[null,null,null,null,null,null,null,null,null,null,"",null,null,null,"",""]
[null,null,null,null,null,null,null,null,null,null,"",null,null,null,"",""]
[null,null,null,null,null,null,null,null,null,null,"",null,null,null,"",""]
[null,null,null,null,null,null,null,null,null,null,"",null,null,null,"",""]
[null,null,null,null,null,null,null,null,null,null,"",null,null,null,"",""]
[null,null,null,null,null,null,null,null,null,null,"",null,null,null,"",""]
[null,null,null,null,null,null,null,null,null,null,"",null,null,null,"",""]
[null,null,null,null,null,null,null,null,null,null,"",null,null,null,"",""]
[null,null,null,null,null,null,null,null,null,null,"",null,null,null,"",""]
[null,null,null,null,null,null,null,null,null,null,"",null,null,null,"",""]
[null,null,null,null,null,null,null,null,null,null,"",null,null,null,"",""]
[null,null,null,null,null,null,null,null,null,null,null,null,null,null,"",""]
[null,null,null,null,null,null,null,null,null,null,null,null,null,null,"",""]
[null,null,null,null,null,null,null,null,null,null,null,null,null,null,"",""]
[null,null,null,null,null,null,null,null,null,null,null,null,null,null,"",""]
[null,null,null,null,null,null,null,null,null,null,null,null,null,null,"",""]
[null,null,null,null,null,null,null,null,null,null,null,null,null,null,"",""]
[null,null,null,null,null,null,null,null,null,null,null,null,null,null,"",""]
[null,null,null,null,null,null,null,null,null,null,null,null,null,null,"",""]
[null,null,null,null,null,null,null,null,null,null,null,null,null,null,"",""]
[null,null,null,null,null,null,null,null,null,null,null,null,null,null,"",""]
[null,null,null,null,null,null,null,null,null,null,null,null,null,null,"",""]
[null,null,null,null,null,null,null,null,null,null,null,null,null,null,"",""]
[null,null,null,null,null,null,null,null,null,null,null,null,null,null,"",""]
[null,null,null,null,null,null,null,null,null,null,null,null,null,null,"",""]
[null,null,null,null,null,null,null,null,null,null,null,null,null,null,"",""]
[null,null,null,null,null,null,null,null,null,null,null,null,null,null,"",""]
[null,null,null,null,null,null,null,null,null,null,null,null,null,null,"",""]
[null,null,null,null,null,null,null,null,null,null,null,null,null,null,"",""]
[null,null,null,null,null,null,null,null,null,null,null,null,null,null,"",""]
[null,null,null,null,null,null,null,null,null,null,null,null,null,null,"",""]
[null,null,null,null,null,null,null,null,null,null,null,null,null,null,"",""]
[null,null,null,null,null,null,null,null,null,null,null,null,null,null,"",""]
[null,null,null,null,null,null,null,null,null,null,null,null,null,null,"",""]
[null,null,null,null,null,null,null,null,null,null,null,null,null,null,"",""]
[null,null,null,null,null,null,null,null,null,null,null,null,null,null,"",""]
[null,null,null,null,null,null,null,null,null,null,null,null,null,null,"",""]
[null,null,null,null,null,null,null,null,null,null,null,null,null,null,"",""]
[null,null,null,null,null,null,null,null,null,null,null,null,null,null,"",""]
[null,null,null,null,null,null,null,null,null,null,null,null,null,null,"",""]
[null,null,null,null,null,null,null,null,null,null,null,null,null,null,"",""]
[null,null,null,null,null,null,null,null,null,null,null,null,null,null,"",""]
[null,null,null,null,null,null,null,null,null,null,null,null,null,null,"",""]
[null,null,null,null,null,null,null,null,null,null,null,null,null,null,"",""]
[null,null,null,null,null,null,null,null,null,null,null,null,null,null,"",""]
[null,null,null,null,null,null,null,null,null,null,null,null,null,null,"",""]
[null,null,null,null,null,null,null,null,null,null,null,null,null,null,"",""]
[null,null,null,null,null,null,null,null,null,null,null,null,null,null,"",""]
[null,null,null,null,null,null,null,null,null,null,null,null,null,null,"",""]
[null,null,null,null,null,null,null,null,null,null,null,null,null,null,"",""]
[null,null,null,null,null,null,null,null,null,null,null,null,null,null,"",""]
[null,null,null,null,null,null,null,null,null,null,null,null,null,null,"",""]
[null,null,null,null,null,null,null,null,null,null,null,null,null,null,"",""]
[null,null,null,null,null,null,null,null,null,null,null,null,null,null,"",""]
[null,null,null,null,null,null,null,null,null,null,null,null,null,null,"",""]
[null,null,null,null,null,null,null,null,null,null,null,null,null,null,"",""]
[null,null,null,null,null,null,null,null,null,null,null,null,null,null,"",""]
[null,null,null,null,null,null,null,null,null,null,null,null,null,null,"",""]
[null,null,null,null,null,null,null,null,null,null,null,null,null,null,"",""]
[null,null,null,null,null,null,null,null,null,null,null,null,null,null,"",""]
[null,null,null,null,null,null,null,null,null,null,null,null,null,null,"",""]
[null,null,null,null,null,null,null,null,null,null,null,null,null,null,"",""]
[null,null,null,null,null,null,null,null,null,null,null,null,null,null,"",""]
[null,null,null,null,null,null,null,null,null,null,null,null,null,null,"",""]
[null,null,null,null,null,null,null,null,null,null,null,null,null,null,"",""]
[null,null,null,null,null,null,null,null,null,null,null,null,null,null,"",""]
[null,null,null,null,null,null,null,null,null,null,null,null,null,null,"",""]
[null,null,null,null,null,null,null,null,null,null,null,null,null,null,"",""]
[null,null,null,null,null,null,null,null,null,null,null,null,null,null,"",""]
[null,null,null,null,null,null,null,null,null,null,null,null,null,null,"",""]
[null,null,null,null,null,null,null,null,null,null,null,null,null,null,"",""]
[null,null,null,null,null,null,null,null,null,null,null,null,null,null,"",""]
[null,null,null,null,null,null,null,null,null,null,null,null,null,null,"",""]
[null,null,null,null,null,null,null,null,null,null,null,null,null,null,"",""]
[null,null,null,null,null,null,null,null,null,null,null,null,null,null,"",""]
[null,null,null,null,null,null,null,null,null,null,null,null,null,null,"",""]
[null,null,null,null,null,null,null,null,null,null,null,null,null,null,"",""]
[null,null,null,null,null,null,null,null,null,null,null,null,null,null,"",""]
[null,null,null,null,null,null,null,null,null,null,null,null,null,null,"",""]
[null,null,null,null,null,null,null,null,null,null,null,null,null,null,"",""]
[null,null,null,null,null,null,null,null,null,null,null,null,null,null,"",""]
[null,null,null,null,null,null,null,null,null,null,null,null,null,null,"",""]
[null,null,null,null,null,null,null,null,null,null,null,null,null,null,"",""]
[null,null,null,null,null,null,null,null,null,null,null,null,null,null,"",""]
[null,null,null,null,null,null,null,null,null,null,null,null,null,null,"",""]
[null,null,null,null,null,null,null,null,null,null,null,null,null,null,"",""]
[null,null,null,null,null,null,null,null,null,null,null,null,null,null,"",""]
[null,null,null,null,null,null,null,null,null,null,null,null,null,null,"",""]
[null,null,null,null,null,null,null,null,null,null,null,null,null,null,"",""]
[null,null,null,null,null,null,null,null,null,null,null,null,null,null,"",""]
[null,null,null,null,null,null,null,null,null,null,null,null,null,null,"",""]
[null,null,null,null,null,null,null,null,null,null,null,null,null,null,"",""]
[null,null,null,null,null,null,null,null,null,null,null,null,null,null,"",""]
[null,null,null,null,null,null,null,null,null,null,null,null,null,null,"",""]
[null,null,null,null,null,null,null,null,null,null,null,null,null,null,"",""]
[null,null,null,null,null,null,null,null,null,null,null,null,null,null,"",""]
[null,null,null,null,null,null,null,null,null,null,null,null,null,null,"",""]
[null,null,null,null,null,null,null,null,null,null,null,null,null,null,"",""]
[null,null,null,null,null,null,null,null,null,null,null,null,null,null,"",""]
[null,null,null,null,null,null,null,null,null,null,null,null,null,null,"",""]
[null,null,null,null,null,null,null,null,null,null,null,null,null,null,"",""]
[null,null,null,null,null,null,null,null,null,null,null,null,null,null,"",""]
[null,null,null,null,null,null,null,null,null,null,null,null,null,null,"",""]
[null,null,null,null,null,null,null,null,null,null,null,null,null,null,"",""]
[null,null,null,null,null,null,null,null,null,null,null,null,null,null,"",""]
[null,null,null,null,null,null,null,null,null,null,null,null,null,null,"",""]
[null,null,null,null,null,null,null,null,null,null,null,null,null,null,"",""]
[null,null,null,null,null,null,null,null,null,null,null,null,null,null,"",""]
[null,null,null,null,null,null,null,null,null,null,null,null,null,null,"",""]
[null,null,null,null,null,null,null,null,null,null,null,null,null,null,"",""]
[null,null,null,null,null,null,null,null,null,null,null,null,null,null,"",""]
[null,null,null,null,null,null,null,null,null,null,null,null,null,null,"",""]
[null,null,null,null,null,null,null,null,null,null,null,null,null,null,"",""]
[null,null,null,null,null,null,null,null,null,null,null,null,null,null,"",""]
[null,null,null,null,null,null,null,null,null,null,null,null,null,null,"",""]
[null,null,null,null,null,null,null,null,null,null,null,null,null,null,"",""]
[null,null,null,null,null,null,null,null,null,null,null,null,null,null,"",""]
[null,null,null,null,null,null,null,null,null,null,null,null,null,null,"",""]
[null,null,null,null,null,null,null,null,null,null,null,null,null,null,"",""]
[null,null,null,null,null,null,null,null,null,null,null,null,null,null,"",""]
[null,null,null,null,null,null,null,null,null,null,null,null,null,null,"",""]
[null,null,null,null,null,null,null,null,null,null,null,null,null,null,"",""]
[null,null,null,null,null,null,null,null,null,null,null,null,null,null,"",""]
[null,null,null,null,null,null,null,null,null,null,null,null,null,null,"",""]
[null,null,null,null,null,null,null,null,null,null,null,null,null,null,"",""]
[null,null,null,null,null,null,null,null,null,null,null,null,null,null,"",""]
[null,null,null,null,null,null,null,null,null,null,null,null,null,null,"",""]
[null,null,null,null,null,null,null,null,null,null,null,null,null,null,"",""]
[null,null,null,null,null,null,null,null,null,null,null,null,null,null,"",""]
[null,null,null,null,null,null,null,null,null,null,null,null,null,null,"",""]
[null,null,null,null,null,null,null,null,null,null,null,null,null,null,"",""]
[null,null,null,null,null,null,null,null,null,null,null,null,null,null,"",""]
[null,null,null,null,null,null,null,null,null,null,null,null,null,null,"",""]
[null,null,null,null,null,null,null,null,null,null,null,null,null,null,"",""]
[null,null,null,null,null,null,null,null,null,null,null,null,null,null,"",""]
[null,null,null,null,null,null,null,null,null,null,null,null,null,null,"",""]
[null,null,null,null,null,null,null,null,null,null,null,null,null,null,"",""]
[null,null,null,null,null,null,null,null,null,null,null,null,null,null,"",""]
[null,null,null,null,null,null,null,null,null,null,null,null,null,null,"",""]
[null,null,null,null,null,null,null,null,null,null,null,null,null,null,"",""]
[null,null,null,null,null,null,null,null,null,null,null,null,null,null,"",""]
[null,null,null,null,null,null,null,null,null,null,null,null,null,null,"",""]
[null,null,null,null,null,null,null,null,null,null,null,null,null,null,"",""]
[null,null,null,null,null,null,null,null,null,null,null,null,null,null,"",""]
[null,null,null,null,null,null,null,null,null,null,null,null,null,null,"",""]
[null,null,null,null,null,null,null,null,null,null,null,null,null,null,"",""]
[null,null,null,null,null,null,null,null,null,null,null,null,null,null,"",""]
[null,null,null,null,null,null,null,null,null,null,null,null,null,null,"",""]
[null,null,null,null,null,null,null,null,null,null,null,null,null,null,"",""]
[null,null,null,null,null,null,null,null,null,null,null,null,null,null,"",""]
[null,null,null,null,null,null,null,null,null,null,null,null,null,null,"",""]
[null,null,null,null,null,null,null,null,null,null,null,null,null,null,"",""]
[null,null,null,null,null,null,null,null,null,null,null,null,null,null,"",""]
[null,null,null,null,null,null,null,null,null,null,null,null,null,null,"",""]
[null,null,null,null,null,null,null,null,null,null,null,null,null,null,"",""]
[null,null,null,null,null,null,null,null,null,null,null,null,null,null,"",""]
[null,null,null,null,null,null,null,null,null,null,null,null,null,null,"",""]
[null,null,null,null,null,null,null,null,null,null,null,null,null,null,"",""]
[null,null,null,null,null,null,null,null,null,null,null,null,null,null,"",""]
[null,null,null,null,null,null,null,null,null,null,null,null,null,null,"",""]
[null,null,null,null,null,null,null,null,null,null,null,null,null,null,"",""]
[null,null,null,null,null,null,null,null,null,null,null,null,null,null,{"$f":"IF(OR(M7818=\"\",M7818=\"-\"),\"\",0.35*10^M7818)","v":""},{"$f":"IF(O7818=0.35*10^M7818,\"Seth method\",\"\")","v":""}]
[null,null,null,null,null,null,null,null,null,null,null,null,null,null,"",""]
[null,null,null,null,null,null,null,null,null,null,null,null,null,null,"",""]
[null,null,null,null,null,null,null,null,null,null,null,null,null,null,"",""]
[null,null,null,null,null,null,null,null,null,null,null,null,null,null,"",""]
[null,null,null,null,null,null,null,null,null,null,null,null,null,null,"",""]
[null,null,null,null,null,null,null,null,null,null,null,null,null,null,"",""]
[null,null,null,null,null,null,null,null,null,null,null,null,null,null,"",""]
[null,null,null,null,null,null,null,null,null,null,null,null,null,null,"",""]
[null,null,null,null,null,null,null,null,null,null,null,null,null,null,"",""]
[null,null,null,null,null,null,null,null,null,null,null,null,null,null,"",""]
[null,null,null,null,null,null,null,null,null,null,null,null,null,null,"",""]
[null,null,null,null,null,null,null,null,null,null,null,null,null,null,"",""]
[null,null,null,null,null,null,null,null,null,null,null,null,null,null,"",""]
[null,null,null,null,null,null,null,null,null,null,null,null,null,null,"",""]
[null,null,null,null,null,null,null,null,null,null,null,null,null,null,"",""]
[null,null,null,null,null,null,null,null,null,null,null,null,null,null,"",""]
[null,null,null,null,null,null,null,null,null,null,null,null,null,null,"",""]
[null,null,null,null,null,null,null,null,null,null,null,null,null,null,"",""]
[null,null,null,null,null,null,null,null,null,null,null,null,null,null,"",""]
[null,null,null,null,null,null,null,null,null,null,null,null,null,null,"",""]
[null,null,null,null,null,null,null,null,null,null,null,null,null,null,"",""]
[null,null,null,null,null,null,null,null,null,null,null,null,null,null,"",""]
[null,null,null,null,null,null,null,null,null,null,null,null,null,null,"",""]
[null,null,null,null,null,null,null,null,null,null,null,null,null,null,"",""]
[null,null,null,null,null,null,null,null,null,null,null,null,null,null,"",""]
[null,null,null,null,null,null,null,null,null,null,null,null,null,null,"",""]
[null,null,null,null,null,null,null,null,null,null,null,null,null,null,"",""]
[null,null,null,null,null,null,null,null,null,null,null,null,null,null,"",""]
[null,null,null,null,null,null,null,null,null,null,null,null,null,null,"",""]
[null,null,null,null,null,null,null,null,null,null,null,null,null,null,"",""]
[null,null,null,null,null,null,null,null,null,null,null,null,null,null,"",""]
[null,null,null,null,null,null,null,null,null,null,null,null,null,null,"",""]
[null,null,null,null,null,null,null,null,null,null,null,null,null,null,"",""]
[null,null,null,null,null,null,null,null,null,null,null,null,null,null,"",""]
[null,null,null,null,null,null,null,null,null,null,null,null,null,null,"",""]
[null,null,null,null,null,null,null,null,null,null,null,null,null,null,"",""]
[null,null,null,null,null,null,null,null,null,null,null,null,null,null,"",""]
[null,null,null,null,null,null,null,null,null,null,null,null,null,null,"",""]
[null,null,null,null,null,null,null,null,null,null,null,null,null,null,"",""]
[null,null,null,null,null,null,null,null,null,null,null,null,null,null,"",""]
[null,null,null,null,null,null,null,null,null,null,null,null,null,null,"",""]
[null,null,null,null,null,null,null,null,null,null,null,null,null,null,"",""]
[null,null,null,null,null,null,null,null,null,null,null,null,null,null,"",""]
[null,null,null,null,null,null,null,null,null,null,null,null,null,null,"",""]
[null,null,null,null,null,null,null,null,null,null,null,null,null,null,"",""]
[null,null,null,null,null,null,null,null,null,null,null,null,null,null,"",""]
[null,null,null,null,null,null,null,null,null,null,null,null,null,null,"",""]
[null,null,null,null,null,null,null,null,null,null,null,null,null,null,"",""]
[null,null,null,null,null,null,null,null,null,null,null,null,null,null,"",""]
[null,null,null,null,null,null,null,null,null,null,null,null,null,null,"",""]
[null,null,null,null,null,null,null,null,null,null,null,null,null,null,"",""]
[null,null,null,null,null,null,null,null,null,null,null,null,null,null,"",""]
[null,null,null,null,null,null,null,null,null,null,null,null,null,null,"",""]
[null,null,null,null,null,null,null,null,null,null,null,null,null,null,"",""]
[null,null,null,null,null,null,null,null,null,null,null,null,null,null,"",""]
[null,null,null,null,null,null,null,null,null,null,null,null,null,null,"",""]
[null,null,null,null,null,null,null,null,null,null,null,null,null,null,"",""]
[null,null,null,null,null,null,null,null,null,null,null,null,null,null,"",""]
[null,null,null,null,null,null,null,null,null,null,null,null,null,null,"",""]
[null,null,null,null,null,null,null,null,null,null,null,null,null,null,"",""]
[null,null,null,null,null,null,null,null,null,null,null,null,null,null,"",""]
[null,null,null,null,null,null,null,null,null,null,null,null,null,null,"",""]
[null,null,null,null,null,null,null,null,null,null,null,null,null,null,"",""]
[null,null,null,null,null,null,null,null,null,null,null,null,null,null,"",""]
[null,null,null,null,null,null,null,null,null,null,null,null,null,null,"",""]
[null,null,null,null,null,null,null,null,null,null,null,null,null,null,"",""]
[null,null,null,null,null,null,null,null,null,null,null,null,null,null,"",""]
[null,null,null,null,null,null,null,null,null,null,null,null,null,null,"",""]
[null,null,null,null,null,null,null,null,null,null,null,null,null,null,"",""]
[null,null,null,null,null,null,null,null,null,null,null,null,null,null,"",""]
[null,null,null,null,null,null,null,null,null,null,null,null,null,null,"",""]
[null,null,null,null,null,null,null,null,null,null,null,null,null,null,"",""]
[null,null,null,null,null,null,null,null,null,null,null,null,null,null,"",""]
[null,null,null,null,null,null,null,null,null,null,null,null,null,null,"",""]
[null,null,null,null,null,null,null,null,null,null,null,null,null,null,"",""]
[null,null,null,null,null,null,null,null,null,null,null,null,null,null,"",""]
[null,null,null,null,null,null,null,null,null,null,null,null,null,null,"",""]
[null,null,null,null,null,null,null,null,null,null,null,null,null,null,"",""]
[null,null,null,null,null,null,null,null,null,null,null,null,null,null,"",""]
[null,null,null,null,null,null,null,null,null,null,null,null,null,null,"",""]
[null,null,null,null,null,null,null,null,null,null,null,null,null,null,"",""]
[null,null,null,null,null,null,null,null,null,null,null,null,null,null,"",""]
[null,null,null,null,null,null,null,null,null,null,null,null,null,null,"",""]
[null,null,null,null,null,null,null,null,null,null,null,null,null,null,"",""]
[null,null,null,null,null,null,null,null,null,null,null,null,null,null,"",""]
[null,null,null,null,null,null,null,null,null,null,null,null,null,null,"",""]
[null,null,null,null,null,null,null,null,null,null,null,null,null,null,"",""]
[null,null,null,null,null,null,null,null,null,null,null,null,null,null,"",""]
[null,null,null,null,null,null,null,null,null,null,null,null,null,null,"",""]
[null,null,null,null,null,null,null,null,null,null,null,null,null,null,"",""]
[null,null,null,null,null,null,null,null,null,null,null,null,null,null,"",""]
[null,null,null,null,null,null,null,null,null,null,null,null,null,null,"",""]
[null,null,null,null,null,null,null,null,null,null,null,null,null,null,"",""]
[null,null,null,null,null,null,null,null,null,null,null,null,null,null,"",""]
[null,null,null,null,null,null,null,null,null,null,null,null,null,null,"",""]
[null,null,null,null,null,null,null,null,null,null,null,null,null,null,"",""]
[null,null,null,null,null,null,null,null,null,null,null,null,null,null,"",""]
[null,null,null,null,null,null,null,null,null,null,null,null,null,null,"",""]
[null,null,null,null,null,null,null,null,null,null,null,null,null,null,"",""]
[null,null,null,null,null,null,null,null,null,null,null,null,null,null,"",""]
[null,null,null,null,null,null,null,null,null,null,null,null,null,null,"",""]
[null,null,null,null,null,null,null,null,null,null,null,null,null,null,"",""]
[null,null,null,null,null,null,null,null,null,null,null,null,null,null,"",""]
[null,null,null,null,null,null,null,null,null,null,null,null,null,null,"",""]
[null,null,null,null,null,null,null,null,null,null,null,null,null,null,"",""]
[null,null,null,null,null,null,null,null,null,null,null,null,null,null,"",""]
[null,null,null,null,null,null,null,null,null,null,null,null,null,null,"",""]
[null,null,null,null,null,null,null,null,null,null,null,null,null,null,"",""]
[null,null,null,null,null,null,null,null,null,null,null,null,null,null,"",""]
[null,null,null,null,null,null,null,null,null,null,null,null,null,null,"",""]
[null,null,null,null,null,null,null,null,null,null,null,null,null,null,"",""]
[null,null,null,null,null,null,null,null,null,null,null,null,null,null,"",""]
[null,null,null,null,null,null,null,null,null,null,null,null,null,null,"",""]
[null,null,null,null,null,null,null,null,null,null,null,null,null,null,"",""]
[null,null,null,null,null,null,null,null,null,null,null,null,null,null,"",""]
[null,null,null,null,null,null,null,null,null,null,null,null,null,null,"",""]
[null,null,null,null,null,null,null,null,null,null,null,null,null,null,"",""]
[null,null,null,null,null,null,null,null,null,null,null,null,null,null,"",""]
[null,null,null,null,null,null,null,null,null,null,null,null,null,null,"",""]
[null,null,null,null,null,null,null,null,null,null,null,null,null,null,"",""]
[null,null,null,null,null,null,null,null,null,null,null,null,null,null,"",""]
[null,null,null,null,null,null,null,null,null,null,null,null,null,null,"",""]
[null,null,null,null,null,null,null,null,null,null,null,null,null,null,"",""]
[null,null,null,null,null,null,null,null,null,null,null,null,null,null,"",""]
[null,null,null,null,null,null,null,null,null,null,null,null,null,null,"",""]
[null,null,null,null,null,null,null,null,null,null,null,null,null,null,"",""]
[null,null,null,null,null,null,null,null,null,null,null,null,null,null,"",""]
[null,null,null,null,null,null,null,null,null,null,null,null,null,null,{"$f":"IF(OR(M11850=\"\",M11850=\"-\"),\"\",0.35*10^M11850)","v":""},{"$f":"IF(O11850=0.35*10^M11850,\"Seth method\",\"\")","v":""}]
[null,null,null,null,null,null,null,null,null,null,null,null,null,null,"",""]
[null,null,null,null,null,null,null,null,null,null,null,null,null,null,"",""]
[null,null,null,null,null,null,null,null,null,null,null,null,null,null,"",""]
[null,null,null,null,null,null,null,null,null,null,null,null,null,null,"",""]
[null,null,null,null,null,null,null,null,null,null,null,null,null,null,"",""]
[null,null,null,null,null,null,null,null,null,null,null,null,null,null,"",""]
[null,null,null,null,null,null,null,null,null,null,null,null,null,null,"",""]
[null,null,null,null,null,null,null,null,null,null,null,null,null,null,"",""]
[null,null,null,null,null,null,null,null,null,null,null,null,null,null,"",""]
[null,null,null,null,null,null,null,null,null,null,null,null,null,null,"",""]
[null,null,null,null,null,null,null,null,null,null,null,null,null,null,"",""]
[null,null,null,null,null,null,null,null,null,null,null,null,null,null,"",""]
[null,null,null,null,null,null,null,null,null,null,null,null,null,null,"",""]
[null,null,null,null,null,null,null,null,null,null,null,null,null,null,"",""]
[null,null,null,null,null,null,null,null,null,null,null,null,null,null,"",""]
[null,null,null,null,null,null,null,null,null,null,null,null,null,null,"",""]
[null,null,null,null,null,null,null,null,null,null,null,null,null,null,"",""]
[null,null,null,null,null,null,null,null,null,null,null,null,null,null,"",""]
[null,null,null,null,null,null,null,null,null,null,null,null,null,null,"",""]
[null,null,null,null,null,null,null,null,null,null,null,null,null,null,"",""]
[null,null,null,null,null,null,null,null,null,null,null,null,null,null,"",""]
[null,null,null,null,null,null,null,null,null,null,null,null,null,null,"",""]
[null,null,null,null,null,null,null,null,null,null,null,null,null,null,"",""]
[null,null,null,null,null,null,null,null,null,null,null,null,null,null,"",""]
[null,null,null,null,null,null,null,null,null,null,null,null,null,null,"",""]
[null,null,null,null,null,null,null,null,null,null,null,null,null,null,"",""]
[null,null,null,null,null,null,null,null,null,null,null,null,null,null,"",""]
[null,null,null,null,null,null,null,null,null,null,null,null,null,null,"",""]
[null,null,null,null,null,null,null,null,null,null,null,null,null,null,"",""]
[null,null,null,null,null,null,null,null,null,null,null,null,null,null,"",""]
[null,null,null,null,null,null,null,null,null,null,null,null,null,null,"",""]
[null,null,null,null,null,null,null,null,null,null,null,null,null,null,"",""]
[null,null,null,null,null,null,null,null,null,null,null,null,null,null,"",""]
[null,null,null,null,null,null,null,null,null,null,null,null,null,null,"",""]
[null,null,null,null,null,null,null,null,null,null,null,null,null,null,"",""]
[null,null,null,null,null,null,null,null,null,null,null,null,null,null,"",""]
[null,null,null,null,null,null,null,null,null,null,null,null,null,null,"",""]
[null,null,null,null,null,null,null,null,null,null,null,null,null,null,"",""]
[null,null,null,null,null,null,null,null,null,null,null,null,null,null,"",""]
[null,null,null,null,null,null,null,null,null,null,null,null,null,null,"",""]
[null,null,null,null,null,null,null,null,null,null,null,null,null,null,"",""]
[null,null,null,null,null,null,null,null,null,null,null,null,null,null,"",""]
[null,null,null,null,null,null,null,null,null,null,null,null,null,null,"",""]
[null,null,null,null,null,null,null,null,null,null,null,null,null,null,"",""]
[null,null,null,null,null,null,null,null,null,null,null,null,null,null,"",""]
[null,null,null,null,null,null,null,null,null,null,null,null,null,null,"",""]
[null,null,null,null,null,null,null,null,null,null,null,null,null,null,"",""]
[null,null,null,null,null,null,null,null,null,null,null,null,null,null,"",""]
[null,null,null,null,null,null,null,null,null,null,null,null,null,null,"",""]
[null,null,null,null,null,null,null,null,null,null,null,null,null,null,"",""]
[null,null,null,null,null,null,null,null,null,null,null,null,null,null,"",""]
[null,null,null,null,null,null,null,null,null,null,null,null,null,null,"",""]
[null,null,null,null,null,null,null,null,null,null,null,null,null,null,"",""]
[null,null,null,null,null,null,null,null,null,null,null,null,null,null,"",""]
[null,null,null,null,null,null,null,null,null,null,null,null,null,null,"",""]
[null,null,null,null,null,null,null,null,null,null,null,null,null,null,"",""]
[null,null,null,null,null,null,null,null,null,null,null,null,null,null,"",""]
[null,null,null,null,null,null,null,null,null,null,null,null,null,null,"",""]
[null,null,null,null,null,null,null,null,null,null,null,null,null,null,"",""]
[null,null,null,null,null,null,null,null,null,null,null,null,null,null,"",""]
[null,null,null,null,null,null,null,null,null,null,null,null,null,null,"",""]
[null,null,null,null,null,null,null,null,null,null,null,null,null,null,"",""]
[null,null,null,null,null,null,null,null,null,null,null,null,null,null,"",""]
[null,null,null,null,null,null,null,null,null,null,null,null,null,null,"",""]
[null,null,null,null,null,null,null,null,null,null,null,null,null,null,"",""]
[null,null,null,null,null,null,null,null,null,null,null,null,null,null,"",""]
[null,null,null,null,null,null,null,null,null,null,null,null,null,null,"",""]
[null,null,null,null,null,null,null,null,null,null,null,null,null,null,"",""]
[null,null,null,null,null,null,null,null,null,null,null,null,null,null,"",""]
[null,null,null,null,null,null,null,null,null,null,null,null,null,null,"",""]
[null,null,null,null,null,null,null,null,null,null,null,null,null,null,"",""]
[null,null,null,null,null,null,null,null,null,null,null,null,null,null,"",""]
[null,null,null,null,null,null,null,null,null,null,null,null,null,null,"",""]
[null,null,null,null,null,null,null,null,null,null,null,null,null,null,"",""]
[null,null,null,null,null,null,null,null,null,null,null,null,null,null,"",""]
[null,null,null,null,null,null,null,null,null,null,null,null,null,null,"",""]
[null,null,null,null,null,null,null,null,null,null,null,null,null,null,"",""]
[null,null,null,null,null,null,null,null,null,null,null,null,null,null,"",""]
[null,null,null,null,null,null,null,null,null,null,null,null,null,null,"",""]
[null,null,null,null,null,null,null,null,null,null,null,null,null,null,"",""]
[null,null,null,null,null,null,null,null,null,null,null,null,null,null,"",""]
[null,null,null,null,null,null,null,null,null,null,null,null,null,null,"",""]
[null,null,null,null,null,null,null,null,null,null,null,null,null,null,"",""]
[null,null,null,null,null,null,null,null,null,null,null,null,null,null,"",""]
[null,null,null,null,null,null,null,null,null,null,null,null,null,null,"",""]
[null,null,null,null,null,null,null,null,null,null,null,null,null,null,"",""]
[null,null,null,null,null,null,null,null,null,null,null,null,null,null,"",""]
[null,null,null,null,null,null,null,null,null,null,null,null,null,null,"",""]
[null,null,null,null,null,null,null,null,null,null,null,null,null,null,"",""]
[null,null,null,null,null,null,null,null,null,null,null,null,null,null,"",""]
[null,null,null,null,null,null,null,null,null,null,null,null,null,null,{"$f":"IF(OR(M14730=\"\",M14730=\"-\"),\"\",0.35*10^M14730)","v":""},{"$f":"IF(O14730=0.35*10^M14730,\"Seth method\",\"\")","v":""}]
[null,null,null,null,null,null,null,null,null,null,null,null,null,null,"",""]
[null,null,null,null,null,null,null,null,null,null,null,null,null,null,"",""]
[null,null,null,null,null,null,null,null,null,null,null,null,null,null,"",""]
[null,null,null,null,null,null,null,null,null,null,null,null,null,null,"",""]
[null,null,null,null,null,null,null,null,null,null,null,null,null,null,"",""]
[null,null,null,null,null,null,null,null,null,null,null,null,null,null,"",""]
[null,null,null,null,null,null,null,null,null,null,null,null,null,null,"",""]
[null,null,null,null,null,null,null,null,null,null,null,null,null,null,"",""]
[null,null,null,null,null,null,null,null,null,null,null,null,null,null,"",""]
[null,null,null,null,null,null,null,null,null,null,null,null,null,null,"",""]
[null,null,null,null,null,null,null,null,null,null,null,null,null,null,"",""]
[null,null,null,null,null,null,null,null,null,null,null,null,null,null,"",""]
[null,null,null,null,null,null,null,null,null,null,null,null,null,null,"",""]
[null,null,null,null,null,null,null,null,null,null,null,null,null,null,"",""]
[null,null,null,null,null,null,null,null,null,null,null,null,null,null,"",""]
[null,null,null,null,null,null,null,null,null,null,null,null,null,null,"",""]
[null,null,null,null,null,null,null,null,null,null,null,null,null,null,"",""]
[null,null,null,null,null,null,null,null,null,null,null,null,null,null,"",""]
[null,null,null,null,null,null,null,null,null,null,null,null,null,null,"",""]
[null,null,null,null,null,null,null,null,null,null,null,null,null,null,"",""]
[null,null,null,null,null,null,null,null,null,null,null,null,null,null,"",""]
[null,null,null,null,null,null,null,null,null,null,null,null,null,null,"",""]
[null,null,null,null,null,null,null,null,null,null,null,null,null,null,"",""]
[null,null,null,null,null,null,null,null,null,null,null,null,null,null,"",""]
[null,null,null,null,null,null,null,null,null,null,null,null,null,null,"",""]
[null,null,null,null,null,null,null,null,null,null,null,null,null,null,"",""]
[null,null,null,null,null,null,null,null,null,null,null,null,null,null,"",""]
[null,null,null,null,null,null,null,null,null,null,null,null,null,null,"",""]
[null,null,null,null,null,null,null,null,null,null,null,null,null,null,"",""]
[null,null,null,null,null,null,null,null,null,null,null,null,null,null,"",""]
[null,null,null,null,null,null,null,null,null,null,null,null,null,null,{"$f":"IF(OR(M15690=\"\",M15690=\"-\"),\"\",0.35*10^M15690)","v":""},{"$f":"IF(O15690=0.35*10^M15690,\"Seth method\",\"\")","v":""}]
[null,null,null,null,null,null,null,null,null,null,null,null,null,null,"",""]
[null,null,null,null,null,null,null,null,null,null,null,null,null,null,"",""]
[null,null,null,null,null,null,null,null,null,null,null,null,null,null,"",""]
[null,null,null,null,null,null,null,null,null,null,null,null,null,null,"",""]
[null,null,null,null,null,null,null,null,null,null,null,null,null,null,"",""]
[null,null,null,null,null,null,null,null,null,null,null,null,null,null,"",""]
[null,null,null,null,null,null,null,null,null,null,null,null,null,null,"",""]
[null,null,null,null,null,null,null,null,null,null,null,null,null,null,"",""]
[null,null,null,null,null,null,null,null,null,null,null,null,null,null,"",""]
[null,null,null,null,null,null,null,null,null,null,null,null,null,null,"",""]
[null,null,null,null,null,null,null,null,null,null,null,null,null,null,"",""]
[null,null,null,null,null,null,null,null,null,null,null,null,null,null,"",""]
[null,null,null,null,null,null,null,null,null,null,null,null,null,null,"",""]
[null,null,null,null,null,null,null,null,null,null,null,null,null,null,"",""]
[null,null,null,null,null,null,null,null,null,null,null,null,null,null,"",""]
[null,null,null,null,null,null,null,null,null,null,null,null,null,null,"",""]
[null,null,null,null,null,null,null,null,null,null,null,null,null,null,"",""]
[null,null,null,null,null,null,null,null,null,null,null,null,null,null,"",""]
[null,null,null,null,null,null,null,null,null,null,null,null,null,null,"",""]
[null,null,null,null,null,null,null,null,null,null,null,null,null,null,"",""]
[null,null,null,null,null,null,null,null,null,null,null,null,null,null,"",""]
[null,null,null,null,null,null,null,null,null,null,null,null,null,null,"",""]
[null,null,null,null,null,null,null,null,null,null,null,null,null,null,"",""]
[null,null,null,null,null,null,null,null,null,null,null,null,null,null,"",""]
[null,null,null,null,null,null,null,null,null,null,null,null,null,null,"",""]
[null,null,null,null,null,null,null,null,null,null,null,null,null,null,"",""]
[null,null,null,null,null,null,null,null,null,null,null,null,null,null,"",""]
[null,null,null,null,null,null,null,null,null,null,null,null,null,null,"",""]
[null,null,null,null,null,null,null,null,null,null,null,null,null,null,"",""]
[null,null,null,null,null,null,null,null,null,null,null,null,null,null,"",""]
[null,null,null,null,null,null,null,null,null,null,null,null,null,null,"",""]
[null,null,null,null,null,null,null,null,null,null,null,null,null,null,"",""]
[null,null,null,null,null,null,null,null,null,null,null,null,null,null,"",""]
[null,null,null,null,null,null,null,null,null,null,null,null,null,null,"",""]
[null,null,null,null,null,null,null,null,null,null,null,null,null,null,"",""]
[null,null,null,null,null,null,null,null,null,null,null,null,null,null,"",""]
[null,null,null,null,null,null,null,null,null,null,null,null,null,null,"",""]
[null,null,null,null,null,null,null,null,null,null,null,null,null,null,"",""]
[null,null,null,null,null,null,null,null,null,null,null,null,null,null,"",""]
[null,null,null,null,null,null,null,null,null,null,null,null,null,null,"",""]
[null,null,null,null,null,null,null,null,null,null,null,null,null,null,"",""]
[null,null,null,null,null,null,null,null,null,null,null,null,null,null,"",""]
[null,null,null,null,null,null,null,null,null,null,null,null,null,null,"",""]
[null,null,null,null,null,null,null,null,null,null,null,null,null,null,"",""]
[null,null,null,null,null,null,null,null,null,null,null,null,null,null,"",""]
[null,null,null,null,null,null,null,null,null,null,null,null,null,null,"",""]
[null,null,null,null,null,null,null,null,null,null,null,null,null,null,"",""]
[null,null,null,null,null,null,null,null,null,null,null,null,null,null,"",""]
[null,null,null,null,null,null,null,null,null,null,null,null,null,null,"",""]
[null,null,null,null,null,null,null,null,null,null,null,null,null,null,"",""]
[null,null,null,null,null,null,null,null,null,null,null,null,null,null,"",""]
[null,null,null,null,null,null,null,null,null,null,null,null,null,null,"",""]
[null,null,null,null,null,null,null,null,null,null,null,null,null,null,"",""]
[null,null,null,null,null,null,null,null,null,null,null,null,null,null,"",""]
[null,null,null,null,null,null,null,null,null,null,null,null,null,null,"",""]
[null,null,null,null,null,null,null,null,null,null,null,null,null,null,"",""]
[null,null,null,null,null,null,null,null,null,null,null,null,null,null,"",""]
[null,null,null,null,null,null,null,null,null,null,null,null,null,null,"",""]
[null,null,null,null,null,null,null,null,null,null,null,null,null,null,"",""]
[null,null,null,null,null,null,null,null,null,null,null,null,null,null,"",""]
[null,null,null,null,null,null,null,null,null,null,null,null,null,null,"",""]
[null,null,null,null,null,null,null,null,null,null,null,null,null,null,"",""]
[null,null,null,null,null,null,null,null,null,null,null,null,null,null,"",""]
[null,null,null,null,null,null,null,null,null,null,null,null,null,null,"",""]
[null,null,null,null,null,null,null,null,null,null,null,null,null,null,"",""]
[null,null,null,null,null,null,null,null,null,null,null,null,null,null,"",""]
[null,null,null,null,null,null,null,null,null,null,null,null,null,null,"",""]
[null,null,null,null,null,null,null,null,null,null,null,null,null,null,"",""]
[null,null,null,null,null,null,null,null,null,null,null,null,null,null,"",""]
[null,null,null,null,null,null,null,null,null,null,null,null,null,null,"",""]
[null,null,null,null,null,null,null,null,null,null,null,null,null,null,"",""]
[null,null,null,null,null,null,null,null,null,null,null,null,null,null,"",""]
[null,null,null,null,null,null,null,null,null,null,null,null,null,null,"",""]
[null,null,null,null,null,null,null,null,null,null,null,null,null,null,"",""]
[null,null,null,null,null,null,null,null,null,null,null,null,null,null,"",""]
[null,null,null,null,null,null,null,null,null,null,null,null,null,null,"",""]
[null,null,null,null,null,null,null,null,null,null,null,null,null,null,"",""]
[null,null,null,null,null,null,null,null,null,null,null,null,null,null,"",""]
[null,null,null,null,null,null,null,null,null,null,null,null,null,null,"",""]
[null,null,null,null,null,null,null,null,null,null,null,null,null,null,"",""]
[null,null,null,null,null,null,null,null,null,null,null,null,null,null,"",""]
[null,null,null,null,null,null,null,null,null,null,null,null,null,null,"",""]
[null,null,null,null,null,null,null,null,null,null,null,null,null,null,"",""]
[null,null,null,null,null,null,null,null,null,null,null,null,null,null,"",""]
[null,null,null,null,null,null,null,null,null,null,null,null,null,null,"",""]
[null,null,null,null,null,null,null,null,null,null,null,null,null,null,"",""]
[null,null,null,null,null,null,null,null,null,null,null,null,null,null,"",""]
[null,null,null,null,null,null,null,null,null,null,null,null,null,null,"",""]
[null,null,null,null,null,null,null,null,null,null,null,null,null,null,"",""]
[null,null,null,null,null,null,null,null,null,null,null,null,null,null,"",""]
[null,null,null,null,null,null,null,null,null,null,null,null,null,null,"",""]
[null,null,null,null,null,null,null,null,null,null,null,null,null,null,"",""]
[null,null,null,null,null,null,null,null,null,null,null,null,null,null,{"$f":"IF(OR(M18634=\"\",M18634=\"-\"),\"\",0.35*10^M18634)","v":""},{"$f":"IF(O18634=0.35*10^M18634,\"Seth method\",\"\")","v":""}]
[null,null,null,null,null,null,null,null,null,null,null,null,null,null,"",""]
[null,null,null,null,null,null,null,null,null,null,null,null,null,null,"",""]
[null,null,null,null,null,null,null,null,null,null,null,null,null,null,"",""]
[null,null,null,null,null,null,null,null,null,null,null,null,null,null,"",""]
[null,null,null,null,null,null,null,null,null,null,null,null,null,null,"",""]
[null,null,null,null,null,null,null,null,null,null,null,null,null,null,"",""]
[null,null,null,null,null,null,null,null,null,null,null,null,null,null,"",""]
[null,null,null,null,null,null,null,null,null,null,null,null,null,null,"",""]
[null,null,null,null,null,null,null,null,null,null,null,null,null,null,"",""]
[null,null,null,null,null,null,null,null,null,null,null,null,null,null,"",""]
[null,null,null,null,null,null,null,null,null,null,null,null,null,null,"",""]
[null,null,null,null,null,null,null,null,null,null,null,null,null,null,"",""]
[null,null,null,null,null,null,null,null,null,null,null,null,null,null,"",""]
[null,null,null,null,null,null,null,null,null,null,null,null,null,null,"",""]
[null,null,null,null,null,null,null,null,null,null,null,null,null,null,"",""]
[null,null,null,null,null,null,null,null,null,null,null,null,null,null,"",""]
[null,null,null,null,null,null,null,null,null,null,null,null,null,null,"",""]
[null,null,null,null,null,null,null,null,null,null,null,null,null,null,"",""]
[null,null,null,null,null,null,null,null,null,null,null,null,null,null,"",""]
[null,null,null,null,null,null,null,null,null,null,null,null,null,null,"",""]
[null,null,null,null,null,null,null,null,null,null,null,null,null,null,"",""]
[null,null,null,null,null,null,null,null,null,null,null,null,null,null,"",""]
[null,null,null,null,null,null,null,null,null,null,null,null,null,null,"",""]
[null,null,null,null,null,null,null,null,null,null,null,null,null,null,"",""]
[null,null,null,null,null,null,null,null,null,null,null,null,null,null,"",""]
[null,null,null,null,null,null,null,null,null,null,null,null,null,null,"",""]
[null,null,null,null,null,null,null,null,null,null,null,null,null,null,"",""]
[null,null,null,null,null,null,null,null,null,null,null,null,null,null,"",""]
[null,null,null,null,null,null,null,null,null,null,null,null,null,null,"",""]
[null,null,null,null,null,null,null,null,null,null,null,null,null,null,"",""]
[null,null,null,null,null,null,null,null,null,null,null,null,null,null,{"$f":"IF(OR(M19594=\"\",M19594=\"-\"),\"\",0.35*10^M19594)","v":""},{"$f":"IF(O19594=0.35*10^M19594,\"Seth method\",\"\")","v":""}]
[null,null,null,null,null,null,null,null,null,null,null,null,null,null,"",""]
[null,null,null,null,null,null,null,null,null,null,null,null,null,null,"",""]
[null,null,null,null,null,null,null,null,null,null,null,null,null,null,"",""]
[null,null,null,null,null,null,null,null,null,null,null,null,null,null,"",""]
[null,null,null,null,null,null,null,null,null,null,null,null,null,null,"",""]
[null,null,null,null,null,null,null,null,null,null,null,null,null,null,"",""]
[null,null,null,null,null,null,null,null,null,null,null,null,null,null,"",""]
[null,null,null,null,null,null,null,null,null,null,null,null,null,null,"",""]
[null,null,null,null,null,null,null,null,null,null,null,null,null,null,"",""]
[null,null,null,null,null,null,null,null,null,null,null,null,null,null,"",""]
[null,null,null,null,null,null,null,null,null,null,null,null,null,null,"",""]
[null,null,null,null,null,null,null,null,null,null,null,null,null,null,"",""]
[null,null,null,null,null,null,null,null,null,null,null,null,null,null,"",""]
[null,null,null,null,null,null,null,null,null,null,null,null,null,null,"",""]
[null,null,null,null,null,null,null,null,null,null,null,null,null,null,"",""]
[null,null,null,null,null,null,null,null,null,null,null,null,null,null,"",""]
[null,null,null,null,null,null,null,null,null,null,null,null,null,null,"",""]
[null,null,null,null,null,null,null,null,null,null,null,null,null,null,"",""]
[null,null,null,null,null,null,null,null,null,null,null,null,null,null,"",""]
[null,null,null,null,null,null,null,null,null,null,null,null,null,null,"",""]
[null,null,null,null,null,null,null,null,null,null,null,null,null,null,"",""]
[null,null,null,null,null,null,null,null,null,null,null,null,null,null,"",""]
[null,null,null,null,null,null,null,null,null,null,null,null,null,null,"",""]
[null,null,null,null,null,null,null,null,null,null,null,null,null,null,"",""]
[null,null,null,null,null,null,null,null,null,null,null,null,null,null,"",""]
[null,null,null,null,null,null,null,null,null,null,null,null,null,null,{"$f":"IF(OR(M20426=\"\",M20426=\"-\"),\"\",0.35*10^M20426)","v":""},{"$f":"IF(O20426=0.35*10^M20426,\"Seth method\",\"\")","v":""}]
[null,null,null,null,null,null,null,null,null,null,null,null,null,null,"",""]
[null,null,null,null,null,null,null,null,null,null,null,null,null,null,"",""]
[null,null,null,null,null,null,null,null,null,null,null,null,null,null,"",""]
[null,null,null,null,null,null,null,null,null,null,null,null,null,null,"",""]
[null,null,null,null,null,null,null,null,null,null,null,null,null,null,"",""]
[null,null,null,null,null,null,null,null,null,null,null,null,null,null,"",""]
[null,null,null,null,null,null,null,null,null,null,null,null,null,null,"",""]
[null,null,null,null,null,null,null,null,null,null,null,null,null,null,"",""]
[null,null,null,null,null,null,null,null,null,null,null,null,null,null,"",""]
[null,null,null,null,null,null,null,null,null,null,null,null,null,null,"",""]
[null,null,null,null,null,null,null,null,null,null,null,null,null,null,"",""]
[null,null,null,null,null,null,null,null,null,null,null,null,null,null,"",""]
[null,null,null,null,null,null,null,null,null,null,null,null,null,null,"",""]
[null,null,null,null,null,null,null,null,null,null,null,null,null,null,"",""]
[null,null,null,null,null,null,null,null,null,null,null,null,null,null,"",""]
[null,null,null,null,null,null,null,null,null,null,null,null,null,null,"",""]
[null,null,null,null,null,null,null,null,null,null,null,null,null,null,"",""]
[null,null,null,null,null,null,null,null,null,null,null,null,null,null,"",""]
[null,null,null,null,null,null,null,null,null,null,null,null,null,null,"",""]
[null,null,null,null,null,null,null,null,null,null,null,null,null,null,"",""]
[null,null,null,null,null,null,null,null,null,null,null,null,null,null,"",""]
[null,null,null,null,null,null,null,null,null,null,null,null,null,null,"",""]
[null,null,null,null,null,null,null,null,null,null,null,null,null,null,"",""]
[null,null,null,null,null,null,null,null,null,null,null,null,null,null,"",""]
[null,null,null,null,null,null,null,null,null,null,null,null,null,null,"",""]
[null,null,null,null,null,null,null,null,null,null,null,null,null,null,"",""]
[null,null,null,null,null,null,null,null,null,null,null,null,null,null,"",""]
[null,null,null,null,null,null,null,null,null,null,null,null,null,null,"",""]
[null,null,null,null,null,null,null,null,null,null,null,null,null,null,"",""]
[null,null,null,null,null,null,null,null,null,null,null,null,null,null,"",""]
[null,null,null,null,null,null,null,null,null,null,null,null,null,null,"",""]
[null,null,null,null,null,null,null,null,null,null,null,null,null,null,"",""]
[null,null,null,null,null,null,null,null,null,null,null,null,null,null,"",""]
[null,null,null,null,null,null,null,null,null,null,null,null,null,null,"",""]
[null,null,null,null,null,null,null,null,null,null,null,null,null,null,"",""]
[null,null,null,null,null,null,null,null,null,null,null,null,null,null,"",""]
[null,null,null,null,null,null,null,null,null,null,null,null,null,null,"",""]
[null,null,null,null,null,null,null,null,null,null,null,null,null,null,"",""]
[null,null,null,null,null,null,null,null,null,null,null,null,null,null,"",""]
[null,null,null,null,null,null,null,null,null,null,null,null,null,null,"",""]
[null,null,null,null,null,null,null,null,null,null,null,null,null,null,"",""]
[null,null,null,null,null,null,null,null,null,null,null,null,null,null,"",""]
[null,null,null,null,null,null,null,null,null,null,null,null,null,null,"",""]
[null,null,null,null,null,null,null,null,null,null,null,null,null,null,"",""]
[null,null,null,null,null,null,null,null,null,null,null,null,null,null,"",""]
[null,null,null,null,null,null,null,null,null,null,null,null,null,null,"",""]
[null,null,null,null,null,null,null,null,null,null,null,null,null,null,"",""]
[null,null,null,null,null,null,null,null,null,null,null,null,null,null,"",""]
[null,null,null,null,null,null,null,null,null,null,null,null,null,null,"",""]
[null,null,null,null,null,null,null,null,null,null,null,null,null,null,"",""]
[null,null,null,null,null,null,null,null,null,null,null,null,null,null,"",""]
[null,null,null,null,null,null,null,null,null,null,null,null,null,null,"",""]
[null,null,null,null,null,null,null,null,null,null,null,null,null,null,"",""]
[null,null,null,null,null,null,null,null,null,null,null,null,null,null,"",""]
[null,null,null,null,null,null,null,null,null,null,null,null,null,null,"",""]
[null,null,null,null,null,null,null,null,null,null,null,null,null,null,"",""]
[null,null,null,null,null,null,null,null,null,null,null,null,null,null,"",""]
[null,null,null,null,null,null,null,null,null,null,null,null,null,null,"",""]
[null,null,null,null,null,null,null,null,null,null,null,null,null,null,"",""]
[null,null,null,null,null,null,null,null,null,null,null,null,null,null,"",""]
[null,null,null,null,null,null,null,null,null,null,null,null,null,null,"",""]
[null,null,null,null,null,null,null,null,null,null,null,null,null,null,"",""]
[null,null,null,null,null,null,null,null,null,null,null,null,null,null,"",""]
[null,null,null,null,null,null,null,null,null,null,null,null,null,null,"",""]
[null,null,null,null,null,null,null,null,null,null,null,null,null,null,"",""]
[null,null,null,null,null,null,null,null,null,null,null,null,null,null,"",""]
[null,null,null,null,null,null,null,null,null,null,null,null,null,null,{"$f":"IF(OR(M22538=\"\",M22538=\"-\"),\"\",0.35*10^M22538)","v":""},{"$f":"IF(O22538=0.35*10^M22538,\"Seth method\",\"\")","v":""}]
[null,null,null,null,null,null,null,null,null,null,null,null,null,null,"",""]
[null,null,null,null,null,null,null,null,null,null,null,null,null,null,"",""]
[null,null,null,null,null,null,null,null,null,null,null,null,null,null,"",""]
[null,null,null,null,null,null,null,null,null,null,null,null,null,null,"",""]
[null,null,null,null,null,null,null,null,null,null,null,null,null,null,"",""]
[null,null,null,null,null,null,null,null,null,null,null,null,null,null,"",""]
[null,null,null,null,null,null,null,null,null,null,null,null,null,null,"",""]
[null,null,null,null,null,null,null,null,null,null,null,null,null,null,"",""]
[null,null,null,null,null,null,null,null,null,null,null,null,null,null,"",""]
[null,null,null,null,null,null,null,null,null,null,null,null,null,null,"",""]
[null,null,null,null,null,null,null,null,null,null,null,null,null,null,"",""]
[null,null,null,null,null,null,null,null,null,null,null,null,null,null,"",""]
[null,null,null,null,null,null,null,null,null,null,null,null,null,null,"",""]
[null,null,null,null,null,null,null,null,null,null,null,null,null,null,"",""]
[null,null,null,null,null,null,null,null,null,null,null,null,null,null,"",""]
[null,null,null,null,null,null,null,null,null,null,null,null,null,null,"",""]
[null,null,null,null,null,null,null,null,null,null,null,null,null,null,"",""]
[null,null,null,null,null,null,null,null,null,null,null,null,null,null,"",""]
[null,null,null,null,null,null,null,null,null,null,null,null,null,null,"",""]
[null,null,null,null,null,null,null,null,null,null,null,null,null,null,"",""]
[null,null,null,null,null,null,null,null,null,null,null,null,null,null,"",""]
[null,null,null,null,null,null,null,null,null,null,null,null,null,null,"",""]
[null,null,null,null,null,null,null,null,null,null,null,null,null,null,"",""]
[null,null,null,null,null,null,null,null,null,null,null,null,null,null,"",""]
[null,null,null,null,null,null,null,null,null,null,null,null,null,null,"",""]
[null,null,null,null,null,null,null,null,null,null,null,null,null,null,"",""]
[null,null,null,null,null,null,null,null,null,null,null,null,null,null,"",""]
[null,null,null,null,null,null,null,null,null,null,null,null,null,null,"",""]
[null,null,null,null,null,null,null,null,null,null,null,null,null,null,"",""]
[null,null,null,null,null,null,null,null,null,null,null,null,null,null,"",""]
[null,null,null,null,null,null,null,null,null,null,null,null,null,null,{"$f":"IF(OR(M23498=\"\",M23498=\"-\"),\"\",0.35*10^M23498)","v":""},{"$f":"IF(O23498=0.35*10^M23498,\"Seth method\",\"\")","v":""}]
[null,null,null,null,null,null,null,null,null,null,null,null,null,null,"",""]
[null,null,null,null,null,null,null,null,null,null,null,null,null,null,"",""]
[null,null,null,null,null,null,null,null,null,null,null,null,null,null,"",""]
[null,null,null,null,null,null,null,null,null,null,null,null,null,null,"",""]
[null,null,null,null,null,null,null,null,null,null,null,null,null,null,"",""]
[null,null,null,null,null,null,null,null,null,null,null,null,null,null,"",""]
[null,null,null,null,null,null,null,null,null,null,null,null,null,null,"",""]
[null,null,null,null,null,null,null,null,null,null,null,null,null,null,"",""]
[null,null,null,null,null,null,null,null,null,null,null,null,null,null,"",""]
[null,null,null,null,null,null,null,null,null,null,null,null,null,null,"",""]
[null,null,null,null,null,null,null,null,null,null,null,null,null,null,"",""]
[null,null,null,null,null,null,null,null,null,null,null,null,null,null,"",""]
[null,null,null,null,null,null,null,null,null,null,null,null,null,null,"",""]
[null,null,null,null,null,null,null,null,null,null,null,null,null,null,"",""]
[null,null,null,null,null,null,null,null,null,null,null,null,null,null,"",""]
[null,null,null,null,null,null,null,null,null,null,null,null,null,null,"",""]
[null,null,null,null,null,null,null,null,null,null,null,null,null,null,"",""]
[null,null,null,null,null,null,null,null,null,null,null,null,null,null,"",""]
[null,null,null,null,null,null,null,null,null,null,null,null,null,null,"",""]
[null,null,null,null,null,null,null,null,null,null,null,null,null,null,"",""]
[null,null,null,null,null,null,null,null,null,null,null,null,null,null,"",""]
[null,null,null,null,null,null,null,null,null,null,null,null,null,null,"",""]
[null,null,null,null,null,null,null,null,null,null,null,null,null,null,"",""]
[null,null,null,null,null,null,null,null,null,null,null,null,null,null,"",""]
[null,null,null,null,null,null,null,null,null,null,null,null,null,null,"",""]
[null,null,null,null,null,null,null,null,null,null,null,null,null,null,"",""]
[null,null,null,null,null,null,null,null,null,null,null,null,null,null,"",""]
[null,null,null,null,null,null,null,null,null,null,null,null,null,null,"",""]
[null,null,null,null,null,null,null,null,null,null,null,null,null,null,"",""]
[null,null,null,null,null,null,null,null,null,null,null,null,null,null,"",""]
[null,null,null,null,null,null,null,null,null,null,null,null,null,null,"",""]
[null,null,null,null,null,null,null,null,null,null,null,null,null,null,"",""]
[null,null,null,null,null,null,null,null,null,null,null,null,null,null,"",""]
[null,null,null,null,null,null,null,null,null,null,null,null,null,null,"",""]
[null,null,null,null,null,null,null,null,null,null,null,null,null,null,"",""]
[null,null,null,null,null,null,null,null,null,null,null,null,null,null,"",""]
[null,null,null,null,null,null,null,null,null,null,null,null,null,null,"",""]
[null,null,null,null,null,null,null,null,null,null,null,null,null,null,"",""]
[null,null,null,null,null,null,null,null,null,null,null,null,null,null,"",""]
[null,null,null,null,null,null,null,null,null,null,null,null,null,null,"",""]
[null,null,null,null,null,null,null,null,null,null,null,null,null,null,"",""]
[null,null,null,null,null,null,null,null,null,null,null,null,null,null,"",""]
[null,null,null,null,null,null,null,null,null,null,null,null,null,null,"",""]
[null,null,null,null,null,null,null,null,null,null,null,null,null,null,"",""]
[null,null,null,null,null,null,null,null,null,null,null,null,null,null,"",""]
[null,null,null,null,null,null,null,null,null,null,null,null,null,null,"",""]
[null,null,null,null,null,null,null,null,null,null,null,null,null,null,"",""]
[null,null,null,null,null,null,null,null,null,null,null,null,null,null,"",""]
[null,null,null,null,null,null,null,null,null,null,null,null,null,null,"",""]
[null,null,null,null,null,null,null,null,null,null,null,null,null,null,"",""]
[null,null,null,null,null,null,null,null,null,null,null,null,null,null,"",""]
[null,null,null,null,null,null,null,null,null,null,null,null,null,null,"",""]
[null,null,null,null,null,null,null,null,null,null,null,null,null,null,"",""]
[null,null,null,null,null,null,null,null,null,null,null,null,null,null,"",""]
[null,null,null,null,null,null,null,null,null,null,null,null,null,null,"",""]
[null,null,null,null,null,null,null,null,null,null,null,null,null,null,"",""]
[null,null,null,null,null,null,null,null,null,null,null,null,null,null,"",""]
[null,null,null,null,null,null,null,null,null,null,null,null,null,null,"",""]
[null,null,null,null,null,null,null,null,null,null,null,null,null,null,"",""]
[null,null,null,null,null,null,null,null,null,null,null,null,null,null,"",""]
[null,null,null,null,null,null,null,null,null,null,null,null,null,null,"",""]
[null,null,null,null,null,null,null,null,null,null,null,null,null,null,"",""]
[null,null,null,null,null,null,null,null,null,null,null,null,null,null,"",""]
[null,null,null,null,null,null,null,null,null,null,null,null,null,null,"",""]
[null,null,null,null,null,null,null,null,null,null,null,null,null,null,"",""]
[null,null,null,null,null,null,null,null,null,null,null,null,null,null,"",""]
[null,null,null,null,null,null,null,null,null,null,null,null,null,null,"",""]
[null,null,null,null,null,null,null,null,null,null,null,null,null,null,"",""]
[null,null,null,null,null,null,null,null,null,null,null,null,null,null,"",""]
[null,null,null,null,null,null,null,null,null,null,null,null,null,null,"",""]
[null,null,null,null,null,null,null,null,null,null,null,null,null,null,"",""]
[null,null,null,null,null,null,null,null,null,null,null,null,null,null,"",""]
[null,null,null,null,null,null,null,null,null,null,null,null,null,null,"",""]
[null,null,null,null,null,null,null,null,null,null,null,null,null,null,"",""]
[null,null,null,null,null,null,null,null,null,null,null,null,null,null,"",""]
[null,null,null,null,null,null,null,null,null,null,null,null,null,null,"",""]
[null,null,null,null,null,null,null,null,null,null,null,null,null,null,"",""]
[null,null,null,null,null,null,null,null,null,null,null,null,null,null,"",""]
[null,null,null,null,null,null,null,null,null,null,null,null,null,null,"",""]
[null,null,null,null,null,null,null,null,null,null,null,null,null,null,"",""]
[null,null,null,null,null,null,null,null,null,null,null,null,null,null,"",""]
[null,null,null,null,null,null,null,null,null,null,null,null,null,null,"",""]
[null,null,null,null,null,null,null,null,null,null,null,null,null,null,"",""]
[null,null,null,null,null,null,null,null,null,null,null,null,null,null,"",""]
[null,null,null,null,null,null,null,null,null,null,null,null,null,null,"",""]
[null,null,null,null,null,null,null,null,null,null,null,null,null,null,"",""]
[null,null,null,null,null,null,null,null,null,null,null,null,null,null,"",""]
[null,null,null,null,null,null,null,null,null,null,null,null,null,null,"",""]
[null,null,null,null,null,null,null,null,null,null,null,null,null,null,"",""]
[null,null,null,null,null,null,null,null,null,null,null,null,null,null,"",""]
[null,null,null,null,null,null,null,null,null,null,null,null,null,null,"",""]
[null,null,null,null,null,null,null,null,null,null,null,null,null,null,"",""]
[null,null,null,null,null,null,null,null,null,null,null,null,null,null,"",""]
[null,null,null,null,null,null,null,null,null,null,null,null,null,null,"",""]
[null,null,null,null,null,null,null,null,null,null,null,null,null,null,"",""]
[null,null,null,null,null,null,null,null,null,null,null,null,null,null,"",""]
[null,null,null,null,null,null,null,null,null,null,null,null,null,null,"",""]
[null,null,null,null,null,null,null,null,null,null,null,null,null,null,"",""]
[null,null,null,null,null,null,null,null,null,null,null,null,null,null,"",""]
[null,null,null,null,null,null,null,null,null,null,null,null,null,null,"",""]
[null,null,null,null,null,null,null,null,null,null,null,null,null,null,"",""]
[null,null,null,null,null,null,null,null,null,null,null,null,null,null,"",""]
[null,null,null,null,null,null,null,null,null,null,null,null,null,null,"",""]
[null,null,null,null,null,null,null,null,null,null,null,null,null,null,"",""]
[null,null,null,null,null,null,null,null,null,null,null,null,null,null,"",""]
[null,null,null,null,null,null,null,null,null,null,null,null,null,null,"",""]
[null,null,null,null,null,null,null,null,null,null,null,null,null,null,"",""]
[null,null,null,null,null,null,null,null,null,null,null,null,null,null,"",""]
[null,null,null,null,null,null,null,null,null,null,null,null,null,null,"",""]
[null,null,null,null,null,null,null,null,null,null,null,null,null,null,"",""]
[null,null,null,null,null,null,null,null,null,null,null,null,null,null,"",""]
[null,null,null,null,null,null,null,null,null,null,null,null,null,null,"",""]
[null,null,null,null,null,null,null,null,null,null,null,null,null,null,"",""]
[null,null,null,null,null,null,null,null,null,null,null,null,null,null,"",""]
[null,null,null,null,null,null,null,null,null,null,null,null,null,null,"",""]
[null,null,null,null,null,null,null,null,null,null,null,null,null,null,"",""]
[null,null,null,null,null,null,null,null,null,null,null,null,null,null,"",""]
[null,null,null,null,null,null,null,null,null,null,null,null,null,null,"",""]
[null,null,null,null,null,null,null,null,null,null,null,null,null,null,"",""]
[null,null,null,null,null,null,null,null,null,null,null,null,null,null,"",""]
[null,null,null,null,null,null,null,null,null,null,null,null,null,null,"",""]
[null,null,null,null,null,null,null,null,null,null,null,null,null,null,"",""]
[null,null,null,null,null,null,null,null,null,null,null,null,null,null,"",""]
[null,null,null,null,null,null,null,null,null,null,null,null,null,null,"",""]
[null,null,null,null,null,null,null,null,null,null,null,null,null,null,"",""]
[null,null,null,null,null,null,null,null,null,null,null,null,null,null,"",""]
[null,null,null,null,null,null,null,null,null,null,null,null,null,null,"",""]
[null,null,null,null,null,null,null,null,null,null,null,null,null,null,"",""]
[null,null,null,null,null,null,null,null,null,null,null,null,null,null,"",""]
[null,null,null,null,null,null,null,null,null,null,null,null,null,null,"",""]
[null,null,null,null,null,null,null,null,null,null,null,null,null,null,"",""]
[null,null,null,null,null,null,null,null,null,null,null,null,null,null,"",""]
[null,null,null,null,null,null,null,null,null,null,null,null,null,null,"",""]
[null,null,null,null,null,null,null,null,null,null,null,null,null,null,"",""]
[null,null,null,null,null,null,null,null,null,null,null,null,null,null,"",""]
[null,null,null,null,null,null,null,null,null,null,null,null,null,null,"",""]
[null,null,null,null,null,null,null,null,null,null,null,null,null,null,"",""]
[null,null,null,null,null,null,null,null,null,null,null,null,null,null,"",""]
[null,null,null,null,null,null,null,null,null,null,null,null,null,null,"",""]
[null,null,null,null,null,null,null,null,null,null,null,null,null,null,{"$f":"IF(OR(M27914=\"\",M27914=\"-\"),\"\",0.35*10^M27914)","v":""},{"$f":"IF(O27914=0.35*10^M27914,\"Seth method\",\"\")","v":""}]
[null,null,null,null,null,null,null,null,null,null,null,null,null,null,"",""]
[null,null,null,null,null,null,null,null,null,null,null,null,null,null,"",""]
[null,null,null,null,null,null,null,null,null,null,null,null,null,null,"",""]
[null,null,null,null,null,null,null,null,null,null,null,null,null,null,"",""]
[null,null,null,null,null,null,null,null,null,null,null,null,null,null,"",""]
[null,null,null,null,null,null,null,null,null,null,null,null,null,null,"",""]
[null,null,null,null,null,null,null,null,null,null,null,null,null,null,"",""]
[null,null,null,null,null,null,null,null,null,null,null,null,null,null,"",""]
[null,null,null,null,null,null,null,null,null,null,null,null,null,null,"",""]
[null,null,null,null,null,null,null,null,null,null,null,null,null,null,"",""]
[null,null,null,null,null,null,null,null,null,null,null,null,null,null,"",""]
[null,null,null,null,null,null,null,null,null,null,null,null,null,null,"",""]
[null,null,null,null,null,null,null,null,null,null,null,null,null,null,"",""]
[null,null,null,null,null,null,null,null,null,null,null,null,null,null,"",""]
[null,null,null,null,null,null,null,null,null,null,null,null,null,null,"",""]
[null,null,null,null,null,null,null,null,null,null,null,null,null,null,"",""]
[null,null,null,null,null,null,null,null,null,null,null,null,null,null,"",""]
[null,null,null,null,null,null,null,null,null,null,null,null,null,null,"",""]
[null,null,null,null,null,null,null,null,null,null,null,null,null,null,"",""]
[null,null,null,null,null,null,null,null,null,null,null,null,null,null,"",""]
[null,null,null,null,null,null,null,null,null,null,null,null,null,null,"",""]
[null,null,null,null,null,null,null,null,null,null,null,null,null,null,"",""]
[null,null,null,null,null,null,null,null,null,null,null,null,null,null,"",""]
[null,null,null,null,null,null,null,null,null,null,null,null,null,null,"",""]
[null,null,null,null,null,null,null,null,null,null,null,null,null,null,"",""]
[null,null,null,null,null,null,null,null,null,null,null,null,null,null,"",""]
[null,null,null,null,null,null,null,null,null,null,null,null,null,null,"",""]
[null,null,null,null,null,null,null,null,null,null,null,null,null,null,"",""]
[null,null,null,null,null,null,null,null,null,null,null,null,null,null,"",""]
[null,null,null,null,null,null,null,null,null,null,null,null,null,null,"",""]
[null,null,null,null,null,null,null,null,null,null,null,null,null,null,"",""]
[null,null,null,null,null,null,null,null,null,null,null,null,null,null,"",""]
[null,null,null,null,null,null,null,null,null,null,null,null,null,null,"",""]
[null,null,null,null,null,null,null,null,null,null,null,null,null,null,"",""]
[null,null,null,null,null,null,null,null,null,null,null,null,null,null,"",""]
[null,null,null,null,null,null,null,null,null,null,null,null,null,null,"",""]
[null,null,null,null,null,null,null,null,null,null,null,null,null,null,"",""]
[null,null,null,null,null,null,null,null,null,null,null,null,null,null,"",""]
[null,null,null,null,null,null,null,null,null,null,null,null,null,null,"",""]
[null,null,null,null,null,null,null,null,null,null,null,null,null,null,"",""]
[null,null,null,null,null,null,null,null,null,null,null,null,null,null,"",""]
[null,null,null,null,null,null,null,null,null,null,null,null,null,null,"",""]
[null,null,null,null,null,null,null,null,null,null,null,null,null,null,"",""]
[null,null,null,null,null,null,null,null,null,null,null,null,null,null,"",""]
[null,null,null,null,null,null,null,null,null,null,null,null,null,null,"",""]
[null,null,null,null,null,null,null,null,null,null,null,null,null,null,"",""]
[null,null,null,null,null,null,null,null,null,null,null,null,null,null,"",""]
[null,null,null,null,null,null,null,null,null,null,null,null,null,null,"",""]
[null,null,null,null,null,null,null,null,null,null,null,null,null,null,"",""]
[null,null,null,null,null,null,null,null,null,null,null,null,null,null,"",""]
[null,null,null,null,null,null,null,null,null,null,null,null,null,null,"",""]
[null,null,null,null,null,null,null,null,null,null,null,null,null,null,"",""]
[null,null,null,null,null,null,null,null,null,null,null,null,null,null,"",""]
[null,null,null,null,null,null,null,null,null,null,null,null,null,null,"",""]
[null,null,null,null,null,null,null,null,null,null,null,null,null,null,"",""]
[null,null,null,null,null,null,null,null,null,null,null,null,null,null,"",""]
[null,null,null,null,null,null,null,null,null,null,null,null,null,null,"",""]
[null,null,null,null,null,null,null,null,null,null,null,null,null,null,"",""]
[null,null,null,null,null,null,null,null,null,null,null,null,null,null,"",""]
[null,null,null,null,null,null,null,null,null,null,null,null,null,null,"",""]
[null,null,null,null,null,null,null,null,null,null,null,null,null,null,"",""]
[null,null,null,null,null,null,null,null,null,null,null,null,null,null,"",""]
[null,null,null,null,null,null,null,null,null,null,null,null,null,null,"",""]
[null,null,null,null,null,null,null,null,null,null,null,null,null,null,"",""]
[null,null,null,null,null,null,null,null,null,null,null,null,null,null,"",""]
[null,null,null,null,null,null,null,null,null,null,null,null,null,null,"",""]
[null,null,null,null,null,null,null,null,null,null,null,null,null,null,"",""]
[null,null,null,null,null,null,null,null,null,null,null,null,null,null,"",""]
[null,null,null,null,null,null,null,null,null,null,null,null,null,null,"",""]
[null,null,null,null,null,null,null,null,null,null,null,null,null,null,"",""]
[null,null,null,null,null,null,null,null,null,null,null,null,null,null,"",""]
[null,null,null,null,null,null,null,null,null,null,null,null,null,null,"",""]
[null,null,null,null,null,null,null,null,null,null,null,null,null,null,"",""]
[null,null,null,null,null,null,null,null,null,null,null,null,null,null,"",""]
[null,null,null,null,null,null,null,null,null,null,null,null,null,null,"",""]
[null,null,null,null,null,null,null,null,null,null,null,null,null,null,"",""]
[null,null,null,null,null,null,null,null,null,null,null,null,null,null,"",""]
[null,null,null,null,null,null,null,null,null,null,null,null,null,null,"",""]
[null,null,null,null,null,null,null,null,null,null,null,null,null,null,"",""]
[null,null,null,null,null,null,null,null,null,null,null,null,null,null,"",""]
[null,null,null,null,null,null,null,null,null,null,null,null,null,null,"",""]
[null,null,null,null,null,null,null,null,null,null,null,null,null,null,"",""]
[null,null,null,null,null,null,null,null,null,null,null,null,null,null,"",""]
[null,null,null,null,null,null,null,null,null,null,null,null,null,null,"",""]
[null,null,null,null,null,null,null,null,null,null,null,null,null,null,"",""]
[null,null,null,null,null,null,null,null,null,null,null,null,null,null,"",""]
[null,null,null,null,null,null,null,null,null,null,null,null,null,null,"",""]
[null,null,null,null,null,null,null,null,null,null,null,null,null,null,"",""]
[null,null,null,null,null,null,null,null,null,null,null,null,null,null,"",""]
[null,null,null,null,null,null,null,null,null,null,null,null,null,null,"",""]
[null,null,null,null,null,null,null,null,null,null,null,null,null,null,"",""]
[null,null,null,null,null,null,null,null,null,null,null,null,null,null,"",""]
[null,null,null,null,null,null,null,null,null,null,null,null,null,null,"",""]
[null,null,null,null,null,null,null,null,null,null,null,null,null,null,"",""]
[null,null,null,null,null,null,null,null,null,null,null,null,null,null,"",""]
[null,null,null,null,null,null,null,null,null,null,null,null,null,null,"",""]
[null,null,null,null,null,null,null,null,null,null,null,null,null,null,"",""]
[null,null,null,null,null,null,null,null,null,null,null,null,null,null,"",""]
[null,null,null,null,null,null,null,null,null,null,null,null,null,null,"",""]
[null,null,null,null,null,null,null,null,null,null,null,null,null,null,"",""]
[null,null,null,null,null,null,null,null,null,null,null,null,null,null,"",""]
[null,null,null,null,null,null,null,null,null,null,null,null,null,null,"",""]
[null,null,null,null,null,null,null,null,null,null,null,null,null,null,"",""]
[null,null,null,null,null,null,null,null,null,null,null,null,null,null,"",""]
[null,null,null,null,null,null,null,null,null,null,null,null,null,null,"",""]
[null,null,null,null,null,null,null,null,null,null,null,null,null,null,"",""]
[null,null,null,null,null,null,null,null,null,null,null,null,null,null,"",""]
[null,null,null,null,null,null,null,null,null,null,null,null,null,null,"",""]
[null,null,null,null,null,null,null,null,null,null,null,null,null,null,"",""]
[null,null,null,null,null,null,null,null,null,null,null,null,null,null,"",""]
[null,null,null,null,null,null,null,null,null,null,null,null,null,null,"",""]
[null,null,null,null,null,null,null,null,null,null,null,null,null,null,"",""]
[null,null,null,null,null,null,null,null,null,null,null,null,null,null,"",""]
[null,null,null,null,null,null,null,null,null,null,null,null,null,null,"",""]
[null,null,null,null,null,null,null,null,null,null,null,null,null,null,"",""]
[null,null,null,null,null,null,null,null,null,null,null,null,null,null,"",""]
[null,null,null,null,null,null,null,null,null,null,null,null,null,null,"",""]
[null,null,null,null,null,null,null,null,null,null,null,null,null,null,"",""]
[null,null,null,null,null,null,null,null,null,null,null,null,null,null,"",""]
[null,null,null,null,null,null,null,null,null,null,null,null,null,null,"",""]
[null,null,null,null,null,null,null,null,null,null,null,null,null,null,"",""]
[null,null,null,null,null,null,null,null,null,null,null,null,null,null,"",""]
[null,null,null,null,null,null,null,null,null,null,null,null,null,null,"",""]
[null,null,null,null,null,null,null,null,null,null,null,null,null,null,"",""]
[null,null,null,null,null,null,null,null,null,null,null,null,null,null,"",""]
[null,null,null,null,null,null,null,null,null,null,null,null,null,null,"",""]
[null,null,null,null,null,null,null,null,null,null,null,null,null,null,"",""]
[null,null,null,null,null,null,null,null,null,null,null,null,null,null,"",""]
[null,null,null,null,null,null,null,null,null,null,null,null,null,null,"",""]
[null,null,null,null,null,null,null,null,null,null,null,null,null,null,"",""]
[null,null,null,null,null,null,null,null,null,null,null,null,null,null,"",""]
[null,null,null,null,null,null,null,null,null,null,null,null,null,null,"",""]
[null,null,null,null,null,null,null,null,null,null,null,null,null,null,"",""]
[null,null,null,null,null,null,null,null,null,null,null,null,null,null,"",""]
[null,null,null,null,null,null,null,null,null,null,null,null,null,null,"",""]
[null,null,null,null,null,null,null,null,null,null,null,null,null,null,"",""]
[null,null,null,null,null,null,null,null,null,null,null,null,null,null,"",""]
[null,null,null,null,null,null,null,null,null,null,null,null,null,null,"",""]
[null,null,null,null,null,null,null,null,null,null,null,null,null,null,"",""]
[null,null,null,null,null,null,null,null,null,null,null,null,null,null,"",""]
[null,null,null,null,null,null,null,null,null,null,null,null,null,null,"",""]
[null,null,null,null,null,null,null,null,null,null,null,null,null,null,"",""]
[null,null,null,null,null,null,null,null,null,null,null,null,null,null,"",""]
[null,null,null,null,null,null,null,null,null,null,null,null,null,null,"",""]
[null,null,null,null,null,null,null,null,null,null,null,null,null,null,"",""]
[null,null,null,null,null,null,null,null,null,null,null,null,null,null,"",""]
[null,null,null,null,null,null,null,null,null,null,null,null,null,null,"",""]
[null,null,null,null,null,null,null,null,null,null,null,null,null,null,"",""]
[null,null,null,null,null,null,null,null,null,null,null,null,null,null,"",""]
[null,null,null,null,null,null,null,null,null,null,null,null,null,null,"",""]
[null,null,null,null,null,null,null,null,null,null,null,null,null,null,"",""]
[null,null,null,null,null,null,null,null,null,null,null,null,null,null,"",""]
[null,null,null,null,null,null,null,null,null,null,null,null,null,null,"",""]
[null,null,null,null,null,null,null,null,null,null,null,null,null,null,"",""]
[null,null,null,null,null,null,null,null,null,null,null,null,null,null,"",""]
[null,null,null,null,null,null,null,null,null,null,null,null,null,null,"",""]
[null,null,null,null,null,null,null,null,null,null,null,null,null,null,"",""]
[null,null,null,null,null,null,null,null,null,null,null,null,null,null,"",""]
[null,null,null,null,null,null,null,null,null,null,null,null,null,null,"",""]
[null,null,null,null,null,null,null,null,null,null,null,null,null,null,"",""]
[null,null,null,null,null,null,null,null,null,null,null,null,null,null,"",""]
[null,null,null,null,null,null,null,null,null,null,null,null,null,null,"",""]
[null,null,null,null,null,null,null,null,null,null,null,null,null,null,"",""]
[null,null,null,null,null,null,null,null,null,null,null,null,null,null,"",""]
[null,null,null,null,null,null,null,null,null,null,null,null,null,null,"",""]
[null,null,null,null,null,null,null,null,null,null,null,null,null,null,"",""]
[null,null,null,null,null,null,null,null,null,null,null,null,null,null,"",""]
[null,null,null,null,null,null,null,null,null,null,null,null,null,null,"",""]
[null,null,null,null,null,null,null,null,null,null,null,null,null,null,"",""]
[null,null,null,null,null,null,null,null,null,null,null,null,null,null,"",""]
[null,null,null,null,null,null,null,null,null,null,null,null,null,null,"",""]
[null,null,null,null,null,null,null,null,null,null,null,null,null,null,"",""]
[null,null,null,null,null,null,null,null,null,null,null,null,null,null,"",""]
[null,null,null,null,null,null,null,null,null,null,null,null,null,null,"",""]
[null,null,null,null,null,null,null,null,null,null,null,null,null,null,"",""]
[null,null,null,null,null,null,null,null,null,null,null,null,null,null,"",""]
[null,null,null,null,null,null,null,null,null,null,null,null,null,null,"",""]
[null,null,null,null,null,null,null,null,null,null,null,null,null,null,"",""]
[null,null,null,null,null,null,null,null,null,null,null,null,null,null,"",""]
[null,null,null,null,null,null,null,null,null,null,null,null,null,null,"",""]
[null,null,null,null,null,null,null,null,null,null,null,null,null,null,"",""]
[null,null,null,null,null,null,null,null,null,null,null,null,null,null,"",""]
[null,null,null,null,null,null,null,null,null,null,null,null,null,null,"",""]
[null,null,null,null,null,null,null,null,null,null,null,null,null,null,"",""]
[null,null,null,null,null,null,null,null,null,null,null,null,null,null,"",""]
[null,null,null,null,null,null,null,null,null,null,null,null,null,null,"",""]
[null,null,null,null,null,null,null,null,null,null,null,null,null,null,"",""]
[null,null,null,null,null,null,null,null,null,null,null,null,null,null,"",""]
[null,null,null,null,null,null,null,null,null,null,null,null,null,null,"",""]
[null,null,null,null,null,null,null,null,null,null,null,null,null,null,"",""]
[null,null,null,null,null,null,null,null,null,null,null,null,null,null,"",""]
[null,null,null,null,null,null,null,null,null,null,null,null,null,null,"",""]
[null,null,null,null,null,null,null,null,null,null,null,null,null,null,"",""]
[null,null,null,null,null,null,null,null,null,null,null,null,null,null,"",""]
[null,null,null,null,null,null,null,null,null,null,null,null,null,null,"",""]
[null,null,null,null,null,null,null,null,null,null,null,null,null,null,"",""]
[null,null,null,null,null,null,null,null,null,null,null,null,null,null,"",""]
[null,null,null,null,null,null,null,null,null,null,null,null,null,null,"",""]
[null,null,null,null,null,null,null,null,null,null,null,null,null,null,"",""]
[null,null,null,null,null,null,null,null,null,null,null,null,null,null,"",""]
[null,null,null,null,null,null,null,null,null,null,null,null,null,null,"",""]
[null,null,null,null,null,null,null,null,null,null,null,null,null,null,"",""]
[null,null,null,null,null,null,null,null,null,null,null,null,null,null,"",""]
[null,null,null,null,null,null,null,null,null,null,null,null,null,null,"",""]
[null,null,null,null,null,null,null,null,null,null,null,null,null,null,"",""]
[null,null,null,null,null,null,null,null,null,null,null,null,null,null,"",""]
[null,null,null,null,null,null,null,null,null,null,null,null,null,null,"",""]
[null,null,null,null,null,null,null,null,null,null,null,null,null,null,"",""]
[null,null,null,null,null,null,null,null,null,null,null,null,null,null,"",""]
[null,null,null,null,null,null,null,null,null,null,null,null,null,null,"",""]
[null,null,null,null,null,null,null,null,null,null,null,null,null,null,"",""]
[null,null,null,null,null,null,null,null,null,null,null,null,null,null,"",""]
[null,null,null,null,null,null,null,null,null,null,null,null,null,null,"",""]
[null,null,null,null,null,null,null,null,null,null,null,null,null,null,"",""]
[null,null,null,null,null,null,null,null,null,null,null,null,null,null,"",""]
[null,null,null,null,null,null,null,null,null,null,null,null,null,null,"",""]
[null,null,null,null,null,null,null,null,null,null,null,null,null,null,"",""]
[null,null,null,null,null,null,null,null,null,null,null,null,null,null,"",""]
[null,null,null,null,null,null,null,null,null,null,null,null,null,null,"",""]
[null,null,null,null,null,null,null,null,null,null,null,null,null,null,"",""]
[null,null,null,null,null,null,null,null,null,null,null,null,null,null,"",""]
[null,null,null,null,null,null,null,null,null,null,null,null,null,null,"",""]
[null,null,null,null,null,null,null,null,null,null,null,null,null,null,"",""]
[null,null,null,null,null,null,null,null,null,null,null,null,null,null,"",""]
[null,null,null,null,null,null,null,null,null,null,null,null,null,null,"",""]
[null,null,null,null,null,null,null,null,null,null,null,null,null,null,"",""]
[null,null,null,null,null,null,null,null,null,null,null,null,null,null,"",""]
[null,null,null,null,null,null,null,null,null,null,null,null,null,null,"",""]
[null,null,null,null,null,null,null,null,null,null,null,null,null,null,"",""]
[null,null,null,null,null,null,null,null,null,null,null,null,null,null,"",""]
[null,null,null,null,null,null,null,null,null,null,null,null,null,null,"",""]
[null,null,null,null,null,null,null,null,null,null,null,null,null,null,"",""]
[null,null,null,null,null,null,null,null,null,null,null,null,null,null,"",""]
[null,null,null,null,null,null,null,null,null,null,null,null,null,null,"",""]
[null,null,null,null,null,null,null,null,null,null,null,null,null,null,"",""]
[null,null,null,null,null,null,null,null,null,null,null,null,null,null,"",""]
[null,null,null,null,null,null,null,null,null,null,null,null,null,null,"",""]
[null,null,null,null,null,null,null,null,null,null,null,null,null,null,"",""]
[null,null,null,null,null,null,null,null,null,null,null,null,null,null,"",""]
[null,null,null,null,null,null,null,null,null,null,null,null,null,null,"",""]
[null,null,null,null,null,null,null,null,null,null,null,null,null,null,"",""]
[null,null,null,null,null,null,null,null,null,null,null,null,null,null,"",""]
[null,null,null,null,null,null,null,null,null,null,null,null,null,null,"",""]
[null,null,null,null,null,null,null,null,null,null,null,null,null,null,"",""]
[null,null,null,null,null,null,null,null,null,null,null,null,null,null,"",""]
[null,null,null,null,null,null,null,null,null,null,null,null,null,null,"",""]
[null,null,null,null,null,null,null,null,null,null,null,null,null,null,"",""]
[null,null,null,null,null,null,null,null,null,null,null,null,null,null,"",""]
[null,null,null,null,null,null,null,null,null,null,null,null,null,null,"",""]
[null,null,null,null,null,null,null,null,null,null,null,null,null,null,"",""]
[null,null,null,null,null,null,null,null,null,null,null,null,null,null,"",""]
[null,null,null,null,null,null,null,null,null,null,null,null,null,null,"",""]
[null,null,null,null,null,null,null,null,null,null,null,null,null,null,"",""]
[null,null,null,null,null,null,null,null,null,null,null,null,null,null,"",""]
[null,null,null,null,null,null,null,null,null,null,null,null,null,null,"",""]
[null,null,null,null,null,null,null,null,null,null,null,null,null,null,"",""]
[null,null,null,null,null,null,null,null,null,null,null,null,null,null,"",""]
[null,null,null,null,null,null,null,null,null,null,null,null,null,null,"",""]
[null,null,null,null,null,null,null,null,null,null,null,null,null,null,"",""]
[null,null,null,null,null,null,null,null,null,null,null,null,null,null,"",""]
[null,null,null,null,null,null,null,null,null,null,null,null,null,null,"",""]
[null,null,null,null,null,null,null,null,null,null,null,null,null,null,"",""]
[null,null,null,null,null,null,null,null,null,null,null,null,null,null,"",""]
[null,null,null,null,null,null,null,null,null,null,null,null,null,null,"",""]
[null,null,null,null,null,null,null,null,null,null,null,null,null,null,"",""]
[null,null,null,null,null,null,null,null,null,null,null,null,null,null,"",""]
[null,null,null,null,null,null,null,null,null,null,null,null,null,null,"",""]
[null,null,null,null,null,null,null,null,null,null,null,null,null,null,"",""]
[null,null,null,null,null,null,null,null,null,null,null,null,null,null,"",""]
[null,null,null,null,null,null,null,null,null,null,null,null,null,null,"",""]
[null,null,null,null,null,null,null,null,null,null,null,null,null,null,"",""]
[null,null,null,null,null,null,null,null,null,null,null,null,null,null,{"$f":"IF(OR(M36490=\"\",M36490=\"-\"),\"\",0.35*10^M36490)","v":""},{"$f":"IF(O36490=0.35*10^M36490,\"Seth method\",\"\")","v":""}]
[null,null,null,null,null,null,null,null,null,null,null,null,null,null,"",""]
[null,null,null,null,null,null,null,null,null,null,null,null,null,null,"",""]
[null,null,null,null,null,null,null,null,null,null,null,null,null,null,"",""]
[null,null,null,null,null,null,null,null,null,null,null,null,null,null,"",""]
[null,null,null,null,null,null,null,null,null,null,null,null,null,null,"",""]
[null,null,null,null,null,null,null,null,null,null,null,null,null,null,"",""]
[null,null,null,null,null,null,null,null,null,null,null,null,null,null,"",""]
[null,null,null,null,null,null,null,null,null,null,null,null,null,null,"",""]
[null,null,null,null,null,null,null,null,null,null,null,null,null,null,"",""]
[null,null,null,null,null,null,null,null,null,null,null,null,null,null,"",""]
[null,null,null,null,null,null,null,null,null,null,null,null,null,null,"",""]
[null,null,null,null,null,null,null,null,null,null,null,null,null,null,"",""]
[null,null,null,null,null,null,null,null,null,null,null,null,null,null,"",""]
[null,null,null,null,null,null,null,null,null,null,null,null,null,null,"",""]
[null,null,null,null,null,null,null,null,null,null,null,null,null,null,"",""]
[null,null,null,null,null,null,null,null,null,null,null,null,null,null,"",""]
[null,null,null,null,null,null,null,null,null,null,null,null,null,null,"",""]
[null,null,null,null,null,null,null,null,null,null,null,null,null,null,"",""]
[null,null,null,null,null,null,null,null,null,null,null,null,null,null,"",""]
[null,null,null,null,null,null,null,null,null,null,null,null,null,null,{"$f":"IF(OR(M37130=\"\",M37130=\"-\"),\"\",0.35*10^M37130)","v":""},{"$f":"IF(O37130=0.35*10^M37130,\"Seth method\",\"\")","v":""}]
[null,null,null,null,null,null,null,null,null,null,null,null,null,null,"",""]
[null,null,null,null,null,null,null,null,null,null,null,null,null,null,"",""]
[null,null,null,null,null,null,null,null,null,null,null,null,null,null,"",""]
[null,null,null,null,null,null,null,null,null,null,null,null,null,null,"",""]
[null,null,null,null,null,null,null,null,null,null,null,null,null,null,"",""]
[null,null,null,null,null,null,null,null,null,null,null,null,null,null,"",""]
[null,null,null,null,null,null,null,null,null,null,null,null,null,null,"",""]
[null,null,null,null,null,null,null,null,null,null,null,null,null,null,"",""]
[null,null,null,null,null,null,null,null,null,null,null,null,null,null,"",""]
[null,null,null,null,null,null,null,null,null,null,null,null,null,null,"",""]
[null,null,null,null,null,null,null,null,null,null,null,null,null,null,"",""]
[null,null,null,null,null,null,null,null,null,null,null,null,null,null,"",""]
[null,null,null,null,null,null,null,null,null,null,null,null,null,null,"",""]
[null,null,null,null,null,null,null,null,null,null,null,null,null,null,"",""]
[null,null,null,null,null,null,null,null,null,null,null,null,null,null,"",""]
[null,null,null,null,null,null,null,null,null,null,null,null,null,null,"",""]
[null,null,null,null,null,null,null,null,null,null,null,null,null,null,"",""]
[null,null,null,null,null,null,null,null,null,null,null,null,null,null,"",""]
[null,null,null,null,null,null,null,null,null,null,null,null,null,null,"",""]
[null,null,null,null,null,null,null,null,null,null,null,null,null,null,"",""]
[null,null,null,null,null,null,null,null,null,null,null,null,null,null,"",""]
[null,null,null,null,null,null,null,null,null,null,null,null,null,null,"",""]
[null,null,null,null,null,null,null,null,null,null,null,null,null,null,"",""]
[null,null,null,null,null,null,null,null,null,null,null,null,null,null,"",""]
[null,null,null,null,null,null,null,null,null,null,null,null,null,null,"",""]
[null,null,null,null,null,null,null,null,null,null,null,null,null,null,"",""]
[null,null,null,null,null,null,null,null,null,null,null,null,null,null,"",""]
[null,null,null,null,null,null,null,null,null,null,null,null,null,null,"",""]
[null,null,null,null,null,null,null,null,null,null,null,null,null,null,"",""]
[null,null,null,null,null,null,null,null,null,null,null,null,null,null,"",""]
[null,null,null,null,null,null,null,null,null,null,null,null,null,null,{"$f":"IF(OR(M38090=\"\",M38090=\"-\"),\"\",0.35*10^M38090)","v":""},{"$f":"IF(O38090=0.35*10^M38090,\"Seth method\",\"\")","v":""}]
[null,null,null,null,null,null,null,null,null,null,null,null,null,null,"",""]
[null,null,null,null,null,null,null,null,null,null,null,null,null,null,"",""]
[null,null,null,null,null,null,null,null,null,null,null,null,null,null,"",""]
[null,null,null,null,null,null,null,null,null,null,null,null,null,null,"",""]
[null,null,null,null,null,null,null,null,null,null,null,null,null,null,"",""]
[null,null,null,null,null,null,null,null,null,null,null,null,null,null,"",""]
[null,null,null,null,null,null,null,null,null,null,null,null,null,null,"",""]
[null,null,null,null,null,null,null,null,null,null,null,null,null,null,"",""]
[null,null,null,null,null,null,null,null,null,null,null,null,null,null,"",""]
[null,null,null,null,null,null,null,null,null,null,null,null,null,null,"",""]
[null,null,null,null,null,null,null,null,null,null,null,null,null,null,"",""]
[null,null,null,null,null,null,null,null,null,null,null,null,null,null,"",""]
[null,null,null,null,null,null,null,null,null,null,null,null,null,null,"",""]
[null,null,null,null,null,null,null,null,null,null,null,null,null,null,"",""]
[null,null,null,null,null,null,null,null,null,null,null,null,null,null,"",""]
[null,null,null,null,null,null,null,null,null,null,null,null,null,null,"",""]
[null,null,null,null,null,null,null,null,null,null,null,null,null,null,"",""]
[null,null,null,null,null,null,null,null,null,null,null,null,null,null,"",""]
[null,null,null,null,null,null,null,null,null,null,null,null,null,null,"",""]
[null,null,null,null,null,null,null,null,null,null,null,null,null,null,"",""]
[null,null,null,null,null,null,null,null,null,null,null,null,null,null,"",""]
[null,null,null,null,null,null,null,null,null,null,null,null,null,null,"",""]
[null,null,null,null,null,null,null,null,null,null,null,null,null,null,"",""]
[null,null,null,null,null,null,null,null,null,null,null,null,null,null,"",""]
[null,null,null,null,null,null,null,null,null,null,null,null,null,null,"",""]
[null,null,null,null,null,null,null,null,null,null,null,null,null,null,"",""]
[null,null,null,null,null,null,null,null,null,null,null,null,null,null,"",""]
[null,null,null,null,null,null,null,null,null,null,null,null,null,null,"",""]
[null,null,null,null,null,null,null,null,null,null,null,null,null,null,"",""]
[null,null,null,null,null,null,null,null,null,null,null,null,null,null,"",""]
[null,null,null,null,null,null,null,null,null,null,null,null,null,null,"",""]
[null,null,null,null,null,null,null,null,null,null,null,null,null,null,"",""]
[null,null,null,null,null,null,null,null,null,null,null,null,null,null,"",""]
[null,null,null,null,null,null,null,null,null,null,null,null,null,null,"",""]
[null,null,null,null,null,null,null,null,null,null,null,null,null,null,"",""]
[null,null,null,null,null,null,null,null,null,null,null,null,null,null,"",""]
[null,null,null,null,null,null,null,null,null,null,null,null,null,null,"",""]
[null,null,null,null,null,null,null,null,null,null,null,null,null,null,"",""]
[null,null,null,null,null,null,null,null,null,null,null,null,null,null,"",""]
[null,null,null,null,null,null,null,null,null,null,null,null,null,null,"",""]
[null,null,null,null,null,null,null,null,null,null,null,null,null,null,"",""]
[null,null,null,null,null,null,null,null,null,null,null,null,null,null,"",""]
[null,null,null,null,null,null,null,null,null,null,null,null,null,null,"",""]
[null,null,null,null,null,null,null,null,null,null,null,null,null,null,"",""]
[null,null,null,null,null,null,null,null,null,null,null,null,null,null,"",""]
[null,null,null,null,null,null,null,null,null,null,null,null,null,null,"",""]
[null,null,null,null,null,null,null,null,null,null,null,null,null,null,"",""]
[null,null,null,null,null,null,null,null,null,null,null,null,null,null,"",""]
[null,null,null,null,null,null,null,null,null,null,null,null,null,null,"",""]
[null,null,null,null,null,null,null,null,null,null,null,null,null,null,"",""]
[null,null,null,null,null,null,null,null,null,null,null,null,null,null,"",""]
[null,null,null,null,null,null,null,null,null,null,null,null,null,null,"",""]
[null,null,null,null,null,null,null,null,null,null,null,null,null,null,"",""]
[null,null,null,null,null,null,null,null,null,null,null,null,null,null,"",""]
[null,null,null,null,null,null,null,null,null,null,null,null,null,null,"",""]
[null,null,null,null,null,null,null,null,null,null,null,null,null,null,"",""]
[null,null,null,null,null,null,null,null,null,null,null,null,null,null,"",""]
[null,null,null,null,null,null,null,null,null,null,null,null,null,null,"",""]
[null,null,null,null,null,null,null,null,null,null,null,null,null,null,"",""]
[null,null,null,null,null,null,null,null,null,null,null,null,null,null,"",""]
[null,null,null,null,null,null,null,null,null,null,null,null,null,null,"",""]
[null,null,null,null,null,null,null,null,null,null,null,null,null,null,"",""]
[null,null,null,null,null,null,null,null,null,null,null,null,null,null,"",""]
[null,null,null,null,null,null,null,null,null,null,null,null,null,null,"",""]
[null,null,null,null,null,null,null,null,null,null,null,null,null,null,"",""]
[null,null,null,null,null,null,null,null,null,null,null,null,null,null,"",""]
[null,null,null,null,null,null,null,null,null,null,null,null,null,null,"",""]
[null,null,null,null,null,null,null,null,null,null,null,null,null,null,"",""]
[null,null,null,null,null,null,null,null,null,null,null,null,null,null,"",""]
[null,null,null,null,null,null,null,null,null,null,null,null,null,null,"",""]
[null,null,null,null,null,null,null,null,null,null,null,null,null,null,"",""]
[null,null,null,null,null,null,null,null,null,null,null,null,null,null,"",""]
[null,null,null,null,null,null,null,null,null,null,null,null,null,null,"",""]
[null,null,null,null,null,null,null,null,null,null,null,null,null,null,"",""]
[null,null,null,null,null,null,null,null,null,null,null,null,null,null,"",""]
[null,null,null,null,null,null,null,null,null,null,null,null,null,null,"",""]
[null,null,null,null,null,null,null,null,null,null,null,null,null,null,{"$f":"IF(OR(M40522=\"\",M40522=\"-\"),\"\",0.35*10^M40522)","v":""},{"$f":"IF(O40522=0.35*10^M40522,\"Seth method\",\"\")","v":""}]
[null,null,null,null,null,null,null,null,null,null,null,null,null,null,"",""]
[null,null,null,null,null,null,null,null,null,null,null,null,null,null,"",""]
[null,null,null,null,null,null,null,null,null,null,null,null,null,null,"",""]
[null,null,null,null,null,null,null,null,null,null,null,null,null,null,"",""]
[null,null,null,null,null,null,null,null,null,null,null,null,null,null,"",""]
[null,null,null,null,null,null,null,null,null,null,null,null,null,null,"",""]
[null,null,null,null,null,null,null,null,null,null,null,null,null,null,"",""]
[null,null,null,null,null,null,null,null,null,null,null,null,null,null,"",""]
[null,null,null,null,null,null,null,null,null,null,null,null,null,null,"",""]
[null,null,null,null,null,null,null,null,null,null,null,null,null,null,"",""]
[null,null,null,null,null,null,null,null,null,null,null,null,null,null,"",""]
[null,null,null,null,null,null,null,null,null,null,null,null,null,null,"",""]
[null,null,null,null,null,null,null,null,null,null,null,null,null,null,"",""]
[null,null,null,null,null,null,null,null,null,null,null,null,null,null,"",""]
[null,null,null,null,null,null,null,null,null,null,null,null,null,null,"",""]
[null,null,null,null,null,null,null,null,null,null,null,null,null,null,{"$f":"IF(OR(M41034=\"\",M41034=\"-\"),\"\",0.35*10^M41034)","v":""},{"$f":"IF(O41034=0.35*10^M41034,\"Seth method\",\"\")","v":""}]
[null,null,null,null,null,null,null,null,null,null,null,null,null,null,"",""]
[null,null,null,null,null,null,null,null,null,null,null,null,null,null,"",""]
[null,null,null,null,null,null,null,null,null,null,null,null,null,null,"",""]
[null,null,null,null,null,null,null,null,null,null,null,null,null,null,"",""]
[null,null,null,null,null,null,null,null,null,null,null,null,null,null,"",""]
[null,null,null,null,null,null,null,null,null,null,null,null,null,null,"",""]
[null,null,null,null,null,null,null,null,null,null,null,null,null,null,"",""]
[null,null,null,null,null,null,null,null,null,null,null,null,null,null,"",""]
[null,null,null,null,null,null,null,null,null,null,null,null,null,null,"",""]
[null,null,null,null,null,null,null,null,null,null,null,null,null,null,"",""]
[null,null,null,null,null,null,null,null,null,null,null,null,null,null,"",""]
[null,null,null,null,null,null,null,null,null,null,null,null,null,null,"",""]
[null,null,null,null,null,null,null,null,null,null,null,null,null,null,"",""]
[null,null,null,null,null,null,null,null,null,null,null,null,null,null,"",""]
[null,null,null,null,null,null,null,null,null,null,null,null,null,null,"",""]
[null,null,null,null,null,null,null,null,null,null,null,null,null,null,"",""]
[null,null,null,null,null,null,null,null,null,null,null,null,null,null,"",""]
[null,null,null,null,null,null,null,null,null,null,null,null,null,null,"",""]
[null,null,null,null,null,null,null,null,null,null,null,null,null,null,"",""]
[null,null,null,null,null,null,null,null,null,null,null,null,null,null,"",""]
[null,null,null,null,null,null,null,null,null,null,null,null,null,null,"",""]
[null,null,null,null,null,null,null,null,null,null,null,null,null,null,"",""]
[null,null,null,null,null,null,null,null,null,null,null,null,null,null,"",""]
[null,null,null,null,null,null,null,null,null,null,null,null,null,null,"",""]
[null,null,null,null,null,null,null,null,null,null,null,null,null,null,"",""]
[null,null,null,null,null,null,null,null,null,null,null,null,null,null,"",""]
[null,null,null,null,null,null,null,null,null,null,null,null,null,null,"",""]
[null,null,null,null,null,null,null,null,null,null,null,null,null,null,"",""]
[null,null,null,null,null,null,null,null,null,null,null,null,null,null,"",""]
[null,null,null,null,null,null,null,null,null,null,null,null,null,null,"",""]
[null,null,null,null,null,null,null,null,null,null,null,null,null,null,"",""]
[null,null,null,null,null,null,null,null,null,null,null,null,null,null,"",""]
[null,null,null,null,null,null,null,null,null,null,null,null,null,null,"",""]
[null,null,null,null,null,null,null,null,null,null,null,null,null,null,"",""]
[null,null,null,null,null,null,null,null,null,null,null,null,null,null,"",""]
[null,null,null,null,null,null,null,null,null,null,null,null,null,null,"",""]
[null,null,null,null,null,null,null,null,null,null,null,null,null,null,"",""]
[null,null,null,null,null,null,null,null,null,null,null,null,null,null,"",""]
[null,null,null,null,null,null,null,null,null,null,null,null,null,null,"",""]
[null,null,null,null,null,null,null,null,null,null,null,null,null,null,"",""]
[null,null,null,null,null,null,null,null,null,null,null,null,null,null,"",""]
[null,null,null,null,null,null,null,null,null,null,null,null,null,null,"",""]
[null,null,null,null,null,null,null,null,null,null,null,null,null,null,"",""]
[null,null,null,null,null,null,null,null,null,null,null,null,null,null,"",""]
[null,null,null,null,null,null,null,null,null,null,null,null,null,null,"",""]
[null,null,null,null,null,null,null,null,null,null,null,null,null,null,"",""]
[null,null,null,null,null,null,null,null,null,null,null,null,null,null,"",""]
[null,null,null,null,null,null,null,null,null,null,null,null,null,null,"",""]
[null,null,null,null,null,null,null,null,null,null,null,null,null,null,"",""]
[null,null,null,null,null,null,null,null,null,null,null,null,null,null,"",""]
[null,null,null,null,null,null,null,null,null,null,null,null,null,null,"",""]
[null,null,null,null,null,null,null,null,null,null,null,null,null,null,"",""]
[null,null,null,null,null,null,null,null,null,null,null,null,null,null,"",""]
[null,null,null,null,null,null,null,null,null,null,null,null,null,null,"",""]
[null,null,null,null,null,null,null,null,null,null,null,null,null,null,"",""]
[null,null,null,null,null,null,null,null,null,null,null,null,null,null,"",""]
[null,null,null,null,null,null,null,null,null,null,null,null,null,null,"",""]
[null,null,null,null,null,null,null,null,null,null,null,null,null,null,"",""]
[null,null,null,null,null,null,null,null,null,null,null,null,null,null,"",""]
[null,null,null,null,null,null,null,null,null,null,null,null,null,null,"",""]
[null,null,null,null,null,null,null,null,null,null,null,null,null,null,"",""]
[null,null,null,null,null,null,null,null,null,null,null,null,null,null,"",""]
[null,null,null,null,null,null,null,null,null,null,null,null,null,null,"",""]
[null,null,null,null,null,null,null,null,null,null,null,null,null,null,"",""]
[null,null,null,null,null,null,null,null,null,null,null,null,null,null,"",""]
[null,null,null,null,null,null,null,null,null,null,null,null,null,null,"",""]
[null,null,null,null,null,null,null,null,null,null,null,null,null,null,"",""]
[null,null,null,null,null,null,null,null,null,null,null,null,null,null,"",""]
[null,null,null,null,null,null,null,null,null,null,null,null,null,null,"",""]
[null,null,null,null,null,null,null,null,null,null,null,null,null,null,"",""]
[null,null,null,null,null,null,null,null,null,null,null,null,null,null,"",""]
[null,null,null,null,null,null,null,null,null,null,null,null,null,null,"",""]
[null,null,null,null,null,null,null,null,null,null,null,null,null,null,"",""]
[null,null,null,null,null,null,null,null,null,null,null,null,null,null,"",""]
[null,null,null,null,null,null,null,null,null,null,null,null,null,null,"",""]
[null,null,null,null,null,null,null,null,null,null,null,null,null,null,"",""]
[null,null,null,null,null,null,null,null,null,null,null,null,null,null,"",""]
[null,null,null,null,null,null,null,null,null,null,null,null,null,null,"",""]
[null,null,null,null,null,null,null,null,null,null,null,null,null,null,"",""]
[null,null,null,null,null,null,null,null,null,null,null,null,null,null,"",""]
[null,null,null,null,null,null,null,null,null,null,null,null,null,null,"",""]
[null,null,null,null,null,null,null,null,null,null,null,null,null,null,"",""]
[null,null,null,null,null,null,null,null,null,null,null,null,null,null,"",""]
[null,null,null,null,null,null,null,null,null,null,null,null,null,null,"",""]
[null,null,null,null,null,null,null,null,null,null,null,null,null,null,"",""]
[null,null,null,null,null,null,null,null,null,null,null,null,null,null,"",""]
[null,null,null,null,null,null,null,null,null,null,null,null,null,null,"",""]
[null,null,null,null,null,null,null,null,null,null,null,null,null,null,"",""]
[null,null,null,null,null,null,null,null,null,null,null,null,null,null,"",""]
[null,null,null,null,null,null,null,null,null,null,null,null,null,null,"",""]
[null,null,null,null,null,null,null,null,null,null,null,null,null,null,"",""]
[null,null,null,null,null,null,null,null,null,null,null,null,null,null,"",""]
[null,null,null,null,null,null,null,null,null,null,null,null,null,null,{"$f":"IF(OR(M43978=\"\",M43978=\"-\"),\"\",0.35*10^M43978)","v":""},{"$f":"IF(O43978=0.35*10^M43978,\"Seth method\",\"\")","v":""}]
[null,null,null,null,null,null,null,null,null,null,null,null,null,null,"",""]
[null,null,null,null,null,null,null,null,null,null,null,null,null,null,"",""]
[null,null,null,null,null,null,null,null,null,null,null,null,null,null,"",""]
[null,null,null,null,null,null,null,null,null,null,null,null,null,null,"",""]
[null,null,null,null,null,null,null,null,null,null,null,null,null,null,"",""]
[null,null,null,null,null,null,null,null,null,null,null,null,null,null,"",""]
[null,null,null,null,null,null,null,null,null,null,null,null,null,null,"",""]
[null,null,null,null,null,null,null,null,null,null,null,null,null,null,"",""]
[null,null,null,null,null,null,null,null,null,null,null,null,null,null,"",""]
[null,null,null,null,null,null,null,null,null,null,null,null,null,null,"",""]
[null,null,null,null,null,null,null,null,null,null,null,null,null,null,"",""]
[null,null,null,null,null,null,null,null,null,null,null,null,null,null,"",""]
[null,null,null,null,null,null,null,null,null,null,null,null,null,null,"",""]
[null,null,null,null,null,null,null,null,null,null,null,null,null,null,"",""]
[null,null,null,null,null,null,null,null,null,null,null,null,null,null,"",""]
[null,null,null,null,null,null,null,null,null,null,null,null,null,null,"",""]
[null,null,null,null,null,null,null,null,null,null,null,null,null,null,"",""]
[null,null,null,null,null,null,null,null,null,null,null,null,null,null,"",""]
[null,null,null,null,null,null,null,null,null,null,null,null,null,null,"",""]
[null,null,null,null,null,null,null,null,null,null,null,null,null,null,"",""]
[null,null,null,null,null,null,null,null,null,null,null,null,null,null,"",""]
[null,null,null,null,null,null,null,null,null,null,null,null,null,null,"",""]
[null,null,null,null,null,null,null,null,null,null,null,null,null,null,"",""]
[null,null,null,null,null,null,null,null,null,null,null,null,null,null,"",""]
[null,null,null,null,null,null,null,null,null,null,null,null,null,null,"",""]
[null,null,null,null,null,null,null,null,null,null,null,null,null,null,"",""]
[null,null,null,null,null,null,null,null,null,null,null,null,null,null,"",""]
[null,null,null,null,null,null,null,null,null,null,null,null,null,null,"",""]
[null,null,null,null,null,null,null,null,null,null,null,null,null,null,"",""]
[null,null,null,null,null,null,null,null,null,null,null,null,null,null,"",""]
[null,null,null,null,null,null,null,null,null,null,null,null,null,null,{"$f":"IF(OR(M44938=\"\",M44938=\"-\"),\"\",0.35*10^M44938)","v":""},{"$f":"IF(O44938=0.35*10^M44938,\"Seth method\",\"\")","v":""}]
[null,null,null,null,null,null,null,null,null,null,null,null,null,null,"",""]
[null,null,null,null,null,null,null,null,null,null,null,null,null,null,"",""]
[null,null,null,null,null,null,null,null,null,null,null,null,null,null,"",""]
[null,null,null,null,null,null,null,null,null,null,null,null,null,null,"",""]
[null,null,null,null,null,null,null,null,null,null,null,null,null,null,"",""]
[null,null,null,null,null,null,null,null,null,null,null,null,null,null,"",""]
[null,null,null,null,null,null,null,null,null,null,null,null,null,null,"",""]
[null,null,null,null,null,null,null,null,null,null,null,null,null,null,"",""]
[null,null,null,null,null,null,null,null,null,null,null,null,null,null,"",""]
[null,null,null,null,null,null,null,null,null,null,null,null,null,null,"",""]
[null,null,null,null,null,null,null,null,null,null,null,null,null,null,"",""]
[null,null,null,null,null,null,null,null,null,null,null,null,null,null,"",""]
[null,null,null,null,null,null,null,null,null,null,null,null,null,null,"",""]
[null,null,null,null,null,null,null,null,null,null,null,null,null,null,"",""]
[null,null,null,null,null,null,null,null,null,null,null,null,null,null,"",""]
[null,null,null,null,null,null,null,null,null,null,null,null,null,null,"",""]
[null,null,null,null,null,null,null,null,null,null,null,null,null,null,"",""]
[null,null,null,null,null,null,null,null,null,null,null,null,null,null,"",""]
[null,null,null,null,null,null,null,null,null,null,null,null,null,null,"",""]
[null,null,null,null,null,null,null,null,null,null,null,null,null,null,"",""]
[null,null,null,null,null,null,null,null,null,null,null,null,null,null,"",""]
[null,null,null,null,null,null,null,null,null,null,null,null,null,null,"",""]
[null,null,null,null,null,null,null,null,null,null,null,null,null,null,"",""]
[null,null,null,null,null,null,null,null,null,null,null,null,null,null,"",""]
[null,null,null,null,null,null,null,null,null,null,null,null,null,null,"",""]
[null,null,null,null,null,null,null,null,null,null,null,null,null,null,"",""]
[null,null,null,null,null,null,null,null,null,null,null,null,null,null,"",""]
[null,null,null,null,null,null,null,null,null,null,null,null,null,null,"",""]
[null,null,null,null,null,null,null,null,null,null,null,null,null,null,"",""]
[null,null,null,null,null,null,null,null,null,null,null,null,null,null,"",""]
[null,null,null,null,null,null,null,null,null,null,null,null,null,null,"",""]
[null,null,null,null,null,null,null,null,null,null,null,null,null,null,"",""]
[null,null,null,null,null,null,null,null,null,null,null,null,null,null,"",""]
[null,null,null,null,null,null,null,null,null,null,null,null,null,null,"",""]
[null,null,null,null,null,null,null,null,null,null,null,null,null,null,"",""]
[null,null,null,null,null,null,null,null,null,null,null,null,null,null,"",""]
[null,null,null,null,null,null,null,null,null,null,null,null,null,null,"",""]
[null,null,null,null,null,null,null,null,null,null,null,null,null,null,"",""]
[null,null,null,null,null,null,null,null,null,null,null,null,null,null,"",""]
[null,null,null,null,null,null,null,null,null,null,null,null,null,null,"",""]
[null,null,null,null,null,null,null,null,null,null,null,null,null,null,"",""]
[null,null,null,null,null,null,null,null,null,null,null,null,null,null,"",""]
[null,null,null,null,null,null,null,null,null,null,null,null,null,null,"",""]
[null,null,null,null,null,null,null,null,null,null,null,null,null,null,"",""]
[null,null,null,null,null,null,null,null,null,null,null,null,null,null,"",""]
[null,null,null,null,null,null,null,null,null,null,null,null,null,null,"",""]
[null,null,null,null,null,null,null,null,null,null,null,null,null,null,"",""]
[null,null,null,null,null,null,null,null,null,null,null,null,null,null,"",""]
[null,null,null,null,null,null,null,null,null,null,null,null,null,null,"",""]
[null,null,null,null,null,null,null,null,null,null,null,null,null,null,"",""]
[null,null,null,null,null,null,null,null,null,null,null,null,null,null,"",""]
[null,null,null,null,null,null,null,null,null,null,null,null,null,null,"",""]
[null,null,null,null,null,null,null,null,null,null,null,null,null,null,"",""]
[null,null,null,null,null,null,null,null,null,null,null,null,null,null,"",""]
[null,null,null,null,null,null,null,null,null,null,null,null,null,null,"",""]
[null,null,null,null,null,null,null,null,null,null,null,null,null,null,"",""]
[null,null,null,null,null,null,null,null,null,null,null,null,null,null,"",""]
[null,null,null,null,null,null,null,null,null,null,null,null,null,null,"",""]
[null,null,null,null,null,null,null,null,null,null,null,null,null,null,"",""]
[null,null,null,null,null,null,null,null,null,null,null,null,null,null,"",""]
[null,null,null,null,null,null,null,null,null,null,null,null,null,null,"",""]
[null,null,null,null,null,null,null,null,null,null,null,null,null,null,"",""]
[null,null,null,null,null,null,null,null,null,null,null,null,null,null,"",""]
[null,null,null,null,null,null,null,null,null,null,null,null,null,null,"",""]
[null,null,null,null,null,null,null,null,null,null,null,null,null,null,"",""]
[null,null,null,null,null,null,null,null,null,null,null,null,null,null,"",""]
[null,null,null,null,null,null,null,null,null,null,null,null,null,null,"",""]
[null,null,null,null,null,null,null,null,null,null,null,null,null,null,"",""]
[null,null,null,null,null,null,null,null,null,null,null,null,null,null,"",""]
[null,null,null,null,null,null,null,null,null,null,null,null,null,null,"",""]
[null,null,null,null,null,null,null,null,null,null,null,null,null,null,"",""]
[null,null,null,null,null,null,null,null,null,null,null,null,null,null,"",""]
[null,null,null,null,null,null,null,null,null,null,null,null,null,null,"",""]
[null,null,null,null,null,null,null,null,null,null,null,null,null,null,"",""]
[null,null,null,null,null,null,null,null,null,null,null,null,null,null,"",""]
[null,null,null,null,null,null,null,null,null,null,null,null,null,null,"",""]
[null,null,null,null,null,null,null,null,null,null,null,null,null,null,"",""]
[null,null,null,null,null,null,null,null,null,null,null,null,null,null,"",""]
[null,null,null,null,null,null,null,null,null,null,null,null,null,null,"",""]
[null,null,null,null,null,null,null,null,null,null,null,null,null,null,"",""]
[null,null,null,null,null,null,null,null,null,null,null,null,null,null,"",""]
[null,null,null,null,null,null,null,null,null,null,null,null,null,null,"",""]
[null,null,null,null,null,null,null,null,null,null,null,null,null,null,"",""]
[null,null,null,null,null,null,null,null,null,null,null,null,null,null,"",""]
[null,null,null,null,null,null,null,null,null,null,null,null,null,null,"",""]
[null,null,null,null,null,null,null,null,null,null,null,null,null,null,"",""]
[null,null,null,null,null,null,null,null,null,null,null,null,null,null,"",""]
[null,null,null,null,null,null,null,null,null,null,null,null,null,null,"",""]
[null,null,null,null,null,null,null,null,null,null,null,null,null,null,"",""]
[null,null,null,null,null,null,null,null,null,null,null,null,null,null,"",""]
[null,null,null,null,null,null,null,null,null,null,null,null,null,null,"",""]
[null,null,null,null,null,null,null,null,null,null,null,null,null,null,"",""]
[null,null,null,null,null,null,null,null,null,null,null,null,null,null,{"$f":"IF(OR(M47882=\"\",M47882=\"-\"),\"\",0.35*10^M47882)","v":""},{"$f":"IF(O47882=0.35*10^M47882,\"Seth method\",\"\")","v":""}]
[null,null,null,null,null,null,null,null,null,null,null,null,null,null,"",""]
[null,null,null,null,null,null,null,null,null,null,null,null,null,null,"",""]
[null,null,null,null,null,null,null,null,null,null,null,null,null,null,"",""]
[null,null,null,null,null,null,null,null,null,null,null,null,null,null,"",""]
[null,null,null,null,null,null,null,null,null,null,null,null,null,null,"",""]
[null,null,null,null,null,null,null,null,null,null,null,null,null,null,"",""]
[null,null,null,null,null,null,null,null,null,null,null,null,null,null,"",""]
[null,null,null,null,null,null,null,null,null,null,null,null,null,null,"",""]
[null,null,null,null,null,null,null,null,null,null,null,null,null,null,"",""]
[null,null,null,null,null,null,null,null,null,null,null,null,null,null,"",""]
[null,null,null,null,null,null,null,null,null,null,null,null,null,null,"",""]
[null,null,null,null,null,null,null,null,null,null,null,null,null,null,"",""]
[null,null,null,null,null,null,null,null,null,null,null,null,null,null,"",""]
[null,null,null,null,null,null,null,null,null,null,null,null,null,null,"",""]
[null,null,null,null,null,null,null,null,null,null,null,null,null,null,"",""]
[null,null,null,null,null,null,null,null,null,null,null,null,null,null,"",""]
[null,null,null,null,null,null,null,null,null,null,null,null,null,null,"",""]
[null,null,null,null,null,null,null,null,null,null,null,null,null,null,"",""]
[null,null,null,null,null,null,null,null,null,null,null,null,null,null,"",""]
[null,null,null,null,null,null,null,null,null,null,null,null,null,null,"",""]
[null,null,null,null,null,null,null,null,null,null,null,null,null,null,"",""]
[null,null,null,null,null,null,null,null,null,null,null,null,null,null,"",""]
[null,null,null,null,null,null,null,null,null,null,null,null,null,null,"",""]
[null,null,null,null,null,null,null,null,null,null,null,null,null,null,"",""]
[null,null,null,null,null,null,null,null,null,null,null,null,null,null,"",""]
[null,null,null,null,null,null,null,null,null,null,null,null,null,null,"",""]
[null,null,null,null,null,null,null,null,null,null,null,null,null,null,"",""]
[null,null,null,null,null,null,null,null,null,null,null,null,null,null,"",""]
[null,null,null,null,null,null,null,null,null,null,null,null,null,null,"",""]
[null,null,null,null,null,null,null,null,null,null,null,null,null,null,"",""]
[null,null,null,null,null,null,null,null,null,null,null,null,null,null,"",""]
[null,null,null,null,null,null,null,null,null,null,null,null,null,null,"",""]
[null,null,null,null,null,null,null,null,null,null,null,null,null,null,"",""]
[null,null,null,null,null,null,null,null,null,null,null,null,null,null,"",""]
[null,null,null,null,null,null,null,null,null,null,null,null,null,null,"",""]
[null,null,null,null,null,null,null,null,null,null,null,null,null,null,"",""]
[null,null,null,null,null,null,null,null,null,null,null,null,null,null,"",""]
[null,null,null,null,null,null,null,null,null,null,null,null,null,null,"",""]
[null,null,null,null,null,null,null,null,null,null,null,null,null,null,{"$f":"IF(OR(M49098=\"\",M49098=\"-\"),\"\",0.35*10^M49098)","v":""},{"$f":"IF(O49098=0.35*10^M49098,\"Seth method\",\"\")","v":""}]
[null,null,null,null,null,null,null,null,null,null,null,null,null,null,"",""]
[null,null,null,null,null,null,null,null,null,null,null,null,null,null,"",""]
[null,null,null,null,null,null,null,null,null,null,null,null,null,null,"",""]
[null,null,null,null,null,null,null,null,null,null,null,null,null,null,"",""]
[null,null,null,null,null,null,null,null,null,null,null,null,null,null,"",""]
[null,null,null,null,null,null,null,null,null,null,null,null,null,null,"",""]
[null,null,null,null,null,null,null,null,null,null,null,null,null,null,"",""]
[null,null,null,null,null,null,null,null,null,null,null,null,null,null,"",""]
[null,null,null,null,null,null,null,null,null,null,null,null,null,null,"",""]
[null,null,null,null,null,null,null,null,null,null,null,null,null,null,"",""]
[null,null,null,null,null,null,null,null,null,null,null,null,null,null,"",""]
[null,null,null,null,null,null,null,null,null,null,null,null,null,null,"",""]
[null,null,null,null,null,null,null,null,null,null,null,null,null,null,"",""]
[null,null,null,null,null,null,null,null,null,null,null,null,null,null,"",""]
[null,null,null,null,null,null,null,null,null,null,null,null,null,null,"",""]
[null,null,null,null,null,null,null,null,null,null,null,null,null,null,"",""]
[null,null,null,null,null,null,null,null,null,null,null,null,null,null,"",""]
[null,null,null,null,null,null,null,null,null,null,null,null,null,null,"",""]
[null,null,null,null,null,null,null,null,null,null,null,null,null,null,"",""]
[null,null,null,null,null,null,null,null,null,null,null,null,null,null,"",""]
[null,null,null,null,null,null,null,null,null,null,null,null,null,null,"",""]
[null,null,null,null,null,null,null,null,null,null,null,null,null,null,"",""]
[null,null,null,null,null,null,null,null,null,null,null,null,null,null,"",""]
[null,null,null,null,null,null,null,null,null,null,null,null,null,null,"",""]
[null,null,null,null,null,null,null,null,null,null,null,null,null,null,"",""]
[null,null,null,null,null,null,null,null,null,null,null,null,null,null,"",""]
[null,null,null,null,null,null,null,null,null,null,null,null,null,null,"",""]
[null,null,null,null,null,null,null,null,null,null,null,null,null,null,"",""]
[null,null,null,null,null,null,null,null,null,null,null,null,null,null,"",""]
[null,null,null,null,null,null,null,null,null,null,null,null,null,null,"",""]
[null,null,null,null,null,null,null,null,null,null,null,null,null,null,"",""]
[null,null,null,null,null,null,null,null,null,null,null,null,null,null,"",""]
[null,null,null,null,null,null,null,null,null,null,null,null,null,null,"",""]
[null,null,null,null,null,null,null,null,null,null,null,null,null,null,"",""]
[null,null,null,null,null,null,null,null,null,null,null,null,null,null,"",""]
[null,null,null,null,null,null,null,null,null,null,null,null,null,null,"",""]
[null,null,null,null,null,null,null,null,null,null,null,null,null,null,"",""]
[null,null,null,null,null,null,null,null,null,null,null,null,null,null,"",""]
[null,null,null,null,null,null,null,null,null,null,null,null,null,null,"",""]
[null,null,null,null,null,null,null,null,null,null,null,null,null,null,"",""]
[null,null,null,null,null,null,null,null,null,null,null,null,null,null,"",""]
[null,null,null,null,null,null,null,null,null,null,null,null,null,null,"",""]
[null,null,null,null,null,null,null,null,null,null,null,null,null,null,"",""]
[null,null,null,null,null,null,null,null,null,null,null,null,null,null,"",""]
[null,null,null,null,null,null,null,null,null,null,null,null,null,null,"",""]
[null,null,null,null,null,null,null,null,null,null,null,null,null,null,"",""]
[null,null,null,null,null,null,null,null,null,null,null,null,null,null,"",""]
[null,null,null,null,null,null,null,null,null,null,null,null,null,null,"",""]
[null,null,null,null,null,null,null,null,null,null,null,null,null,null,"",""]
[null,null,null,null,null,null,null,null,null,null,null,null,null,null,"",""]
[null,null,null,null,null,null,null,null,null,null,null,null,null,null,"",""]
[null,null,null,null,null,null,null,null,null,null,null,null,null,null,"",""]
[null,null,null,null,null,null,null,null,null,null,null,null,null,null,"",""]
[null,null,null,null,null,null,null,null,null,null,null,null,null,null,"",""]
[null,null,null,null,null,null,null,null,null,null,null,null,null,null,"",""]
[null,null,null,null,null,null,null,null,null,null,null,null,null,null,"",""]
[null,null,null,null,null,null,null,null,null,null,null,null,null,null,"",""]
[null,null,null,null,null,null,null,null,null,null,null,null,null,null,"",""]
[null,null,null,null,null,null,null,null,null,null,null,null,null,null,"",""]
[null,null,null,null,null,null,null,null,null,null,null,null,null,null,"",""]
[null,null,null,null,null,null,null,null,null,null,null,null,null,null,"",""]
[null,null,null,null,null,null,null,null,null,null,null,null,null,null,"",""]
[null,null,null,null,null,null,null,null,null,null,null,null,null,null,"",""]
[null,null,null,null,null,null,null,null,null,null,null,null,null,null,"",""]
[null,null,null,null,null,null,null,null,null,null,null,null,null,null,"",""]
[null,null,null,null,null,null,null,null,null,null,null,null,null,null,"",""]
[null,null,null,null,null,null,null,null,null,null,null,null,null,null,"",""]
[null,null,null,null,null,null,null,null,null,null,null,null,null,null,"",""]
[null,null,null,null,null,null,null,null,null,null,null,null,null,null,"",""]
[null,null,null,null,null,null,null,null,null,null,null,null,null,null,"",""]
[null,null,null,null,null,null,null,null,null,null,null,null,null,null,"",""]
[null,null,null,null,null,null,null,null,null,null,null,null,null,null,"",""]
[null,null,null,null,null,null,null,null,null,null,null,null,null,null,"",""]
[null,null,null,null,null,null,null,null,null,null,null,null,null,null,"",""]
[null,null,null,null,null,null,null,null,null,null,null,null,null,null,"",""]
[null,null,null,null,null,null,null,null,null,null,null,null,null,null,"",""]
[null,null,null,null,null,null,null,null,null,null,null,null,null,null,"",""]
[null,null,null,null,null,null,null,null,null,null,null,null,null,null,"",""]
[null,null,null,null,null,null,null,null,null,null,null,null,null,null,"",""]
[null,null,null,null,null,null,null,null,null,null,null,null,null,null,"",""]
[null,null,null,null,null,null,null,null,null,null,null,null,null,null,"",""]
[null,null,null,null,null,null,null,null,null,null,null,null,null,null,"",""]
[null,null,null,null,null,null,null,null,null,null,null,null,null,null,"",""]
[null,null,null,null,null,null,null,null,null,null,null,null,null,null,"",""]
[null,null,null,null,null,null,null,null,null,null,null,null,null,null,"",""]
[null,null,null,null,null,null,null,null,null,null,null,null,null,null,"",""]
[null,null,null,null,null,null,null,null,null,null,null,null,null,null,"",""]
[null,null,null,null,null,null,null,null,null,null,null,null,null,null,"",""]
[null,null,null,null,null,null,null,null,null,null,null,null,null,null,"",""]
[null,null,null,null,null,null,null,null,null,null,null,null,null,null,"",""]
[null,null,null,null,null,null,null,null,null,null,null,null,null,null,"",""]
[null,null,null,null,null,null,null,null,null,null,null,null,null,null,"",""]
[null,null,null,null,null,null,null,null,null,null,null,null,null,null,"",""]
[null,null,null,null,null,null,null,null,null,null,null,null,null,null,"",""]
[null,null,null,null,null,null,null,null,null,null,null,null,null,null,{"$f":"IF(OR(M52106=\"\",M52106=\"-\"),\"\",0.35*10^M52106)","v":""},{"$f":"IF(O52106=0.35*10^M52106,\"Seth method\",\"\")","v":""}]
[null,null,null,null,null,null,null,null,null,null,null,null,null,null,"",""]
[null,null,null,null,null,null,null,null,null,null,null,null,null,null,"",""]
[null,null,null,null,null,null,null,null,null,null,null,null,null,null,"",""]
[null,null,null,null,null,null,null,null,null,null,null,null,null,null,"",""]
[null,null,null,null,null,null,null,null,null,null,null,null,null,null,"",""]
[null,null,null,null,null,null,null,null,null,null,null,null,null,null,"",""]
[null,null,null,null,null,null,null,null,null,null,null,null,null,null,"",""]
[null,null,null,null,null,null,null,null,null,null,null,null,null,null,"",""]
[null,null,null,null,null,null,null,null,null,null,null,null,null,null,"",""]
[null,null,null,null,null,null,null,null,null,null,null,null,null,null,"",""]
[null,null,null,null,null,null,null,null,null,null,null,null,null,null,"",""]
[null,null,null,null,null,null,null,null,null,null,null,null,null,null,"",""]
[null,null,null,null,null,null,null,null,null,null,null,null,null,null,"",""]
[null,null,null,null,null,null,null,null,null,null,null,null,null,null,"",""]
[null,null,null,null,null,null,null,null,null,null,null,null,null,null,"",""]
[null,null,null,null,null,null,null,null,null,null,null,null,null,null,"",""]
[null,null,null,null,null,null,null,null,null,null,null,null,null,null,"",""]
[null,null,null,null,null,null,null,null,null,null,null,null,null,null,"",""]
[null,null,null,null,null,null,null,null,null,null,null,null,null,null,"",""]
[null,null,null,null,null,null,null,null,null,null,null,null,null,null,"",""]
[null,null,null,null,null,null,null,null,null,null,null,null,null,null,"",""]
[null,null,null,null,null,null,null,null,null,null,null,null,null,null,"",""]
[null,null,null,null,null,null,null,null,null,null,null,null,null,null,"",""]
[null,null,null,null,null,null,null,null,null,null,null,null,null,null,"",""]
[null,null,null,null,null,null,null,null,null,null,null,null,null,null,"",""]
[null,null,null,null,null,null,null,null,null,null,null,null,null,null,"",""]
[null,null,null,null,null,null,null,null,null,null,null,null,null,null,"",""]
[null,null,null,null,null,null,null,null,null,null,null,null,null,null,"",""]
[null,null,null,null,null,null,null,null,null,null,null,null,null,null,"",""]
[null,null,null,null,null,null,null,null,null,null,null,null,null,null,"",""]
[null,null,null,null,null,null,null,null,null,null,null,null,null,null,"",""]
[null,null,null,null,null,null,null,null,null,null,null,null,null,null,"",""]
[null,null,null,null,null,null,null,null,null,null,null,null,null,null,{"$f":"IF(OR(M53130=\"\",M53130=\"-\"),\"\",0.35*10^M53130)","v":""},{"$f":"IF(O53130=0.35*10^M53130,\"Seth method\",\"\")","v":""}]
[null,null,null,null,null,null,null,null,null,null,null,null,null,null,"",""]
[null,null,null,null,null,null,null,null,null,null,null,null,null,null,"",""]
[null,null,null,null,null,null,null,null,null,null,null,null,null,null,"",""]
[null,null,null,null,null,null,null,null,null,null,null,null,null,null,"",""]
[null,null,null,null,null,null,null,null,null,null,null,null,null,null,"",""]
[null,null,null,null,null,null,null,null,null,null,null,null,null,null,"",""]
[null,null,null,null,null,null,null,null,null,null,null,null,null,null,"",""]
[null,null,null,null,null,null,null,null,null,null,null,null,null,null,"",""]
[null,null,null,null,null,null,null,null,null,null,null,null,null,null,"",""]
[null,null,null,null,null,null,null,null,null,null,null,null,null,null,"",""]
[null,null,null,null,null,null,null,null,null,null,null,null,null,null,"",""]
[null,null,null,null,null,null,null,null,null,null,null,null,null,null,"",""]
[null,null,null,null,null,null,null,null,null,null,null,null,null,null,"",""]
[null,null,null,null,null,null,null,null,null,null,null,null,null,null,"",""]
[null,null,null,null,null,null,null,null,null,null,null,null,null,null,"",""]
[null,null,null,null,null,null,null,null,null,null,null,null,null,null,"",""]
[null,null,null,null,null,null,null,null,null,null,null,null,null,null,"",""]
[null,null,null,null,null,null,null,null,null,null,null,null,null,null,"",""]
[null,null,null,null,null,null,null,null,null,null,null,null,null,null,"",""]
[null,null,null,null,null,null,null,null,null,null,null,null,null,null,"",""]
[null,null,null,null,null,null,null,null,null,null,null,null,null,null,"",""]
[null,null,null,null,null,null,null,null,null,null,null,null,null,null,"",""]
[null,null,null,null,null,null,null,null,null,null,null,null,null,null,"",""]
[null,null,null,null,null,null,null,null,null,null,null,null,null,null,"",""]
[null,null,null,null,null,null,null,null,null,null,null,null,null,null,"",""]
[null,null,null,null,null,null,null,null,null,null,null,null,null,null,"",""]
[null,null,null,null,null,null,null,null,null,null,null,null,null,null,"",""]
[null,null,null,null,null,null,null,null,null,null,null,null,null,null,"",""]
[null,null,null,null,null,null,null,null,null,null,null,null,null,null,"",""]
[null,null,null,null,null,null,null,null,null,null,null,null,null,null,"",""]
[null,null,null,null,null,null,null,null,null,null,null,null,null,null,"",""]
[null,null,null,null,null,null,null,null,null,null,null,null,null,null,"",""]
[null,null,null,null,null,null,null,null,null,null,null,null,null,null,"",""]
[null,null,null,null,null,null,null,null,null,null,null,null,null,null,"",""]
[null,null,null,null,null,null,null,null,null,null,null,null,null,null,"",""]
[null,null,null,null,null,null,null,null,null,null,null,null,null,null,"",""]
[null,null,null,null,null,null,null,null,null,null,null,null,null,null,"",""]
[null,null,null,null,null,null,null,null,null,null,null,null,null,null,"",""]
[null,null,null,null,null,null,null,null,null,null,null,null,null,null,"",""]
[null,null,null,null,null,null,null,null,null,null,null,null,null,null,"",""]
[null,null,null,null,null,null,null,null,null,null,null,null,null,null,"",""]
[null,null,null,null,null,null,null,null,null,null,null,null,null,null,"",""]
[null,null,null,null,null,null,null,null,null,null,null,null,null,null,"",""]
[null,null,null,null,null,null,null,null,null,null,null,null,null,null,"",""]
[null,null,null,null,null,null,null,null,null,null,null,null,null,null,"",""]
[null,null,null,null,null,null,null,null,null,null,null,null,null,null,"",""]
[null,null,null,null,null,null,null,null,null,null,null,null,null,null,"",""]
[null,null,null,null,null,null,null,null,null,null,null,null,null,null,"",""]
[null,null,null,null,null,null,null,null,null,null,null,null,null,null,"",""]
[null,null,null,null,null,null,null,null,null,null,null,null,null,null,"",""]
[null,null,null,null,null,null,null,null,null,null,null,null,null,null,"",""]
[null,null,null,null,null,null,null,null,null,null,null,null,null,null,"",""]
[null,null,null,null,null,null,null,null,null,null,null,null,null,null,"",""]
[null,null,null,null,null,null,null,null,null,null,null,null,null,null,"",""]
[null,null,null,null,null,null,null,null,null,null,null,null,null,null,"",""]
[null,null,null,null,null,null,null,null,null,null,null,null,null,null,"",""]
[null,null,null,null,null,null,null,null,null,null,null,null,null,null,"",""]
[null,null,null,null,null,null,null,null,null,null,null,null,null,null,"",""]
[null,null,null,null,null,null,null,null,null,null,null,null,null,null,"",""]
[null,null,null,null,null,null,null,null,null,null,null,null,null,null,"",""]
[null,null,null,null,null,null,null,null,null,null,null,null,null,null,"",""]
[null,null,null,null,null,null,null,null,null,null,null,null,null,null,"",""]
[null,null,null,null,null,null,null,null,null,null,null,null,null,null,"",""]
[null,null,null,null,null,null,null,null,null,null,null,null,null,null,"",""]
[null,null,null,null,null,null,null,null,null,null,null,null,null,null,"",""]
[null,null,null,null,null,null,null,null,null,null,null,null,null,null,"",""]
[null,null,null,null,null,null,null,null,null,null,null,null,null,null,"",""]
[null,null,null,null,null,null,null,null,null,null,null,null,null,null,"",""]
[null,null,null,null,null,null,null,null,null,null,null,null,null,null,"",""]
[null,null,null,null,null,null,null,null,null,null,null,null,null,null,"",""]
[null,null,null,null,null,null,null,null,null,null,null,null,null,null,"",""]
[null,null,null,null,null,null,null,null,null,null,null,null,null,null,"",""]
[null,null,null,null,null,null,null,null,null,null,null,null,null,null,"",""]
[null,null,null,null,null,null,null,null,null,null,null,null,null,null,"",""]
[null,null,null,null,null,null,null,null,null,null,null,null,null,null,"",""]
[null,null,null,null,null,null,null,null,null,null,null,null,null,null,"",""]
[null,null,null,null,null,null,null,null,null,null,null,null,null,null,"",""]
[null,null,null,null,null,null,null,null,null,null,null,null,null,null,"",""]
[null,null,null,null,null,null,null,null,null,null,null,null,null,null,"",""]
[null,null,null,null,null,null,null,null,null,null,null,null,null,null,"",""]
[null,null,null,null,null,null,null,null,null,null,null,null,null,null,"",""]
[null,null,null,null,null,null,null,null,null,null,null,null,null,null,"",""]
[null,null,null,null,null,null,null,null,null,null,null,null,null,null,"",""]
[null,null,null,null,null,null,null,null,null,null,null,null,null,null,"",""]
[null,null,null,null,null,null,null,null,null,null,null,null,null,null,"",""]
[null,null,null,null,null,null,null,null,null,null,null,null,null,null,"",""]
[null,null,null,null,null,null,null,null,null,null,null,null,null,null,"",""]
[null,null,null,null,null,null,null,null,null,null,null,null,null,null,"",""]
[null,null,null,null,null,null,null,null,null,null,null,null,null,null,"",""]
[null,null,null,null,null,null,null,null,null,null,null,null,null,null,"",""]
[null,null,null,null,null,null,null,null,null,null,null,null,null,null,"",""]
[null,null,null,null,null,null,null,null,null,null,null,null,null,null,"",""]
[null,null,null,null,null,null,null,null,null,null,null,null,null,null,"",""]
[null,null,null,null,null,null,null,null,null,null,null,null,null,null,"",""]
[null,null,null,null,null,null,null,null,null,null,null,null,null,null,"",""]
[null,null,null,null,null,null,null,null,null,null,null,null,null,null,"",""]
[null,null,null,null,null,null,null,null,null,null,null,null,null,null,"",""]
[null,null,null,null,null,null,null,null,null,null,null,null,null,null,"",""]
[null,null,null,null,null,null,null,null,null,null,null,null,null,null,"",""]
[null,null,null,null,null,null,null,null,null,null,null,null,null,null,"",""]
[null,null,null,null,null,null,null,null,null,null,null,null,null,null,"",""]
[null,null,null,null,null,null,null,null,null,null,null,null,null,null,"",""]
[null,null,null,null,null,null,null,null,null,null,null,null,null,null,"",""]
[null,null,null,null,null,null,null,null,null,null,null,null,null,null,"",""]
[null,null,null,null,null,null,null,null,null,null,null,null,null,null,"",""]
[null,null,null,null,null,null,null,null,null,null,null,null,null,null,"",""]
[null,null,null,null,null,null,null,null,null,null,null,null,null,null,"",""]
[null,null,null,null,null,null,null,null,null,null,null,null,null,null,"",""]
[null,null,null,null,null,null,null,null,null,null,null,null,null,null,"",""]
[null,null,null,null,null,null,null,null,null,null,null,null,null,null,"",""]
[null,null,null,null,null,null,null,null,null,null,null,null,null,null,"",""]
[null,null,null,null,null,null,null,null,null,null,null,null,null,null,"",""]
[null,null,null,null,null,null,null,null,null,null,null,null,null,null,"",""]
[null,null,null,null,null,null,null,null,null,null,null,null,null,null,"",""]
[null,null,null,null,null,null,null,null,null,null,null,null,null,null,"",""]
[null,null,null,null,null,null,null,null,null,null,null,null,null,null,"",""]
[null,null,null,null,null,null,null,null,null,null,null,null,null,null,"",""]
[null,null,null,null,null,null,null,null,null,null,null,null,null,null,"",""]
[null,null,null,null,null,null,null,null,null,null,null,null,null,null,"",""]
[null,null,null,null,null,null,null,null,null,null,null,null,null,null,"",""]
[null,null,null,null,null,null,null,null,null,null,null,null,null,null,"",""]
[null,null,null,null,null,null,null,null,null,null,null,null,null,null,"",""]
[null,null,null,null,null,null,null,null,null,null,null,null,null,null,"",""]
[null,null,null,null,null,null,null,null,null,null,null,null,null,null,"",""]
[null,null,null,null,null,null,null,null,null,null,null,null,null,null,"",""]
[null,null,null,null,null,null,null,null,null,null,null,null,null,null,"",""]
[null,null,null,null,null,null,null,null,null,null,null,null,null,null,"",""]
[null,null,null,null,null,null,null,null,null,null,null,null,null,null,"",""]
[null,null,null,null,null,null,null,null,null,null,null,null,null,null,"",""]
[null,null,null,null,null,null,null,null,null,null,null,null,null,null,"",""]
[null,null,null,null,null,null,null,null,null,null,null,null,null,null,"",""]
[null,null,null,null,null,null,null,null,null,null,null,null,null,null,"",""]
[null,null,null,null,null,null,null,null,null,null,null,null,null,null,"",""]
[null,null,null,null,null,null,null,null,null,null,null,null,null,null,"",""]
[null,null,null,null,null,null,null,null,null,null,null,null,null,null,"",""]
[null,null,null,null,null,null,null,null,null,null,null,null,null,null,"",""]
[null,null,null,null,null,null,null,null,null,null,null,null,null,null,"",""]
[null,null,null,null,null,null,null,null,null,null,null,null,null,null,"",""]
[null,null,null,null,null,null,null,null,null,null,null,null,null,null,"",""]
[null,null,null,null,null,null,null,null,null,null,null,null,null,null,"",""]
[null,null,null,null,null,null,null,null,null,null,null,null,null,null,"",""]
[null,null,null,null,null,null,null,null,null,null,null,null,null,null,"",""]
[null,null,null,null,null,null,null,null,null,null,null,null,null,null,"",""]
[null,null,null,null,null,null,null,null,null,null,null,null,null,null,"",""]
[null,null,null,null,null,null,null,null,null,null,null,null,null,null,"",""]
[null,null,null,null,null,null,null,null,null,null,null,null,null,null,"",""]
[null,null,null,null,null,null,null,null,null,null,null,null,null,null,"",""]
[null,null,null,null,null,null,null,null,null,null,null,null,null,null,"",""]
[null,null,null,null,null,null,null,null,null,null,null,null,null,null,"",""]
[null,null,null,null,null,null,null,null,null,null,null,null,null,null,"",""]
[null,null,null,null,null,null,null,null,null,null,null,null,null,null,"",""]
[null,null,null,null,null,null,null,null,null,null,null,null,null,null,"",""]
[null,null,null,null,null,null,null,null,null,null,null,null,null,null,"",""]
[null,null,null,null,null,null,null,null,null,null,null,null,null,null,"",""]
[null,null,null,null,null,null,null,null,null,null,null,null,null,null,"",""]
[null,null,null,null,null,null,null,null,null,null,null,null,null,null,"",""]
[null,null,null,null,null,null,null,null,null,null,null,null,null,null,"",""]
[null,null,null,null,null,null,null,null,null,null,null,null,null,null,"",""]
[null,null,null,null,null,null,null,null,null,null,null,null,null,null,"",""]
[null,null,null,null,null,null,null,null,null,null,null,null,null,null,"",""]
[null,null,null,null,null,null,null,null,null,null,null,null,null,null,"",""]
[null,null,null,null,null,null,null,null,null,null,null,null,null,null,"",""]
[null,null,null,null,null,null,null,null,null,null,null,null,null,null,"",""]
[null,null,null,null,null,null,null,null,null,null,null,null,null,null,"",""]
[null,null,null,null,null,null,null,null,null,null,null,null,null,null,"",""]
[null,null,null,null,null,null,null,null,null,null,null,null,null,null,"",""]
[null,null,null,null,null,null,null,null,null,null,null,null,null,null,"",""]
[null,null,null,null,null,null,null,null,null,null,null,null,null,null,"",""]
[null,null,null,null,null,null,null,null,null,null,null,null,null,null,"",""]
[null,null,null,null,null,null,null,null,null,null,null,null,null,null,"",""]
[null,null,null,null,null,null,null,null,null,null,null,null,null,null,"",""]
[null,null,null,null,null,null,null,null,null,null,null,null,null,null,"",""]
[null,null,null,null,null,null,null,null,null,null,null,null,null,null,"",""]
[null,null,null,null,null,null,null,null,null,null,null,null,null,null,"",""]
[null,null,null,null,null,null,null,null,null,null,null,null,null,null,"",""]
[null,null,null,null,null,null,null,null,null,null,null,null,null,null,"",""]
[null,null,null,null,null,null,null,null,null,null,null,null,null,null,"",""]
[null,null,null,null,null,null,null,null,null,null,null,null,null,null,"",""]
[null,null,null,null,null,null,null,null,null,null,null,null,null,null,"",""]
[null,null,null,null,null,null,null,null,null,null,null,null,null,null,"",""]
[null,null,null,null,null,null,null,null,null,null,null,null,null,null,"",""]
[null,null,null,null,null,null,null,null,null,null,null,null,null,null,"",""]
[null,null,null,null,null,null,null,null,null,null,null,null,null,null,"",""]
[null,null,null,null,null,null,null,null,null,null,null,null,null,null,"",""]
[null,null,null,null,null,null,null,null,null,null,null,null,null,null,"",""]
[null,null,null,null,null,null,null,null,null,null,null,null,null,null,"",""]
[null,null,null,null,null,null,null,null,null,null,null,null,null,null,"",""]
[null,null,null,null,null,null,null,null,null,null,null,null,null,null,"",""]
[null,null,null,null,null,null,null,null,null,null,null,null,null,null,"",""]
[null,null,null,null,null,null,null,null,null,null,null,null,null,null,"",""]
[null,null,null,null,null,null,null,null,null,null,null,null,null,null,"",""]
[null,null,null,null,null,null,null,null,null,null,null,null,null,null,"",""]
[null,null,null,null,null,null,null,null,null,null,null,null,null,null,"",""]
[null,null,null,null,null,null,null,null,null,null,null,null,null,null,"",""]
[null,null,null,null,null,null,null,null,null,null,null,null,null,null,"",""]
[null,null,null,null,null,null,null,null,null,null,null,null,null,null,"",""]
[null,null,null,null,null,null,null,null,null,null,null,null,null,null,"",""]
[null,null,null,null,null,null,null,null,null,null,null,null,null,null,"",""]
[null,null,null,null,null,null,null,null,null,null,null,null,null,null,"",""]
[null,null,null,null,null,null,null,null,null,null,null,null,null,null,"",""]
[null,null,null,null,null,null,null,null,null,null,null,null,null,null,"",""]
[null,null,null,null,null,null,null,null,null,null,null,null,null,null,"",""]
[null,null,null,null,null,null,null,null,null,null,null,null,null,null,"",""]
[null,null,null,null,null,null,null,null,null,null,null,null,null,null,"",""]
[null,null,null,null,null,null,null,null,null,null,null,null,null,null,"",""]
[null,null,null,null,null,null,null,null,null,null,null,null,null,null,"",""]
[null,null,null,null,null,null,null,null,null,null,null,null,null,null,"",""]
[null,null,null,null,null,null,null,null,null,null,null,null,null,null,"",""]
[null,null,null,null,null,null,null,null,null,null,null,null,null,null,"",""]
[null,null,null,null,null,null,null,null,null,null,null,null,null,null,"",""]
[null,null,null,null,null,null,null,null,null,null,null,null,null,null,"",""]
[null,null,null,null,null,null,null,null,null,null,null,null,null,null,"",""]
[null,null,null,null,null,null,null,null,null,null,null,null,null,null,"",""]
[null,null,null,null,null,null,null,null,null,null,null,null,null,null,"",""]
[null,null,null,null,null,null,null,null,null,null,null,null,null,null,"",""]
[null,null,null,null,null,null,null,null,null,null,null,null,null,null,"",""]
[null,null,null,null,null,null,null,null,null,null,null,null,null,null,"",""]
[null,null,null,null,null,null,null,null,null,null,null,null,null,null,"",""]
[null,null,null,null,null,null,null,null,null,null,null,null,null,null,"",""]
[null,null,null,null,null,null,null,null,null,null,null,null,null,null,"",""]
[null,null,null,null,null,null,null,null,null,null,null,null,null,null,"",""]
[null,null,null,null,null,null,null,null,null,null,null,null,null,null,"",""]
[null,null,null,null,null,null,null,null,null,null,null,null,null,null,"",""]
[null,null,null,null,null,null,null,null,null,null,null,null,null,null,"",""]
[null,null,null,null,null,null,null,null,null,null,null,null,null,null,"",""]
[null,null,null,null,null,null,null,null,null,null,null,null,null,null,"",""]
[null,null,null,null,null,null,null,null,null,null,null,null,null,null,"",""]
[null,null,null,null,null,null,null,null,null,null,null,null,null,null,"",""]
[null,null,null,null,null,null,null,null,null,null,null,null,null,null,"",""]
[null,null,null,null,null,null,null,null,null,null,null,null,null,null,"",""]
[null,null,null,null,null,null,null,null,null,null,null,null,null,null,"",""]
[null,null,null,null,null,null,null,null,null,null,null,null,null,null,"",""]
[null,null,null,null,null,null,null,null,null,null,null,null,null,null,"",""]
[null,null,null,null,null,null,null,null,null,null,null,null,null,null,"",""]
[null,null,null,null,null,null,null,null,null,null,null,null,null,null,"",""]
[null,null,null,null,null,null,null,null,null,null,null,null,null,null,"",""]
[null,null,null,null,null,null,null,null,null,null,null,null,null,null,"",""]
[null,null,null,null,null,null,null,null,null,null,null,null,null,null,"",""]
[null,null,null,null,null,null,null,null,null,null,null,null,null,null,{"$f":"IF(OR(M60682=\"\",M60682=\"-\"),\"\",0.35*10^M60682)","v":""},{"$f":"IF(O60682=0.35*10^M60682,\"Seth method\",\"\")","v":""}]
[null,null,null,null,null,null,null,null,null,null,null,null,null,null,"",""]
[null,null,null,null,null,null,null,null,null,null,null,null,null,null,"",""]
[null,null,null,null,null,null,null,null,null,null,null,null,null,null,"",""]
[null,null,null,null,null,null,null,null,null,null,null,null,null,null,"",""]
[null,null,null,null,null,null,null,null,null,null,null,null,null,null,"",""]
[null,null,null,null,null,null,null,null,null,null,null,null,null,null,"",""]
[null,null,null,null,null,null,null,null,null,null,null,null,null,null,"",""]
[null,null,null,null,null,null,null,null,null,null,null,null,null,null,"",""]
[null,null,null,null,null,null,null,null,null,null,null,null,null,null,"",""]
[null,null,null,null,null,null,null,null,null,null,null,null,null,null,"",""]
[null,null,null,null,null,null,null,null,null,null,null,null,null,null,"",""]
[null,null,null,null,null,null,null,null,null,null,null,null,null,null,"",""]
[null,null,null,null,null,null,null,null,null,null,null,null,null,null,"",""]
[null,null,null,null,null,null,null,null,null,null,null,null,null,null,"",""]
[null,null,null,null,null,null,null,null,null,null,null,null,null,null,"",""]
[null,null,null,null,null,null,null,null,null,null,null,null,null,null,"",""]
[null,null,null,null,null,null,null,null,null,null,null,null,null,null,"",""]
[null,null,null,null,null,null,null,null,null,null,null,null,null,null,"",""]
[null,null,null,null,null,null,null,null,null,null,null,null,null,null,"",""]
[null,null,null,null,null,null,null,null,null,null,null,null,null,null,"",""]
[null,null,null,null,null,null,null,null,null,null,null,null,null,null,"",""]
[null,null,null,null,null,null,null,null,null,null,null,null,null,null,"",""]
[null,null,null,null,null,null,null,null,null,null,null,null,null,null,"",""]
[null,null,null,null,null,null,null,null,null,null,null,null,null,null,"",""]
[null,null,null,null,null,null,null,null,null,null,null,null,null,null,"",""]
[null,null,null,null,null,null,null,null,null,null,null,null,null,null,"",""]
[null,null,null,null,null,null,null,null,null,null,null,null,null,null,"",""]
[null,null,null,null,null,null,null,null,null,null,null,null,null,null,"",""]
[null,null,null,null,null,null,null,null,null,null,null,null,null,null,"",""]
[null,null,null,null,null,null,null,null,null,null,null,null,null,null,"",""]
[null,null,null,null,null,null,null,null,null,null,null,null,null,null,"",""]
[null,null,null,null,null,null,null,null,null,null,null,null,null,null,"",""]
[null,null,null,null,null,null,null,null,null,null,null,null,null,null,{"$f":"IF(OR(M61706=\"\",M61706=\"-\"),\"\",0.35*10^M61706)","v":""},{"$f":"IF(O61706=0.35*10^M61706,\"Seth method\",\"\")","v":""}]
[null,null,null,null,null,null,null,null,null,null,null,null,null,null,"",""]
[null,null,null,null,null,null,null,null,null,null,null,null,null,null,"",""]
[null,null,null,null,null,null,null,null,null,null,null,null,null,null,"",""]
[null,null,null,null,null,null,null,null,null,null,null,null,null,null,"",""]
[null,null,null,null,null,null,null,null,null,null,null,null,null,null,"",""]
[null,null,null,null,null,null,null,null,null,null,null,null,null,null,"",""]
[null,null,null,null,null,null,null,null,null,null,null,null,null,null,"",""]
[null,null,null,null,null,null,null,null,null,null,null,null,null,null,"",""]
[null,null,null,null,null,null,null,null,null,null,null,null,null,null,"",""]
[null,null,null,null,null,null,null,null,null,null,null,null,null,null,"",""]
[null,null,null,null,null,null,null,null,null,null,null,null,null,null,"",""]
[null,null,null,null,null,null,null,null,null,null,null,null,null,null,"",""]
[null,null,null,null,null,null,null,null,null,null,null,null,null,null,"",""]
[null,null,null,null,null,null,null,null,null,null,null,null,null,null,"",""]
[null,null,null,null,null,null,null,null,null,null,null,null,null,null,"",""]
[null,null,null,null,null,null,null,null,null,null,null,null,null,null,"",""]
[null,null,null,null,null,null,null,null,null,null,null,null,null,null,"",""]
[null,null,null,null,null,null,null,null,null,null,null,null,null,null,"",""]
[null,null,null,null,null,null,null,null,null,null,null,null,null,null,"",""]
[null,null,null,null,null,null,null,null,null,null,null,null,null,null,"",""]
[null,null,null,null,null,null,null,null,null,null,null,null,null,null,"",""]
[null,null,null,null,null,null,null,null,null,null,null,null,null,null,"",""]
[null,null,null,null,null,null,null,null,null,null,null,null,null,null,"",""]
[null,null,null,null,null,null,null,null,null,null,null,null,null,null,{"$f":"IF(OR(M62474=\"\",M62474=\"-\"),\"\",0.35*10^M62474)","v":""},{"$f":"IF(O62474=0.35*10^M62474,\"Seth method\",\"\")","v":""}]
[null,null,null,null,null,null,null,null,null,null,null,null,null,null,"",""]
[null,null,null,null,null,null,null,null,null,null,null,null,null,null,"",""]
[null,null,null,null,null,null,null,null,null,null,null,null,null,null,"",""]
[null,null,null,null,null,null,null,null,null,null,null,null,null,null,"",""]
[null,null,null,null,null,null,null,null,null,null,null,null,null,null,"",""]
[null,null,null,null,null,null,null,null,null,null,null,null,null,null,"",""]
[null,null,null,null,null,null,null,null,null,null,null,null,null,null,"",""]
[null,null,null,null,null,null,null,null,null,null,null,null,null,null,"",""]
[null,null,null,null,null,null,null,null,null,null,null,null,null,null,"",""]
[null,null,null,null,null,null,null,null,null,null,null,null,null,null,"",""]
[null,null,null,null,null,null,null,null,null,null,null,null,null,null,"",""]
[null,null,null,null,null,null,null,null,null,null,null,null,null,null,"",""]
[null,null,null,null,null,null,null,null,null,null,null,null,null,null,"",""]
[null,null,null,null,null,null,null,null,null,null,null,null,null,null,"",""]
[null,null,null,null,null,null,null,null,null,null,null,null,null,null,"",""]
[null,null,null,null,null,null,null,null,null,null,null,null,null,null,"",""]
[null,null,null,null,null,null,null,null,null,null,null,null,null,null,"",""]
[null,null,null,null,null,null,null,null,null,null,null,null,null,null,"",""]
[null,null,null,null,null,null,null,null,null,null,null,null,null,null,"",""]
[null,null,null,null,null,null,null,null,null,null,null,null,null,null,"",""]
[null,null,null,null,null,null,null,null,null,null,null,null,null,null,"",""]
[null,null,null,null,null,null,null,null,null,null,null,null,null,null,"",""]
[null,null,null,null,null,null,null,null,null,null,null,null,null,null,"",""]
[null,null,null,null,null,null,null,null,null,null,null,null,null,null,"",""]
[null,null,null,null,null,null,null,null,null,null,null,null,null,null,"",""]
[null,null,null,null,null,null,null,null,null,null,null,null,null,null,"",""]
[null,null,null,null,null,null,null,null,null,null,null,null,null,null,"",""]
[null,null,null,null,null,null,null,null,null,null,null,null,null,null,"",""]
[null,null,null,null,null,null,null,null,null,null,null,null,null,null,"",""]
[null,null,null,null,null,null,null,null,null,null,null,null,null,null,"",""]
[null,null,null,null,null,null,null,null,null,null,null,null,null,null,{"$f":"IF(OR(M63434=\"\",M63434=\"-\"),\"\",0.35*10^M63434)","v":""},{"$f":"IF(O63434=0.35*10^M63434,\"Seth method\",\"\")","v":""}]
[null,null,null,null,null,null,null,null,null,null,null,null,null,null,"",""]
[null,null,null,null,null,null,null,null,null,null,null,null,null,null,"",""]
[null,null,null,null,null,null,null,null,null,null,null,null,null,null,"",""]
[null,null,null,null,null,null,null,null,null,null,null,null,null,null,"",""]
[null,null,null,null,null,null,null,null,null,null,null,null,null,null,"",""]
[null,null,null,null,null,null,null,null,null,null,null,null,null,null,"",""]
[null,null,null,null,null,null,null,null,null,null,null,null,null,null,"",""]
[null,null,null,null,null,null,null,null,null,null,null,null,null,null,"",""]
[null,null,null,null,null,null,null,null,null,null,null,null,null,null,"",""]
[null,null,null,null,null,null,null,null,null,null,null,null,null,null,"",""]
[null,null,null,null,null,null,null,null,null,null,null,null,null,null,"",""]
[null,null,null,null,null,null,null,null,null,null,null,null,null,null,"",""]
[null,null,null,null,null,null,null,null,null,null,null,null,null,null,"",""]
[null,null,null,null,null,null,null,null,null,null,null,null,null,null,"",""]
[null,null,null,null,null,null,null,null,null,null,null,null,null,null,"",""]
[null,null,null,null,null,null,null,null,null,null,null,null,null,null,"",""]
[null,null,null,null,null,null,null,null,null,null,null,null,null,null,"",""]
[null,null,null,null,null,null,null,null,null,null,null,null,null,null,"",""]
[null,null,null,null,null,null,null,null,null,null,null,null,null,null,"",""]
[null,null,null,null,null,null,null,null,null,null,null,null,null,null,"",""]
[null,null,null,null,null,null,null,null,null,null,null,null,null,null,"",""]
[null,null,null,null,null,null,null,null,null,null,null,null,null,null,"",""]
[null,null,null,null,null,null,null,null,null,null,null,null,null,null,"",""]
[null,null,null,null,null,null,null,null,null,null,null,null,null,null,"",""]
[null,null,null,null,null,null,null,null,null,null,null,null,null,null,"",""]
[null,null,null,null,null,null,null,null,null,null,null,null,null,null,"",""]
[null,null,null,null,null,null,null,null,null,null,null,null,null,null,"",""]
[null,null,null,null,null,null,null,null,null,null,null,null,null,null,"",""]
[null,null,null,null,null,null,null,null,null,null,null,null,null,null,"",""]
[null,null,null,null,null,null,null,null,null,null,null,null,null,null,"",""]
[null,null,null,null,null,null,null,null,null,null,null,null,null,null,"",""]
[null,null,null,null,null,null,null,null,null,null,null,null,null,null,"",""]
[null,null,null,null,null,null,null,null,null,null,null,null,null,null,"",""]
[null,null,null,null,null,null,null,null,null,null,null,null,null,null,"",""]
[null,null,null,null,null,null,null,null,null,null,null,null,null,null,"",""]
[null,null,null,null,null,null,null,null,null,null,null,null,null,null,"",""]
[null,null,null,null,null,null,null,null,null,null,null,null,null,null,"",""]
[null,null,null,null,null,null,null,null,null,null,null,null,null,null,"",""]
[null,null,null,null,null,null,null,null,null,null,null,null,null,null,"",""]
[null,null,null,null,null,null,null,null,null,null,null,null,null,null,{"$f":"IF(OR(M64714=\"\",M64714=\"-\"),\"\",0.35*10^M64714)","v":""},{"$f":"IF(O64714=0.35*10^M64714,\"Seth method\",\"\")","v":""}]
[null,null,null,null,null,null,null,null,null,null,null,null,null,null,"",""]
[null,null,null,null,null,null,null,null,null,null,null,null,null,null,"",""]
[null,null,null,null,null,null,null,null,null,null,null,null,null,null,"",""]
[null,null,null,null,null,null,null,null,null,null,null,null,null,null,"",""]
[null,null,null,null,null,null,null,null,null,null,null,null,null,null,"",""]
[null,null,null,null,null,null,null,null,null,null,null,null,null,null,"",""]
[null,null,null,null,null,null,null,null,null,null,null,null,null,null,"",""]
[null,null,null,null,null,null,null,null,null,null,null,null,null,null,"",""]
[null,null,null,null,null,null,null,null,null,null,null,null,null,null,"",""]
[null,null,null,null,null,null,null,null,null,null,null,null,null,null,"",""]
[null,null,null,null,null,null,null,null,null,null,null,null,null,null,"",""]
[null,null,null,null,null,null,null,null,null,null,null,null,null,null,"",""]
[null,null,null,null,null,null,null,null,null,null,null,null,null,null,"",""]
[null,null,null,null,null,null,null,null,null,null,null,null,null,null,"",""]
[null,null,null,null,null,null,null,null,null,null,null,null,null,null,"",""]
[null,null,null,null,null,null,null,null,null,null,null,null,null,null,"",""]
[null,null,null,null,null,null,null,null,null,null,null,null,null,null,"",""]
[null,null,null,null,null,null,null,null,null,null,null,null,null,null,"",""]
[null,null,null,null,null,null,null,null,null,null,null,null,null,null,"",""]
[null,null,null,null,null,null,null,null,null,null,null,null,null,null,"",""]
[null,null,null,null,null,null,null,null,null,null,null,null,null,null,"",""]
[null,null,null,null,null,null,null,null,null,null,null,null,null,null,"",""]
[null,null,null,null,null,null,null,null,null,null,null,null,null,null,"",""]
[null,null,null,null,null,null,null,null,null,null,null,null,null,null,"",""]
[null,null,null,null,null,null,null,null,null,null,null,null,null,null,"",""]
[null,null,null,null,null,null,null,null,null,null,null,null,null,null,"",""]
[null,null,null,null,null,null,null,null,null,null,null,null,null,null,"",""]
[null,null,null,null,null,null,null,null,null,null,null,null,null,null,"",""]
[null,null,null,null,null,null,null,null,null,null,null,null,null,null,"",""]
[null,null,null,null,null,null,null,null,null,null,null,null,null,null,"",""]
[null,null,null,null,null,null,null,null,null,null,null,null,null,null,"",""]
[null,null,null,null,null,null,null,null,null,null,null,null,null,null,"",""]
[null,null,null,null,null,null,null,null,null,null,null,null,null,null,"",""]
[null,null,null,null,null,null,null,null,null,null,null,null,null,null,"",""]
[null,null,null,null,null,null,null,null,null,null,null,null,null,null,"",""]
[null,null,null,null,null,null,null,null,null,null,null,null,null,null,"",""]
[null,null,null,null,null,null,null,null,null,null,null,null,null,null,"",""]
[null,null,null,null,null,null,null,null,null,null,null,null,null,null,"",""]
[null,null,null,null,null,null,null,null,null,null,null,null,null,null,"",""]
[null,null,null,null,null,null,null,null,null,null,null,null,null,null,"",""]
[null,null,null,null,null,null,null,null,null,null,null,null,null,null,"",""]
[null,null,null,null,null,null,null,null,null,null,null,null,null,null,"",""]
[null,null,null,null,null,null,null,null,null,null,null,null,null,null,"",""]
[null,null,null,null,null,null,null,null,null,null,null,null,null,null,"",""]
[null,null,null,null,null,null,null,null,null,null,null,null,null,null,"",""]
[null,null,null,null,null,null,null,null,null,null,null,null,null,null,"",""]
[null,null,null,null,null,null,null,null,null,null,null,null,null,null,"",""]
[null,null,null,null,null,null,null,null,null,null,null,null,null,null,"",""]
[null,null,null,null,null,null,null,null,null,null,null,null,null,null,"",""]
[null,null,null,null,null,null,null,null,null,null,null,null,null,null,"",""]
[null,null,null,null,null,null,null,null,null,null,null,null,null,null,"",""]
[null,null,null,null,null,null,null,null,null,null,null,null,null,null,"",""]
[null,null,null,null,null,null,null,null,null,null,null,null,null,null,"",""]
[null,null,null,null,null,null,null,null,null,null,null,null,null,null,"",""]
[null,null,null,null,null,null,null,null,null,null,null,null,null,null,"",""]
[null,null,null,null,null,null,null,null,null,null,null,null,null,null,"",""]
[null,null,null,null,null,null,null,null,null,null,null,null,null,null,"",""]
[null,null,null,null,null,null,null,null,null,null,null,null,null,null,"",""]
[null,null,null,null,null,null,null,null,null,null,null,null,null,null,"",""]
[null,null,null,null,null,null,null,null,null,null,null,null,null,null,"",""]
[null,null,null,null,null,null,null,null,null,null,null,null,null,null,"",""]
[null,null,null,null,null,null,null,null,null,null,null,null,null,null,"",""]
[null,null,null,null,null,null,null,null,null,null,null,null,null,null,"",""]
[null,null,null,null,null,null,null,null,null,null,null,null,null,null,"",""]
[null,null,null,null,null,null,null,null,null,null,null,null,null,null,"",""]
[null,null,null,null,null,null,null,null,null,null,null,null,null,null,"",""]
[null,null,null,null,null,null,null,null,null,null,null,null,null,null,"",""]
[null,null,null,null,null,null,null,null,null,null,null,null,null,null,"",""]
[null,null,null,null,null,null,null,null,null,null,null,null,null,null,"",""]
[null,null,null,null,null,null,null,null,null,null,null,null,null,null,"",""]
[null,null,null,null,null,null,null,null,null,null,null,null,null,null,"",""]
[null,null,null,null,null,null,null,null,null,null,null,null,null,null,"",""]
[null,null,null,null,null,null,null,null,null,null,null,null,null,null,{"$f":"IF(OR(M65098=\"\",M65098=\"-\"),\"\",0.35*10^M65098)","v":""},{"$f":"IF(O65098=0.35*10^M65098,\"Seth method\",\"\")","v":""}]
[null,null,null,null,null,null,null,null,null,null,null,null,null,null,"",""]
[null,null,null,null,null,null,null,null,null,null,null,null,null,null,"",""]
[null,null,null,null,null,null,null,null,null,null,null,null,null,null,"",""]
[null,null,null,null,null,null,null,null,null,null,null,null,null,null,"",""]
[null,null,null,null,null,null,null,null,null,null,null,null,null,null,"",""]
[null,null,null,null,null,null,null,null,null,null,null,null,null,null,"",""]
[null,null,null,null,null,null,null,null,null,null,null,null,null,null,"",""]
[null,null,null,null,null,null,null,null,null,null,null,null,null,null,"",""]
[null,null,null,null,null,null,null,null,null,null,null,null,null,null,"",""]
[null,null,null,null,null,null,null,null,null,null,null,null,null,null,"",""]
[null,null,null,null,null,null,null,null,null,null,null,null,null,null,"",""]
[null,null,null,null,null,null,null,null,null,null,null,null,null,null,"",""]
[null,null,null,null,null,null,null,null,null,null,null,null,null,null,"",""]
[null,null,null,null,null,null,null,null,null,null,null,null,null,null,"",""]
[null,null,null,null,null,null,null,null,null,null,null,null,null,null,"",""]
[null,null,null,null,null,null,null,null,null,null,null,null,null,null,"",""]
[null,null,null,null,null,null,null,null,null,null,null,null,null,null,"",""]
[null,null,null,null,null,null,null,null,null,null,null,null,null,null,"",""]
[null,null,null,null,null,null,null,null,null,null,null,null,null,null,"",""]
[null,null,null,null,null,null,null,null,null,null,null,null,null,null,"",""]
[null,null,null,null,null,null,null,null,null,null,null,null,null,null,"",""]
[null,null,null,null,null,null,null,null,null,null,null,null,null,null,"",""]
[null,null,null,null,null,null,null,null,null,null,null,null,null,null,"",""]
[null,null,null,null,null,null,null,null,null,null,null,null,null,null,"",""]
[null,null,null,null,null,null,null,null,null,null,null,null,null,null,"",""]
[null,null,null,null,null,null,null,null,null,null,null,null,null,null,"",""]
[null,null,null,null,null,null,null,null,null,null,null,null,null,null,"",""]
[null,null,null,null,null,null,null,null,null,null,null,null,null,null,"",""]
[null,null,null,null,null,null,null,null,null,null,null,null,null,null,"",""]
[null,null,null,null,null,null,null,null,null,null,null,null,null,null,"",""]
[null,null,null,null,null,null,null,null,null,null,null,null,null,null,"",""]
[null,null,null,null,null,null,null,null,null,null,null,null,null,null,"",""]
[null,null,null,null,null,null,null,null,null,null,null,null,null,null,"",""]
[null,null,null,null,null,null,null,null,null,null,null,null,null,null,"",""]
[null,null,null,null,null,null,null,null,null,null,null,null,null,null,"",""]
[null,null,null,null,null,null,null,null,null,null,null,null,null,null,"",""]
[null,null,null,null,null,null,null,null,null,null,null,null,null,null,"",""]
[null,null,null,null,null,null,null,null,null,null,null,null,null,null,"",""]
[null,null,null,null,null,null,null,null,null,null,null,null,null,null,"",""]
[null,null,null,null,null,null,null,null,null,null,null,null,null,null,"",""]
[null,null,null,null,null,null,null,null,null,null,null,null,null,null,"",""]
[null,null,null,null,null,null,null,null,null,null,null,null,null,null,"",""]
[null,null,null,null,null,null,null,null,null,null,null,null,null,null,"",""]
[null,null,null,null,null,null,null,null,null,null,null,null,null,null,"",""]
[null,null,null,null,null,null,null,null,null,null,null,null,null,null,"",""]
[null,null,null,null,null,null,null,null,null,null,null,null,null,null,"",""]
[null,null,null,null,null,null,null,null,null,null,null,null,null,null,"",""]
[null,null,null,null,null,null,null,null,null,null,null,null,null,null,"",""]
[null,null,null,null,null,null,null,null,null,null,null,null,null,null,"",""]
[null,null,null,null,null,null,null,null,null,null,null,null,null,null,"",""]
[null,null,null,null,null,null,null,null,null,null,null,null,null,null,"",""]
[null,null,null,null,null,null,null,null,null,null,null,null,null,null,"",""]
[null,null,null,null,null,null,null,null,null,null,null,null,null,null,"",""]
[null,null,null,null,null,null,null,null,null,null,null,null,null,null,"",""]
[null,null,null,null,null,null,null,null,null,null,null,null,null,null,"",""]
[null,null,null,null,null,null,null,null,null,null,null,null,null,null,"",""]
[null,null,null,null,null,null,null,null,null,null,null,null,null,null,"",""]
[null,null,null,null,null,null,null,null,null,null,null,null,null,null,"",""]
[null,null,null,null,null,null,null,null,null,null,null,null,null,null,"",""]
[null,null,null,null,null,null,null,null,null,null,null,null,null,null,"",""]
[null,null,null,null,null,null,null,null,null,null,null,null,null,null,"",""]
[null,null,null,null,null,null,null,null,null,null,null,null,null,null,"",""]
[null,null,null,null,null,null,null,null,null,null,null,null,null,null,"",""]
[null,null,null,null,null,null,null,null,null,null,null,null,null,null,{"$f":"IF(OR(M65162=\"\",M65162=\"-\"),\"\",0.35*10^M65162)","v":""},{"$f":"IF(O65162=0.35*10^M65162,\"Seth method\",\"\")","v":""}]
[null,null,null,null,null,null,null,null,null,null,null,null,null,null,"",""]
[null,null,null,null,null,null,null,null,null,null,null,null,null,null,"",""]
[null,null,null,null,null,null,null,null,null,null,null,null,null,null,"",""]
[null,null,null,null,null,null,null,null,null,null,null,null,null,null,"",""]
[null,null,null,null,null,null,null,null,null,null,null,null,null,null,"",""]
[null,null,null,null,null,null,null,null,null,null,null,null,null,null,"",""]
[null,null,null,null,null,null,null,null,null,null,null,null,null,null,"",""]
[null,null,null,null,null,null,null,null,null,null,null,null,null,null,"",""]
[null,null,null,null,null,null,null,null,null,null,null,null,null,null,"",""]
[null,null,null,null,null,null,null,null,null,null,null,null,null,null,"",""]
[null,null,null,null,null,null,null,null,null,null,null,null,null,null,"",""]
[null,null,null,null,null,null,null,null,null,null,null,null,null,null,"",""]
[null,null,null,null,null,null,null,null,null,null,null,null,null,null,"",""]
[null,null,null,null,null,null,null,null,null,null,null,null,null,null,"",""]
[null,null,null,null,null,null,null,null,null,null,null,null,null,null,"",""]
[null,null,null,null,null,null,null,null,null,null,null,null,null,null,"",""]
[null,null,null,null,null,null,null,null,null,null,null,null,null,null,"",""]
[null,null,null,null,null,null,null,null,null,null,null,null,null,null,"",""]
[null,null,null,null,null,null,null,null,null,null,null,null,null,null,"",""]
[null,null,null,null,null,null,null,null,null,null,null,null,null,null,"",""]
[null,null,null,null,null,null,null,null,null,null,null,null,null,null,"",""]
[null,null,null,null,null,null,null,null,null,null,null,null,null,null,"",""]
[null,null,null,null,null,null,null,null,null,null,null,null,null,null,"",""]
[null,null,null,null,null,null,null,null,null,null,null,null,null,null,"",""]
[null,null,null,null,null,null,null,null,null,null,null,null,null,null,"",""]
[null,null,null,null,null,null,null,null,null,null,null,null,null,null,"",""]
[null,null,null,null,null,null,null,null,null,null,null,null,null,null,"",""]
[null,null,null,null,null,null,null,null,null,null,null,null,null,null,"",""]
[null,null,null,null,null,null,null,null,null,null,null,null,null,null,"",""]
[null,null,null,null,null,null,null,null,null,null,null,null,null,null,"",""]
[null,null,null,null,null,null,null,null,null,null,null,null,null,null,"",""]
[null,null,null,null,null,null,null,null,null,null,null,null,null,null,"",""]
[null,null,null,null,null,null,null,null,null,null,null,null,null,null,"",""]
[null,null,null,null,null,null,null,null,null,null,null,null,null,null,"",""]
[null,null,null,null,null,null,null,null,null,null,null,null,null,null,"",""]
[null,null,null,null,null,null,null,null,null,null,null,null,null,null,"",""]
[null,null,null,null,null,null,null,null,null,null,null,null,null,null,"",""]
[null,null,null,null,null,null,null,null,null,null,null,null,null,null,"",""]
[null,null,null,null,null,null,null,null,null,null,null,null,null,null,"",""]
[null,null,null,null,null,null,null,null,null,null,null,null,null,null,"",""]
[null,null,null,null,null,null,null,null,null,null,null,null,null,null,"",""]
[null,null,null,null,null,null,null,null,null,null,null,null,null,null,"",""]
[null,null,null,null,null,null,null,null,null,null,null,null,null,null,"",""]
[null,null,null,null,null,null,null,null,null,null,null,null,null,null,"",""]
[null,null,null,null,null,null,null,null,null,null,null,null,null,null,"",""]
[null,null,null,null,null,null,null,null,null,null,null,null,null,null,"",""]
[null,null,null,null,null,null,null,null,null,null,null,null,null,null,"",""]
[null,null,null,null,null,null,null,null,null,null,null,null,null,null,"",""]
[null,null,null,null,null,null,null,null,null,null,null,null,null,null,"",""]
[null,null,null,null,null,null,null,null,null,null,null,null,null,null,"",""]
[null,null,null,null,null,null,null,null,null,null,null,null,null,null,"",""]
[null,null,null,null,null,null,null,null,null,null,null,null,null,null,"",""]
[null,null,null,null,null,null,null,null,null,null,null,null,null,null,"",""]
[null,null,null,null,null,null,null,null,null,null,null,null,null,null,"",""]
[null,null,null,null,null,null,null,null,null,null,null,null,null,null,"",""]
[null,null,null,null,null,null,null,null,null,null,null,null,null,null,"",""]
[null,null,null,null,null,null,null,null,null,null,null,null,null,null,"",""]
[null,null,null,null,null,null,null,null,null,null,null,null,null,null,"",""]
[null,null,null,null,null,null,null,null,null,null,null,null,null,null,"",""]
[null,null,null,null,null,null,null,null,null,null,null,null,null,null,"",""]
[null,null,null,null,null,null,null,null,null,null,null,null,null,null,"",""]
[null,null,null,null,null,null,null,null,null,null,null,null,null,null,"",""]
[null,null,null,null,null,null,null,null,null,null,null,null,null,null,"",""]
[null,null,null,null,null,null,null,null,null,null,null,null,null,null,{"$f":"IF(OR(M65226=\"\",M65226=\"-\"),\"\",0.35*10^M65226)","v":""},{"$f":"IF(O65226=0.35*10^M65226,\"Seth method\",\"\")","v":""}]
[null,null,null,null,null,null,null,null,null,null,null,null,null,null,"",""]
[null,null,null,null,null,null,null,null,null,null,null,null,null,null,"",""]
[null,null,null,null,null,null,null,null,null,null,null,null,null,null,"",""]
[null,null,null,null,null,null,null,null,null,null,null,null,null,null,"",""]
[null,null,null,null,null,null,null,null,null,null,null,null,null,null,"",""]
[null,null,null,null,null,null,null,null,null,null,null,null,null,null,"",""]
[null,null,null,null,null,null,null,null,null,null,null,null,null,null,"",""]
[null,null,null,null,null,null,null,null,null,null,null,null,null,null,"",""]
[null,null,null,null,null,null,null,null,null,null,null,null,null,null,"",""]
[null,null,null,null,null,null,null,null,null,null,null,null,null,null,"",""]
[null,null,null,null,null,null,null,null,null,null,null,null,null,null,"",""]
[null,null,null,null,null,null,null,null,null,null,null,null,null,null,"",""]
[null,null,null,null,null,null,null,null,null,null,null,null,null,null,"",""]
[null,null,null,null,null,null,null,null,null,null,null,null,null,null,"",""]
[null,null,null,null,null,null,null,null,null,null,null,null,null,null,"",""]
[null,null,null,null,null,null,null,null,null,null,null,null,null,null,"",""]
[null,null,null,null,null,null,null,null,null,null,null,null,null,null,"",""]
[null,null,null,null,null,null,null,null,null,null,null,null,null,null,"",""]
[null,null,null,null,null,null,null,null,null,null,null,null,null,null,"",""]
[null,null,null,null,null,null,null,null,null,null,null,null,null,null,"",""]
[null,null,null,null,null,null,null,null,null,null,null,null,null,null,"",""]
[null,null,null,null,null,null,null,null,null,null,null,null,null,null,"",""]
[null,null,null,null,null,null,null,null,null,null,null,null,null,null,"",""]
[null,null,null,null,null,null,null,null,null,null,null,null,null,null,"",""]
[null,null,null,null,null,null,null,null,null,null,null,null,null,null,"",""]
[null,null,null,null,null,null,null,null,null,null,null,null,null,null,"",""]
[null,null,null,null,null,null,null,null,null,null,null,null,null,null,"",""]
[null,null,null,null,null,null,null,null,null,null,null,null,null,null,"",""]
[null,null,null,null,null,null,null,null,null,null,null,null,null,null,"",""]
[null,null,null,null,null,null,null,null,null,null,null,null,null,null,"",""]
[null,null,null,null,null,null,null,null,null,null,null,null,null,null,"",""]
[null,null,null,null,null,null,null,null,null,null,null,null,null,null,"",""]
[null,null,null,null,null,null,null,null,null,null,null,null,null,null,"",""]
[null,null,null,null,null,null,null,null,null,null,null,null,null,null,"",""]
[null,null,null,null,null,null,null,null,null,null,null,null,null,null,"",""]
[null,null,null,null,null,null,null,null,null,null,null,null,null,null,"",""]
[null,null,null,null,null,null,null,null,null,null,null,null,null,null,"",""]
[null,null,null,null,null,null,null,null,null,null,null,null,null,null,"",""]
[null,null,null,null,null,null,null,null,null,null,null,null,null,null,"",""]
[null,null,null,null,null,null,null,null,null,null,null,null,null,null,"",""]
[null,null,null,null,null,null,null,null,null,null,null,null,null,null,"",""]
[null,null,null,null,null,null,null,null,null,null,null,null,null,null,"",""]
[null,null,null,null,null,null,null,null,null,null,null,null,null,null,"",""]
[null,null,null,null,null,null,null,null,null,null,null,null,null,null,"",""]
[null,null,null,null,null,null,null,null,null,null,null,null,null,null,"",""]
[null,null,null,null,null,null,null,null,null,null,null,null,null,null,"",""]
[null,null,null,null,null,null,null,null,null,null,null,null,null,null,"",""]
[null,null,null,null,null,null,null,null,null,null,null,null,null,null,"",""]
[null,null,null,null,null,null,null,null,null,null,null,null,null,null,"",""]
[null,null,null,null,null,null,null,null,null,null,null,null,null,null,"",""]
[null,null,null,null,null,null,null,null,null,null,null,null,null,null,"",""]
[null,null,null,null,null,null,null,null,null,null,null,null,null,null,"",""]
[null,null,null,null,null,null,null,null,null,null,null,null,null,null,"",""]
[null,null,null,null,null,null,null,null,null,null,null,null,null,null,"",""]
[null,null,null,null,null,null,null,null,null,null,null,null,null,null,"",""]
[null,null,null,null,null,null,null,null,null,null,null,null,null,null,"",""]
[null,null,null,null,null,null,null,null,null,null,null,null,null,null,"",""]
[null,null,null,null,null,null,null,null,null,null,null,null,null,null,"",""]
[null,null,null,null,null,null,null,null,null,null,null,null,null,null,"",""]
[null,null,null,null,null,null,null,null,null,null,null,null,null,null,"",""]
[null,null,null,null,null,null,null,null,null,null,null,null,null,null,"",""]
[null,null,null,null,null,null,null,null,null,null,null,null,null,null,"",""]
[null,null,null,null,null,null,null,null,null,null,null,null,null,null,"",""]
[null,null,null,null,null,null,null,null,null,null,null,null,null,null,{"$f":"IF(OR(M65290=\"\",M65290=\"-\"),\"\",0.35*10^M65290)","v":""},{"$f":"IF(O65290=0.35*10^M65290,\"Seth method\",\"\")","v":""}]
[null,null,null,null,null,null,null,null,null,null,null,null,null,null,"",""]
[null,null,null,null,null,null,null,null,null,null,null,null,null,null,"",""]
[null,null,null,null,null,null,null,null,null,null,null,null,null,null,"",""]
[null,null,null,null,null,null,null,null,null,null,null,null,null,null,"",""]
[null,null,null,null,null,null,null,null,null,null,null,null,null,null,"",""]
[null,null,null,null,null,null,null,null,null,null,null,null,null,null,"",""]
[null,null,null,null,null,null,null,null,null,null,null,null,null,null,"",""]
[null,null,null,null,null,null,null,null,null,null,null,null,null,null,"",""]
[null,null,null,null,null,null,null,null,null,null,null,null,null,null,"",""]
[null,null,null,null,null,null,null,null,null,null,null,null,null,null,"",""]
[null,null,null,null,null,null,null,null,null,null,null,null,null,null,"",""]
[null,null,null,null,null,null,null,null,null,null,null,null,null,null,"",""]
[null,null,null,null,null,null,null,null,null,null,null,null,null,null,"",""]
[null,null,null,null,null,null,null,null,null,null,null,null,null,null,"",""]
[null,null,null,null,null,null,null,null,null,null,null,null,null,null,"",""]
[null,null,null,null,null,null,null,null,null,null,null,null,null,null,"",""]
[null,null,null,null,null,null,null,null,null,null,null,null,null,null,"",""]
[null,null,null,null,null,null,null,null,null,null,null,null,null,null,"",""]
[null,null,null,null,null,null,null,null,null,null,null,null,null,null,"",""]
[null,null,null,null,null,null,null,null,null,null,null,null,null,null,"",""]
[null,null,null,null,null,null,null,null,null,null,null,null,null,null,"",""]
[null,null,null,null,null,null,null,null,null,null,null,null,null,null,"",""]
[null,null,null,null,null,null,null,null,null,null,null,null,null,null,"",""]
[null,null,null,null,null,null,null,null,null,null,null,null,null,null,"",""]
[null,null,null,null,null,null,null,null,null,null,null,null,null,null,"",""]
[null,null,null,null,null,null,null,null,null,null,null,null,null,null,"",""]
[null,null,null,null,null,null,null,null,null,null,null,null,null,null,"",""]
[null,null,null,null,null,null,null,null,null,null,null,null,null,null,"",""]
[null,null,null,null,null,null,null,null,null,null,null,null,null,null,"",""]
[null,null,null,null,null,null,null,null,null,null,null,null,null,null,"",""]
[null,null,null,null,null,null,null,null,null,null,null,null,null,null,"",""]
[null,null,null,null,null,null,null,null,null,null,null,null,null,null,"",""]
[null,null,null,null,null,null,null,null,null,null,null,null,null,null,"",""]
[null,null,null,null,null,null,null,null,null,null,null,null,null,null,"",""]
[null,null,null,null,null,null,null,null,null,null,null,null,null,null,"",""]
[null,null,null,null,null,null,null,null,null,null,null,null,null,null,"",""]
[null,null,null,null,null,null,null,null,null,null,null,null,null,null,"",""]
[null,null,null,null,null,null,null,null,null,null,null,null,null,null,"",""]
[null,null,null,null,null,null,null,null,null,null,null,null,null,null,"",""]
[null,null,null,null,null,null,null,null,null,null,null,null,null,null,"",""]
[null,null,null,null,null,null,null,null,null,null,null,null,null,null,"",""]
[null,null,null,null,null,null,null,null,null,null,null,null,null,null,"",""]
[null,null,null,null,null,null,null,null,null,null,null,null,null,null,"",""]
[null,null,null,null,null,null,null,null,null,null,null,null,null,null,"",""]
[null,null,null,null,null,null,null,null,null,null,null,null,null,null,"",""]
[null,null,null,null,null,null,null,null,null,null,null,null,null,null,"",""]
[null,null,null,null,null,null,null,null,null,null,null,null,null,null,"",""]
[null,null,null,null,null,null,null,null,null,null,null,null,null,null,"",""]
[null,null,null,null,null,null,null,null,null,null,null,null,null,null,"",""]
[null,null,null,null,null,null,null,null,null,null,null,null,null,null,"",""]
[null,null,null,null,null,null,null,null,null,null,null,null,null,null,"",""]
[null,null,null,null,null,null,null,null,null,null,null,null,null,null,"",""]
[null,null,null,null,null,null,null,null,null,null,null,null,null,null,"",""]
[null,null,null,null,null,null,null,null,null,null,null,null,null,null,"",""]
[null,null,null,null,null,null,null,null,null,null,null,null,null,null,"",""]
[null,null,null,null,null,null,null,null,null,null,null,null,null,null,"",""]
[null,null,null,null,null,null,null,null,null,null,null,null,null,null,"",""]
[null,null,null,null,null,null,null,null,null,null,null,null,null,null,"",""]
[null,null,null,null,null,null,null,null,null,null,null,null,null,null,"",""]
[null,null,null,null,null,null,null,null,null,null,null,null,null,null,"",""]
[null,null,null,null,null,null,null,null,null,null,null,null,null,null,"",""]
[null,null,null,null,null,null,null,null,null,null,null,null,null,null,"",""]
[null,null,null,null,null,null,null,null,null,null,null,null,null,null,"",""]
[null,null,null,null,null,null,null,null,null,null,null,null,null,null,{"$f":"IF(OR(M65354=\"\",M65354=\"-\"),\"\",0.35*10^M65354)","v":""},{"$f":"IF(O65354=0.35*10^M65354,\"Seth method\",\"\")","v":""}]
[null,null,null,null,null,null,null,null,null,null,null,null,null,null,"",""]
[null,null,null,null,null,null,null,null,null,null,null,null,null,null,"",""]
[null,null,null,null,null,null,null,null,null,null,null,null,null,null,"",""]
[null,null,null,null,null,null,null,null,null,null,null,null,null,null,"",""]
[null,null,null,null,null,null,null,null,null,null,null,null,null,null,"",""]
[null,null,null,null,null,null,null,null,null,null,null,null,null,null,"",""]
[null,null,null,null,null,null,null,null,null,null,null,null,null,null,"",""]
[null,null,null,null,null,null,null,null,null,null,null,null,null,null,"",""]
[null,null,null,null,null,null,null,null,null,null,null,null,null,null,"",""]
[null,null,null,null,null,null,null,null,null,null,null,null,null,null,"",""]
[null,null,null,null,null,null,null,null,null,null,null,null,null,null,"",""]
[null,null,null,null,null,null,null,null,null,null,null,null,null,null,"",""]
[null,null,null,null,null,null,null,null,null,null,null,null,null,null,"",""]
[null,null,null,null,null,null,null,null,null,null,null,null,null,null,"",""]
[null,null,null,null,null,null,null,null,null,null,null,null,null,null,"",""]
[null,null,null,null,null,null,null,null,null,null,null,null,null,null,"",""]
[null,null,null,null,null,null,null,null,null,null,null,null,null,null,"",""]
[null,null,null,null,null,null,null,null,null,null,null,null,null,null,"",""]
[null,null,null,null,null,null,null,null,null,null,null,null,null,null,"",""]
[null,null,null,null,null,null,null,null,null,null,null,null,null,null,"",""]
[null,null,null,null,null,null,null,null,null,null,null,null,null,null,"",""]
[null,null,null,null,null,null,null,null,null,null,null,null,null,null,"",""]
[null,null,null,null,null,null,null,null,null,null,null,null,null,null,"",""]
[null,null,null,null,null,null,null,null,null,null,null,null,null,null,"",""]
[null,null,null,null,null,null,null,null,null,null,null,null,null,null,"",""]
[null,null,null,null,null,null,null,null,null,null,null,null,null,null,"",""]
[null,null,null,null,null,null,null,null,null,null,null,null,null,null,"",""]
[null,null,null,null,null,null,null,null,null,null,null,null,null,null,"",""]
[null,null,null,null,null,null,null,null,null,null,null,null,null,null,"",""]
[null,null,null,null,null,null,null,null,null,null,null,null,null,null,"",""]
[null,null,null,null,null,null,null,null,null,null,null,null,null,null,"",""]
[null,null,null,null,null,null,null,null,null,null,null,null,null,null,"",""]
[null,null,null,null,null,null,null,null,null,null,null,null,null,null,"",""]
[null,null,null,null,null,null,null,null,null,null,null,null,null,null,"",""]
[null,null,null,null,null,null,null,null,null,null,null,null,null,null,"",""]
[null,null,null,null,null,null,null,null,null,null,null,null,null,null,"",""]
[null,null,null,null,null,null,null,null,null,null,null,null,null,null,"",""]
[null,null,null,null,null,null,null,null,null,null,null,null,null,null,"",""]
[null,null,null,null,null,null,null,null,null,null,null,null,null,null,"",""]
[null,null,null,null,null,null,null,null,null,null,null,null,null,null,"",""]
[null,null,null,null,null,null,null,null,null,null,null,null,null,null,"",""]
[null,null,null,null,null,null,null,null,null,null,null,null,null,null,"",""]
[null,null,null,null,null,null,null,null,null,null,null,null,null,null,"",""]
[null,null,null,null,null,null,null,null,null,null,null,null,null,null,"",""]
[null,null,null,null,null,null,null,null,null,null,null,null,null,null,"",""]
[null,null,null,null,null,null,null,null,null,null,null,null,null,null,"",""]
[null,null,null,null,null,null,null,null,null,null,null,null,null,null,"",""]
[null,null,null,null,null,null,null,null,null,null,null,null,null,null,"",""]
[null,null,null,null,null,null,null,null,null,null,null,null,null,null,"",""]
[null,null,null,null,null,null,null,null,null,null,null,null,null,null,"",""]
[null,null,null,null,null,null,null,null,null,null,null,null,null,null,"",""]
[null,null,null,null,null,null,null,null,null,null,null,null,null,null,"",""]
[null,null,null,null,null,null,null,null,null,null,null,null,null,null,"",""]
[null,null,null,null,null,null,null,null,null,null,null,null,null,null,"",""]
[null,null,null,null,null,null,null,null,null,null,null,null,null,null,"",""]
[null,null,null,null,null,null,null,null,null,null,null,null,null,null,"",""]
[null,null,null,null,null,null,null,null,null,null,null,null,null,null,"",""]
[null,null,null,null,null,null,null,null,null,null,null,null,null,null,"",""]
[null,null,null,null,null,null,null,null,null,null,null,null,null,null,"",""]
[null,null,null,null,null,null,null,null,null,null,null,null,null,null,"",""]
[null,null,null,null,null,null,null,null,null,null,null,null,null,null,"",""]
[null,null,null,null,null,null,null,null,null,null,null,null,null,null,"",""]
[null,null,null,null,null,null,null,null,null,null,null,null,null,null,"",""]
[null,null,null,null,null,null,null,null,null,null,null,null,null,null,{"$f":"IF(OR(M65418=\"\",M65418=\"-\"),\"\",0.35*10^M65418)","v":""},{"$f":"IF(O65418=0.35*10^M65418,\"Seth method\",\"\")","v":""}]
[null,null,null,null,null,null,null,null,null,null,null,null,null,null,"",""]
[null,null,null,null,null,null,null,null,null,null,null,null,null,null,"",""]
[null,null,null,null,null,null,null,null,null,null,null,null,null,null,"",""]
[null,null,null,null,null,null,null,null,null,null,null,null,null,null,"",""]
[null,null,null,null,null,null,null,null,null,null,null,null,null,null,"",""]
[null,null,null,null,null,null,null,null,null,null,null,null,null,null,"",""]
[null,null,null,null,null,null,null,null,null,null,null,null,null,null,"",""]
[null,null,null,null,null,null,null,null,null,null,null,null,null,null,"",""]
[null,null,null,null,null,null,null,null,null,null,null,null,null,null,"",""]
[null,null,null,null,null,null,null,null,null,null,null,null,null,null,"",""]
[null,null,null,null,null,null,null,null,null,null,null,null,null,null,"",""]
[null,null,null,null,null,null,null,null,null,null,null,null,null,null,"",""]
[null,null,null,null,null,null,null,null,null,null,null,null,null,null,"",""]
[null,null,null,null,null,null,null,null,null,null,null,null,null,null,"",""]
[null,null,null,null,null,null,null,null,null,null,null,null,null,null,"",""]
[null,null,null,null,null,null,null,null,null,null,null,null,null,null,"",""]
[null,null,null,null,null,null,null,null,null,null,null,null,null,null,"",""]
[null,null,null,null,null,null,null,null,null,null,null,null,null,null,"",""]
[null,null,null,null,null,null,null,null,null,null,null,null,null,null,"",""]
[null,null,null,null,null,null,null,null,null,null,null,null,null,null,"",""]
[null,null,null,null,null,null,null,null,null,null,null,null,null,null,"",""]
[null,null,null,null,null,null,null,null,null,null,null,null,null,null,"",""]
[null,null,null,null,null,null,null,null,null,null,null,null,null,null,"",""]
[null,null,null,null,null,null,null,null,null,null,null,null,null,null,"",""]
[null,null,null,null,null,null,null,null,null,null,null,null,null,null,"",""]
[null,null,null,null,null,null,null,null,null,null,null,null,null,null,"",""]
[null,null,null,null,null,null,null,null,null,null,null,null,null,null,"",""]
[null,null,null,null,null,null,null,null,null,null,null,null,null,null,"",""]
[null,null,null,null,null,null,null,null,null,null,null,null,null,null,"",""]
[null,null,null,null,null,null,null,null,null,null,null,null,null,null,"",""]
[null,null,null,null,null,null,null,null,null,null,null,null,null,null,"",""]
[null,null,null,null,null,null,null,null,null,null,null,null,null,null,"",""]
[null,null,null,null,null,null,null,null,null,null,null,null,null,null,"",""]
[null,null,null,null,null,null,null,null,null,null,null,null,null,null,"",""]
[null,null,null,null,null,null,null,null,null,null,null,null,null,null,"",""]
[null,null,null,null,null,null,null,null,null,null,null,null,null,null,"",""]
[null,null,null,null,null,null,null,null,null,null,null,null,null,null,"",""]
[null,null,null,null,null,null,null,null,null,null,null,null,null,null,"",""]
[null,null,null,null,null,null,null,null,null,null,null,null,null,null,"",""]
[null,null,null,null,null,null,null,null,null,null,null,null,null,null,"",""]
[null,null,null,null,null,null,null,null,null,null,null,null,null,null,"",""]
[null,null,null,null,null,null,null,null,null,null,null,null,null,null,"",""]
[null,null,null,null,null,null,null,null,null,null,null,null,null,null,"",""]
[null,null,null,null,null,null,null,null,null,null,null,null,null,null,"",""]
[null,null,null,null,null,null,null,null,null,null,null,null,null,null,"",""]
[null,null,null,null,null,null,null,null,null,null,null,null,null,null,"",""]
[null,null,null,null,null,null,null,null,null,null,null,null,null,null,"",""]
[null,null,null,null,null,null,null,null,null,null,null,null,null,null,"",""]
[null,null,null,null,null,null,null,null,null,null,null,null,null,null,"",""]
[null,null,null,null,null,null,null,null,null,null,null,null,null,null,"",""]
[null,null,null,null,null,null,null,null,null,null,null,null,null,null,"",""]
[null,null,null,null,null,null,null,null,null,null,null,null,null,null,"",""]
[null,null,null,null,null,null,null,null,null,null,null,null,null,null,"",""]
[null,null,null,null,null,null,null,null,null,null,null,null,null,null,"",""]
[null,null,null,null,null,null,null,null,null,null,null,null,null,null,"",""]
[null,null,null,null,null,null,null,null,null,null,null,null,null,null,"",""]
[null,null,null,null,null,null,null,null,null,null,null,null,null,null,"",""]
[null,null,null,null,null,null,null,null,null,null,null,null,null,null,"",""]
[null,null,null,null,null,null,null,null,null,null,null,null,null,null,"",""]
[null,null,null,null,null,null,null,null,null,null,null,null,null,null,"",""]
[null,null,null,null,null,null,null,null,null,null,null,null,null,null,"",""]
[null,null,null,null,null,null,null,null,null,null,null,null,null,null,"",""]
[null,null,null,null,null,null,null,null,null,null,null,null,null,null,"",""]
[null,null,null,null,null,null,null,null,null,null,null,null,null,null,{"$f":"IF(OR(M65482=\"\",M65482=\"-\"),\"\",0.35*10^M65482)","v":""},{"$f":"IF(O65482=0.35*10^M65482,\"Seth method\",\"\")","v":""}]
[null,null,null,null,null,null,null,null,null,null,null,null,null,null,"",""]
[null,null,null,null,null,null,null,null,null,null,null,null,null,null,"",""]
[null,null,null,null,null,null,null,null,null,null,null,null,null,null,"",""]
[null,null,null,null,null,null,null,null,null,null,null,null,null,null,"",""]
[null,null,null,null,null,null,null,null,null,null,null,null,null,null,"",""]
[null,null,null,null,null,null,null,null,null,null,null,null,null,null,"",""]
[null,null,null,null,null,null,null,null,null,null,null,null,null,null,"",""]
[null,null,null,null,null,null,null,null,null,null,null,null,null,null,"",""]
[null,null,null,null,null,null,null,null,null,null,null,null,null,null,"",""]
[null,null,null,null,null,null,null,null,null,null,null,null,null,null,"",""]
[null,null,null,null,null,null,null,null,null,null,null,null,null,null,"",""]
[null,null,null,null,null,null,null,null,null,null,null,null,null,null,"",""]
[null,null,null,null,null,null,null,null,null,null,null,null,null,null,"",""]
[null,null,null,null,null,null,null,null,null,null,null,null,null,null,"",""]
[null,null,null,null,null,null,null,null,null,null,null,null,null,null,"",""]
[null,null,null,null,null,null,null,null,null,null,null,null,null,null,"",""]
[null,null,null,null,null,null,null,null,null,null,null,null,null,null,"",""]
[null,null,null,null,null,null,null,null,null,null,null,null,null,null,"",""]
[null,null,null,null,null,null,null,null,null,null,null,null,null,null,"",""]
[null,null,null,null,null,null,null,null,null,null,null,null,null,null,"",""]
[null,null,null,null,null,null,null,null,null,null,null,null,null,null,"",""]
[null,null,null,null,null,null,null,null,null,null,null,null,null,null,"",""]
[null,null,null,null,null,null,null,null,null,null,null,null,null,null,"",""]
[null,null,null,null,null,null,null,null,null,null,null,null,null,null,"",""]
[null,null,null,null,null,null,null,null,null,null,null,null,null,null,"",""]
[null,null,null,null,null,null,null,null,null,null,null,null,null,null,"",""]
[null,null,null,null,null,null,null,null,null,null,null,null,null,null,"",""]
[null,null,null,null,null,null,null,null,null,null,null,null,null,null,"",""]
[null,null,null,null,null,null,null,null,null,null,null,null,null,null,"",""]
[null,null,null,null,null,null,null,null,null,null,null,null,null,null,"",""]
[null,null,null,null,null,null,null,null,null,null,null,null,null,null,"",""]
[null,null,null,null,null,null,null,null,null,null,null,null,null,null,"",""]
[null,null,null,null,null,null,null,null,null,null,null,null,null,null,"",""]
[null,null,null,null,null,null,null,null,null,null,null,null,null,null,"",""]
[null,null,null,null,null,null,null,null,null,null,null,null,null,null,"",""]
[null,null,null,null,null,null,null,null,null,null,null,null,null,null,"",""]
[null,null,null,null,null,null,null,null,null,null,null,null,null,null,"",""]
[null,null,null,null,null,null,null,null,null,null,null,null,null,null,"",""]
[null,null,null,null,null,null,null,null,null,null,null,null,null,null,"",""]
[null,null,null,null,null,null,null,null,null,null,null,null,null,null,"",""]
[null,null,null,null,null,null,null,null,null,null,null,null,null,null,"",""]
[null,null,null,null,null,null,null,null,null,null,null,null,null,null,"",""]
[null,null,null,null,null,null,null,null,null,null,null,null,null,null,"",""]
[null,null,null,null,null,null,null,null,null,null,null,null,null,null,"",""]
[null,null,null,null,null,null,null,null,null,null,null,null,null,null,"",""]
[null,null,null,null,null,null,null,null,null,null,null,null,null,null,"",""]
[null,null,null,null,null,null,null,null,null,null,null,null,null,null,"",""]
[null,null,null,null,null,null,null,null,null,null,null,null,null,null,"",""]
[null,null,null,null,null,null,null,null,null,null,null,null,null,null,"",""]
[null,null,null,null,null,null,null,null,null,null,null,null,null,null,"",""]
[null,null,null,null,null,null,null,null,null,null,null,null,null,null,"",""]
[null,null,null,null,null,null,null,null,null,null,null,null,null,null,"",""]
[null,null,null,null,null,null,null,null,null,null,null,null,null,null,"",""]

{"sheet":"Environment Database","index":8,"n_rows":12,"n_cols":20,"rows_kept":12,"cut":false,"hidden":false,"merged":[]}
[]
[]
[]
[]
[]
[]
[null,"Fractions",null,null,"Volume",null,null,null,"Lipid Fraction","Density ",null,null,null,null,null,null,"Organic Carbon"]
["Name","Aerosols in Air","Susp. Particles in Water","Fish in Water ","Air","Water","Soil","Sediment","Fish","Air","Aerosol","Water","Suspended Particles","Fish","Soil","Sediment","Suspended Particles","Soil","Sediment","NOTES"]
[null,null,null,null,"m³","m³","m³","m³","g/g","kg/m³","kg/m³","kg/m³","kg/m³","kg/m³","kg/m³","kg/m³","(g/g)","(g/g)","(g/g)"]
["Default (EQC- standard environment)",1.9999999999999999E-11,5.0000000000000004E-6,{"$f":"0.000001","v":9.9999999999999995E-7},100000000000000,200000000000,9000000000,100000000,0.05,1.185413,2000,1000,1500,1000,2400,2400,0.2,0.02,0.04]
["Hypothene",0,0,0,6000000000,7000000,45000,21000,0.05,1.175,2000,1000,1500,1000,1500,1500,0.2,0.02,0.04]
["EQC-2012- Hughes et al.",1.9999999999999999E-11,5.0000000000000004E-6,9.9999999999999995E-7,100000000000000,200000000000,18000000000,500000000,null,1.185413,2000,1000,1500,1000,2400,2400,0.02,0.04]